Workbook

Sheet Fert selector
B10: Wilmar BioEthanol AgServices - Bruce Highway Sarina QLD 4737 Ph: 1800 881 957
B12: Instructions: | D12: N | E12: P | F12: K | G12: S
B13: Enter as kgs/ha of N,P,K,S required | D13: 150 | E13: 0 | F13: 90 | G13: 0
B14: Click Grey Enter Button | D14: N | E14: P | F14: K | G14: S
B15: See results below | D15: Y
D16: N | E16: P | F16: K | G16: S
C17: Above | D17: 0.02 | E17: 0.02 | F17: 0.1 | G17: 0.7
C18: Below | D18: 0.1 | E18: 0.1 | F18: 0.02 | G18: 0.2
B21: ** Be aware that the search results will include products with P, if not required please disregard these products **
B22: TOP 10 FERTILISERS MATCHING REQUIREMENTS
B23: RANK | C23: PRODUCT NAME | D23: PRODUCT NUMBER | E23: OPTIMUM RATE m3/Ha | F23: N | G23: P | H23: K | I23: S
B24: 1 | C24: =Calc!$D$3 -> QUOD RATOONER 2 | D24: =Calc!$C$3 -> 96428 | E24: =IF($D$15="Y",ROUND(Calc!$N3,0),IF($E$15="Y",ROUND(Calc!$S3,0),IF($F$15="Y",ROUND(Calc!$X3,0),IF($G$15="Y",ROUND(Calc!$AC3,0)))))/10 -> 3.3 | F24: =Calc!$O3 -> 150 | G24: =Calc!$T3 -> 0.3239087927 | H24: =Calc!$Y3 -> 93.93354988 | I24: =Calc!$AD3 -> 15.09561632
B25: 2 | C25: =Calc!$D$4 -> ECONO LIQUID ONE SHOT | D25: =Calc!$C$4 -> 81050 | E25: =IF($D$15="Y",ROUND(Calc!$N4,0),IF($E$15="Y",ROUND(Calc!$S4,0),IF($F$15="Y",ROUND(Calc!$X4,0),IF($G$15="Y",ROUND(Calc!$AC4,0)))))/10 -> 3.3 | F25: =Calc!$O4 -> 150 | G25: =Calc!$T4 -> 0.3286728759 | H25: =Calc!$Y4 -> 95.31513401 | I25: =Calc!$AD4 -> 15.2307279
B26: 3 | C26: =Calc!$D$5 -> LIQUID ONE SHOT | D26: =Calc!$C$5 -> 80789 | E26: =IF($D$15="Y",ROUND(Calc!$N5,0),IF($E$15="Y",ROUND(Calc!$S5,0),IF($F$15="Y",ROUND(Calc!$X5,0),IF($G$15="Y",ROUND(Calc!$AC5,0)))))/10 -> 3 | F26: =Calc!$O5 -> 150 | G26: =Calc!$T5 -> 0.2918717072 | H26: =Calc!$Y5 -> 84.64279508 | I26: =Calc!$AD5 -> 14.18702993
B27: 4 | C27: =Calc!$D$6 -> ECONO LIQUID ONE SHOT + P | D27: =Calc!$C$6 -> 81052 | E27: =IF($D$15="Y",ROUND(Calc!$N6,0),IF($E$15="Y",ROUND(Calc!$S6,0),IF($F$15="Y",ROUND(Calc!$X6,0),IF($G$15="Y",ROUND(Calc!$AC6,0)))))/10 -> 3.4 | F27: =Calc!$O6 -> 150 | G27: =Calc!$T6 -> 12.27446991 | H27: =Calc!$Y6 -> 95.23763445 | I27: =Calc!$AD6 -> 22.61058429
B28: 5 | C28: =Calc!$D$7 -> LO P RATOONER | D28: =Calc!$C$7 -> 89016 | E28: =IF($D$15="Y",ROUND(Calc!$N7,0),IF($E$15="Y",ROUND(Calc!$S7,0),IF($F$15="Y",ROUND(Calc!$X7,0),IF($G$15="Y",ROUND(Calc!$AC7,0)))))/10 -> 3 | F28: =Calc!$O7 -> 150 | G28: =Calc!$T7 -> 8.115025339 | H28: =Calc!$Y7 -> 84.57879116 | I28: =Calc!$AD7 -> 19.01873836
B29: 6 | C29: =Calc!$D$8 -> SPRING 1 | D29: =Calc!$C$8 -> 102313 | E29: =IF($D$15="Y",ROUND(Calc!$N8,0),IF($E$15="Y",ROUND(Calc!$S8,0),IF($F$15="Y",ROUND(Calc!$X8,0),IF($G$15="Y",ROUND(Calc!$AC8,0)))))/10 -> 3.4 | F29: =Calc!$O8 -> 150 | G29: =Calc!$T8 -> 17.71709317 | H29: =Calc!$Y8 -> 95.46242168 | I29: =Calc!$AD8 -> 25.99780129
B30: 7 | C30: =Calc!$D$9 -> MKY 170 | D30: =Calc!$C$9 -> 102185 | E30: =IF($D$15="Y",ROUND(Calc!$N9,0),IF($E$15="Y",ROUND(Calc!$S9,0),IF($F$15="Y",ROUND(Calc!$X9,0),IF($G$15="Y",ROUND(Calc!$AC9,0)))))/10 -> 3.8 | F30: =Calc!$O9 -> 150 | G30: =Calc!$T9 -> 0.3766136319 | H30: =Calc!$Y9 -> 109.2179532 | I30: =Calc!$AD9 -> 16.59034966
B31: 8 | C31: =Calc!$D$10 -> LIQUID ONE SHOT + P | D31: =Calc!$C$10 -> 80793 | E31: =IF($D$15="Y",ROUND(Calc!$N10,0),IF($E$15="Y",ROUND(Calc!$S10,0),IF($F$15="Y",ROUND(Calc!$X10,0),IF($G$15="Y",ROUND(Calc!$AC10,0)))))/10 -> 3 | F31: =Calc!$O10 -> 150 | G31: =Calc!$T10 -> 15.19945048 | H31: =Calc!$Y10 -> 84.76796305 | I31: =Calc!$AD10 -> 23.41783712
B32: 9 | C32: =Calc!$D$11 -> MID N + P | D32: =Calc!$C$11 -> 102196 | E32: =IF($D$15="Y",ROUND(Calc!$N11,0),IF($E$15="Y",ROUND(Calc!$S11,0),IF($F$15="Y",ROUND(Calc!$X11,0),IF($G$15="Y",ROUND(Calc!$AC11,0)))))/10 -> 2.8 | F32: =Calc!$O11 -> 150 | G32: =Calc!$T11 -> 10.0182613 | H32: =Calc!$Y11 -> 79.37111148 | I32: =Calc!$AD11 -> 19.69751931
B33: 10 | C33: =Calc!$D$12 -> MKY 180P | D33: =Calc!$C$12 -> 102201 | E33: =IF($D$15="Y",ROUND(Calc!$N12,0),IF($E$15="Y",ROUND(Calc!$S12,0),IF($F$15="Y",ROUND(Calc!$X12,0),IF($G$15="Y",ROUND(Calc!$AC12,0)))))/10 -> 3.6 | F33: =Calc!$O12 -> 150 | G33: =Calc!$T12 -> 9.406390973 | H33: =Calc!$Y12 -> 101.8392267 | I33: =Calc!$AD12 -> 21.46849014

Sheet Data sheet (hidden)
A1: Product Code | B1: SAP Number | C1: NAME | E1: Specific Gravity | F1: Urea | G1: DAP | H1: Sulphuric | I1: Dunder KG | J1: Vizura (L) | K1: K as Bio | L1: N as Bio | M1: N as Urea | N1: N from DAP | O1: Total N | P1: S as Bio | Q1: S as Sulf Acid | R1: S as DAP | S1: Total S | T1: P as DAP | U1: LTDP | V1: LTD | W1: BIO | X1: Vizura | Y1: LTD NOACID | Z1: MKP Concetrate | AA1: N% | AB1: P% | AC1: K% | AD1: S% | AE1: Ca% | AF1: Mg% | AG1: OC%
A2: ='[3]LO Product Page'!B40 -> BIODUNDER | B2: ='[3]LO Product Page'!C40 -> 80788 | C2: ='[3]LO Product Page'!D40 -> BIODUNDER | D2: ='[3]LO Product Page'!E40 -> 0 | E2: ='[3]LO Product Page'!F40 -> 1.138 | F2: ='[3]LO Product Page'!G40 -> 0 | G2: ='[3]LO Product Page'!H40 -> 0 | H2: ='[3]LO Product Page'!I40 -> 0 | I2: ='[3]LO Product Page'!J40 -> 1138 | J2: ='[3]LO Product Page'!K40 -> 0 | K2: ='[3]LO Product Page'!L40 -> 3.08 | L2: ='[3]LO Product Page'!M40 -> 0.442 | M2: ='[3]LO Product Page'!N40 -> 0 | N2: ='[3]LO Product Page'!O40 -> 0 | O2: ='[3]LO Product Page'!P40 -> 0.442 | P2: ='[3]LO Product Page'!Q40 -> 0.3 | Q2: ='[3]LO Product Page'!R40 -> 0 | R2: ='[3]LO Product Page'!S40 -> 0 | S2: ='[3]LO Product Page'!T40 -> 0.3 | T2: ='[3]LO Product Page'!U40 -> 0 | U2: ='[3]LO Product Page'!V40 -> 0 | V2: ='[3]LO Product Page'!W40 -> 0 | W2: ='[3]LO Product Page'!X40 -> 1000 | X2: ='[3]LO Product Page'!Y40 -> 0 | Y2: ='[3]LO Product Page'!Z40 -> 0 | Z2: ='[3]LO Product Page'!AA40 -> 0 | AA2: ='[3]LO Product Page'!AB40 -> 0.442 | AB2: ='[3]LO Product Page'!AC40 -> 0.01062068966 | AC2: ='[3]LO Product Page'!AD40 -> 3.08 | AD2: ='[3]LO Product Page'!AE40 -> 0.3186206897 | AE2: ='[3]LO Product Page'!AF40 -> 0.6 | AF2: ='[3]LO Product Page'!AG40 -> 0.4 | AG2: ='[3]LO Product Page'!AH40 -> 10
A3: ='[3]LO Product Page'!B41 -> BKN 200 | B3: ='[3]LO Product Page'!C41 -> 94831 | C3: ='[3]LO Product Page'!D41 -> BKN 200 | D3: ='[3]LO Product Page'!E41 -> 0 | E3: ='[3]LO Product Page'!F41 -> 1.172741536 | F3: ='[3]LO Product Page'!G41 -> 96.44778874 | G3: ='[3]LO Product Page'!H41 -> 42.39204806 | H3: ='[3]LO Product Page'!I41 -> 20.28623395 | I3: ='[3]LO Product Page'!J41 -> 1013.615465 | J3: ='[3]LO Product Page'!K41 -> 0 | K3: ='[3]LO Product Page'!L41 -> 2.743352929 | L3: ='[3]LO Product Page'!M41 -> 0.3936889593 | M3: ='[3]LO Product Page'!N41 -> 4.436598282 | N3: ='[3]LO Product Page'!O41 -> 0.7439804434 | O3: ='[3]LO Product Page'!P41 -> 5.574267685 | P3: ='[3]LO Product Page'!Q41 -> 0.2754817623 | Q3: ='[3]LO Product Page'!R41 -> 0.649344 | R3: ='[3]LO Product Page'!S41 -> 0.0661128 | S3: ='[3]LO Product Page'!T41 -> 0.9909385623 | T3: ='[3]LO Product Page'!U41 -> 0.8266449371 | U3: ='[3]LO Product Page'!V41 -> 260 | V3: ='[3]LO Product Page'!W41 -> 288 | W3: ='[3]LO Product Page'!X41 -> 452 | X3: ='[3]LO Product Page'!Y41 -> 0 | Y3: ='[3]LO Product Page'!Z41 -> 0 | Z3: ='[3]LO Product Page'!AA41 -> 0 | AA3: ='[3]LO Product Page'!AB41 -> 5.574267685 | AB3: ='[3]LO Product Page'!AC41 -> 0.8361047748 | AC3: ='[3]LO Product Page'!AD41 -> 2.743352929 | AD3: ='[3]LO Product Page'!AE41 -> 0.9990862119 | AE3: ='[3]LO Product Page'!AF41 -> 0.5344194018 | AF3: ='[3]LO Product Page'!AG41 -> 0.3562796012 | AG3: ='[3]LO Product Page'!AH41 -> 8.90699003
A4: ='[3]LO Product Page'!B42 -> BKN 230 | B4: ='[3]LO Product Page'!C42 -> 94832 | C4: ='[3]LO Product Page'!D42 -> BKN 230 | D4: ='[3]LO Product Page'!E42 -> 0 | E4: ='[3]LO Product Page'!F42 -> 1.175784125 | F4: ='[3]LO Product Page'!G42 -> 114.8666373 | G4: ='[3]LO Product Page'!H42 -> 42.39204806 | H4: ='[3]LO Product Page'!I42 -> 21.3293282 | I4: ='[3]LO Product Page'!J42 -> 997.1961111 | J4: ='[3]LO Product Page'!K42 -> 0 | K4: ='[3]LO Product Page'!L42 -> 2.698913904 | L4: ='[3]LO Product Page'!M42 -> 0.3873116706 | M4: ='[3]LO Product Page'!N42 -> 5.283865315 | N4: ='[3]LO Product Page'!O42 -> 0.7439804434 | O4: ='[3]LO Product Page'!P42 -> 6.415157429 | P4: ='[3]LO Product Page'!Q42 -> 0.2719323774 | Q4: ='[3]LO Product Page'!R42 -> 0.682784 | R4: ='[3]LO Product Page'!S42 -> 0.0661128 | S4: ='[3]LO Product Page'!T42 -> 1.020829177 | T4: ='[3]LO Product Page'!U42 -> 0.8266449371 | U4: ='[3]LO Product Page'!V42 -> 260 | V4: ='[3]LO Product Page'!W42 -> 343 | W4: ='[3]LO Product Page'!X42 -> 397 | X4: ='[3]LO Product Page'!Y42 -> 0 | Y4: ='[3]LO Product Page'!Z42 -> 0 | Z4: ='[3]LO Product Page'!AA42 -> 0 | AA4: ='[3]LO Product Page'!AB42 -> 6.415157429 | AB4: ='[3]LO Product Page'!AC42 -> 0.8359515368 | AC4: ='[3]LO Product Page'!AD42 -> 2.698913904 | AD4: ='[3]LO Product Page'!AE42 -> 1.027868087 | AE4: ='[3]LO Product Page'!AF42 -> 0.5257624487 | AF4: ='[3]LO Product Page'!AG42 -> 0.3505082992 | AG4: ='[3]LO Product Page'!AH42 -> 8.762707479
A5: ='[3]LO Product Page'!B43 -> BKN Lo P | B5: ='[3]LO Product Page'!C43 -> 107021 | C5: ='[3]LO Product Page'!D43 -> BKN Lo P | D5: ='[3]LO Product Page'!E43 -> 0 | E5: ='[3]LO Product Page'!F43 -> 1.173149657 | F5: ='[3]LO Product Page'!G43 -> 162.4207554 | G5: ='[3]LO Product Page'!H43 -> 18.75032895 | H5: ='[3]LO Product Page'!I43 -> 15.75505829 | I5: ='[3]LO Product Page'!J43 -> 976.2235143 | J5: ='[3]LO Product Page'!K43 -> 0 | K5: ='[3]LO Product Page'!L43 -> 2.642151515 | L5: ='[3]LO Product Page'!M43 -> 0.3791658992 | M5: ='[3]LO Product Page'!N43 -> 7.471354746 | N5: ='[3]LO Product Page'!O43 -> 0.329068273 | O5: ='[3]LO Product Page'!P43 -> 8.179588918 | P5: ='[3]LO Product Page'!Q43 -> 0.2660769469 | Q5: ='[3]LO Product Page'!R43 -> 0.50464 | R5: ='[3]LO Product Page'!S43 -> 0.0292422 | S5: ='[3]LO Product Page'!T43 -> 0.7999591469 | T5: ='[3]LO Product Page'!U43 -> 0.3656314145 | U5: ='[3]LO Product Page'!V43 -> 115 | V5: ='[3]LO Product Page'!W43 -> 485 | W5: ='[3]LO Product Page'!X43 -> 400 | X5: ='[3]LO Product Page'!Y43 -> 0 | Y5: ='[3]LO Product Page'!Z43 -> 0 | Z5: ='[3]LO Product Page'!AA43 -> 0 | AA5: ='[3]LO Product Page'!AB43 -> 8.179588918 | AB5: ='[3]LO Product Page'!AC43 -> 0.3747422818 | AC5: ='[3]LO Product Page'!AD43 -> 2.642151515 | AD5: ='[3]LO Product Page'!AE43 -> 0.8067383971 | AE5: ='[3]LO Product Page'!AF43 -> 0.5147048406 | AF5: ='[3]LO Product Page'!AG43 -> 0.3431365604 | AG5: ='[3]LO Product Page'!AH43 -> 8.57841401
A6: ='[3]LO Product Page'!B44 -> COMET 1 | B6: ='[3]LO Product Page'!C44 -> 94740 | C6: ='[3]LO Product Page'!D44 -> COMET 1 | D6: ='[3]LO Product Page'!E44 -> 0 | E6: ='[3]LO Product Page'!F44 -> 1.181142428 | F6: ='[3]LO Product Page'!G44 -> 19.42351301 | G6: ='[3]LO Product Page'!H44 -> 90.00157895 | H6: ='[3]LO Product Page'!I44 -> 32.57293509 | I6: ='[3]LO Product Page'!J44 -> 1039.144401 | J6: ='[3]LO Product Page'!K44 -> 0 | K6: ='[3]LO Product Page'!L44 -> 2.812447062 | L6: ='[3]LO Product Page'!M44 -> 0.403604416 | M6: ='[3]LO Product Page'!N44 -> 0.8934815985 | N6: ='[3]LO Product Page'!O44 -> 1.579527711 | O6: ='[3]LO Product Page'!P44 -> 2.876613725 | P6: ='[3]LO Product Page'!Q44 -> 0.2836621393 | Q6: ='[3]LO Product Page'!R44 -> 1.042112 | R6: ='[3]LO Product Page'!S44 -> 0.14036256 | S6: ='[3]LO Product Page'!T44 -> 1.466136699 | T6: ='[3]LO Product Page'!U44 -> 1.75503079 | U6: ='[3]LO Product Page'!V44 -> 552 | V6: ='[3]LO Product Page'!W44 -> 58 | W6: ='[3]LO Product Page'!X44 -> 390 | X6: ='[3]LO Product Page'!Y44 -> 0 | Y6: ='[3]LO Product Page'!Z44 -> 0 | Z6: ='[3]LO Product Page'!AA44 -> 0 | AA6: ='[3]LO Product Page'!AB44 -> 2.876613725 | AB6: ='[3]LO Product Page'!AC44 -> 1.764728883 | AC6: ='[3]LO Product Page'!AD44 -> 2.812447062 | AD6: ='[3]LO Product Page'!AE44 -> 1.473679186 | AE6: ='[3]LO Product Page'!AF44 -> 0.5478792977 | AF6: ='[3]LO Product Page'!AG44 -> 0.3652528651 | AG6: ='[3]LO Product Page'!AH44 -> 9.131321629
A7: ='[3]LO Product Page'!B45 -> COMET 3 | B7: ='[3]LO Product Page'!C45 -> 96322 | C7: ='[3]LO Product Page'!D45 -> COMET 3 | D7: ='[3]LO Product Page'!E45 -> 0 | E7: ='[3]LO Product Page'!F45 -> 1.169545942 | F7: ='[3]LO Product Page'!G45 -> 46.88434175 | G7: ='[3]LO Product Page'!H45 -> 53.64224542 | H7: ='[3]LO Product Page'!I45 -> 21.41348023 | I7: ='[3]LO Product Page'!J45 -> 1047.605875 | J7: ='[3]LO Product Page'!K45 -> 0 | K7: ='[3]LO Product Page'!L45 -> 2.835348062 | L7: ='[3]LO Product Page'!M45 -> 0.4068908582 | M7: ='[3]LO Product Page'!N45 -> 2.156679721 | N7: ='[3]LO Product Page'!O45 -> 0.9414214072 | O7: ='[3]LO Product Page'!P45 -> 3.504991986 | P7: ='[3]LO Product Page'!Q45 -> 0.2834584752 | Q7: ='[3]LO Product Page'!R45 -> 0.685216 | R7: ='[3]LO Product Page'!S45 -> 0.08365812 | S7: ='[3]LO Product Page'!T45 -> 1.052332595 | T7: ='[3]LO Product Page'!U45 -> 1.046023786 | U7: ='[3]LO Product Page'!V45 -> 329 | V7: ='[3]LO Product Page'!W45 -> 140 | W7: ='[3]LO Product Page'!X45 -> 531 | X7: ='[3]LO Product Page'!Y45 -> 0 | Y7: ='[3]LO Product Page'!Z45 -> 0 | Z7: ='[3]LO Product Page'!AA45 -> 0 | AA7: ='[3]LO Product Page'!AB45 -> 3.504991986 | AB7: ='[3]LO Product Page'!AC45 -> 1.055800848 | AC7: ='[3]LO Product Page'!AD45 -> 2.835348062 | AD7: ='[3]LO Product Page'!AE45 -> 1.062225139 | AE7: ='[3]LO Product Page'!AF45 -> 0.5523405315 | AF7: ='[3]LO Product Page'!AG45 -> 0.368227021 | AG7: ='[3]LO Product Page'!AH45 -> 9.205675526
A8: ='[3]LO Product Page'!B46 -> COMPANION 2 | B8: ='[3]LO Product Page'!C46 -> 96562 | C8: ='[3]LO Product Page'!D46 -> COMPANION 2 | D8: ='[3]LO Product Page'!E46 -> 0 | E8: ='[3]LO Product Page'!F46 -> 1.159124444 | F8: ='[3]LO Product Page'!G46 -> 0 | G8: ='[3]LO Product Page'!H46 -> 47.60953089 | H8: ='[3]LO Product Page'!I46 -> 16.64873166 | I8: ='[3]LO Product Page'!J46 -> 1094.866181 | J8: ='[3]LO Product Page'!K46 -> 0 | K8: ='[3]LO Product Page'!L46 -> 2.963258207 | L8: ='[3]LO Product Page'!M46 -> 0.4252467946 | M8: ='[3]LO Product Page'!N46 -> 0 | N8: ='[3]LO Product Page'!O46 -> 0.8355472672 | O8: ='[3]LO Product Page'!P46 -> 1.260794062 | P8: ='[3]LO Product Page'!Q46 -> 0.2933374947 | Q8: ='[3]LO Product Page'!R46 -> 0.532608 | R8: ='[3]LO Product Page'!S46 -> 0.07424976 | S8: ='[3]LO Product Page'!T46 -> 0.9001952547 | T8: ='[3]LO Product Page'!U46 -> 0.9283858524 | U8: ='[3]LO Product Page'!V46 -> 292 | V8: ='[3]LO Product Page'!W46 -> 0 | W8: ='[3]LO Product Page'!X46 -> 708 | X8: ='[3]LO Product Page'!Y46 -> 0 | Y8: ='[3]LO Product Page'!Z46 -> 0 | Z8: ='[3]LO Product Page'!AA46 -> 0 | AA8: ='[3]LO Product Page'!AB46 -> 1.260794062 | AB8: ='[3]LO Product Page'!AC46 -> 0.9386039842 | AC8: ='[3]LO Product Page'!AD46 -> 2.963258207 | AD8: ='[3]LO Product Page'!AE46 -> 0.9135742338 | AE8: ='[3]LO Product Page'!AF46 -> 0.5772580922 | AF8: ='[3]LO Product Page'!AG46 -> 0.3848387281 | AG8: ='[3]LO Product Page'!AH46 -> 9.620968203
A9: ='[3]LO Product Page'!B47 -> CORN 1 | B9: ='[3]LO Product Page'!C47 -> 85157 | C9: ='[3]LO Product Page'!D47 -> CORN 1 | D9: ='[3]LO Product Page'!E47 -> 0 | E9: ='[3]LO Product Page'!F47 -> 1.176163152 | F9: ='[3]LO Product Page'!G47 -> 68.98696 | G9: ='[3]LO Product Page'!H47 -> 60.32714531 | H9: ='[3]LO Product Page'!I47 -> 25.00285772 | I9: ='[3]LO Product Page'!J47 -> 1021.846189 | J9: ='[3]LO Product Page'!K47 -> 0 | K9: ='[3]LO Product Page'!L47 -> 2.765629404 | L9: ='[3]LO Product Page'!M47 -> 0.3968857781 | M9: ='[3]LO Product Page'!N47 -> 3.17340016 | N9: ='[3]LO Product Page'!O47 -> 1.0587414 | O9: ='[3]LO Product Page'!P47 -> 4.629027338 | P9: ='[3]LO Product Page'!Q47 -> 0.2782637246 | Q9: ='[3]LO Product Page'!R47 -> 0.800128 | R9: ='[3]LO Product Page'!S47 -> 0.0940836 | S9: ='[3]LO Product Page'!T47 -> 1.172475325 | T9: ='[3]LO Product Page'!U47 -> 1.176379334 | U9: ='[3]LO Product Page'!V47 -> 370 | V9: ='[3]LO Product Page'!W47 -> 206 | W9: ='[3]LO Product Page'!X47 -> 424 | X9: ='[3]LO Product Page'!Y47 -> 0 | Y9: ='[3]LO Product Page'!Z47 -> 0 | Z9: ='[3]LO Product Page'!AA47 -> 0 | AA9: ='[3]LO Product Page'!AB47 -> 4.629027338 | AB9: ='[3]LO Product Page'!AC47 -> 1.185915987 | AC9: ='[3]LO Product Page'!AD47 -> 2.765629404 | AD9: ='[3]LO Product Page'!AE47 -> 1.180301387 | AE9: ='[3]LO Product Page'!AF47 -> 0.5387589748 | AF9: ='[3]LO Product Page'!AG47 -> 0.3591726499 | AG9: ='[3]LO Product Page'!AH47 -> 8.979316246
A10: ='[3]LO Product Page'!B48 -> CORN 2 | B10: ='[3]LO Product Page'!C48 -> 88636 | C10: ='[3]LO Product Page'!D48 -> CORN 2 | D10: ='[3]LO Product Page'!E48 -> 0 | E10: ='[3]LO Product Page'!F48 -> 1.179048488 | F10: ='[3]LO Product Page'!G48 -> 54.92165748 | G10: ='[3]LO Product Page'!H48 -> 72.06648169 | H10: ='[3]LO Product Page'!I48 -> 28.31147972 | I10: ='[3]LO Product Page'!J48 -> 1023.748869 | J10: ='[3]LO Product Page'!K48 -> 0 | K10: ='[3]LO Product Page'!L48 -> 2.770779012 | L10: ='[3]LO Product Page'!M48 -> 0.3976247803 | M10: ='[3]LO Product Page'!N48 -> 2.526396244 | N10: ='[3]LO Product Page'!O48 -> 1.264766754 | O10: ='[3]LO Product Page'!P48 -> 4.188787778 | P10: ='[3]LO Product Page'!Q48 -> 0.2793313545 | Q10: ='[3]LO Product Page'!R48 -> 0.90592 | R10: ='[3]LO Product Page'!S48 -> 0.11239176 | S10: ='[3]LO Product Page'!T48 -> 1.297643114 | T10: ='[3]LO Product Page'!U48 -> 1.405296393 | U10: ='[3]LO Product Page'!V48 -> 442 | V10: ='[3]LO Product Page'!W48 -> 164 | W10: ='[3]LO Product Page'!X48 -> 394 | X10: ='[3]LO Product Page'!Y48 -> 0 | Y10: ='[3]LO Product Page'!Z48 -> 0 | Z10: ='[3]LO Product Page'!AA48 -> 0 | AA10: ='[3]LO Product Page'!AB48 -> 4.188787778 | AB10: ='[3]LO Product Page'!AC48 -> 1.414850803 | AC10: ='[3]LO Product Page'!AD48 -> 2.770779012 | AD10: ='[3]LO Product Page'!AE48 -> 1.305023374 | AE10: ='[3]LO Product Page'!AF48 -> 0.5397621452 | AF10: ='[3]LO Product Page'!AG48 -> 0.3598414302 | AG10: ='[3]LO Product Page'!AH48 -> 8.996035754
A11: ='[3]LO Product Page'!B49 -> CORN 3 | B11: ='[3]LO Product Page'!C49 -> 88674 | C11: ='[3]LO Product Page'!D49 -> CORN 3 | D11: ='[3]LO Product Page'!E49 -> 0 | E11: ='[3]LO Product Page'!F49 -> 1.176035382 | F11: ='[3]LO Product Page'!G49 -> 85.73136777 | G11: ='[3]LO Product Page'!H49 -> 53.80529176 | H11: ='[3]LO Product Page'!I49 -> 23.67047705 | I11: ='[3]LO Product Page'!J49 -> 1012.828245 | J11: ='[3]LO Product Page'!K49 -> 0 | K11: ='[3]LO Product Page'!L49 -> 2.741222316 | L11: ='[3]LO Product Page'!M49 -> 0.3933832025 | M11: ='[3]LO Product Page'!N49 -> 3.943642918 | N11: ='[3]LO Product Page'!O49 -> 0.9442828704 | O11: ='[3]LO Product Page'!P49 -> 5.28130899 | P11: ='[3]LO Product Page'!Q49 -> 0.275949683 | Q11: ='[3]LO Product Page'!R49 -> 0.757568 | R11: ='[3]LO Product Page'!S49 -> 0.0839124 | S11: ='[3]LO Product Page'!T49 -> 1.117430083 | T11: ='[3]LO Product Page'!U49 -> 1.049203189 | U11: ='[3]LO Product Page'!V49 -> 330 | V11: ='[3]LO Product Page'!W49 -> 256 | W11: ='[3]LO Product Page'!X49 -> 414 | X11: ='[3]LO Product Page'!Y49 -> 0 | Y11: ='[3]LO Product Page'!Z49 -> 0 | Z11: ='[3]LO Product Page'!AA49 -> 0 | AA11: ='[3]LO Product Page'!AB49 -> 5.28130899 | AB11: ='[3]LO Product Page'!AC49 -> 1.05865568 | AC11: ='[3]LO Product Page'!AD49 -> 2.741222316 | AD11: ='[3]LO Product Page'!AE49 -> 1.124966243 | AE11: ='[3]LO Product Page'!AF49 -> 0.5340043473 | AF11: ='[3]LO Product Page'!AG49 -> 0.3560028982 | AG11: ='[3]LO Product Page'!AH49 -> 8.900072455
A12: ='[3]LO Product Page'!B50 -> DELTA 1 | B12: ='[3]LO Product Page'!C50 -> 98866 | C12: ='[3]LO Product Page'!D50 -> DELTA 1 | D12: ='[3]LO Product Page'!E50 -> 0 | E12: ='[3]LO Product Page'!F50 -> 1.17755365 | F12: ='[3]LO Product Page'!G50 -> 239.4450311 | G12: ='[3]LO Product Page'!H50 -> 0 | H12: ='[3]LO Product Page'!I50 -> 13.56022531 | I12: ='[3]LO Product Page'!J50 -> 924.5483939 | J12: ='[3]LO Product Page'!K50 -> 0 | K12: ='[3]LO Product Page'!L50 -> 2.502292665 | L12: ='[3]LO Product Page'!M50 -> 0.3590952461 | M12: ='[3]LO Product Page'!N50 -> 11.01447143 | N12: ='[3]LO Product Page'!O50 -> 0 | O12: ='[3]LO Product Page'!P50 -> 11.37356668 | P12: ='[3]LO Product Page'!Q50 -> 0.2538579965 | Q12: ='[3]LO Product Page'!R50 -> 0.43472 | R12: ='[3]LO Product Page'!S50 -> 0 | S12: ='[3]LO Product Page'!T50 -> 0.6885779965 | T12: ='[3]LO Product Page'!U50 -> 0 | U12: ='[3]LO Product Page'!V50 -> 0 | V12: ='[3]LO Product Page'!W50 -> 715 | W12: ='[3]LO Product Page'!X50 -> 285 | X12: ='[3]LO Product Page'!Y50 -> 0 | Y12: ='[3]LO Product Page'!Z50 -> 0 | Z12: ='[3]LO Product Page'!AA50 -> 0 | AA12: ='[3]LO Product Page'!AB50 -> 11.37356668 | AB12: ='[3]LO Product Page'!AC50 -> 0.008628595398 | AC12: ='[3]LO Product Page'!AD50 -> 2.502292665 | AD12: ='[3]LO Product Page'!AE50 -> 0.6927850718 | AE12: ='[3]LO Product Page'!AF50 -> 0.4874596101 | AF12: ='[3]LO Product Page'!AG50 -> 0.3249730734 | AG12: ='[3]LO Product Page'!AH50 -> 8.124326835
A13: ='[3]LO Product Page'!B51 -> ECONO LIQUID ONE SHOT | B13: ='[3]LO Product Page'!C51 -> 81050 | C13: ='[3]LO Product Page'!D51 -> ECONO LIQUID ONE SHOT | D13: ='[3]LO Product Page'!E51 -> 0 | E13: ='[3]LO Product Page'!F51 -> 1.152715064 | F13: ='[3]LO Product Page'!G51 -> 89.08024933 | G13: ='[3]LO Product Page'!H51 -> 0 | H13: ='[3]LO Product Page'!I51 -> 5.044783121 | I13: ='[3]LO Product Page'!J51 -> 1058.590032 | J13: ='[3]LO Product Page'!K51 -> 0 | K13: ='[3]LO Product Page'!L51 -> 2.865076712 | L13: ='[3]LO Product Page'!M51 -> 0.4111571125 | M13: ='[3]LO Product Page'!N51 -> 4.097691469 | N13: ='[3]LO Product Page'!O51 -> 0 | O13: ='[3]LO Product Page'!P51 -> 4.508848582 | P13: ='[3]LO Product Page'!Q51 -> 0.282833884 | Q13: ='[3]LO Product Page'!R51 -> 0.161728 | R13: ='[3]LO Product Page'!S51 -> 0 | S13: ='[3]LO Product Page'!T51 -> 0.444561884 | T13: ='[3]LO Product Page'!U51 -> 0 | U13: ='[3]LO Product Page'!V51 -> 0 | V13: ='[3]LO Product Page'!W51 -> 266 | W13: ='[3]LO Product Page'!X51 -> 734 | X13: ='[3]LO Product Page'!Y51 -> 0 | Y13: ='[3]LO Product Page'!Z51 -> 0 | Z13: ='[3]LO Product Page'!AA51 -> 0 | AA13: ='[3]LO Product Page'!AB51 -> 4.508848582 | AB13: ='[3]LO Product Page'!AC51 -> 0.009879574868 | AC13: ='[3]LO Product Page'!AD51 -> 2.865076712 | AD13: ='[3]LO Product Page'!AE51 -> 0.4578203059 | AE13: ='[3]LO Product Page'!AF51 -> 0.558131827 | AF13: ='[3]LO Product Page'!AG51 -> 0.3720878847 | AG13: ='[3]LO Product Page'!AH51 -> 9.302197116
A14: ='[3]LO Product Page'!B52 -> ECONO LIQUID ONE SHOT + P | B14: ='[3]LO Product Page'!C52 -> 81052 | C14: ='[3]LO Product Page'!D52 -> ECONO LIQUID ONE SHOT + P | D14: ='[3]LO Product Page'!E52 -> 0 | E14: ='[3]LO Product Page'!F52 -> 1.159545236 | F14: ='[3]LO Product Page'!G52 -> 81.37782175 | G14: ='[3]LO Product Page'!H52 -> 18.26118993 | H14: ='[3]LO Product Page'!I52 -> 10.99439495 | I14: ='[3]LO Product Page'!J52 -> 1048.911829 | J14: ='[3]LO Product Page'!K52 -> 0 | K14: ='[3]LO Product Page'!L52 -> 2.83888263 | L14: ='[3]LO Product Page'!M52 -> 0.4073980917 | M14: ='[3]LO Product Page'!N52 -> 3.743379801 | N14: ='[3]LO Product Page'!O52 -> 0.3204838833 | O14: ='[3]LO Product Page'!P52 -> 4.471261776 | P14: ='[3]LO Product Page'!Q52 -> 0.2817626907 | Q14: ='[3]LO Product Page'!R52 -> 0.352032 | R14: ='[3]LO Product Page'!S52 -> 0.02847936 | S14: ='[3]LO Product Page'!T52 -> 0.6622740507 | T14: ='[3]LO Product Page'!U52 -> 0.3560932037 | U14: ='[3]LO Product Page'!V52 -> 112 | V14: ='[3]LO Product Page'!W52 -> 243 | W14: ='[3]LO Product Page'!X52 -> 645 | X14: ='[3]LO Product Page'!Y52 -> 0 | Y14: ='[3]LO Product Page'!Z52 -> 0 | Z14: ='[3]LO Product Page'!AA52 -> 0 | AA14: ='[3]LO Product Page'!AB52 -> 4.471261776 | AB14: ='[3]LO Product Page'!AC52 -> 0.3658824541 | AC14: ='[3]LO Product Page'!AD52 -> 2.83888263 | AD14: ='[3]LO Product Page'!AE52 -> 0.6739856083 | AE14: ='[3]LO Product Page'!AF52 -> 0.5530290838 | AF14: ='[3]LO Product Page'!AG52 -> 0.3686860559 | AG14: ='[3]LO Product Page'!AH52 -> 9.217151397
A15: ='[3]LO Product Page'!B53 -> EMERALD 2 | B15: ='[3]LO Product Page'!C53 -> 95321 | C15: ='[3]LO Product Page'!D53 -> EMERALD 2 | D15: ='[3]LO Product Page'!E53 -> 0 | E15: ='[3]LO Product Page'!F53 -> 1.195507948 | F15: ='[3]LO Product Page'!G53 -> 203.6119985 | G15: ='[3]LO Product Page'!H53 -> 53.80529176 | H15: ='[3]LO Product Page'!I53 -> 30.34628028 | I15: ='[3]LO Product Page'!J53 -> 907.7443777 | J15: ='[3]LO Product Page'!K53 -> 0 | K15: ='[3]LO Product Page'!L53 -> 2.456812551 | L15: ='[3]LO Product Page'!M53 -> 0.3525685544 | M15: ='[3]LO Product Page'!N53 -> 9.366151929 | N15: ='[3]LO Product Page'!O53 -> 0.9442828704 | O15: ='[3]LO Product Page'!P53 -> 10.66300335 | P15: ='[3]LO Product Page'!Q53 -> 0.2532336198 | Q15: ='[3]LO Product Page'!R53 -> 0.971584 | R15: ='[3]LO Product Page'!S53 -> 0.0839124 | S15: ='[3]LO Product Page'!T53 -> 1.30873002 | T15: ='[3]LO Product Page'!U53 -> 1.049203189 | U15: ='[3]LO Product Page'!V53 -> 330 | V15: ='[3]LO Product Page'!W53 -> 608 | W15: ='[3]LO Product Page'!X53 -> 62 | X15: ='[3]LO Product Page'!Y53 -> 0 | Y15: ='[3]LO Product Page'!Z53 -> 0 | Z15: ='[3]LO Product Page'!AA53 -> 0 | AA15: ='[3]LO Product Page'!AB53 -> 10.66300335 | AB15: ='[3]LO Product Page'!AC53 -> 1.057674957 | AC15: ='[3]LO Product Page'!AD53 -> 2.456812551 | AD15: ='[3]LO Product Page'!AE53 -> 1.309170246 | AE15: ='[3]LO Product Page'!AF53 -> 0.4785998476 | AF15: ='[3]LO Product Page'!AG53 -> 0.3190665651 | AG15: ='[3]LO Product Page'!AH53 -> 7.976664127
A16: ='[3]LO Product Page'!B54 -> EMERALD 4 | B16: ='[3]LO Product Page'!C54 -> 96281 | C16: ='[3]LO Product Page'!D54 -> EMERALD 4 | D16: ='[3]LO Product Page'!E54 -> 0 | E16: ='[3]LO Product Page'!F54 -> 1.18989952 | F16: ='[3]LO Product Page'!G54 -> 146.0112357 | G16: ='[3]LO Product Page'!H54 -> 62.60979405 | H16: ='[3]LO Product Page'!I54 -> 30.16311509 | I16: ='[3]LO Product Page'!J54 -> 951.1153746 | J16: ='[3]LO Product Page'!K54 -> 0 | K16: ='[3]LO Product Page'!L54 -> 2.574196269 | L16: ='[3]LO Product Page'!M54 -> 0.3694138801 | M16: ='[3]LO Product Page'!N54 -> 6.716516844 | N16: ='[3]LO Product Page'!O54 -> 1.098801886 | O16: ='[3]LO Product Page'!P54 -> 8.18473261 | P16: ='[3]LO Product Page'!Q54 -> 0.2631014072 | Q16: ='[3]LO Product Page'!R54 -> 0.965504 | R16: ='[3]LO Product Page'!S54 -> 0.09764352 | S16: ='[3]LO Product Page'!T54 -> 1.326248927 | T16: ='[3]LO Product Page'!U54 -> 1.220890984 | U16: ='[3]LO Product Page'!V54 -> 384 | V16: ='[3]LO Product Page'!W54 -> 436 | W16: ='[3]LO Product Page'!X54 -> 180 | X16: ='[3]LO Product Page'!Y54 -> 0 | Y16: ='[3]LO Product Page'!Z54 -> 0 | Z16: ='[3]LO Product Page'!AA54 -> 0 | AA16: ='[3]LO Product Page'!AB54 -> 8.18473261 | AB16: ='[3]LO Product Page'!AC54 -> 1.229767523 | AC16: ='[3]LO Product Page'!AD54 -> 2.574196269 | AD16: ='[3]LO Product Page'!AE54 -> 1.329187127 | AE16: ='[3]LO Product Page'!AF54 -> 0.5014668056 | AF16: ='[3]LO Product Page'!AG54 -> 0.3343112037 | AG16: ='[3]LO Product Page'!AH54 -> 8.357780093
A17: ='[3]LO Product Page'!B55 -> HALL 2 | B17: ='[3]LO Product Page'!C55 -> 88753 | C17: ='[3]LO Product Page'!D55 -> HALL 2 | D17: ='[3]LO Product Page'!E55 -> 0 | E17: ='[3]LO Product Page'!F55 -> 1.169976042 | F17: ='[3]LO Product Page'!G55 -> 0 | G17: ='[3]LO Product Page'!H55 -> 72.06648169 | H17: ='[3]LO Product Page'!I55 -> 25.20116231 | I17: ='[3]LO Product Page'!J55 -> 1072.708398 | J17: ='[3]LO Product Page'!K55 -> 0 | K17: ='[3]LO Product Page'!L55 -> 2.903288107 | L17: ='[3]LO Product Page'!M55 -> 0.4166406959 | M17: ='[3]LO Product Page'!N55 -> 0 | N17: ='[3]LO Product Page'!O55 -> 1.264766754 | O17: ='[3]LO Product Page'!P55 -> 1.68140745 | P17: ='[3]LO Product Page'!Q55 -> 0.2899149749 | Q17: ='[3]LO Product Page'!R55 -> 0.806208 | R17: ='[3]LO Product Page'!S55 -> 0.11239176 | S17: ='[3]LO Product Page'!T55 -> 1.208514735 | T17: ='[3]LO Product Page'!U55 -> 1.405296393 | U17: ='[3]LO Product Page'!V55 -> 442 | V17: ='[3]LO Product Page'!W55 -> 0 | W17: ='[3]LO Product Page'!X55 -> 558 | X17: ='[3]LO Product Page'!Y55 -> 0 | Y17: ='[3]LO Product Page'!Z55 -> 0 | Z17: ='[3]LO Product Page'!AA55 -> 0 | AA17: ='[3]LO Product Page'!AB55 -> 1.68140745 | AB17: ='[3]LO Product Page'!AC55 -> 1.415307731 | AC17: ='[3]LO Product Page'!AD55 -> 2.903288107 | AD17: ='[3]LO Product Page'!AE55 -> 1.219201054 | AE17: ='[3]LO Product Page'!AF55 -> 0.5655756053 | AF17: ='[3]LO Product Page'!AG55 -> 0.3770504035 | AG17: ='[3]LO Product Page'!AH55 -> 9.426260088
A18: ='[3]LO Product Page'!B56 -> HI K RATOONER | B18: ='[3]LO Product Page'!C56 -> 96412 | C18: ='[3]LO Product Page'!D56 -> HI K RATOONER | D18: ='[3]LO Product Page'!E56 -> 0 | E18: ='[3]LO Product Page'!F56 -> 1.157570889 | F18: ='[3]LO Product Page'!G56 -> 46.21456544 | G18: ='[3]LO Product Page'!H56 -> 26.90264588 | H18: ='[3]LO Product Page'!I56 -> 12.02489202 | I18: ='[3]LO Product Page'!J56 -> 1072.428786 | J18: ='[3]LO Product Page'!K56 -> 0 | K18: ='[3]LO Product Page'!L56 -> 2.902531335 | L18: ='[3]LO Product Page'!M56 -> 0.4165320942 | M18: ='[3]LO Product Page'!N56 -> 2.12587001 | N18: ='[3]LO Product Page'!O56 -> 0.4721414352 | O18: ='[3]LO Product Page'!P56 -> 3.01454354 | P18: ='[3]LO Product Page'!Q56 -> 0.2873294988 | Q18: ='[3]LO Product Page'!R56 -> 0.384864 | R18: ='[3]LO Product Page'!S56 -> 0.0419562 | S18: ='[3]LO Product Page'!T56 -> 0.7141496988 | T18: ='[3]LO Product Page'!U56 -> 0.5246015947 | U18: ='[3]LO Product Page'!V56 -> 165 | V18: ='[3]LO Product Page'!W56 -> 138 | W18: ='[3]LO Product Page'!X56 -> 697 | X18: ='[3]LO Product Page'!Y56 -> 0 | Y18: ='[3]LO Product Page'!Z56 -> 0 | Z18: ='[3]LO Product Page'!AA56 -> 0 | AA18: ='[3]LO Product Page'!AB56 -> 3.01454354 | AB18: ='[3]LO Product Page'!AC56 -> 0.5346103234 | AC18: ='[3]LO Product Page'!AD56 -> 2.902531335 | AD18: ='[3]LO Product Page'!AE56 -> 0.7270265346 | AE18: ='[3]LO Product Page'!AF56 -> 0.5654281822 | AF18: ='[3]LO Product Page'!AG56 -> 0.3769521214 | AG18: ='[3]LO Product Page'!AH56 -> 9.423803036
A19: ='[3]LO Product Page'!B57 -> HI N + P | B19: ='[3]LO Product Page'!C57 -> 81051 | C19: ='[3]LO Product Page'!D57 -> HI N + P | D19: ='[3]LO Product Page'!E57 -> 0 | E19: ='[3]LO Product Page'!F57 -> 1.182958709 | F19: ='[3]LO Product Page'!G57 -> 153.043887 | G19: ='[3]LO Product Page'!H57 -> 44.34860412 | H19: ='[3]LO Product Page'!I57 -> 24.17557256 | I19: ='[3]LO Product Page'!J57 -> 961.3906449 | J19: ='[3]LO Product Page'!K57 -> 0 | K19: ='[3]LO Product Page'!L57 -> 2.602006315 | L19: ='[3]LO Product Page'!M57 -> 0.3734048023 | M19: ='[3]LO Product Page'!N57 -> 7.040018802 | N19: ='[3]LO Product Page'!O57 -> 0.7783180023 | O19: ='[3]LO Product Page'!P57 -> 8.191741607 | P19: ='[3]LO Product Page'!Q57 -> 0.264301669 | Q19: ='[3]LO Product Page'!R57 -> 0.773984 | R19: ='[3]LO Product Page'!S57 -> 0.06916416 | S19: ='[3]LO Product Page'!T57 -> 1.107449829 | T19: ='[3]LO Product Page'!U57 -> 0.8647977803 | U19: ='[3]LO Product Page'!V57 -> 272 | V19: ='[3]LO Product Page'!W57 -> 457 | W19: ='[3]LO Product Page'!X57 -> 271 | X19: ='[3]LO Product Page'!Y57 -> 0 | Y19: ='[3]LO Product Page'!Z57 -> 0 | Z19: ='[3]LO Product Page'!AA57 -> 0 | AA19: ='[3]LO Product Page'!AB57 -> 8.191741607 | AB19: ='[3]LO Product Page'!AC57 -> 0.8737702159 | AC19: ='[3]LO Product Page'!AD57 -> 2.602006315 | AD19: ='[3]LO Product Page'!AE57 -> 1.111975211 | AE19: ='[3]LO Product Page'!AF57 -> 0.5068843471 | AF19: ='[3]LO Product Page'!AG57 -> 0.337922898 | AG19: ='[3]LO Product Page'!AH57 -> 8.448072451
A20: ='[3]LO Product Page'!B58 -> HI N | B20: ='[3]LO Product Page'!C58 -> 80791 | C20: ='[3]LO Product Page'!D58 -> HI N | D20: ='[3]LO Product Page'!E58 -> 0 | E20: ='[3]LO Product Page'!F58 -> 1.166213093 | F20: ='[3]LO Product Page'!G58 -> 170.7929592 | G20: ='[3]LO Product Page'!H58 -> 0 | H20: ='[3]LO Product Page'!I58 -> 9.672328541 | I20: ='[3]LO Product Page'!J58 -> 985.7478054 | J20: ='[3]LO Product Page'!K58 -> 0 | K20: ='[3]LO Product Page'!L58 -> 2.667929034 | L20: ='[3]LO Product Page'!M58 -> 0.3828651406 | M20: ='[3]LO Product Page'!N58 -> 7.856476125 | N20: ='[3]LO Product Page'!O58 -> 0 | O20: ='[3]LO Product Page'!P58 -> 8.239341265 | P20: ='[3]LO Product Page'!Q58 -> 0.267087522 | Q20: ='[3]LO Product Page'!R58 -> 0.31008 | R20: ='[3]LO Product Page'!S58 -> 0 | S20: ='[3]LO Product Page'!T58 -> 0.577167522 | T20: ='[3]LO Product Page'!U58 -> 0 | U20: ='[3]LO Product Page'!V58 -> 0 | V20: ='[3]LO Product Page'!W58 -> 510 | W20: ='[3]LO Product Page'!X58 -> 490 | X20: ='[3]LO Product Page'!Y58 -> 0 | Y20: ='[3]LO Product Page'!Z58 -> 0 | Z20: ='[3]LO Product Page'!AA58 -> 0 | AA20: ='[3]LO Product Page'!AB58 -> 8.239341265 | AB20: ='[3]LO Product Page'!AC58 -> 0.00919975529 | AC20: ='[3]LO Product Page'!AD58 -> 2.667929034 | AD20: ='[3]LO Product Page'!AE58 -> 0.585507172 | AE20: ='[3]LO Product Page'!AF58 -> 0.5197264352 | AF20: ='[3]LO Product Page'!AG58 -> 0.3464842901 | AG20: ='[3]LO Product Page'!AH58 -> 8.662107253
A21: ='[3]LO Product Page'!B59 -> LIQUID 50/50 | B21: ='[3]LO Product Page'!C59 -> 81811 | C21: ='[3]LO Product Page'!D59 -> LIQUID 50/50 | D21: ='[3]LO Product Page'!E59 -> 0 | E21: ='[3]LO Product Page'!F59 -> 1.147404364 | F21: ='[3]LO Product Page'!G59 -> 56.93098641 | G21: ='[3]LO Product Page'!H59 -> 0 | H21: ='[3]LO Product Page'!I59 -> 3.224109514 | I21: ='[3]LO Product Page'!J59 -> 1087.249268 | J21: ='[3]LO Product Page'!K59 -> 0 | K21: ='[3]LO Product Page'!L59 -> 2.942643011 | L21: ='[3]LO Product Page'!M59 -> 0.4222883802 | M21: ='[3]LO Product Page'!N59 -> 2.618825375 | N21: ='[3]LO Product Page'!O59 -> 0 | O21: ='[3]LO Product Page'!P59 -> 3.041113755 | P21: ='[3]LO Product Page'!Q59 -> 0.289029174 | Q21: ='[3]LO Product Page'!R59 -> 0.10336 | R21: ='[3]LO Product Page'!S59 -> 0 | S21: ='[3]LO Product Page'!T59 -> 0.392389174 | T21: ='[3]LO Product Page'!U59 -> 0 | U21: ='[3]LO Product Page'!V59 -> 0 | V21: ='[3]LO Product Page'!W59 -> 170 | W21: ='[3]LO Product Page'!X59 -> 830 | X21: ='[3]LO Product Page'!Y59 -> 0 | Y21: ='[3]LO Product Page'!Z59 -> 0 | Z21: ='[3]LO Product Page'!AA59 -> 0 | AA21: ='[3]LO Product Page'!AB59 -> 3.041113755 | AB21: ='[3]LO Product Page'!AC59 -> 0.01014704487 | AC21: ='[3]LO Product Page'!AD59 -> 2.942643011 | AD21: ='[3]LO Product Page'!AE59 -> 0.4075828504 | AE21: ='[3]LO Product Page'!AF59 -> 0.5732421451 | AF21: ='[3]LO Product Page'!AG59 -> 0.38216143 | AG21: ='[3]LO Product Page'!AH59 -> 9.554035751
A22: ='[3]LO Product Page'!B60 -> LO N PLANTER | B22: ='[3]LO Product Page'!C60 -> 88635 | C22: ='[3]LO Product Page'!D60 -> LO N PLANTER | D22: ='[3]LO Product Page'!E60 -> 0 | E22: ='[3]LO Product Page'!F60 -> 1.154783805 | F22: ='[3]LO Product Page'!G60 -> 0 | G22: ='[3]LO Product Page'!H60 -> 37.82675057 | H22: ='[3]LO Product Page'!I60 -> 13.2277594 | I22: ='[3]LO Product Page'!J60 -> 1103.729295 | J22: ='[3]LO Product Page'!K60 -> 0 | K22: ='[3]LO Product Page'!L60 -> 2.987246246 | L22: ='[3]LO Product Page'!M60 -> 0.428689234 | M22: ='[3]LO Product Page'!N60 -> 0 | N22: ='[3]LO Product Page'!O60 -> 0.6638594726 | O22: ='[3]LO Product Page'!P60 -> 1.092548707 | P22: ='[3]LO Product Page'!Q60 -> 0.2947065026 | Q22: ='[3]LO Product Page'!R60 -> 0.423168 | R22: ='[3]LO Product Page'!S60 -> 0.05899296 | S22: ='[3]LO Product Page'!T60 -> 0.7768674626 | T22: ='[3]LO Product Page'!U60 -> 0.7376216362 | U22: ='[3]LO Product Page'!V60 -> 232 | V22: ='[3]LO Product Page'!W60 -> 0 | W22: ='[3]LO Product Page'!X60 -> 768 | X22: ='[3]LO Product Page'!Y60 -> 0 | Y22: ='[3]LO Product Page'!Z60 -> 0 | Z22: ='[3]LO Product Page'!AA60 -> 0 | AA22: ='[3]LO Product Page'!AB60 -> 1.092548707 | AB22: ='[3]LO Product Page'!AC60 -> 0.7479224853 | AC22: ='[3]LO Product Page'!AD60 -> 2.987246246 | AD22: ='[3]LO Product Page'!AE60 -> 0.7913235055 | AE22: ='[3]LO Product Page'!AF60 -> 0.5819310869 | AF22: ='[3]LO Product Page'!AG60 -> 0.387954058 | AG22: ='[3]LO Product Page'!AH60 -> 9.698851449
A23: ='[3]LO Product Page'!B61 -> LO P PLANTER | B23: ='[3]LO Product Page'!C61 -> 102182 | C23: ='[3]LO Product Page'!D61 -> LO P PLANTER | D23: ='[3]LO Product Page'!E61 -> 0 | E23: ='[3]LO Product Page'!F61 -> 1.139229848 | F23: ='[3]LO Product Page'!G61 -> 0 | G23: ='[3]LO Product Page'!H61 -> 2.771787757 | H23: ='[3]LO Product Page'!I61 -> 0.9692754735 | I23: ='[3]LO Product Page'!J61 -> 1135.488785 | J23: ='[3]LO Product Page'!K61 -> 0 | K23: ='[3]LO Product Page'!L61 -> 3.073203389 | L23: ='[3]LO Product Page'!M61 -> 0.4410246421 | M23: ='[3]LO Product Page'!N61 -> 0 | N23: ='[3]LO Product Page'!O61 -> 0.04864487514 | O23: ='[3]LO Product Page'!P61 -> 0.4896695173 | P23: ='[3]LO Product Page'!Q61 -> 0.2996121144 | Q23: ='[3]LO Product Page'!R61 -> 0.031008 | R23: ='[3]LO Product Page'!S61 -> 0.00432276 | S23: ='[3]LO Product Page'!T61 -> 0.3349428744 | T23: ='[3]LO Product Page'!U61 -> 0.05404986127 | U23: ='[3]LO Product Page'!V61 -> 17 | V23: ='[3]LO Product Page'!W61 -> 0 | W23: ='[3]LO Product Page'!X61 -> 983 | X23: ='[3]LO Product Page'!Y61 -> 0 | Y23: ='[3]LO Product Page'!Z61 -> 0 | Z23: ='[3]LO Product Page'!AA61 -> 0 | AA23: ='[3]LO Product Page'!AB61 -> 0.4896695173 | AB23: ='[3]LO Product Page'!AC61 -> 0.06464711434 | AC23: ='[3]LO Product Page'!AD61 -> 3.073203389 | AD23: ='[3]LO Product Page'!AE61 -> 0.353258396 | AE23: ='[3]LO Product Page'!AF61 -> 0.5986759848 | AF23: ='[3]LO Product Page'!AG61 -> 0.3991173232 | AG23: ='[3]LO Product Page'!AH61 -> 9.97793308
A24: ='[3]LO Product Page'!B62 -> LO P RATOONER | B24: ='[3]LO Product Page'!C62 -> 89016 | C24: ='[3]LO Product Page'!D62 -> LO P RATOONER | D24: ='[3]LO Product Page'!E62 -> 0 | E24: ='[3]LO Product Page'!F62 -> 1.159587708 | F24: ='[3]LO Product Page'!G62 -> 94.77334797 | G24: ='[3]LO Product Page'!H62 -> 13.36979977 | H24: ='[3]LO Product Page'!I62 -> 10.04252283 | I24: ='[3]LO Product Page'!J62 -> 1041.402037 | J24: ='[3]LO Product Page'!K62 -> 0 | K24: ='[3]LO Product Page'!L62 -> 2.818557359 | L24: ='[3]LO Product Page'!M62 -> 0.4044812833 | M24: ='[3]LO Product Page'!N62 -> 4.359574007 | N24: ='[3]LO Product Page'!O62 -> 0.234639986 | O24: ='[3]LO Product Page'!P62 -> 4.998695276 | P24: ='[3]LO Product Page'!Q62 -> 0.2798658239 | Q24: ='[3]LO Product Page'!R62 -> 0.321632 | R24: ='[3]LO Product Page'!S62 -> 0.02085096 | S24: ='[3]LO Product Page'!T62 -> 0.6223487839 | T24: ='[3]LO Product Page'!U62 -> 0.2607110955 | U24: ='[3]LO Product Page'!V62 -> 82 | V24: ='[3]LO Product Page'!W62 -> 283 | W24: ='[3]LO Product Page'!X62 -> 635 | X24: ='[3]LO Product Page'!Y62 -> 0 | Y24: ='[3]LO Product Page'!Z62 -> 0 | Z24: ='[3]LO Product Page'!AA62 -> 0 | AA24: ='[3]LO Product Page'!AB62 -> 4.998695276 | AB24: ='[3]LO Product Page'!AC62 -> 0.2704302588 | AC24: ='[3]LO Product Page'!AD62 -> 2.818557359 | AD24: ='[3]LO Product Page'!AE62 -> 0.6337925173 | AE24: ='[3]LO Product Page'!AF62 -> 0.5490696153 | AF24: ='[3]LO Product Page'!AG62 -> 0.3660464102 | AG24: ='[3]LO Product Page'!AH62 -> 9.151160255
A25: ='[3]LO Product Page'!B63 -> LIQUID ONE SHOT | B25: ='[3]LO Product Page'!C63 -> 80789 | C25: ='[3]LO Product Page'!D63 -> LIQUID ONE SHOT | D25: ='[3]LO Product Page'!E63 -> 0 | E25: ='[3]LO Product Page'!F63 -> 1.154595937 | F25: ='[3]LO Product Page'!G63 -> 100.4664466 | G25: ='[3]LO Product Page'!H63 -> 0 | H25: ='[3]LO Product Page'!I63 -> 5.689605024 | I25: ='[3]LO Product Page'!J63 -> 1048.439886 | J25: ='[3]LO Product Page'!K63 -> 0 | K25: ='[3]LO Product Page'!L63 -> 2.837605314 | L25: ='[3]LO Product Page'!M63 -> 0.4072147886 | M25: ='[3]LO Product Page'!N63 -> 4.621456544 | N25: ='[3]LO Product Page'!O63 -> 0 | O25: ='[3]LO Product Page'!P63 -> 5.028671333 | P25: ='[3]LO Product Page'!Q63 -> 0.2806397188 | Q25: ='[3]LO Product Page'!R63 -> 0.1824 | R25: ='[3]LO Product Page'!S63 -> 0 | S25: ='[3]LO Product Page'!T63 -> 0.4630397188 | T25: ='[3]LO Product Page'!U63 -> 0 | U25: ='[3]LO Product Page'!V63 -> 0 | V25: ='[3]LO Product Page'!W63 -> 300 | W25: ='[3]LO Product Page'!X63 -> 700 | X25: ='[3]LO Product Page'!Y63 -> 0 | Y25: ='[3]LO Product Page'!Z63 -> 0 | Z25: ='[3]LO Product Page'!AA63 -> 0 | AA25: ='[3]LO Product Page'!AB63 -> 5.028671333 | AB25: ='[3]LO Product Page'!AC63 -> 0.009784845911 | AC25: ='[3]LO Product Page'!AD63 -> 2.837605314 | AD25: ='[3]LO Product Page'!AE63 -> 0.4756127381 | AE25: ='[3]LO Product Page'!AF63 -> 0.552780256 | AF25: ='[3]LO Product Page'!AG63 -> 0.3685201707 | AG25: ='[3]LO Product Page'!AH63 -> 9.213004267
A26: ='[3]LO Product Page'!B64 -> LIQUID ONE SHOT + P | B26: ='[3]LO Product Page'!C64 -> 80793 | C26: ='[3]LO Product Page'!D64 -> LIQUID ONE SHOT + P | D26: ='[3]LO Product Page'!E64 -> 0 | E26: ='[3]LO Product Page'!F64 -> 1.163983702 | F26: ='[3]LO Product Page'!G64 -> 89.41513748 | G26: ='[3]LO Product Page'!H64 -> 25.27218249 | H26: ='[3]LO Product Page'!I64 -> 13.90126014 | I26: ='[3]LO Product Page'!J64 -> 1035.395122 | J26: ='[3]LO Product Page'!K64 -> 0 | K26: ='[3]LO Product Page'!L64 -> 2.802299627 | L26: ='[3]LO Product Page'!M64 -> 0.4021481932 | M26: ='[3]LO Product Page'!N64 -> 4.113096324 | N26: ='[3]LO Product Page'!O64 -> 0.4435268028 | O26: ='[3]LO Product Page'!P64 -> 4.95877132 | P26: ='[3]LO Product Page'!Q64 -> 0.2792327459 | Q26: ='[3]LO Product Page'!R64 -> 0.445056 | R26: ='[3]LO Product Page'!S64 -> 0.0394134 | S26: ='[3]LO Product Page'!T64 -> 0.7637021459 | T26: ='[3]LO Product Page'!U64 -> 0.4928075586 | U26: ='[3]LO Product Page'!V64 -> 155 | V26: ='[3]LO Product Page'!W64 -> 267 | W26: ='[3]LO Product Page'!X64 -> 578 | X26: ='[3]LO Product Page'!Y64 -> 0 | Y26: ='[3]LO Product Page'!Z64 -> 0 | Z26: ='[3]LO Product Page'!AA64 -> 0 | AA26: ='[3]LO Product Page'!AB64 -> 4.95877132 | AB26: ='[3]LO Product Page'!AC64 -> 0.5024706608 | AC26: ='[3]LO Product Page'!AD64 -> 2.802299627 | AD26: ='[3]LO Product Page'!AE64 -> 0.7741579941 | AE26: ='[3]LO Product Page'!AF64 -> 0.5459025247 | AF26: ='[3]LO Product Page'!AG64 -> 0.3639350165 | AG26: ='[3]LO Product Page'!AH64 -> 9.098375412
A27: ='[3]LO Product Page'!B65 -> U.L.C. | B27: ='[3]LO Product Page'!C65 -> 81812 | C27: ='[3]LO Product Page'!D65 -> U.L.C. | D27: ='[3]LO Product Page'!E65 -> 0 | E27: ='[3]LO Product Page'!F65 -> 1.17004411 | F27: ='[3]LO Product Page'!G65 -> 299 | G27: ='[3]LO Product Page'!H65 -> 0 | H27: ='[3]LO Product Page'!I65 -> 0 | I27: ='[3]LO Product Page'!J65 -> 872 | J27: ='[3]LO Product Page'!K65 -> 0 | K27: ='[3]LO Product Page'!L65 -> 2.14734774 | L27: ='[3]LO Product Page'!M65 -> 0.3702323689 | M27: ='[3]LO Product Page'!N65 -> 13.754 | N27: ='[3]LO Product Page'!O65 -> 0 | O27: ='[3]LO Product Page'!P65 -> 14.12 | P27: ='[3]LO Product Page'!Q65 -> 0.2223262437 | Q27: ='[3]LO Product Page'!R65 -> 0 | R27: ='[3]LO Product Page'!S65 -> 0 | S27: ='[3]LO Product Page'!T65 -> 0.2223262437 | T27: ='[3]LO Product Page'!U65 -> 0 | U27: ='[3]LO Product Page'!V65 -> 0 | V27: ='[3]LO Product Page'!W65 -> 0 | W27: ='[3]LO Product Page'!X65 -> 0 | X27: ='[3]LO Product Page'!Y65 -> 0 | Y27: ='[3]LO Product Page'!Z65 -> 1000 | Z27: ='[3]LO Product Page'!AA65 -> 0 | AA27: ='[3]LO Product Page'!AB65 -> 14.12 | AB27: ='[3]LO Product Page'!AC65 -> 0.007404647379 | AC27: ='[3]LO Product Page'!AD65 -> 2.14734774 | AD27: ='[3]LO Product Page'!AE65 -> 0.2221394214 | AE27: ='[3]LO Product Page'!AF65 -> 0 | AF27: ='[3]LO Product Page'!AG65 -> 0 | AG27: ='[3]LO Product Page'!AH65 -> 7.56
A28: ='[3]LO Product Page'!B66 -> LTD | B28: ='[3]LO Product Page'!C66 -> 80797 | C28: ='[3]LO Product Page'!D66 -> LTD | D28: ='[3]LO Product Page'!E66 -> 0 | E28: ='[3]LO Product Page'!F66 -> 1.193319791 | F28: ='[3]LO Product Page'!G66 -> 334.8881554 | G28: ='[3]LO Product Page'!H66 -> 0 | H28: ='[3]LO Product Page'!I66 -> 18.96535008 | I28: ='[3]LO Product Page'!J66 -> 839.4662851 | J28: ='[3]LO Product Page'!K66 -> 0 | K28: ='[3]LO Product Page'!L66 -> 2.272017714 | L28: ='[3]LO Product Page'!M66 -> 0.3260492953 | M28: ='[3]LO Product Page'!N66 -> 15.40485515 | N28: ='[3]LO Product Page'!O66 -> 0 | O28: ='[3]LO Product Page'!P66 -> 15.73090444 | P28: ='[3]LO Product Page'!Q66 -> 0.2354657293 | Q28: ='[3]LO Product Page'!R66 -> 0.608 | R28: ='[3]LO Product Page'!S66 -> 0 | S28: ='[3]LO Product Page'!T66 -> 0.8434657293 | T28: ='[3]LO Product Page'!U66 -> 0 | U28: ='[3]LO Product Page'!V66 -> 0 | V28: ='[3]LO Product Page'!W66 -> 1000 | W28: ='[3]LO Product Page'!X66 -> 0 | X28: ='[3]LO Product Page'!Y66 -> 0 | Y28: ='[3]LO Product Page'!Z66 -> 0 | Z28: ='[3]LO Product Page'!AA66 -> 0 | AA28: ='[3]LO Product Page'!AB66 -> 15.73090444 | AB28: ='[3]LO Product Page'!AC66 -> 0.00783454384 | AC28: ='[3]LO Product Page'!AD66 -> 2.272017714 | AD28: ='[3]LO Product Page'!AE66 -> 0.8419275178 | AE28: ='[3]LO Product Page'!AF66 -> 0.4426008533 | AF28: ='[3]LO Product Page'!AG66 -> 0.2950672355 | AG28: ='[3]LO Product Page'!AH66 -> 7.376680889
A29: ='[3]LO Product Page'!B67 -> LTD + P | B29: ='[3]LO Product Page'!C67 -> 81814 | C29: ='[3]LO Product Page'!D67 -> LTD + P | D29: ='[3]LO Product Page'!E67 -> 0 | E29: ='[3]LO Product Page'!F67 -> 1.210343986 | F29: ='[3]LO Product Page'!G67 -> 0 | G29: ='[3]LO Product Page'!H67 -> 163.0463387 | H29: ='[3]LO Product Page'!I67 -> 57.01620432 | I29: ='[3]LO Product Page'!J67 -> 990.2814435 | J29: ='[3]LO Product Page'!K67 -> 0 | K29: ='[3]LO Product Page'!L67 -> 2.680199337 | L29: ='[3]LO Product Page'!M67 -> 0.3846260088 | M29: ='[3]LO Product Page'!N67 -> 0 | N29: ='[3]LO Product Page'!O67 -> 2.861463244 | O29: ='[3]LO Product Page'!P67 -> 3.246089253 | P29: ='[3]LO Product Page'!Q67 -> 0.277183201 | Q29: ='[3]LO Product Page'!R67 -> 1.824 | R29: ='[3]LO Product Page'!S67 -> 0.25428 | S29: ='[3]LO Product Page'!T67 -> 2.355463201 | T29: ='[3]LO Product Page'!U67 -> 3.179403604 | U29: ='[3]LO Product Page'!V67 -> 1000 | V29: ='[3]LO Product Page'!W67 -> 0 | W29: ='[3]LO Product Page'!X67 -> 0 | X29: ='[3]LO Product Page'!Y67 -> 0 | Y29: ='[3]LO Product Page'!Z67 -> 0 | Z29: ='[3]LO Product Page'!AA67 -> 0 | AA29: ='[3]LO Product Page'!AB67 -> 3.246089253 | AB29: ='[3]LO Product Page'!AC67 -> 3.188645671 | AC29: ='[3]LO Product Page'!AD67 -> 2.680199337 | AD29: ='[3]LO Product Page'!AE67 -> 2.356132827 | AE29: ='[3]LO Product Page'!AF67 -> 0.522116754 | AF29: ='[3]LO Product Page'!AG67 -> 0.348077836 | AG29: ='[3]LO Product Page'!AH67 -> 8.701945901
A30: ='[3]LO Product Page'!B68 -> LUCERNE | B30: ='[3]LO Product Page'!C68 -> 93370 | C30: ='[3]LO Product Page'!D68 -> LUCERNE | D30: ='[3]LO Product Page'!E68 -> 0 | E30: ='[3]LO Product Page'!F68 -> 1.158928507 | F30: ='[3]LO Product Page'!G68 -> 29.47015767 | G30: ='[3]LO Product Page'!H68 -> 36.19628719 | H30: ='[3]LO Product Page'!I68 -> 14.32654817 | I30: ='[3]LO Product Page'!J68 -> 1078.935514 | J30: ='[3]LO Product Page'!K68 -> 0 | K30: ='[3]LO Product Page'!L68 -> 2.920141812 | L30: ='[3]LO Product Page'!M68 -> 0.4190593119 | M30: ='[3]LO Product Page'!N68 -> 1.355627253 | N30: ='[3]LO Product Page'!O68 -> 0.6352448401 | O30: ='[3]LO Product Page'!P68 -> 2.409931405 | P30: ='[3]LO Product Page'!Q68 -> 0.2892556548 | Q30: ='[3]LO Product Page'!R68 -> 0.458432 | R30: ='[3]LO Product Page'!S68 -> 0.05645016 | S30: ='[3]LO Product Page'!T68 -> 0.8041378148 | T30: ='[3]LO Product Page'!U68 -> 0.7058276001 | U30: ='[3]LO Product Page'!V68 -> 222 | V30: ='[3]LO Product Page'!W68 -> 88 | W30: ='[3]LO Product Page'!X68 -> 690 | X30: ='[3]LO Product Page'!Y68 -> 0 | Y30: ='[3]LO Product Page'!Z68 -> 0 | Z30: ='[3]LO Product Page'!AA68 -> 0 | AA30: ='[3]LO Product Page'!AB68 -> 2.409931405 | AB30: ='[3]LO Product Page'!AC68 -> 0.7158970547 | AC30: ='[3]LO Product Page'!AD68 -> 2.920141812 | AD30: ='[3]LO Product Page'!AE68 -> 0.816999385 | AE30: ='[3]LO Product Page'!AF68 -> 0.5688587945 | AF30: ='[3]LO Product Page'!AG68 -> 0.3792391963 | AG30: ='[3]LO Product Page'!AH68 -> 9.480979908
A31: ='[3]LO Product Page'!B69 -> MID N + P | B31: ='[3]LO Product Page'!C69 -> 102196 | C31: ='[3]LO Product Page'!D69 -> MID N + P | D31: ='[3]LO Product Page'!E69 -> 0 | E31: ='[3]LO Product Page'!F69 -> 1.162243128 | F31: ='[3]LO Product Page'!G69 -> 99.46178214 | G31: ='[3]LO Product Page'!H69 -> 17.60900458 | H31: ='[3]LO Product Page'!I69 -> 11.79045904 | I31: ='[3]LO Product Page'!J69 -> 1033.381883 | J31: ='[3]LO Product Page'!K69 -> 0 | K31: ='[3]LO Product Page'!L69 -> 2.796850789 | L31: ='[3]LO Product Page'!M69 -> 0.4013662496 | M31: ='[3]LO Product Page'!N69 -> 4.575241979 | N31: ='[3]LO Product Page'!O69 -> 0.3090380303 | O31: ='[3]LO Product Page'!P69 -> 5.285646259 | P31: ='[3]LO Product Page'!Q69 -> 0.2783691073 | Q31: ='[3]LO Product Page'!R69 -> 0.377568 | R31: ='[3]LO Product Page'!S69 -> 0.02746224 | S31: ='[3]LO Product Page'!T69 -> 0.6833993473 | T31: ='[3]LO Product Page'!U69 -> 0.3433755893 | U31: ='[3]LO Product Page'!V69 -> 108 | V31: ='[3]LO Product Page'!W69 -> 297 | W31: ='[3]LO Product Page'!X69 -> 595 | X31: ='[3]LO Product Page'!Y69 -> 0 | Y31: ='[3]LO Product Page'!Z69 -> 0 | Z31: ='[3]LO Product Page'!AA69 -> 0 | AA31: ='[3]LO Product Page'!AB69 -> 5.285646259 | AB31: ='[3]LO Product Page'!AC69 -> 0.3530199023 | AC31: ='[3]LO Product Page'!AD69 -> 2.796850789 | AD31: ='[3]LO Product Page'!AE69 -> 0.6940941284 | AE31: ='[3]LO Product Page'!AF69 -> 0.5448410629 | AF31: ='[3]LO Product Page'!AG69 -> 0.3632273752 | AG31: ='[3]LO Product Page'!AH69 -> 9.080684381
A32: ='[3]LO Product Page'!B70 -> MID N | B32: ='[3]LO Product Page'!C70 -> 80790 | C32: ='[3]LO Product Page'!D70 -> MID N | D32: ='[3]LO Product Page'!E70 -> 0 | E32: ='[3]LO Product Page'!F70 -> 1.158468323 | F32: ='[3]LO Product Page'!G70 -> 123.9086175 | G32: ='[3]LO Product Page'!H70 -> 0 | H32: ='[3]LO Product Page'!I70 -> 7.01717953 | I32: ='[3]LO Product Page'!J70 -> 1027.542525 | J32: ='[3]LO Product Page'!K70 -> 0 | K32: ='[3]LO Product Page'!L70 -> 2.781046554 | L32: ='[3]LO Product Page'!M70 -> 0.3990982393 | M32: ='[3]LO Product Page'!N70 -> 5.699796404 | N32: ='[3]LO Product Page'!O70 -> 0 | O32: ='[3]LO Product Page'!P70 -> 6.098894644 | P32: ='[3]LO Product Page'!Q70 -> 0.2761223199 | Q32: ='[3]LO Product Page'!R70 -> 0.22496 | R32: ='[3]LO Product Page'!S70 -> 0 | S32: ='[3]LO Product Page'!T70 -> 0.5010823199 | T32: ='[3]LO Product Page'!U70 -> 0 | U32: ='[3]LO Product Page'!V70 -> 0 | V32: ='[3]LO Product Page'!W70 -> 370 | W32: ='[3]LO Product Page'!X70 -> 630 | X32: ='[3]LO Product Page'!Y70 -> 0 | Y32: ='[3]LO Product Page'!Z70 -> 0 | Z32: ='[3]LO Product Page'!AA70 -> 0 | AA32: ='[3]LO Product Page'!AB70 -> 6.098894644 | AB32: ='[3]LO Product Page'!AC70 -> 0.009589815704 | AC32: ='[3]LO Product Page'!AD70 -> 2.781046554 | AD32: ='[3]LO Product Page'!AE70 -> 0.5122442161 | AE32: ='[3]LO Product Page'!AF70 -> 0.5417623157 | AF32: ='[3]LO Product Page'!AG70 -> 0.3611748772 | AG32: ='[3]LO Product Page'!AH70 -> 9.029371929
A33: ='[3]LO Product Page'!B71 -> MKY 100 | B33: ='[3]LO Product Page'!C71 -> 102194 | C33: ='[3]LO Product Page'!D71 -> MKY 100 | D33: ='[3]LO Product Page'!E71 -> 0 | E33: ='[3]LO Product Page'!F71 -> 1.144417096 | F33: ='[3]LO Product Page'!G71 -> 38.84702602 | G33: ='[3]LO Product Page'!H71 -> 0 | H33: ='[3]LO Product Page'!I71 -> 2.199980609 | I33: ='[3]LO Product Page'!J71 -> 1103.370089 | J33: ='[3]LO Product Page'!K71 -> 0 | K33: ='[3]LO Product Page'!L71 -> 2.986274055 | L33: ='[3]LO Product Page'!M71 -> 0.4285497183 | M33: ='[3]LO Product Page'!N71 -> 1.786963197 | N33: ='[3]LO Product Page'!O71 -> 0 | O33: ='[3]LO Product Page'!P71 -> 2.215512915 | P33: ='[3]LO Product Page'!Q71 -> 0.2925140246 | Q33: ='[3]LO Product Page'!R71 -> 0.070528 | R33: ='[3]LO Product Page'!S71 -> 0 | S33: ='[3]LO Product Page'!T71 -> 0.3630420246 | T33: ='[3]LO Product Page'!U71 -> 0 | U33: ='[3]LO Product Page'!V71 -> 0 | V33: ='[3]LO Product Page'!W71 -> 116 | W33: ='[3]LO Product Page'!X71 -> 884 | X33: ='[3]LO Product Page'!Y71 -> 0 | Y33: ='[3]LO Product Page'!Z71 -> 0 | Z33: ='[3]LO Product Page'!AA71 -> 0 | AA33: ='[3]LO Product Page'!AB71 -> 2.215512915 | AB33: ='[3]LO Product Page'!AC71 -> 0.01029749674 | AC33: ='[3]LO Product Page'!AD71 -> 2.986274055 | AD33: ='[3]LO Product Page'!AE71 -> 0.3793242817 | AE33: ='[3]LO Product Page'!AF71 -> 0.581741699 | AF33: ='[3]LO Product Page'!AG71 -> 0.3878277993 | AG33: ='[3]LO Product Page'!AH71 -> 9.695694983
A34: ='[3]LO Product Page'!B72 -> MKY 110 | B34: ='[3]LO Product Page'!C72 -> 102205 | C34: ='[3]LO Product Page'!D72 -> MKY 110 | D34: ='[3]LO Product Page'!E72 -> 0 | E34: ='[3]LO Product Page'!F72 -> 1.14580009 | F34: ='[3]LO Product Page'!G72 -> 47.21922991 | G34: ='[3]LO Product Page'!H72 -> 0 | H34: ='[3]LO Product Page'!I72 -> 2.674114361 | I34: ='[3]LO Product Page'!J72 -> 1095.906746 | J34: ='[3]LO Product Page'!K72 -> 0 | K34: ='[3]LO Product Page'!L72 -> 2.966074498 | L34: ='[3]LO Product Page'!M72 -> 0.4256509506 | M34: ='[3]LO Product Page'!N72 -> 2.172084576 | N34: ='[3]LO Product Page'!O72 -> 0 | O34: ='[3]LO Product Page'!P72 -> 2.597735526 | P34: ='[3]LO Product Page'!Q72 -> 0.2909006678 | Q34: ='[3]LO Product Page'!R72 -> 0.085728 | R34: ='[3]LO Product Page'!S72 -> 0 | S34: ='[3]LO Product Page'!T72 -> 0.3766286678 | T34: ='[3]LO Product Page'!U72 -> 0 | U34: ='[3]LO Product Page'!V72 -> 0 | V34: ='[3]LO Product Page'!W72 -> 141 | W34: ='[3]LO Product Page'!X72 -> 859 | X34: ='[3]LO Product Page'!Y72 -> 0 | Y34: ='[3]LO Product Page'!Z72 -> 0 | Z34: ='[3]LO Product Page'!AA72 -> 0 | AA34: ='[3]LO Product Page'!AB72 -> 2.597735526 | AB34: ='[3]LO Product Page'!AC72 -> 0.0102278431 | AC34: ='[3]LO Product Page'!AD72 -> 2.966074498 | AD34: ='[3]LO Product Page'!AE72 -> 0.3924069524 | AE34: ='[3]LO Product Page'!AF72 -> 0.5778067203 | AF34: ='[3]LO Product Page'!AG72 -> 0.3852044802 | AG34: ='[3]LO Product Page'!AH72 -> 9.630112005
A35: ='[3]LO Product Page'!B73 -> MKY 120P | B35: ='[3]LO Product Page'!C73 -> 102198 | C35: ='[3]LO Product Page'!D73 -> MKY 120P | D35: ='[3]LO Product Page'!E73 -> 0 | E35: ='[3]LO Product Page'!F73 -> 1.153638795 | F35: ='[3]LO Product Page'!G73 -> 43.87034835 | G35: ='[3]LO Product Page'!H73 -> 18.91337529 | H35: ='[3]LO Product Page'!I73 -> 9.098340562 | I35: ='[3]LO Product Page'!J73 -> 1081.756731 | J35: ='[3]LO Product Page'!K73 -> 0 | K35: ='[3]LO Product Page'!L73 -> 2.927777444 | L35: ='[3]LO Product Page'!M73 -> 0.4201550747 | M35: ='[3]LO Product Page'!N73 -> 2.018036024 | N35: ='[3]LO Product Page'!O73 -> 0.3319297363 | O35: ='[3]LO Product Page'!P73 -> 2.770120835 | P35: ='[3]LO Product Page'!Q73 -> 0.2888992619 | Q35: ='[3]LO Product Page'!R73 -> 0.291232 | R35: ='[3]LO Product Page'!S73 -> 0.02949648 | S35: ='[3]LO Product Page'!T73 -> 0.6096277419 | T35: ='[3]LO Product Page'!U73 -> 0.3688108181 | U35: ='[3]LO Product Page'!V73 -> 116 | V35: ='[3]LO Product Page'!W73 -> 131 | W35: ='[3]LO Product Page'!X73 -> 753 | X35: ='[3]LO Product Page'!Y73 -> 0 | Y35: ='[3]LO Product Page'!Z73 -> 0 | Z35: ='[3]LO Product Page'!AA73 -> 0 | AA35: ='[3]LO Product Page'!AB73 -> 2.770120835 | AB35: ='[3]LO Product Page'!AC73 -> 0.3789066024 | AC35: ='[3]LO Product Page'!AD73 -> 2.927777444 | AD35: ='[3]LO Product Page'!AE73 -> 0.6235252921 | AE35: ='[3]LO Product Page'!AF73 -> 0.5703462553 | AF35: ='[3]LO Product Page'!AG73 -> 0.3802308368 | AG35: ='[3]LO Product Page'!AH73 -> 9.505770921
A36: ='[3]LO Product Page'!B74 -> MKY 130P | B36: ='[3]LO Product Page'!C74 -> 102199 | C36: ='[3]LO Product Page'!D74 -> MKY 130P | D36: ='[3]LO Product Page'!E74 -> 0 | E36: ='[3]LO Product Page'!F74 -> 1.153974926 | F36: ='[3]LO Product Page'!G74 -> 52.91232855 | G36: ='[3]LO Product Page'!H74 -> 16.30463387 | H36: ='[3]LO Product Page'!I74 -> 8.698145745 | I36: ='[3]LO Product Page'!J74 -> 1076.059817 | J36: ='[3]LO Product Page'!K74 -> 0 | K36: ='[3]LO Product Page'!L74 -> 2.912358733 | L36: ='[3]LO Product Page'!M74 -> 0.4179423895 | M36: ='[3]LO Product Page'!N74 -> 2.433967113 | N36: ='[3]LO Product Page'!O74 -> 0.2861463244 | O36: ='[3]LO Product Page'!P74 -> 3.138055827 | P36: ='[3]LO Product Page'!Q74 -> 0.2875219053 | Q36: ='[3]LO Product Page'!R74 -> 0.278464 | R36: ='[3]LO Product Page'!S74 -> 0.025428 | S36: ='[3]LO Product Page'!T74 -> 0.5914139053 | T36: ='[3]LO Product Page'!U74 -> 0.3179403604 | U36: ='[3]LO Product Page'!V74 -> 100 | V36: ='[3]LO Product Page'!W74 -> 158 | W36: ='[3]LO Product Page'!X74 -> 742 | X36: ='[3]LO Product Page'!Y74 -> 0 | Y36: ='[3]LO Product Page'!Z74 -> 0 | Z36: ='[3]LO Product Page'!AA74 -> 0 | AA36: ='[3]LO Product Page'!AB74 -> 3.138055827 | AB36: ='[3]LO Product Page'!AC74 -> 0.3279829767 | AC36: ='[3]LO Product Page'!AD74 -> 2.912358733 | AD36: ='[3]LO Product Page'!AE74 -> 0.6050543822 | AE36: ='[3]LO Product Page'!AF74 -> 0.5673426102 | AF36: ='[3]LO Product Page'!AG74 -> 0.3782284068 | AG36: ='[3]LO Product Page'!AH74 -> 9.45571017
A37: ='[3]LO Product Page'!B75 -> MKY 140P | B37: ='[3]LO Product Page'!C75 -> 102203 | C37: ='[3]LO Product Page'!D75 -> MKY 140P | D37: ='[3]LO Product Page'!E75 -> 0 | E37: ='[3]LO Product Page'!F75 -> 1.1546898 | F37: ='[3]LO Product Page'!G75 -> 61.61942059 | G37: ='[3]LO Product Page'!H75 -> 14.67417048 | H37: ='[3]LO Product Page'!I75 -> 8.621082804 | I37: ='[3]LO Product Page'!J75 -> 1069.775126 | J37: ='[3]LO Product Page'!K75 -> 0 | K37: ='[3]LO Product Page'!L75 -> 2.8953492 | L37: ='[3]LO Product Page'!M75 -> 0.4155014111 | M37: ='[3]LO Product Page'!N75 -> 2.834493347 | N37: ='[3]LO Product Page'!O75 -> 0.2575316919 | O37: ='[3]LO Product Page'!P75 -> 3.50752645 | P37: ='[3]LO Product Page'!Q75 -> 0.2860721823 | Q37: ='[3]LO Product Page'!R75 -> 0.276032 | R37: ='[3]LO Product Page'!S75 -> 0.0228852 | S37: ='[3]LO Product Page'!T75 -> 0.5849893823 | T37: ='[3]LO Product Page'!U75 -> 0.2861463244 | U37: ='[3]LO Product Page'!V75 -> 90 | V37: ='[3]LO Product Page'!W75 -> 184 | W37: ='[3]LO Product Page'!X75 -> 726 | X37: ='[3]LO Product Page'!Y75 -> 0 | Y37: ='[3]LO Product Page'!Z75 -> 0 | Z37: ='[3]LO Product Page'!AA75 -> 0 | AA37: ='[3]LO Product Page'!AB75 -> 3.50752645 | AB37: ='[3]LO Product Page'!AC75 -> 0.2961302871 | AC37: ='[3]LO Product Page'!AD75 -> 2.8953492 | AD37: ='[3]LO Product Page'!AE75 -> 0.5982852384 | AE37: ='[3]LO Product Page'!AF75 -> 0.5640290649 | AF37: ='[3]LO Product Page'!AG75 -> 0.3760193766 | AG37: ='[3]LO Product Page'!AH75 -> 9.400484415
A38: ='[3]LO Product Page'!B76 -> MKY 150 | B38: ='[3]LO Product Page'!C76 -> 102191 | C38: ='[3]LO Product Page'!D76 -> MKY 150 | D38: ='[3]LO Product Page'!E76 -> 0 | E38: ='[3]LO Product Page'!F76 -> 1.149063958 | F38: ='[3]LO Product Page'!G76 -> 66.97763107 | G38: ='[3]LO Product Page'!H76 -> 0 | H38: ='[3]LO Product Page'!I76 -> 3.793070016 | I38: ='[3]LO Product Page'!J76 -> 1078.293257 | J38: ='[3]LO Product Page'!K76 -> 0 | K38: ='[3]LO Product Page'!L76 -> 2.918403543 | L38: ='[3]LO Product Page'!M76 -> 0.4188098591 | M38: ='[3]LO Product Page'!N76 -> 3.080971029 | N38: ='[3]LO Product Page'!O76 -> 0 | O38: ='[3]LO Product Page'!P76 -> 3.499780888 | P38: ='[3]LO Product Page'!Q76 -> 0.2870931459 | Q38: ='[3]LO Product Page'!R76 -> 0.1216 | R38: ='[3]LO Product Page'!S76 -> 0 | S38: ='[3]LO Product Page'!T76 -> 0.4086931459 | T38: ='[3]LO Product Page'!U76 -> 0 | U38: ='[3]LO Product Page'!V76 -> 0 | V38: ='[3]LO Product Page'!W76 -> 200 | W38: ='[3]LO Product Page'!X76 -> 800 | X38: ='[3]LO Product Page'!Y76 -> 0 | Y38: ='[3]LO Product Page'!Z76 -> 0 | Z38: ='[3]LO Product Page'!AA76 -> 0 | AA38: ='[3]LO Product Page'!AB76 -> 3.499780888 | AB38: ='[3]LO Product Page'!AC76 -> 0.01006346049 | AC38: ='[3]LO Product Page'!AD76 -> 2.918403543 | AD38: ='[3]LO Product Page'!AE76 -> 0.4232820553 | AE38: ='[3]LO Product Page'!AF76 -> 0.5685201707 | AF38: ='[3]LO Product Page'!AG76 -> 0.3790134471 | AG38: ='[3]LO Product Page'!AH76 -> 9.475336178
A39: ='[3]LO Product Page'!B77 -> MKY 150P | B39: ='[3]LO Product Page'!C77 -> 95514 | C39: ='[3]LO Product Page'!D77 -> MKY 150P | D39: ='[3]LO Product Page'!E77 -> 0 | E39: ='[3]LO Product Page'!F77 -> 1.158132546 | F39: ='[3]LO Product Page'!G77 -> 57.93565088 | G39: ='[3]LO Product Page'!H77 -> 23.80476545 | H39: ='[3]LO Product Page'!I77 -> 11.60537139 | I39: ='[3]LO Product Page'!J77 -> 1064.786758 | J39: ='[3]LO Product Page'!K77 -> 0 | K39: ='[3]LO Product Page'!L77 -> 2.881848168 | L39: ='[3]LO Product Page'!M77 -> 0.4135639254 | M39: ='[3]LO Product Page'!N77 -> 2.66503994 | N39: ='[3]LO Product Page'!O77 -> 0.4177736336 | O39: ='[3]LO Product Page'!P77 -> 3.496377499 | P39: ='[3]LO Product Page'!Q77 -> 0.2855043185 | Q39: ='[3]LO Product Page'!R77 -> 0.371488 | R39: ='[3]LO Product Page'!S77 -> 0.03712488 | S39: ='[3]LO Product Page'!T77 -> 0.6941171985 | T39: ='[3]LO Product Page'!U77 -> 0.4641929262 | U39: ='[3]LO Product Page'!V77 -> 146 | V39: ='[3]LO Product Page'!W77 -> 173 | W39: ='[3]LO Product Page'!X77 -> 681 | X39: ='[3]LO Product Page'!Y77 -> 0 | Y39: ='[3]LO Product Page'!Z77 -> 0 | Z39: ='[3]LO Product Page'!AA77 -> 0 | AA39: ='[3]LO Product Page'!AB77 -> 3.496377499 | AB39: ='[3]LO Product Page'!AC77 -> 0.4741303337 | AC39: ='[3]LO Product Page'!AD77 -> 2.881848168 | AD39: ='[3]LO Product Page'!AE77 -> 0.706629543 | AE39: ='[3]LO Product Page'!AF77 -> 0.5613989937 | AF39: ='[3]LO Product Page'!AG77 -> 0.3742659958 | AG39: ='[3]LO Product Page'!AH77 -> 9.356649895
A40: ='[3]LO Product Page'!B78 -> MKY 160 | B40: ='[3]LO Product Page'!C78 -> 102183 | C40: ='[3]LO Product Page'!D78 -> MKY 160 | D40: ='[3]LO Product Page'!E78 -> 0 | E40: ='[3]LO Product Page'!F78 -> 1.149949075 | F40: ='[3]LO Product Page'!G78 -> 72.33584156 | G40: ='[3]LO Product Page'!H78 -> 0 | H40: ='[3]LO Product Page'!I78 -> 4.096515617 | I40: ='[3]LO Product Page'!J78 -> 1073.516718 | J40: ='[3]LO Product Page'!K78 -> 0 | K40: ='[3]LO Product Page'!L78 -> 2.905475826 | L40: ='[3]LO Product Page'!M78 -> 0.4169546478 | M40: ='[3]LO Product Page'!N78 -> 3.327448712 | N40: ='[3]LO Product Page'!O78 -> 0 | O40: ='[3]LO Product Page'!P78 -> 3.744403359 | P40: ='[3]LO Product Page'!Q78 -> 0.2860605975 | Q40: ='[3]LO Product Page'!R78 -> 0.131328 | R40: ='[3]LO Product Page'!S78 -> 0 | S40: ='[3]LO Product Page'!T78 -> 0.4173885975 | T40: ='[3]LO Product Page'!U78 -> 0 | U40: ='[3]LO Product Page'!V78 -> 0 | V40: ='[3]LO Product Page'!W78 -> 216 | W40: ='[3]LO Product Page'!X78 -> 784 | X40: ='[3]LO Product Page'!Y78 -> 0 | Y40: ='[3]LO Product Page'!Z78 -> 0 | Z40: ='[3]LO Product Page'!AA78 -> 0 | AA40: ='[3]LO Product Page'!AB78 -> 3.744403359 | AB40: ='[3]LO Product Page'!AC78 -> 0.01001888216 | AC40: ='[3]LO Product Page'!AD78 -> 2.905475826 | AD40: ='[3]LO Product Page'!AE78 -> 0.4316549645 | AE40: ='[3]LO Product Page'!AF78 -> 0.5660017843 | AF40: ='[3]LO Product Page'!AG78 -> 0.3773345229 | AG40: ='[3]LO Product Page'!AH78 -> 9.433363072
A41: ='[3]LO Product Page'!B79 -> MKY 160P | B41: ='[3]LO Product Page'!C79 -> 102158 | C41: ='[3]LO Product Page'!D79 -> MKY 160P | D41: ='[3]LO Product Page'!E79 -> 0 | E41: ='[3]LO Product Page'!F79 -> 1.158945318 | F41: ='[3]LO Product Page'!G79 -> 63.29386136 | G41: ='[3]LO Product Page'!H79 -> 23.64171911 | H41: ='[3]LO Product Page'!I79 -> 11.85180079 | I41: ='[3]LO Product Page'!J79 -> 1060.157937 | J41: ='[3]LO Product Page'!K79 -> 0 | K41: ='[3]LO Product Page'!L79 -> 2.869320252 | L41: ='[3]LO Product Page'!M79 -> 0.4117660881 | M41: ='[3]LO Product Page'!N79 -> 2.911517623 | N41: ='[3]LO Product Page'!O79 -> 0.4149121703 | O41: ='[3]LO Product Page'!P79 -> 3.738195881 | P41: ='[3]LO Product Page'!Q79 -> 0.284494587 | Q41: ='[3]LO Product Page'!R79 -> 0.379392 | R41: ='[3]LO Product Page'!S79 -> 0.0368706 | S41: ='[3]LO Product Page'!T79 -> 0.700757187 | T41: ='[3]LO Product Page'!U79 -> 0.4610135226 | U41: ='[3]LO Product Page'!V79 -> 145 | V41: ='[3]LO Product Page'!W79 -> 189 | W41: ='[3]LO Product Page'!X79 -> 666 | X41: ='[3]LO Product Page'!Y79 -> 0 | Y41: ='[3]LO Product Page'!Z79 -> 0 | Z41: ='[3]LO Product Page'!AA79 -> 0 | AA41: ='[3]LO Product Page'!AB79 -> 3.738195881 | AB41: ='[3]LO Product Page'!AC79 -> 0.4709077304 | AC41: ='[3]LO Product Page'!AD79 -> 2.869320252 | AD41: ='[3]LO Product Page'!AE79 -> 0.7129649401 | AE41: ='[3]LO Product Page'!AF79 -> 0.5589584906 | AF41: ='[3]LO Product Page'!AG79 -> 0.3726389937 | AG41: ='[3]LO Product Page'!AH79 -> 9.315974844
A42: ='[3]LO Product Page'!B80 -> MKY 170 | B42: ='[3]LO Product Page'!C80 -> 102185 | C42: ='[3]LO Product Page'!D80 -> MKY 170 | D42: ='[3]LO Product Page'!E80 -> 0 | E42: ='[3]LO Product Page'!F80 -> 1.150778872 | F42: ='[3]LO Product Page'!G80 -> 77.35916389 | G42: ='[3]LO Product Page'!H80 -> 0 | H42: ='[3]LO Product Page'!I80 -> 4.380995869 | I42: ='[3]LO Product Page'!J80 -> 1069.038712 | J42: ='[3]LO Product Page'!K80 -> 0 | K42: ='[3]LO Product Page'!L80 -> 2.893356092 | L42: ='[3]LO Product Page'!M80 -> 0.4152153872 | M42: ='[3]LO Product Page'!N80 -> 3.558521539 | N42: ='[3]LO Product Page'!O80 -> 0 | O42: ='[3]LO Product Page'!P80 -> 3.973736926 | P42: ='[3]LO Product Page'!Q80 -> 0.2850925835 | Q42: ='[3]LO Product Page'!R80 -> 0.140448 | R42: ='[3]LO Product Page'!S80 -> 0 | S42: ='[3]LO Product Page'!T80 -> 0.4255405835 | T42: ='[3]LO Product Page'!U80 -> 0 | U42: ='[3]LO Product Page'!V80 -> 0 | V42: ='[3]LO Product Page'!W80 -> 231 | W42: ='[3]LO Product Page'!X80 -> 769 | X42: ='[3]LO Product Page'!Y80 -> 0 | Y42: ='[3]LO Product Page'!Z80 -> 0 | Z42: ='[3]LO Product Page'!AA80 -> 0 | AA42: ='[3]LO Product Page'!AB80 -> 3.973736926 | AB42: ='[3]LO Product Page'!AC80 -> 0.009977089972 | AC42: ='[3]LO Product Page'!AD80 -> 2.893356092 | AD42: ='[3]LO Product Page'!AE80 -> 0.439504567 | AE42: ='[3]LO Product Page'!AF80 -> 0.5636407971 | AF42: ='[3]LO Product Page'!AG80 -> 0.3757605314 | AG42: ='[3]LO Product Page'!AH80 -> 9.394013285
A43: ='[3]LO Product Page'!B81 -> MKY 170P | B43: ='[3]LO Product Page'!C81 -> 102181 | C43: ='[3]LO Product Page'!D81 -> MKY 170P | D43: ='[3]LO Product Page'!E81 -> 0 | E43: ='[3]LO Product Page'!F81 -> 1.158277163 | F43: ='[3]LO Product Page'!G81 -> 69.32184816 | G43: ='[3]LO Product Page'!H81 -> 19.89165332 | H43: ='[3]LO Product Page'!I81 -> 10.88180439 | I43: ='[3]LO Product Page'!J81 -> 1058.181857 | J43: ='[3]LO Product Page'!K81 -> 0 | K43: ='[3]LO Product Page'!L81 -> 2.863971986 | L43: ='[3]LO Product Page'!M81 -> 0.4109985772 | M43: ='[3]LO Product Page'!N81 -> 3.188805015 | N43: ='[3]LO Product Page'!O81 -> 0.3490985157 | O43: ='[3]LO Product Page'!P81 -> 3.948902108 | P43: ='[3]LO Product Page'!Q81 -> 0.2838577565 | Q43: ='[3]LO Product Page'!R81 -> 0.348384 | R43: ='[3]LO Product Page'!S81 -> 0.03102216 | S43: ='[3]LO Product Page'!T81 -> 0.6632639165 | T43: ='[3]LO Product Page'!U81 -> 0.3878872397 | U43: ='[3]LO Product Page'!V81 -> 122 | V43: ='[3]LO Product Page'!W81 -> 207 | W43: ='[3]LO Product Page'!X81 -> 671 | X43: ='[3]LO Product Page'!Y81 -> 0 | Y43: ='[3]LO Product Page'!Z81 -> 0 | Z43: ='[3]LO Product Page'!AA81 -> 0 | AA43: ='[3]LO Product Page'!AB81 -> 3.948902108 | AB43: ='[3]LO Product Page'!AC81 -> 0.3977630052 | AC43: ='[3]LO Product Page'!AD81 -> 2.863971986 | AD43: ='[3]LO Product Page'!AE81 -> 0.6755216838 | AE43: ='[3]LO Product Page'!AF81 -> 0.5579166206 | AF43: ='[3]LO Product Page'!AG81 -> 0.3719444138 | AG43: ='[3]LO Product Page'!AH81 -> 9.298610344
A44: ='[3]LO Product Page'!B82 -> MKY 180P | B44: ='[3]LO Product Page'!C82 -> 102201 | C44: ='[3]LO Product Page'!D82 -> MKY 180P | D44: ='[3]LO Product Page'!E82 -> 0 | E44: ='[3]LO Product Page'!F82 -> 1.15662171 | F44: ='[3]LO Product Page'!G82 -> 77.69405204 | G44: ='[3]LO Product Page'!H82 -> 13.04370709 | H44: ='[3]LO Product Page'!I82 -> 8.961257564 | I44: ='[3]LO Product Page'!J82 -> 1056.922694 | J44: ='[3]LO Product Page'!K82 -> 0 | K44: ='[3]LO Product Page'!L82 -> 2.860564057 | L44: ='[3]LO Product Page'!M82 -> 0.4105095172 | M44: ='[3]LO Product Page'!N82 -> 3.573926394 | N44: ='[3]LO Product Page'!O82 -> 0.2289170595 | O44: ='[3]LO Product Page'!P82 -> 4.213352971 | P44: ='[3]LO Product Page'!Q82 -> 0.2832027053 | Q44: ='[3]LO Product Page'!R82 -> 0.286976 | R44: ='[3]LO Product Page'!S82 -> 0.0203424 | S44: ='[3]LO Product Page'!T82 -> 0.5905211053 | T44: ='[3]LO Product Page'!U82 -> 0.2543522883 | U44: ='[3]LO Product Page'!V82 -> 80 | V44: ='[3]LO Product Page'!W82 -> 232 | W44: ='[3]LO Product Page'!X82 -> 688 | X44: ='[3]LO Product Page'!Y82 -> 0 | Y44: ='[3]LO Product Page'!Z82 -> 0 | Z44: ='[3]LO Product Page'!AA82 -> 0 | AA44: ='[3]LO Product Page'!AB82 -> 4.213352971 | AB44: ='[3]LO Product Page'!AC82 -> 0.2642163023 | AC44: ='[3]LO Product Page'!AD82 -> 2.860564057 | AD44: ='[3]LO Product Page'!AE82 -> 0.6030288448 | AE44: ='[3]LO Product Page'!AF82 -> 0.5572527383 | AF44: ='[3]LO Product Page'!AG82 -> 0.3715018255 | AG44: ='[3]LO Product Page'!AH82 -> 9.287545638
A45: ='[3]LO Product Page'!B83 -> MKY 190P | B45: ='[3]LO Product Page'!C83 -> 102202 | C45: ='[3]LO Product Page'!D83 -> MKY 190P | D45: ='[3]LO Product Page'!E83 -> 0 | E45: ='[3]LO Product Page'!F83 -> 1.159217599 | F45: ='[3]LO Product Page'!G83 -> 75.0149468 | G45: ='[3]LO Product Page'!H83 -> 19.89165332 | H45: ='[3]LO Product Page'!I83 -> 11.20421535 | I45: ='[3]LO Product Page'!J83 -> 1053.106784 | J45: ='[3]LO Product Page'!K83 -> 0 | K45: ='[3]LO Product Page'!L83 -> 2.850236287 | L45: ='[3]LO Product Page'!M83 -> 0.4090274152 | M45: ='[3]LO Product Page'!N83 -> 3.450687553 | N45: ='[3]LO Product Page'!O83 -> 0.3490985157 | O45: ='[3]LO Product Page'!P83 -> 4.208813484 | P45: ='[3]LO Product Page'!Q83 -> 0.2827606739 | Q45: ='[3]LO Product Page'!R83 -> 0.35872 | R45: ='[3]LO Product Page'!S83 -> 0.03102216 | S45: ='[3]LO Product Page'!T83 -> 0.6725028339 | T45: ='[3]LO Product Page'!U83 -> 0.3878872397 | U45: ='[3]LO Product Page'!V83 -> 122 | V45: ='[3]LO Product Page'!W83 -> 224 | W45: ='[3]LO Product Page'!X83 -> 654 | X45: ='[3]LO Product Page'!Y83 -> 0 | Y45: ='[3]LO Product Page'!Z83 -> 0 | Z45: ='[3]LO Product Page'!AA83 -> 0 | AA45: ='[3]LO Product Page'!AB83 -> 4.208813484 | AB45: ='[3]LO Product Page'!AC83 -> 0.3977156407 | AC45: ='[3]LO Product Page'!AD83 -> 2.850236287 | AD45: ='[3]LO Product Page'!AE83 -> 0.6844178999 | AE45: ='[3]LO Product Page'!AF83 -> 0.5552408351 | AF45: ='[3]LO Product Page'!AG83 -> 0.3701605568 | AG45: ='[3]LO Product Page'!AH83 -> 9.254013919
A46: ='[3]LO Product Page'!B84 -> MKY 200P | B46: ='[3]LO Product Page'!C84 -> 102193 | C46: ='[3]LO Product Page'!D84 -> MKY 200P | D46: ='[3]LO Product Page'!E84 -> 0 | E46: ='[3]LO Product Page'!F84 -> 1.16966904 | F46: ='[3]LO Product Page'!G84 -> 97.11756506 | G46: ='[3]LO Product Page'!H84 -> 35.21800915 | H46: ='[3]LO Product Page'!I84 -> 17.81545166 | I46: ='[3]LO Product Page'!J84 -> 1019.518014 | J46: ='[3]LO Product Page'!K84 -> 0 | K46: ='[3]LO Product Page'!L84 -> 2.759328194 | L46: ='[3]LO Product Page'!M84 -> 0.3959815135 | M46: ='[3]LO Product Page'!N84 -> 4.467407993 | N46: ='[3]LO Product Page'!O84 -> 0.6180760607 | O46: ='[3]LO Product Page'!P84 -> 5.481465567 | P46: ='[3]LO Product Page'!Q84 -> 0.2763566329 | Q46: ='[3]LO Product Page'!R84 -> 0.570304 | R46: ='[3]LO Product Page'!S84 -> 0.05492448 | S46: ='[3]LO Product Page'!T84 -> 0.9015851129 | T46: ='[3]LO Product Page'!U84 -> 0.6867511785 | U46: ='[3]LO Product Page'!V84 -> 216 | V46: ='[3]LO Product Page'!W84 -> 290 | W46: ='[3]LO Product Page'!X84 -> 494 | X46: ='[3]LO Product Page'!Y84 -> 0 | Y46: ='[3]LO Product Page'!Z84 -> 0 | Z46: ='[3]LO Product Page'!AA84 -> 0 | AA46: ='[3]LO Product Page'!AB84 -> 5.481465567 | AB46: ='[3]LO Product Page'!AC84 -> 0.6962661033 | AC46: ='[3]LO Product Page'!AD84 -> 2.759328194 | AD46: ='[3]LO Product Page'!AE84 -> 0.9104822915 | AE46: ='[3]LO Product Page'!AF84 -> 0.5375314663 | AF46: ='[3]LO Product Page'!AG84 -> 0.3583543109 | AG46: ='[3]LO Product Page'!AH84 -> 8.958857772
A47: ='[3]LO Product Page'!B85 -> MKY 60 | B47: ='[3]LO Product Page'!C85 -> 102192 | C47: ='[3]LO Product Page'!D85 -> MKY 60 | D47: ='[3]LO Product Page'!E85 -> 0 | E47: ='[3]LO Product Page'!F85 -> 1.139936193 | F47: ='[3]LO Product Page'!G85 -> 11.72108544 | G47: ='[3]LO Product Page'!H85 -> 0 | H47: ='[3]LO Product Page'!I85 -> 0.6637872528 | I47: ='[3]LO Product Page'!J85 -> 1127.55132 | J47: ='[3]LO Product Page'!K85 -> 0 | K47: ='[3]LO Product Page'!L85 -> 3.05172062 | L47: ='[3]LO Product Page'!M85 -> 0.4379417253 | M47: ='[3]LO Product Page'!N85 -> 0.5391699301 | N47: ='[3]LO Product Page'!O85 -> 0 | O47: ='[3]LO Product Page'!P85 -> 0.9771116555 | P47: ='[3]LO Product Page'!Q85 -> 0.2977413005 | Q47: ='[3]LO Product Page'!R85 -> 0.02128 | R47: ='[3]LO Product Page'!S85 -> 0 | S47: ='[3]LO Product Page'!T85 -> 0.3190213005 | T47: ='[3]LO Product Page'!U85 -> 0 | U47: ='[3]LO Product Page'!V85 -> 0 | V47: ='[3]LO Product Page'!W85 -> 35 | W47: ='[3]LO Product Page'!X85 -> 965 | X47: ='[3]LO Product Page'!Y85 -> 0 | Y47: ='[3]LO Product Page'!Z85 -> 0 | Z47: ='[3]LO Product Page'!AA85 -> 0 | AA47: ='[3]LO Product Page'!AB85 -> 0.9771116555 | AB47: ='[3]LO Product Page'!AC85 -> 0.01052317455 | AC47: ='[3]LO Product Page'!AD85 -> 3.05172062 | AD47: ='[3]LO Product Page'!AE85 -> 0.3369364286 | AE47: ='[3]LO Product Page'!AF85 -> 0.5944910299 | AF47: ='[3]LO Product Page'!AG85 -> 0.3963273532 | AG47: ='[3]LO Product Page'!AH85 -> 9.908183831
A48: ='[3]LO Product Page'!B86 -> MKY 70 | B48: ='[3]LO Product Page'!C86 -> 102204 | C48: ='[3]LO Product Page'!D86 -> MKY 70 | D48: ='[3]LO Product Page'!E86 -> 0 | E48: ='[3]LO Product Page'!F86 -> 1.142314944 | F48: ='[3]LO Product Page'!G86 -> 26.12127612 | G48: ='[3]LO Product Page'!H86 -> 0 | H48: ='[3]LO Product Page'!I86 -> 1.479297306 | I48: ='[3]LO Product Page'!J86 -> 1114.71437 | J48: ='[3]LO Product Page'!K86 -> 0 | K48: ='[3]LO Product Page'!L86 -> 3.016977382 | L48: ='[3]LO Product Page'!M86 -> 0.432955845 | M48: ='[3]LO Product Page'!N86 -> 1.201578701 | N48: ='[3]LO Product Page'!O86 -> 0 | O48: ='[3]LO Product Page'!P86 -> 1.634534546 | P48: ='[3]LO Product Page'!Q86 -> 0.2949663269 | Q48: ='[3]LO Product Page'!R86 -> 0.047424 | R48: ='[3]LO Product Page'!S86 -> 0 | S48: ='[3]LO Product Page'!T86 -> 0.3423903269 | T48: ='[3]LO Product Page'!U86 -> 0 | U48: ='[3]LO Product Page'!V86 -> 0 | V48: ='[3]LO Product Page'!W86 -> 78 | W48: ='[3]LO Product Page'!X86 -> 922 | X48: ='[3]LO Product Page'!Y86 -> 0 | Y48: ='[3]LO Product Page'!Z86 -> 0 | Z48: ='[3]LO Product Page'!AA86 -> 0 | AA48: ='[3]LO Product Page'!AB86 -> 1.634534546 | AB48: ='[3]LO Product Page'!AC86 -> 0.01040337028 | AC48: ='[3]LO Product Page'!AD86 -> 3.016977382 | AD48: ='[3]LO Product Page'!AE86 -> 0.3594386222 | AE48: ='[3]LO Product Page'!AF86 -> 0.5877228666 | AF48: ='[3]LO Product Page'!AG86 -> 0.3918152444 | AG48: ='[3]LO Product Page'!AH86 -> 9.795381109
A49: ='[3]LO Product Page'!B87 -> MKY 80 | B49: ='[3]LO Product Page'!C87 -> 102195 | C49: ='[3]LO Product Page'!D87 -> MKY 80 | D49: ='[3]LO Product Page'!E87 -> 0 | E49: ='[3]LO Product Page'!F87 -> 1.143089421 | F49: ='[3]LO Product Page'!G87 -> 30.80971029 | G49: ='[3]LO Product Page'!H87 -> 0 | H49: ='[3]LO Product Page'!I87 -> 1.744812207 | I49: ='[3]LO Product Page'!J87 -> 1110.534898 | J49: ='[3]LO Product Page'!K87 -> 0 | K49: ='[3]LO Product Page'!L87 -> 3.00566563 | L49: ='[3]LO Product Page'!M87 -> 0.4313325352 | M49: ='[3]LO Product Page'!N87 -> 1.417246673 | N49: ='[3]LO Product Page'!O87 -> 0 | O49: ='[3]LO Product Page'!P87 -> 1.848579209 | P49: ='[3]LO Product Page'!Q87 -> 0.2940628471 | Q49: ='[3]LO Product Page'!R87 -> 0.055936 | R49: ='[3]LO Product Page'!S87 -> 0 | S49: ='[3]LO Product Page'!T87 -> 0.3499988471 | T49: ='[3]LO Product Page'!U87 -> 0 | U49: ='[3]LO Product Page'!V87 -> 0 | V49: ='[3]LO Product Page'!W87 -> 92 | W49: ='[3]LO Product Page'!X87 -> 908 | X49: ='[3]LO Product Page'!Y87 -> 0 | Y49: ='[3]LO Product Page'!Z87 -> 0 | Z49: ='[3]LO Product Page'!AA87 -> 0 | AA49: ='[3]LO Product Page'!AB87 -> 1.848579209 | AB49: ='[3]LO Product Page'!AC87 -> 0.01036436424 | AC49: ='[3]LO Product Page'!AD87 -> 3.00566563 | AD49: ='[3]LO Product Page'!AE87 -> 0.3667649178 | AE49: ='[3]LO Product Page'!AF87 -> 0.5855192785 | AF49: ='[3]LO Product Page'!AG87 -> 0.3903461857 | AG49: ='[3]LO Product Page'!AH87 -> 9.758654642
A50: ='[3]LO Product Page'!B88 -> MULGOWIE 1 | B50: ='[3]LO Product Page'!C88 -> 87347 | C50: ='[3]LO Product Page'!D88 -> MULGOWIE 1 | D50: ='[3]LO Product Page'!E88 -> 0 | E50: ='[3]LO Product Page'!F88 -> 1.177222758 | F50: ='[3]LO Product Page'!G88 -> 72.33584156 | G50: ='[3]LO Product Page'!H88 -> 61.46846968 | H50: ='[3]LO Product Page'!I88 -> 25.59162465 | I50: ='[3]LO Product Page'!J88 -> 1017.826822 | J50: ='[3]LO Product Page'!K88 -> 0 | K50: ='[3]LO Product Page'!L88 -> 2.754750976 | L50: ='[3]LO Product Page'!M88 -> 0.3953246531 | M50: ='[3]LO Product Page'!N88 -> 3.327448712 | N50: ='[3]LO Product Page'!O88 -> 1.078771643 | O50: ='[3]LO Product Page'!P88 -> 4.801545008 | P50: ='[3]LO Product Page'!Q88 -> 0.2774586643 | Q50: ='[3]LO Product Page'!R88 -> 0.818976 | R50: ='[3]LO Product Page'!S88 -> 0.09586356 | S50: ='[3]LO Product Page'!T88 -> 1.192298224 | T50: ='[3]LO Product Page'!U88 -> 1.198635159 | U50: ='[3]LO Product Page'!V88 -> 377 | V50: ='[3]LO Product Page'!W88 -> 216 | W50: ='[3]LO Product Page'!X88 -> 407 | X50: ='[3]LO Product Page'!Y88 -> 0 | Y50: ='[3]LO Product Page'!Z88 -> 0 | Z50: ='[3]LO Product Page'!AA88 -> 0 | AA50: ='[3]LO Product Page'!AB88 -> 4.801545008 | AB50: ='[3]LO Product Page'!AC88 -> 1.2081343 | AC50: ='[3]LO Product Page'!AD88 -> 2.754750976 | AD50: ='[3]LO Product Page'!AE88 -> 1.19979704 | AE50: ='[3]LO Product Page'!AF88 -> 0.5366398006 | AF50: ='[3]LO Product Page'!AG88 -> 0.3577598671 | AG50: ='[3]LO Product Page'!AH88 -> 8.943996676
A51: ='[3]LO Product Page'!B89 -> VILLIS MUNG BEAN MIX | B51: ='[3]LO Product Page'!C89 -> 88122 | C51: ='[3]LO Product Page'!D89 -> VILLIS MUNG BEAN MIX | D51: ='[3]LO Product Page'!E89 -> 0 | E51: ='[3]LO Product Page'!F89 -> 1.139382995 | F51: ='[3]LO Product Page'!G89 -> 8.372203884 | G51: ='[3]LO Product Page'!H89 -> 0 | H51: ='[3]LO Product Page'!I89 -> 0.474133752 | I51: ='[3]LO Product Page'!J89 -> 1130.536657 | J51: ='[3]LO Product Page'!K89 -> 0 | K51: ='[3]LO Product Page'!L89 -> 3.059800443 | L51: ='[3]LO Product Page'!M89 -> 0.4391012324 | M51: ='[3]LO Product Page'!N89 -> 0.3851213787 | N51: ='[3]LO Product Page'!O89 -> 0 | O51: ='[3]LO Product Page'!P89 -> 0.824222611 | P51: ='[3]LO Product Page'!Q89 -> 0.2983866432 | Q51: ='[3]LO Product Page'!R89 -> 0.0152 | R51: ='[3]LO Product Page'!S89 -> 0 | S51: ='[3]LO Product Page'!T89 -> 0.3135866432 | T51: ='[3]LO Product Page'!U89 -> 0 | U51: ='[3]LO Product Page'!V89 -> 0 | V51: ='[3]LO Product Page'!W89 -> 25 | W51: ='[3]LO Product Page'!X89 -> 975 | X51: ='[3]LO Product Page'!Y89 -> 0 | Y51: ='[3]LO Product Page'!Z89 -> 0 | Z51: ='[3]LO Product Page'!AA89 -> 0 | AA51: ='[3]LO Product Page'!AB89 -> 0.824222611 | AB51: ='[3]LO Product Page'!AC89 -> 0.01055103601 | AC51: ='[3]LO Product Page'!AD89 -> 3.059800443 | AD51: ='[3]LO Product Page'!AE89 -> 0.3317033604 | AE51: ='[3]LO Product Page'!AF89 -> 0.5960650213 | AF51: ='[3]LO Product Page'!AG89 -> 0.3973766809 | AG51: ='[3]LO Product Page'!AH89 -> 9.934417022
A52: ='[3]LO Product Page'!B90 -> PB165_76 | B52: ='[3]LO Product Page'!C90 -> 96561 | C52: ='[3]LO Product Page'!D90 -> PB165_76 | D52: ='[3]LO Product Page'!E90 -> 0 | E52: ='[3]LO Product Page'!F90 -> 1.188265763 | F52: ='[3]LO Product Page'!G90 -> 87.07092039 | G52: ='[3]LO Product Page'!H90 -> 80.87098398 | H52: ='[3]LO Product Page'!I90 -> 33.21102836 | I52: ='[3]LO Product Page'!J90 -> 987.1128301 | J52: ='[3]LO Product Page'!K90 -> 0 | K52: ='[3]LO Product Page'!L90 -> 2.671623477 | L52: ='[3]LO Product Page'!M90 -> 0.3833953171 | M52: ='[3]LO Product Page'!N90 -> 4.005262338 | N52: ='[3]LO Product Page'!O90 -> 1.419285769 | O52: ='[3]LO Product Page'!P90 -> 5.807943424 | P52: ='[3]LO Product Page'!Q90 -> 0.2719039573 | Q52: ='[3]LO Product Page'!R90 -> 1.062784 | R52: ='[3]LO Product Page'!S90 -> 0.12612288 | S52: ='[3]LO Product Page'!T90 -> 1.460810837 | T52: ='[3]LO Product Page'!U90 -> 1.576984188 | U52: ='[3]LO Product Page'!V90 -> 496 | V52: ='[3]LO Product Page'!W90 -> 260 | W52: ='[3]LO Product Page'!X90 -> 244 | X52: ='[3]LO Product Page'!Y90 -> 0 | Y52: ='[3]LO Product Page'!Z90 -> 0 | Z52: ='[3]LO Product Page'!AA90 -> 0 | AA52: ='[3]LO Product Page'!AB90 -> 5.807943424 | AB52: ='[3]LO Product Page'!AC90 -> 1.586196682 | AC52: ='[3]LO Product Page'!AD90 -> 2.671623477 | AD52: ='[3]LO Product Page'!AE90 -> 1.465286485 | AE52: ='[3]LO Product Page'!AF90 -> 0.5204461319 | AF52: ='[3]LO Product Page'!AG90 -> 0.3469640879 | AG52: ='[3]LO Product Page'!AH90 -> 8.674102198
A53: ='[3]LO Product Page'!B91 -> PMR 1 | B53: ='[3]LO Product Page'!C91 -> 96984 | C53: ='[3]LO Product Page'!D91 -> PMR 1 | D53: ='[3]LO Product Page'!E91 -> 0 | E53: ='[3]LO Product Page'!F91 -> 1.155838739 | F53: ='[3]LO Product Page'!G91 -> 70.32651263 | G53: ='[3]LO Product Page'!H91 -> 14.02198513 | H53: ='[3]LO Product Page'!I91 -> 8.886117089 | I53: ='[3]LO Product Page'!J91 -> 1062.604124 | J53: ='[3]LO Product Page'!K91 -> 0 | K53: ='[3]LO Product Page'!L91 -> 2.875940863 | L53: ='[3]LO Product Page'!M91 -> 0.4127161888 | M53: ='[3]LO Product Page'!N91 -> 3.235019581 | N53: ='[3]LO Product Page'!O91 -> 0.246085839 | O53: ='[3]LO Product Page'!P91 -> 3.893821609 | P53: ='[3]LO Product Page'!Q91 -> 0.2844855585 | Q53: ='[3]LO Product Page'!R91 -> 0.284544 | R53: ='[3]LO Product Page'!S91 -> 0.02186808 | S53: ='[3]LO Product Page'!T91 -> 0.5908976385 | T53: ='[3]LO Product Page'!U91 -> 0.27342871 | U53: ='[3]LO Product Page'!V91 -> 86 | V53: ='[3]LO Product Page'!W91 -> 210 | W53: ='[3]LO Product Page'!X91 -> 704 | X53: ='[3]LO Product Page'!Y91 -> 0 | Y53: ='[3]LO Product Page'!Z91 -> 0 | Z53: ='[3]LO Product Page'!AA91 -> 0 | AA53: ='[3]LO Product Page'!AB91 -> 3.893821609 | AB53: ='[3]LO Product Page'!AC91 -> 0.2833457474 | AC53: ='[3]LO Product Page'!AD91 -> 2.875940863 | AD53: ='[3]LO Product Page'!AE91 -> 0.6037411674 | AE53: ='[3]LO Product Page'!AF91 -> 0.56024822 | AF53: ='[3]LO Product Page'!AG91 -> 0.3734988134 | AG53: ='[3]LO Product Page'!AH91 -> 9.337470334
A54: ='[3]LO Product Page'!B92 -> PMR 2 | B54: ='[3]LO Product Page'!C92 -> 96985 | C54: ='[3]LO Product Page'!D92 -> PMR 2 | D54: ='[3]LO Product Page'!E92 -> 0 | E54: ='[3]LO Product Page'!F92 -> 1.164073247 | F54: ='[3]LO Product Page'!G92 -> 60.61475612 | G54: ='[3]LO Product Page'!H92 -> 36.19628719 | H54: ='[3]LO Product Page'!I92 -> 16.09032572 | I54: ='[3]LO Product Page'!J92 -> 1051.171878 | J54: ='[3]LO Product Page'!K92 -> 0 | K54: ='[3]LO Product Page'!L92 -> 2.844999459 | L54: ='[3]LO Product Page'!M92 -> 0.4082758964 | M54: ='[3]LO Product Page'!N92 -> 2.788278782 | N54: ='[3]LO Product Page'!O92 -> 0.6352448401 | O54: ='[3]LO Product Page'!P92 -> 3.831799518 | P54: ='[3]LO Product Page'!Q92 -> 0.2832539676 | Q54: ='[3]LO Product Page'!R92 -> 0.514976 | R54: ='[3]LO Product Page'!S92 -> 0.05645016 | S54: ='[3]LO Product Page'!T92 -> 0.8546801276 | T54: ='[3]LO Product Page'!U92 -> 0.7058276001 | U54: ='[3]LO Product Page'!V92 -> 222 | V54: ='[3]LO Product Page'!W92 -> 181 | W54: ='[3]LO Product Page'!X92 -> 597 | X54: ='[3]LO Product Page'!Y92 -> 0 | Y54: ='[3]LO Product Page'!Z92 -> 0 | Z54: ='[3]LO Product Page'!AA92 -> 0 | AA54: ='[3]LO Product Page'!AB92 -> 3.831799518 | AB54: ='[3]LO Product Page'!AC92 -> 0.7156379431 | AC54: ='[3]LO Product Page'!AD92 -> 2.844999459 | AD54: ='[3]LO Product Page'!AE92 -> 0.86566692 | AE54: ='[3]LO Product Page'!AF92 -> 0.5542206738 | AF54: ='[3]LO Product Page'!AG92 -> 0.3694804492 | AG54: ='[3]LO Product Page'!AH92 -> 9.237011231
A55: ='[3]LO Product Page'!B93 -> PMR 3 | B55: ='[3]LO Product Page'!C93 -> 102200 | C55: ='[3]LO Product Page'!D93 -> PMR 3 | D55: ='[3]LO Product Page'!E93 -> 0 | E55: ='[3]LO Product Page'!F93 -> 1.15645161 | F55: ='[3]LO Product Page'!G93 -> 58.27053903 | G55: ='[3]LO Product Page'!H93 -> 19.89165332 | H55: ='[3]LO Product Page'!I93 -> 10.25594784 | I55: ='[3]LO Product Page'!J93 -> 1068.03347 | J55: ='[3]LO Product Page'!K93 -> 0 | K55: ='[3]LO Product Page'!L93 -> 2.890635401 | L55: ='[3]LO Product Page'!M93 -> 0.4148249505 | M55: ='[3]LO Product Page'!N93 -> 2.680444796 | N55: ='[3]LO Product Page'!O93 -> 0.3490985157 | O55: ='[3]LO Product Page'!P93 -> 3.444368262 | P55: ='[3]LO Product Page'!Q93 -> 0.2859873874 | Q55: ='[3]LO Product Page'!R93 -> 0.32832 | R55: ='[3]LO Product Page'!S93 -> 0.03102216 | S55: ='[3]LO Product Page'!T93 -> 0.6453295474 | T55: ='[3]LO Product Page'!U93 -> 0.3878872397 | U55: ='[3]LO Product Page'!V93 -> 122 | V55: ='[3]LO Product Page'!W93 -> 174 | W55: ='[3]LO Product Page'!X93 -> 704 | X55: ='[3]LO Product Page'!Y93 -> 0 | Y55: ='[3]LO Product Page'!Z93 -> 0 | Z55: ='[3]LO Product Page'!AA93 -> 0 | AA55: ='[3]LO Product Page'!AB93 -> 3.444368262 | AB55: ='[3]LO Product Page'!AC93 -> 0.397854948 | AC55: ='[3]LO Product Page'!AD93 -> 2.890635401 | AD55: ='[3]LO Product Page'!AE93 -> 0.6582525585 | AE55: ='[3]LO Product Page'!AF93 -> 0.5631107925 | AF55: ='[3]LO Product Page'!AG93 -> 0.375407195 | AG55: ='[3]LO Product Page'!AH93 -> 9.385179874
A56: ='[3]LO Product Page'!B94 -> LIQUID PREPLANT | B56: ='[3]LO Product Page'!C94 -> 81049 | C56: ='[3]LO Product Page'!D94 -> LIQUID PREPLANT | D56: ='[3]LO Product Page'!E94 -> 0 | E56: ='[3]LO Product Page'!F94 -> 1.169047887 | F56: ='[3]LO Product Page'!G94 -> 72.33584156 | G56: ='[3]LO Product Page'!H94 -> 43.04423341 | H56: ='[3]LO Product Page'!I94 -> 19.14879356 | I56: ='[3]LO Product Page'!J94 -> 1034.519019 | J56: ='[3]LO Product Page'!K94 -> 0 | K56: ='[3]LO Product Page'!L94 -> 2.799928451 | L56: ='[3]LO Product Page'!M94 -> 0.4018079141 | M56: ='[3]LO Product Page'!N94 -> 3.327448712 | N56: ='[3]LO Product Page'!O94 -> 0.7554262964 | O56: ='[3]LO Product Page'!P94 -> 4.484682922 | P56: ='[3]LO Product Page'!Q94 -> 0.2800369626 | Q56: ='[3]LO Product Page'!R94 -> 0.612864 | R56: ='[3]LO Product Page'!S94 -> 0.06712992 | S56: ='[3]LO Product Page'!T94 -> 0.9600308826 | T56: ='[3]LO Product Page'!U94 -> 0.8393625515 | U56: ='[3]LO Product Page'!V94 -> 264 | V56: ='[3]LO Product Page'!W94 -> 216 | W56: ='[3]LO Product Page'!X94 -> 520 | X56: ='[3]LO Product Page'!Y94 -> 0 | Y56: ='[3]LO Product Page'!Z94 -> 0 | Z56: ='[3]LO Product Page'!AA94 -> 0 | AA56: ='[3]LO Product Page'!AB94 -> 4.484682922 | AB56: ='[3]LO Product Page'!AC94 -> 0.8490174772 | AC56: ='[3]LO Product Page'!AD94 -> 2.799928451 | AD56: ='[3]LO Product Page'!AE94 -> 0.9695581688 | AE56: ='[3]LO Product Page'!AF94 -> 0.5454406074 | AF56: ='[3]LO Product Page'!AG94 -> 0.3636270716 | AG56: ='[3]LO Product Page'!AH94 -> 9.09067679
A57: ='[3]LO Product Page'!B95 -> PUMPKIN 1 | B57: ='[3]LO Product Page'!C95 -> 88676 | C57: ='[3]LO Product Page'!D95 -> PUMPKIN 1 | D57: ='[3]LO Product Page'!E95 -> 0 | E57: ='[3]LO Product Page'!F95 -> 1.180610608 | F57: ='[3]LO Product Page'!G95 -> 0 | G57: ='[3]LO Product Page'!H95 -> 96.03429348 | H57: ='[3]LO Product Page'!I95 -> 33.58254435 | I57: ='[3]LO Product Page'!J95 -> 1050.99377 | J57: ='[3]LO Product Page'!K95 -> 0 | K57: ='[3]LO Product Page'!L95 -> 2.84451741 | L57: ='[3]LO Product Page'!M95 -> 0.4082067192 | M57: ='[3]LO Product Page'!N95 -> 0 | N57: ='[3]LO Product Page'!O95 -> 1.685401851 | O57: ='[3]LO Product Page'!P95 -> 2.09360857 | P57: ='[3]LO Product Page'!Q95 -> 0.2865609054 | Q57: ='[3]LO Product Page'!R95 -> 1.074336 | R57: ='[3]LO Product Page'!S95 -> 0.14977092 | S57: ='[3]LO Product Page'!T95 -> 1.510667825 | T57: ='[3]LO Product Page'!U95 -> 1.872668723 | U57: ='[3]LO Product Page'!V95 -> 589 | V57: ='[3]LO Product Page'!W95 -> 0 | W57: ='[3]LO Product Page'!X95 -> 411 | X57: ='[3]LO Product Page'!Y95 -> 0 | Y57: ='[3]LO Product Page'!Z95 -> 0 | Z57: ='[3]LO Product Page'!AA95 -> 0 | AA57: ='[3]LO Product Page'!AB95 -> 2.09360857 | AB57: ='[3]LO Product Page'!AC95 -> 1.882477404 | AC57: ='[3]LO Product Page'!AD95 -> 2.84451741 | AD57: ='[3]LO Product Page'!AE95 -> 1.518715339 | AE57: ='[3]LO Product Page'!AF95 -> 0.5541267681 | AF57: ='[3]LO Product Page'!AG95 -> 0.3694178454 | AG57: ='[3]LO Product Page'!AH95 -> 9.235446135
A58: ='[3]LO Product Page'!B96 -> QPREPLANT 1 | B58: ='[3]LO Product Page'!C96 -> 102333 | C58: ='[3]LO Product Page'!D96 -> QPREPLANT 1 | D58: ='[3]LO Product Page'!E96 -> 0 | E58: ='[3]LO Product Page'!F96 -> 1.152536469 | F58: ='[3]LO Product Page'!G96 -> 66.97763107 | G58: ='[3]LO Product Page'!H96 -> 7.826224256 | H58: ='[3]LO Product Page'!I96 -> 6.529847823 | I58: ='[3]LO Product Page'!J96 -> 1071.202766 | J58: ='[3]LO Product Page'!K96 -> 0 | K58: ='[3]LO Product Page'!L96 -> 2.899213111 | L58: ='[3]LO Product Page'!M96 -> 0.4160559075 | M58: ='[3]LO Product Page'!N96 -> 3.080971029 | N58: ='[3]LO Product Page'!O96 -> 0.1373502357 | O58: ='[3]LO Product Page'!P96 -> 3.634377173 | P58: ='[3]LO Product Page'!Q96 -> 0.2859979395 | Q58: ='[3]LO Product Page'!R96 -> 0.209152 | R58: ='[3]LO Product Page'!S96 -> 0.01220544 | S58: ='[3]LO Product Page'!T96 -> 0.5073553795 | T58: ='[3]LO Product Page'!U96 -> 0.152611373 | U58: ='[3]LO Product Page'!V96 -> 48 | V58: ='[3]LO Product Page'!W96 -> 200 | W58: ='[3]LO Product Page'!X96 -> 752 | X58: ='[3]LO Product Page'!Y96 -> 0 | Y58: ='[3]LO Product Page'!Z96 -> 0 | Z58: ='[3]LO Product Page'!AA96 -> 0 | AA58: ='[3]LO Product Page'!AB96 -> 3.634377173 | AB58: ='[3]LO Product Page'!AC96 -> 0.1626086596 | AC58: ='[3]LO Product Page'!AD96 -> 2.899213111 | AD58: ='[3]LO Product Page'!AE96 -> 0.5210826379 | AE58: ='[3]LO Product Page'!AF96 -> 0.5647817749 | AF58: ='[3]LO Product Page'!AG96 -> 0.3765211832 | AG58: ='[3]LO Product Page'!AH96 -> 9.413029581
A59: ='[3]LO Product Page'!B97 -> QUOD RATOONER 2 | B59: ='[3]LO Product Page'!C97 -> 96428 | C59: ='[3]LO Product Page'!D97 -> QUOD RATOONER 2 | D59: ='[3]LO Product Page'!E97 -> 0 | E59: ='[3]LO Product Page'!F97 -> 1.152936343 | F59: ='[3]LO Product Page'!G97 -> 90.41980195 | G59: ='[3]LO Product Page'!H97 -> 0 | H59: ='[3]LO Product Page'!I97 -> 5.120644522 | I59: ='[3]LO Product Page'!J97 -> 1057.395897 | J59: ='[3]LO Product Page'!K97 -> 0 | K59: ='[3]LO Product Page'!L97 -> 2.861844783 | L59: ='[3]LO Product Page'!M97 -> 0.4106933097 | M59: ='[3]LO Product Page'!N97 -> 4.15931089 | N59: ='[3]LO Product Page'!O97 -> 0 | O59: ='[3]LO Product Page'!P97 -> 4.570004199 | P59: ='[3]LO Product Page'!Q97 -> 0.2825757469 | Q59: ='[3]LO Product Page'!R97 -> 0.16416 | R59: ='[3]LO Product Page'!S97 -> 0 | S59: ='[3]LO Product Page'!T97 -> 0.4467357469 | T59: ='[3]LO Product Page'!U97 -> 0 | U59: ='[3]LO Product Page'!V97 -> 0 | V59: ='[3]LO Product Page'!W97 -> 270 | W59: ='[3]LO Product Page'!X97 -> 730 | X59: ='[3]LO Product Page'!Y97 -> 0 | Y59: ='[3]LO Product Page'!Z97 -> 0 | Z59: ='[3]LO Product Page'!AA97 -> 0 | AA59: ='[3]LO Product Page'!AB97 -> 4.570004199 | AB59: ='[3]LO Product Page'!AC97 -> 0.009868430285 | AC59: ='[3]LO Product Page'!AD97 -> 2.861844783 | AD59: ='[3]LO Product Page'!AE97 -> 0.4599135332 | AE59: ='[3]LO Product Page'!AF97 -> 0.5575022304 | AF59: ='[3]LO Product Page'!AG97 -> 0.3716681536 | AG59: ='[3]LO Product Page'!AH97 -> 9.29170384
A60: ='[3]LO Product Page'!B98 -> SOY STARTER | B60: ='[3]LO Product Page'!C98 -> 89521 | C60: ='[3]LO Product Page'!D98 -> SOY STARTER | D60: ='[3]LO Product Page'!E98 -> 0 | E60: ='[3]LO Product Page'!F98 -> 1.146247214 | F60: ='[3]LO Product Page'!G98 -> 0 | G60: ='[3]LO Product Page'!H98 -> 18.58728261 | H60: ='[3]LO Product Page'!I98 -> 6.499847293 | I60: ='[3]LO Product Page'!J98 -> 1121.160085 | J60: ='[3]LO Product Page'!K98 -> 0 | K60: ='[3]LO Product Page'!L98 -> 3.034422724 | L60: ='[3]LO Product Page'!M98 -> 0.435459365 | M60: ='[3]LO Product Page'!N98 -> 0 | N60: ='[3]LO Product Page'!O98 -> 0.3262068098 | O60: ='[3]LO Product Page'!P98 -> 0.7616661748 | P60: ='[3]LO Product Page'!Q98 -> 0.2973988849 | Q60: ='[3]LO Product Page'!R98 -> 0.207936 | R60: ='[3]LO Product Page'!S98 -> 0.02898792 | S60: ='[3]LO Product Page'!T98 -> 0.5343228049 | T60: ='[3]LO Product Page'!U98 -> 0.3624520109 | U60: ='[3]LO Product Page'!V98 -> 114 | V60: ='[3]LO Product Page'!W98 -> 0 | W60: ='[3]LO Product Page'!X98 -> 886 | X60: ='[3]LO Product Page'!Y98 -> 0 | Y60: ='[3]LO Product Page'!Z98 -> 0 | Z60: ='[3]LO Product Page'!AA98 -> 0 | AA60: ='[3]LO Product Page'!AB98 -> 0.7616661748 | AB60: ='[3]LO Product Page'!AC98 -> 0.3729155375 | AC60: ='[3]LO Product Page'!AD98 -> 3.034422724 | AD60: ='[3]LO Product Page'!AE98 -> 0.5508970733 | AE60: ='[3]LO Product Page'!AF98 -> 0.59112131 | AF60: ='[3]LO Product Page'!AG98 -> 0.3940808733 | AG60: ='[3]LO Product Page'!AH98 -> 9.852021833
A61: ='[3]LO Product Page'!B99 -> SPRING 1 | B61: ='[3]LO Product Page'!C99 -> 102313 | C61: ='[3]LO Product Page'!D99 -> SPRING 1 | D61: ='[3]LO Product Page'!E99 -> 0 | E61: ='[3]LO Product Page'!F99 -> 1.162553917 | F61: ='[3]LO Product Page'!G99 -> 77.69405204 | G61: ='[3]LO Product Page'!H99 -> 26.41350687 | H61: ='[3]LO Product Page'!I99 -> 13.63658632 | I61: ='[3]LO Product Page'!J99 -> 1044.809772 | J61: ='[3]LO Product Page'!K99 -> 0 | K61: ='[3]LO Product Page'!L99 -> 2.827780402 | L61: ='[3]LO Product Page'!M99 -> 0.4058048499 | M61: ='[3]LO Product Page'!N99 -> 3.573926394 | N61: ='[3]LO Product Page'!O99 -> 0.4635570455 | O61: ='[3]LO Product Page'!P99 -> 4.443288289 | P61: ='[3]LO Product Page'!Q99 -> 0.2813317278 | Q61: ='[3]LO Product Page'!R99 -> 0.436544 | R61: ='[3]LO Product Page'!S99 -> 0.04119336 | S61: ='[3]LO Product Page'!T99 -> 0.7590690878 | T61: ='[3]LO Product Page'!U99 -> 0.5150633839 | U61: ='[3]LO Product Page'!V99 -> 162 | V61: ='[3]LO Product Page'!W99 -> 232 | W61: ='[3]LO Product Page'!X99 -> 606 | X61: ='[3]LO Product Page'!Y99 -> 0 | Y61: ='[3]LO Product Page'!Z99 -> 0 | Z61: ='[3]LO Product Page'!AA99 -> 0 | AA61: ='[3]LO Product Page'!AB99 -> 4.443288289 | AB61: ='[3]LO Product Page'!AC99 -> 0.5248143508 | AC61: ='[3]LO Product Page'!AD99 -> 2.827780402 | AD61: ='[3]LO Product Page'!AE99 -> 0.77010484 | AE61: ='[3]LO Product Page'!AF99 -> 0.5508663121 | AF61: ='[3]LO Product Page'!AG99 -> 0.3672442081 | AG61: ='[3]LO Product Page'!AH99 -> 9.181105202
A62: ='[3]LO Product Page'!B100 -> SPRING 2 | B62: ='[3]LO Product Page'!C100 -> 102052 | C62: ='[3]LO Product Page'!D100 -> SPRING 2 | D62: ='[3]LO Product Page'!E100 -> 0 | E62: ='[3]LO Product Page'!F100 -> 1.162392311 | F62: ='[3]LO Product Page'!G100 -> 60.94964428 | G62: ='[3]LO Product Page'!H100 -> 32.28317506 | H62: ='[3]LO Product Page'!I100 -> 14.74090217 | I62: ='[3]LO Product Page'!J100 -> 1054.41859 | J62: ='[3]LO Product Page'!K100 -> 0 | K62: ='[3]LO Product Page'!L100 -> 2.853786693 | L62: ='[3]LO Product Page'!M100 -> 0.4095369215 | M62: ='[3]LO Product Page'!N100 -> 2.803683637 | N62: ='[3]LO Product Page'!O100 -> 0.5665697223 | O62: ='[3]LO Product Page'!P100 -> 3.77979028 | P62: ='[3]LO Product Page'!Q100 -> 0.2837370365 | Q62: ='[3]LO Product Page'!R100 -> 0.471808 | R62: ='[3]LO Product Page'!S100 -> 0.05034744 | S62: ='[3]LO Product Page'!T100 -> 0.8058924765 | T62: ='[3]LO Product Page'!U100 -> 0.6295219136 | U62: ='[3]LO Product Page'!V100 -> 198 | V62: ='[3]LO Product Page'!W100 -> 182 | W62: ='[3]LO Product Page'!X100 -> 620 | X62: ='[3]LO Product Page'!Y100 -> 0 | Y62: ='[3]LO Product Page'!Z100 -> 0 | Z62: ='[3]LO Product Page'!AA100 -> 0 | AA62: ='[3]LO Product Page'!AB100 -> 3.77979028 | AB62: ='[3]LO Product Page'!AC100 -> 0.6393625574 | AC62: ='[3]LO Product Page'!AD100 -> 2.853786693 | AD62: ='[3]LO Product Page'!AE100 -> 0.8172899356 | AE62: ='[3]LO Product Page'!AF100 -> 0.5559324726 | AF62: ='[3]LO Product Page'!AG100 -> 0.3706216484 | AG62: ='[3]LO Product Page'!AH100 -> 9.26554121
A63: ='[3]LO Product Page'!B101 -> SPRINGTON BLEND | B63: ='[3]LO Product Page'!C101 -> 86942 | C63: ='[3]LO Product Page'!D101 -> SPRINGTON BLEND | D63: ='[3]LO Product Page'!E101 -> 0 | E63: ='[3]LO Product Page'!F101 -> 1.165996663 | F63: ='[3]LO Product Page'!G101 -> 74.01028234 | G63: ='[3]LO Product Page'!H101 -> 35.54410183 | H63: ='[3]LO Product Page'!I101 -> 16.62087491 | I63: ='[3]LO Product Page'!J101 -> 1039.821404 | J63: ='[3]LO Product Page'!K101 -> 0 | K63: ='[3]LO Product Page'!L101 -> 2.81427937 | L63: ='[3]LO Product Page'!M101 -> 0.4038673642 | M63: ='[3]LO Product Page'!N101 -> 3.404472987 | N63: ='[3]LO Product Page'!O101 -> 0.6237989871 | O63: ='[3]LO Product Page'!P101 -> 4.432139339 | P63: ='[3]LO Product Page'!Q101 -> 0.280763864 | Q63: ='[3]LO Product Page'!R101 -> 0.532 | R63: ='[3]LO Product Page'!S101 -> 0.05543304 | S63: ='[3]LO Product Page'!T101 -> 0.868196904 | T63: ='[3]LO Product Page'!U101 -> 0.6931099857 | U63: ='[3]LO Product Page'!V101 -> 218 | V63: ='[3]LO Product Page'!W101 -> 221 | W63: ='[3]LO Product Page'!X101 -> 561 | X63: ='[3]LO Product Page'!Y101 -> 0 | Y63: ='[3]LO Product Page'!Z101 -> 0 | Z63: ='[3]LO Product Page'!AA101 -> 0 | AA63: ='[3]LO Product Page'!AB101 -> 4.432139339 | AB63: ='[3]LO Product Page'!AC101 -> 0.7028143973 | AC63: ='[3]LO Product Page'!AD101 -> 2.81427937 | AD63: ='[3]LO Product Page'!AE101 -> 0.8784491446 | AE63: ='[3]LO Product Page'!AF101 -> 0.548236241 | AF63: ='[3]LO Product Page'!AG101 -> 0.3654908273 | AG63: ='[3]LO Product Page'!AH101 -> 9.137270683
A64: ='[3]LO Product Page'!B102 -> SUNFLOWER 1 | B64: ='[3]LO Product Page'!C102 -> 95513 | C64: ='[3]LO Product Page'!D102 -> SUNFLOWER 1 | D64: ='[3]LO Product Page'!E102 -> 0 | E64: ='[3]LO Product Page'!F102 -> 1.163979773 | F64: ='[3]LO Product Page'!G102 -> 36.83769709 | G64: ='[3]LO Product Page'!H102 -> 44.83774314 | H64: ='[3]LO Product Page'!I102 -> 17.7656447 | I64: ='[3]LO Product Page'!J102 -> 1064.538688 | J64: ='[3]LO Product Page'!K102 -> 0 | K64: ='[3]LO Product Page'!L102 -> 2.881176766 | L64: ='[3]LO Product Page'!M102 -> 0.4134675749 | M64: ='[3]LO Product Page'!N102 -> 1.694534066 | N64: ='[3]LO Product Page'!O102 -> 0.786902392 | O64: ='[3]LO Product Page'!P102 -> 2.894904033 | P64: ='[3]LO Product Page'!Q102 -> 0.2866266105 | Q64: ='[3]LO Product Page'!R102 -> 0.56848 | R64: ='[3]LO Product Page'!S102 -> 0.069927 | S64: ='[3]LO Product Page'!T102 -> 0.9250336105 | T64: ='[3]LO Product Page'!U102 -> 0.8743359911 | U64: ='[3]LO Product Page'!V102 -> 275 | V64: ='[3]LO Product Page'!W102 -> 110 | W64: ='[3]LO Product Page'!X102 -> 615 | X64: ='[3]LO Product Page'!Y102 -> 0 | Y64: ='[3]LO Product Page'!Z102 -> 0 | Z64: ='[3]LO Product Page'!AA102 -> 0 | AA64: ='[3]LO Product Page'!AB102 -> 2.894904033 | AB64: ='[3]LO Product Page'!AC102 -> 0.8842710834 | AC64: ='[3]LO Product Page'!AD102 -> 2.881176766 | AD64: ='[3]LO Product Page'!AE102 -> 0.9365002785 | AE64: ='[3]LO Product Page'!AF102 -> 0.5612682012 | AF64: ='[3]LO Product Page'!AG102 -> 0.3741788008 | AG64: ='[3]LO Product Page'!AH102 -> 9.35447002
A65: ='[3]LO Product Page'!B103 -> SUPLAFLO 10NP | B65: ='[3]LO Product Page'!C103 -> 80795 | C65: ='[3]LO Product Page'!D103 -> SUPLAFLO 10NP | D65: ='[3]LO Product Page'!E103 -> 0 | E65: ='[3]LO Product Page'!F103 -> 1.138 | F65: ='[3]LO Product Page'!G103 -> 0 | G65: ='[3]LO Product Page'!H103 -> 0 | H65: ='[3]LO Product Page'!I103 -> 0 | I65: ='[3]LO Product Page'!J103 -> 1138 | J65: ='[3]LO Product Page'!K103 -> 0 | K65: ='[3]LO Product Page'!L103 -> 3.08 | L65: ='[3]LO Product Page'!M103 -> 0.442 | M65: ='[3]LO Product Page'!N103 -> 0 | N65: ='[3]LO Product Page'!O103 -> 0 | O65: ='[3]LO Product Page'!P103 -> 0.442 | P65: ='[3]LO Product Page'!Q103 -> 0.3 | Q65: ='[3]LO Product Page'!R103 -> 0 | R65: ='[3]LO Product Page'!S103 -> 0 | S65: ='[3]LO Product Page'!T103 -> 0.3 | T65: ='[3]LO Product Page'!U103 -> 0 | U65: ='[3]LO Product Page'!V103 -> 0 | V65: ='[3]LO Product Page'!W103 -> 0 | W65: ='[3]LO Product Page'!X103 -> 1000 | X65: ='[3]LO Product Page'!Y103 -> 0 | Y65: ='[3]LO Product Page'!Z103 -> 0 | Z65: ='[3]LO Product Page'!AA103 -> 0 | AA65: ='[3]LO Product Page'!AB103 -> 0.442 | AB65: ='[3]LO Product Page'!AC103 -> 0.01062068966 | AC65: ='[3]LO Product Page'!AD103 -> 3.08 | AD65: ='[3]LO Product Page'!AE103 -> 0.3186206897 | AE65: ='[3]LO Product Page'!AF103 -> 0.6 | AF65: ='[3]LO Product Page'!AG103 -> 0.4 | AG65: ='[3]LO Product Page'!AH103 -> 10

Sheet Calc (hidden)
N1: 9 | O1: 10 | Q1: 11 | R1: Nitrogen | S1: 12 | T1: 13 | V1: 14 | W1: phosphorus | X1: 15 | Y1: 16 | AA1: 17 | AB1: potassium | AC1: 18 | AD1: 19 | AF1: 20 | AG1: Sulphur
B2: Code | C2: Product Code | D2: Product | E2: N | F2: P | G2: K | H2: S | N2: N RATE | O2: N DOSE | P2: N CODE | Q2: N CODE | R2: Fudge Factor | S2: P RATE | T2: P DOSE | U2: P CODE | V2: P CODE | W2: Fudge Factor | X2: K RATE | Y2: K DOSE | Z2: K CODE | AA2: K CODE | AB2: Fudge Factor | AC2: S RATE | AD2: S DOSE | AE2: S CODE | AF2: S CODE | AG2: Fudge Factor
B3: =P3+U3+Z3 -> 0.3239087927 | C3: 96428 | D3: =VLOOKUP(C3,'Data sheet'!B58:C122,2,FALSE) -> QUOD RATOONER 2 | E3: =VLOOKUP(C3,'Data sheet'!$B$1:$AG$65,26,FALSE) -> 4.570004199 | F3: =VLOOKUP(C3,'Data sheet'!$B$1:$AG$65,27,FALSE) -> 0.009868430285 | G3: =VLOOKUP(C3,'Data sheet'!$B$1:$AG$65,28,FALSE) -> 2.861844783 | H3: =VLOOKUP(C3,'Data sheet'!$B$1:$AG$65,29,FALSE) -> 0.4599135332 | N3: =IF(E3=0,0,'Fert selector'!$D$13/E3) -> 32.82272695 | O3: =IF('Fert selector'!$D$15="Y",$E3*$N3,IF('Fert selector'!$E$15="Y",$F3*$S3,IF('Fert selector'!$F$15="Y",$G3*$X3,IF('Fert selector'!$G$15="Y",$H3*$AC3)))) -> 150 | P3: =IF(R3="00",0,Q3) -> 0 | Q3: =IF((O3-'Fert selector'!$D$13)<0,(O3-'Fert selector'!$D$13)*-1,O3-'Fert selector'!$D$13) -> 0 | R3: =IF(O3<('Fert selector'!$D$13+'Fert selector'!$D$13*'Fert selector'!$D$17),0,1)&IF(O3>('Fert selector'!$D$13-'Fert selector'!$D$13*'Fert selector'!$D$18),0,1) -> 00 | S3: =IF(F3=0,0,'Fert selector'!$E$13/F3) -> 0 | T3: =IF('Fert selector'!$D$15="Y",$F3*$N3,IF('Fert selector'!$E$15="Y",$F3*$S3,IF('Fert selector'!$F$15="Y",$F3*$X3,IF('Fert selector'!$G$15="Y",$F3*$AC3)))) -> 0.3239087927 | U3: =IF(W3="00",0,V3) -> 0.3239087927 | V3: =IF((T3-'Fert selector'!$E$13)<0,(T3-'Fert selector'!$E$13)*-1,T3-'Fert selector'!$E$13) -> 0.3239087927 | W3: =IF(T3<('Fert selector'!$E$13+'Fert selector'!$E$13*'Fert selector'!$E$17),0,1)&IF(T3>('Fert selector'!$E$13-'Fert selector'!$E$13*'Fert selector'!$E$18),0,1) -> 10 | X3: =IF(G3=0,0,'Fert selector'!$F$13/G3) -> 31.44824644 | Y3: =IF('Fert selector'!$D$15="Y",$G3*$N3,IF('Fert selector'!$E$15="Y",$G3*$S3,IF('Fert selector'!$F$15="Y",$G3*$X3,IF('Fert selector'!$G$15="Y",$G3*$AC3)))) -> 93.93354988 | Z3: =IF(AB3="00",0,AA3) -> 0 | AA3: =IF((Y3-'Fert selector'!$F$13)<0,(Y3-'Fert selector'!$F$13)*-1,Y3-'Fert selector'!$F$13) -> 3.933549879 | AB3: =IF(Y3<('Fert selector'!$F$13+'Fert selector'!$F$13*'Fert selector'!$F$17),0,1)&IF(Y3>('Fert selector'!$F$13-'Fert selector'!$F$13*'Fert selector'!$F$18),0,1) -> 00 | AC3: =IF(H3=0,0,'Fert selector'!$G$13/H3) -> 0 | AD3: =IF('Fert selector'!$D$15="Y",$H3*$N3,IF('Fert selector'!$E$15="Y",$H3*$S3,IF('Fert selector'!$F$15="Y",$H3*$X3,IF('Fert selector'!$G$15="Y",$H3*$AC3)))) -> 15.09561632 | AE3: =IF(AG3="00",0,AF3) -> 15.09561632 | AF3: =IF((AD3-'Fert selector'!$G$13)<0,(AD3-'Fert selector'!$G$13)*-1,AD3-'Fert selector'!$G$13) -> 15.09561632 | AG3: =IF(AD3<('Fert selector'!$G$13+'Fert selector'!$G$13*'Fert selector'!$G$17),0,1)&IF(AD3>('Fert selector'!$G$13-'Fert selector'!$G$13*'Fert selector'!$G$18),0,1) -> 10
B4: 0.3286728759 | C4: 81050 | D4: =VLOOKUP(C4,'Data sheet'!B12:C76,2,FALSE) -> ECONO LIQUID ONE SHOT | E4: =VLOOKUP(C4,'Data sheet'!$B$1:$AG$65,26,FALSE) -> 4.508848582 | F4: =VLOOKUP(C4,'Data sheet'!$B$1:$AG$65,27,FALSE) -> 0.009879574868 | G4: =VLOOKUP(C4,'Data sheet'!$B$1:$AG$65,28,FALSE) -> 2.865076712 | H4: =VLOOKUP(C4,'Data sheet'!$B$1:$AG$65,29,FALSE) -> 0.4578203059 | N4: =IF(E4=0,0,'Fert selector'!$D$13/E4) -> 33.26791692 | O4: =IF('Fert selector'!$D$15="Y",E4*N4,IF('Fert selector'!$E$15="Y",F4*S4,IF('Fert selector'!$F$15="Y",G4*X4,IF('Fert selector'!$G$15="Y",H4*AC4)))) -> 150 | P4: 0 | Q4: =IF((O4-'Fert selector'!$D$13)<0,(O4-'Fert selector'!$D$13)*-1,O4-'Fert selector'!$D$13) -> 0 | R4: =IF(O4<('Fert selector'!$D$13+'Fert selector'!$D$13*'Fert selector'!$D$17),0,1)&IF(O4>('Fert selector'!$D$13-'Fert selector'!$D$13*'Fert selector'!$D$18),0,1) -> 00 | S4: =IF(F4=0,0,'Fert selector'!$E$13/F4) -> 0 | T4: =IF('Fert selector'!$D$15="Y",$F4*$N4,IF('Fert selector'!$E$15="Y",$F4*$S4,IF('Fert selector'!$F$15="Y",$F4*$X4,IF('Fert selector'!$G$15="Y",$F4*$AC4)))) -> 0.3286728759 | U4: 0.3286728759 | V4: =IF((T4-'Fert selector'!$E$13)<0,(T4-'Fert selector'!$E$13)*-1,T4-'Fert selector'!$E$13) -> 0.3286728759 | W4: =IF(T4<('Fert selector'!$E$13+'Fert selector'!$E$13*'Fert selector'!$E$17),0,1)&IF(T4>('Fert selector'!$E$13-'Fert selector'!$E$13*'Fert selector'!$E$18),0,1) -> 10 | X4: =IF(G4=0,0,'Fert selector'!$F$13/G4) -> 31.41277147 | Y4: =IF('Fert selector'!$D$15="Y",$G4*$N4,IF('Fert selector'!$E$15="Y",$G4*$S4,IF('Fert selector'!$F$15="Y",$G4*$X4,IF('Fert selector'!$G$15="Y",$G4*$AC4)))) -> 95.31513401 | Z4: 0 | AA4: =IF((Y4-'Fert selector'!$F$13)<0,(Y4-'Fert selector'!$F$13)*-1,Y4-'Fert selector'!$F$13) -> 5.315134009 | AB4: =IF(Y4<('Fert selector'!$F$13+'Fert selector'!$F$13*'Fert selector'!$F$17),0,1)&IF(Y4>('Fert selector'!$F$13-'Fert selector'!$F$13*'Fert selector'!$F$18),0,1) -> 00 | AC4: =IF(H4=0,0,'Fert selector'!$G$13/H4) -> 0 | AD4: =IF('Fert selector'!$D$15="Y",$H4*$N4,IF('Fert selector'!$E$15="Y",$H4*$S4,IF('Fert selector'!$F$15="Y",$H4*$X4,IF('Fert selector'!$G$15="Y",$H4*$AC4)))) -> 15.2307279 | AE4: 15.2307279 | AF4: =IF((AD4-'Fert selector'!$G$13)<0,(AD4-'Fert selector'!$G$13)*-1,AD4-'Fert selector'!$G$13) -> 15.2307279 | AG4: =IF(AD4<('Fert selector'!$G$13+'Fert selector'!$G$13*'Fert selector'!$G$17),0,1)&IF(AD4>('Fert selector'!$G$13-'Fert selector'!$G$13*'Fert selector'!$G$18),0,1) -> 10
B5: 5.64907663 | C5: 80789 | D5: =VLOOKUP(C5,'Data sheet'!B24:C88,2,FALSE) -> LIQUID ONE SHOT | E5: =VLOOKUP(C5,'Data sheet'!$B$1:$AG$65,26,FALSE) -> 5.028671333 | F5: =VLOOKUP(C5,'Data sheet'!$B$1:$AG$65,27,FALSE) -> 0.009784845911 | G5: =VLOOKUP(C5,'Data sheet'!$B$1:$AG$65,28,FALSE) -> 2.837605314 | H5: =VLOOKUP(C5,'Data sheet'!$B$1:$AG$65,29,FALSE) -> 0.4756127381 | N5: =IF(E5=0,0,'Fert selector'!$D$13/E5) -> 29.82895283 | O5: =IF('Fert selector'!$D$15="Y",E5*N5,IF('Fert selector'!$E$15="Y",F5*S5,IF('Fert selector'!$F$15="Y",G5*X5,IF('Fert selector'!$G$15="Y",H5*AC5)))) -> 150 | P5: 0 | Q5: =IF((O5-'Fert selector'!$D$13)<0,(O5-'Fert selector'!$D$13)*-1,O5-'Fert selector'!$D$13) -> 0 | R5: =IF(O5<('Fert selector'!$D$13+'Fert selector'!$D$13*'Fert selector'!$D$17),0,1)&IF(O5>('Fert selector'!$D$13-'Fert selector'!$D$13*'Fert selector'!$D$18),0,1) -> 00 | S5: =IF(F5=0,0,'Fert selector'!$E$13/F5) -> 0 | T5: =IF('Fert selector'!$D$15="Y",$F5*$N5,IF('Fert selector'!$E$15="Y",$F5*$S5,IF('Fert selector'!$F$15="Y",$F5*$X5,IF('Fert selector'!$G$15="Y",$F5*$AC5)))) -> 0.2918717072 | U5: 0.2918717072 | V5: =IF((T5-'Fert selector'!$E$13)<0,(T5-'Fert selector'!$E$13)*-1,T5-'Fert selector'!$E$13) -> 0.2918717072 | W5: =IF(T5<('Fert selector'!$E$13+'Fert selector'!$E$13*'Fert selector'!$E$17),0,1)&IF(T5>('Fert selector'!$E$13-'Fert selector'!$E$13*'Fert selector'!$E$18),0,1) -> 10 | X5: =IF(G5=0,0,'Fert selector'!$F$13/G5) -> 31.7168845 | Y5: =IF('Fert selector'!$D$15="Y",$G5*$N5,IF('Fert selector'!$E$15="Y",$G5*$S5,IF('Fert selector'!$F$15="Y",$G5*$X5,IF('Fert selector'!$G$15="Y",$G5*$AC5)))) -> 84.64279508 | Z5: 5.357204923 | AA5: =IF((Y5-'Fert selector'!$F$13)<0,(Y5-'Fert selector'!$F$13)*-1,Y5-'Fert selector'!$F$13) -> 5.357204923 | AB5: =IF(Y5<('Fert selector'!$F$13+'Fert selector'!$F$13*'Fert selector'!$F$17),0,1)&IF(Y5>('Fert selector'!$F$13-'Fert selector'!$F$13*'Fert selector'!$F$18),0,1) -> 01 | AC5: =IF(H5=0,0,'Fert selector'!$G$13/H5) -> 0 | AD5: =IF('Fert selector'!$D$15="Y",$H5*$N5,IF('Fert selector'!$E$15="Y",$H5*$S5,IF('Fert selector'!$F$15="Y",$H5*$X5,IF('Fert selector'!$G$15="Y",$H5*$AC5)))) -> 14.18702993 | AE5: 14.18702993 | AF5: =IF((AD5-'Fert selector'!$G$13)<0,(AD5-'Fert selector'!$G$13)*-1,AD5-'Fert selector'!$G$13) -> 14.18702993 | AG5: =IF(AD5<('Fert selector'!$G$13+'Fert selector'!$G$13*'Fert selector'!$G$17),0,1)&IF(AD5>('Fert selector'!$G$13-'Fert selector'!$G$13*'Fert selector'!$G$18),0,1) -> 10
B6: 12.27446991 | C6: 81052 | D6: =VLOOKUP(C6,'Data sheet'!B13:C77,2,FALSE) -> ECONO LIQUID ONE SHOT + P | E6: =VLOOKUP(C6,'Data sheet'!$B$1:$AG$65,26,FALSE) -> 4.471261776 | F6: =VLOOKUP(C6,'Data sheet'!$B$1:$AG$65,27,FALSE) -> 0.3658824541 | G6: =VLOOKUP(C6,'Data sheet'!$B$1:$AG$65,28,FALSE) -> 2.83888263 | H6: =VLOOKUP(C6,'Data sheet'!$B$1:$AG$65,29,FALSE) -> 0.6739856083 | N6: =IF(E6=0,0,'Fert selector'!$D$13/E6) -> 33.54757729 | O6: =IF('Fert selector'!$D$15="Y",E6*N6,IF('Fert selector'!$E$15="Y",F6*S6,IF('Fert selector'!$F$15="Y",G6*X6,IF('Fert selector'!$G$15="Y",H6*AC6)))) -> 150 | P6: 0 | Q6: =IF((O6-'Fert selector'!$D$13)<0,(O6-'Fert selector'!$D$13)*-1,O6-'Fert selector'!$D$13) -> 0 | R6: =IF(O6<('Fert selector'!$D$13+'Fert selector'!$D$13*'Fert selector'!$D$17),0,1)&IF(O6>('Fert selector'!$D$13-'Fert selector'!$D$13*'Fert selector'!$D$18),0,1) -> 00 | S6: =IF(F6=0,0,'Fert selector'!$E$13/F6) -> 0 | T6: =IF('Fert selector'!$D$15="Y",$F6*$N6,IF('Fert selector'!$E$15="Y",$F6*$S6,IF('Fert selector'!$F$15="Y",$F6*$X6,IF('Fert selector'!$G$15="Y",$F6*$AC6)))) -> 12.27446991 | U6: 12.27446991 | V6: =IF((T6-'Fert selector'!$E$13)<0,(T6-'Fert selector'!$E$13)*-1,T6-'Fert selector'!$E$13) -> 12.27446991 | W6: =IF(T6<('Fert selector'!$E$13+'Fert selector'!$E$13*'Fert selector'!$E$17),0,1)&IF(T6>('Fert selector'!$E$13-'Fert selector'!$E$13*'Fert selector'!$E$18),0,1) -> 10 | X6: =IF(G6=0,0,'Fert selector'!$F$13/G6) -> 31.70261392 | Y6: =IF('Fert selector'!$D$15="Y",$G6*$N6,IF('Fert selector'!$E$15="Y",$G6*$S6,IF('Fert selector'!$F$15="Y",$G6*$X6,IF('Fert selector'!$G$15="Y",$G6*$AC6)))) -> 95.23763445 | Z6: 0 | AA6: =IF((Y6-'Fert selector'!$F$13)<0,(Y6-'Fert selector'!$F$13)*-1,Y6-'Fert selector'!$F$13) -> 5.237634452 | AB6: =IF(Y6<('Fert selector'!$F$13+'Fert selector'!$F$13*'Fert selector'!$F$17),0,1)&IF(Y6>('Fert selector'!$F$13-'Fert selector'!$F$13*'Fert selector'!$F$18),0,1) -> 00 | AC6: =IF(H6=0,0,'Fert selector'!$G$13/H6) -> 0 | AD6: =IF('Fert selector'!$D$15="Y",$H6*$N6,IF('Fert selector'!$E$15="Y",$H6*$S6,IF('Fert selector'!$F$15="Y",$H6*$X6,IF('Fert selector'!$G$15="Y",$H6*$AC6)))) -> 22.61058429 | AE6: 22.61058429 | AF6: =IF((AD6-'Fert selector'!$G$13)<0,(AD6-'Fert selector'!$G$13)*-1,AD6-'Fert selector'!$G$13) -> 22.61058429 | AG6: =IF(AD6<('Fert selector'!$G$13+'Fert selector'!$G$13*'Fert selector'!$G$17),0,1)&IF(AD6>('Fert selector'!$G$13-'Fert selector'!$G$13*'Fert selector'!$G$18),0,1) -> 10
B7: 13.53623418 | C7: 89016 | D7: =VLOOKUP(C7,'Data sheet'!B23:C87,2,FALSE) -> LO P RATOONER | E7: =VLOOKUP(C7,'Data sheet'!$B$1:$AG$65,26,FALSE) -> 4.998695276 | F7: =VLOOKUP(C7,'Data sheet'!$B$1:$AG$65,27,FALSE) -> 0.2704302588 | G7: =VLOOKUP(C7,'Data sheet'!$B$1:$AG$65,28,FALSE) -> 2.818557359 | H7: =VLOOKUP(C7,'Data sheet'!$B$1:$AG$65,29,FALSE) -> 0.6337925173 | N7: =IF(E7=0,0,'Fert selector'!$D$13/E7) -> 30.00783039 | O7: =IF('Fert selector'!$D$15="Y",E7*N7,IF('Fert selector'!$E$15="Y",F7*S7,IF('Fert selector'!$F$15="Y",G7*X7,IF('Fert selector'!$G$15="Y",H7*AC7)))) -> 150 | P7: 0 | Q7: =IF((O7-'Fert selector'!$D$13)<0,(O7-'Fert selector'!$D$13)*-1,O7-'Fert selector'!$D$13) -> 0 | R7: =IF(O7<('Fert selector'!$D$13+'Fert selector'!$D$13*'Fert selector'!$D$17),0,1)&IF(O7>('Fert selector'!$D$13-'Fert selector'!$D$13*'Fert selector'!$D$18),0,1) -> 00 | S7: =IF(F7=0,0,'Fert selector'!$E$13/F7) -> 0 | T7: =IF('Fert selector'!$D$15="Y",$F7*$N7,IF('Fert selector'!$E$15="Y",$F7*$S7,IF('Fert selector'!$F$15="Y",$F7*$X7,IF('Fert selector'!$G$15="Y",$F7*$AC7)))) -> 8.115025339 | U7: 8.115025339 | V7: =IF((T7-'Fert selector'!$E$13)<0,(T7-'Fert selector'!$E$13)*-1,T7-'Fert selector'!$E$13) -> 8.115025339 | W7: =IF(T7<('Fert selector'!$E$13+'Fert selector'!$E$13*'Fert selector'!$E$17),0,1)&IF(T7>('Fert selector'!$E$13-'Fert selector'!$E$13*'Fert selector'!$E$18),0,1) -> 10 | X7: =IF(G7=0,0,'Fert selector'!$F$13/G7) -> 31.93122883 | Y7: =IF('Fert selector'!$D$15="Y",$G7*$N7,IF('Fert selector'!$E$15="Y",$G7*$S7,IF('Fert selector'!$F$15="Y",$G7*$X7,IF('Fert selector'!$G$15="Y",$G7*$AC7)))) -> 84.57879116 | Z7: 5.421208841 | AA7: =IF((Y7-'Fert selector'!$F$13)<0,(Y7-'Fert selector'!$F$13)*-1,Y7-'Fert selector'!$F$13) -> 5.421208841 | AB7: =IF(Y7<('Fert selector'!$F$13+'Fert selector'!$F$13*'Fert selector'!$F$17),0,1)&IF(Y7>('Fert selector'!$F$13-'Fert selector'!$F$13*'Fert selector'!$F$18),0,1) -> 01 | AC7: =IF(H7=0,0,'Fert selector'!$G$13/H7) -> 0 | AD7: =IF('Fert selector'!$D$15="Y",$H7*$N7,IF('Fert selector'!$E$15="Y",$H7*$S7,IF('Fert selector'!$F$15="Y",$H7*$X7,IF('Fert selector'!$G$15="Y",$H7*$AC7)))) -> 19.01873836 | AE7: 19.01873836 | AF7: =IF((AD7-'Fert selector'!$G$13)<0,(AD7-'Fert selector'!$G$13)*-1,AD7-'Fert selector'!$G$13) -> 19.01873836 | AG7: =IF(AD7<('Fert selector'!$G$13+'Fert selector'!$G$13*'Fert selector'!$G$17),0,1)&IF(AD7>('Fert selector'!$G$13-'Fert selector'!$G$13*'Fert selector'!$G$18),0,1) -> 10
B8: 17.71709317 | C8: 102313 | D8: =VLOOKUP(C8,'Data sheet'!B60:C124,2,FALSE) -> SPRING 1 | E8: =VLOOKUP(C8,'Data sheet'!$B$1:$AG$65,26,FALSE) -> 4.443288289 | F8: =VLOOKUP(C8,'Data sheet'!$B$1:$AG$65,27,FALSE) -> 0.5248143508 | G8: =VLOOKUP(C8,'Data sheet'!$B$1:$AG$65,28,FALSE) -> 2.827780402 | H8: =VLOOKUP(C8,'Data sheet'!$B$1:$AG$65,29,FALSE) -> 0.77010484 | N8: =IF(E8=0,0,'Fert selector'!$D$13/E8) -> 33.75878184 | O8: =IF('Fert selector'!$D$15="Y",E8*N8,IF('Fert selector'!$E$15="Y",F8*S8,IF('Fert selector'!$F$15="Y",G8*X8,IF('Fert selector'!$G$15="Y",H8*AC8)))) -> 150 | P8: 0 | Q8: =IF((O8-'Fert selector'!$D$13)<0,(O8-'Fert selector'!$D$13)*-1,O8-'Fert selector'!$D$13) -> 0 | R8: =IF(O8<('Fert selector'!$D$13+'Fert selector'!$D$13*'Fert selector'!$D$17),0,1)&IF(O8>('Fert selector'!$D$13-'Fert selector'!$D$13*'Fert selector'!$D$18),0,1) -> 00 | S8: =IF(F8=0,0,'Fert selector'!$E$13/F8) -> 0 | T8: =IF('Fert selector'!$D$15="Y",$F8*$N8,IF('Fert selector'!$E$15="Y",$F8*$S8,IF('Fert selector'!$F$15="Y",$F8*$X8,IF('Fert selector'!$G$15="Y",$F8*$AC8)))) -> 17.71709317 | U8: 17.71709317 | V8: =IF((T8-'Fert selector'!$E$13)<0,(T8-'Fert selector'!$E$13)*-1,T8-'Fert selector'!$E$13) -> 17.71709317 | W8: =IF(T8<('Fert selector'!$E$13+'Fert selector'!$E$13*'Fert selector'!$E$17),0,1)&IF(T8>('Fert selector'!$E$13-'Fert selector'!$E$13*'Fert selector'!$E$18),0,1) -> 10 | X8: =IF(G8=0,0,'Fert selector'!$F$13/G8) -> 31.82708245 | Y8: =IF('Fert selector'!$D$15="Y",$G8*$N8,IF('Fert selector'!$E$15="Y",$G8*$S8,IF('Fert selector'!$F$15="Y",$G8*$X8,IF('Fert selector'!$G$15="Y",$G8*$AC8)))) -> 95.46242168 | Z8: 0 | AA8: =IF((Y8-'Fert selector'!$F$13)<0,(Y8-'Fert selector'!$F$13)*-1,Y8-'Fert selector'!$F$13) -> 5.46242168 | AB8: =IF(Y8<('Fert selector'!$F$13+'Fert selector'!$F$13*'Fert selector'!$F$17),0,1)&IF(Y8>('Fert selector'!$F$13-'Fert selector'!$F$13*'Fert selector'!$F$18),0,1) -> 00 | AC8: =IF(H8=0,0,'Fert selector'!$G$13/H8) -> 0 | AD8: =IF('Fert selector'!$D$15="Y",$H8*$N8,IF('Fert selector'!$E$15="Y",$H8*$S8,IF('Fert selector'!$F$15="Y",$H8*$X8,IF('Fert selector'!$G$15="Y",$H8*$AC8)))) -> 25.99780129 | AE8: 25.99780129 | AF8: =IF((AD8-'Fert selector'!$G$13)<0,(AD8-'Fert selector'!$G$13)*-1,AD8-'Fert selector'!$G$13) -> 25.99780129 | AG8: =IF(AD8<('Fert selector'!$G$13+'Fert selector'!$G$13*'Fert selector'!$G$17),0,1)&IF(AD8>('Fert selector'!$G$13-'Fert selector'!$G$13*'Fert selector'!$G$18),0,1) -> 10
B9: 19.59456687 | C9: 102185 | D9: =VLOOKUP(C9,'Data sheet'!B41:C105,2,FALSE) -> MKY 170 | E9: =VLOOKUP(C9,'Data sheet'!$B$1:$AG$65,26,FALSE) -> 3.973736926 | F9: =VLOOKUP(C9,'Data sheet'!$B$1:$AG$65,27,FALSE) -> 0.009977089972 | G9: =VLOOKUP(C9,'Data sheet'!$B$1:$AG$65,28,FALSE) -> 2.893356092 | H9: =VLOOKUP(C9,'Data sheet'!$B$1:$AG$65,29,FALSE) -> 0.439504567 | N9: =IF(E9=0,0,'Fert selector'!$D$13/E9) -> 37.7478436 | O9: =IF('Fert selector'!$D$15="Y",E9*N9,IF('Fert selector'!$E$15="Y",F9*S9,IF('Fert selector'!$F$15="Y",G9*X9,IF('Fert selector'!$G$15="Y",H9*AC9)))) -> 150 | P9: 0 | Q9: =IF((O9-'Fert selector'!$D$13)<0,(O9-'Fert selector'!$D$13)*-1,O9-'Fert selector'!$D$13) -> 0 | R9: =IF(O9<('Fert selector'!$D$13+'Fert selector'!$D$13*'Fert selector'!$D$17),0,1)&IF(O9>('Fert selector'!$D$13-'Fert selector'!$D$13*'Fert selector'!$D$18),0,1) -> 00 | S9: =IF(F9=0,0,'Fert selector'!$E$13/F9) -> 0 | T9: =IF('Fert selector'!$D$15="Y",$F9*$N9,IF('Fert selector'!$E$15="Y",$F9*$S9,IF('Fert selector'!$F$15="Y",$F9*$X9,IF('Fert selector'!$G$15="Y",$F9*$AC9)))) -> 0.3766136319 | U9: 0.3766136319 | V9: =IF((T9-'Fert selector'!$E$13)<0,(T9-'Fert selector'!$E$13)*-1,T9-'Fert selector'!$E$13) -> 0.3766136319 | W9: =IF(T9<('Fert selector'!$E$13+'Fert selector'!$E$13*'Fert selector'!$E$17),0,1)&IF(T9>('Fert selector'!$E$13-'Fert selector'!$E$13*'Fert selector'!$E$18),0,1) -> 10 | X9: =IF(G9=0,0,'Fert selector'!$F$13/G9) -> 31.10574611 | Y9: =IF('Fert selector'!$D$15="Y",$G9*$N9,IF('Fert selector'!$E$15="Y",$G9*$S9,IF('Fert selector'!$F$15="Y",$G9*$X9,IF('Fert selector'!$G$15="Y",$G9*$AC9)))) -> 109.2179532 | Z9: 19.21795324 | AA9: =IF((Y9-'Fert selector'!$F$13)<0,(Y9-'Fert selector'!$F$13)*-1,Y9-'Fert selector'!$F$13) -> 19.21795324 | AB9: =IF(Y9<('Fert selector'!$F$13+'Fert selector'!$F$13*'Fert selector'!$F$17),0,1)&IF(Y9>('Fert selector'!$F$13-'Fert selector'!$F$13*'Fert selector'!$F$18),0,1) -> 10 | AC9: =IF(H9=0,0,'Fert selector'!$G$13/H9) -> 0 | AD9: =IF('Fert selector'!$D$15="Y",$H9*$N9,IF('Fert selector'!$E$15="Y",$H9*$S9,IF('Fert selector'!$F$15="Y",$H9*$X9,IF('Fert selector'!$G$15="Y",$H9*$AC9)))) -> 16.59034966 | AE9: 16.59034966 | AF9: =IF((AD9-'Fert selector'!$G$13)<0,(AD9-'Fert selector'!$G$13)*-1,AD9-'Fert selector'!$G$13) -> 16.59034966 | AG9: =IF(AD9<('Fert selector'!$G$13+'Fert selector'!$G$13*'Fert selector'!$G$17),0,1)&IF(AD9>('Fert selector'!$G$13-'Fert selector'!$G$13*'Fert selector'!$G$18),0,1) -> 10
B10: 20.43148743 | C10: 80793 | D10: =VLOOKUP(C10,'Data sheet'!B25:C89,2,FALSE) -> LIQUID ONE SHOT + P | E10: =VLOOKUP(C10,'Data sheet'!$B$1:$AG$65,26,FALSE) -> 4.95877132 | F10: =VLOOKUP(C10,'Data sheet'!$B$1:$AG$65,27,FALSE) -> 0.5024706608 | G10: =VLOOKUP(C10,'Data sheet'!$B$1:$AG$65,28,FALSE) -> 2.802299627 | H10: =VLOOKUP(C10,'Data sheet'!$B$1:$AG$65,29,FALSE) -> 0.7741579941 | N10: =IF(E10=0,0,'Fert selector'!$D$13/E10) -> 30.2494288 | O10: =IF('Fert selector'!$D$15="Y",E10*N10,IF('Fert selector'!$E$15="Y",F10*S10,IF('Fert selector'!$F$15="Y",G10*X10,IF('Fert selector'!$G$15="Y",H10*AC10)))) -> 150 | P10: 0 | Q10: =IF((O10-'Fert selector'!$D$13)<0,(O10-'Fert selector'!$D$13)*-1,O10-'Fert selector'!$D$13) -> 0 | R10: =IF(O10<('Fert selector'!$D$13+'Fert selector'!$D$13*'Fert selector'!$D$17),0,1)&IF(O10>('Fert selector'!$D$13-'Fert selector'!$D$13*'Fert selector'!$D$18),0,1) -> 00 | S10: =IF(F10=0,0,'Fert selector'!$E$13/F10) -> 0 | T10: =IF('Fert selector'!$D$15="Y",$F10*$N10,IF('Fert selector'!$E$15="Y",$F10*$S10,IF('Fert selector'!$F$15="Y",$F10*$X10,IF('Fert selector'!$G$15="Y",$F10*$AC10)))) -> 15.19945048 | U10: 15.19945048 | V10: =IF((T10-'Fert selector'!$E$13)<0,(T10-'Fert selector'!$E$13)*-1,T10-'Fert selector'!$E$13) -> 15.19945048 | W10: =IF(T10<('Fert selector'!$E$13+'Fert selector'!$E$13*'Fert selector'!$E$17),0,1)&IF(T10>('Fert selector'!$E$13-'Fert selector'!$E$13*'Fert selector'!$E$18),0,1) -> 10 | X10: =IF(G10=0,0,'Fert selector'!$F$13/G10) -> 32.11648003 | Y10: =IF('Fert selector'!$D$15="Y",$G10*$N10,IF('Fert selector'!$E$15="Y",$G10*$S10,IF('Fert selector'!$F$15="Y",$G10*$X10,IF('Fert selector'!$G$15="Y",$G10*$AC10)))) -> 84.76796305 | Z10: 5.232036952 | AA10: =IF((Y10-'Fert selector'!$F$13)<0,(Y10-'Fert selector'!$F$13)*-1,Y10-'Fert selector'!$F$13) -> 5.232036952 | AB10: =IF(Y10<('Fert selector'!$F$13+'Fert selector'!$F$13*'Fert selector'!$F$17),0,1)&IF(Y10>('Fert selector'!$F$13-'Fert selector'!$F$13*'Fert selector'!$F$18),0,1) -> 01 | AC10: =IF(H10=0,0,'Fert selector'!$G$13/H10) -> 0 | AD10: =IF('Fert selector'!$D$15="Y",$H10*$N10,IF('Fert selector'!$E$15="Y",$H10*$S10,IF('Fert selector'!$F$15="Y",$H10*$X10,IF('Fert selector'!$G$15="Y",$H10*$AC10)))) -> 23.41783712 | AE10: 23.41783712 | AF10: =IF((AD10-'Fert selector'!$G$13)<0,(AD10-'Fert selector'!$G$13)*-1,AD10-'Fert selector'!$G$13) -> 23.41783712 | AG10: =IF(AD10<('Fert selector'!$G$13+'Fert selector'!$G$13*'Fert selector'!$G$17),0,1)&IF(AD10>('Fert selector'!$G$13-'Fert selector'!$G$13*'Fert selector'!$G$18),0,1) -> 10
B11: 20.64714982 | C11: 102196 | D11: =VLOOKUP(C11,'Data sheet'!B30:C94,2,FALSE) -> MID N + P | E11: =VLOOKUP(C11,'Data sheet'!$B$1:$AG$65,26,FALSE) -> 5.285646259 | F11: =VLOOKUP(C11,'Data sheet'!$B$1:$AG$65,27,FALSE) -> 0.3530199023 | G11: =VLOOKUP(C11,'Data sheet'!$B$1:$AG$65,28,FALSE) -> 2.796850789 | H11: =VLOOKUP(C11,'Data sheet'!$B$1:$AG$65,29,FALSE) -> 0.6940941284 | N11: =IF(E11=0,0,'Fert selector'!$D$13/E11) -> 28.37874361 | O11: =IF('Fert selector'!$D$15="Y",E11*N11,IF('Fert selector'!$E$15="Y",F11*S11,IF('Fert selector'!$F$15="Y",G11*X11,IF('Fert selector'!$G$15="Y",H11*AC11)))) -> 150 | P11: 0 | Q11: =IF((O11-'Fert selector'!$D$13)<0,(O11-'Fert selector'!$D$13)*-1,O11-'Fert selector'!$D$13) -> 0 | R11: =IF(O11<('Fert selector'!$D$13+'Fert selector'!$D$13*'Fert selector'!$D$17),0,1)&IF(O11>('Fert selector'!$D$13-'Fert selector'!$D$13*'Fert selector'!$D$18),0,1) -> 00 | S11: =IF(F11=0,0,'Fert selector'!$E$13/F11) -> 0 | T11: =IF('Fert selector'!$D$15="Y",$F11*$N11,IF('Fert selector'!$E$15="Y",$F11*$S11,IF('Fert selector'!$F$15="Y",$F11*$X11,IF('Fert selector'!$G$15="Y",$F11*$AC11)))) -> 10.0182613 | U11: 10.0182613 | V11: =IF((T11-'Fert selector'!$E$13)<0,(T11-'Fert selector'!$E$13)*-1,T11-'Fert selector'!$E$13) -> 10.0182613 | W11: =IF(T11<('Fert selector'!$E$13+'Fert selector'!$E$13*'Fert selector'!$E$17),0,1)&IF(T11>('Fert selector'!$E$13-'Fert selector'!$E$13*'Fert selector'!$E$18),0,1) -> 10 | X11: =IF(G11=0,0,'Fert selector'!$F$13/G11) -> 32.1790495 | Y11: =IF('Fert selector'!$D$15="Y",$G11*$N11,IF('Fert selector'!$E$15="Y",$G11*$S11,IF('Fert selector'!$F$15="Y",$G11*$X11,IF('Fert selector'!$G$15="Y",$G11*$AC11)))) -> 79.37111148 | Z11: 10.62888852 | AA11: =IF((Y11-'Fert selector'!$F$13)<0,(Y11-'Fert selector'!$F$13)*-1,Y11-'Fert selector'!$F$13) -> 10.62888852 | AB11: =IF(Y11<('Fert selector'!$F$13+'Fert selector'!$F$13*'Fert selector'!$F$17),0,1)&IF(Y11>('Fert selector'!$F$13-'Fert selector'!$F$13*'Fert selector'!$F$18),0,1) -> 01 | AC11: =IF(H11=0,0,'Fert selector'!$G$13/H11) -> 0 | AD11: =IF('Fert selector'!$D$15="Y",$H11*$N11,IF('Fert selector'!$E$15="Y",$H11*$S11,IF('Fert selector'!$F$15="Y",$H11*$X11,IF('Fert selector'!$G$15="Y",$H11*$AC11)))) -> 19.69751931 | AE11: 19.69751931 | AF11: =IF((AD11-'Fert selector'!$G$13)<0,(AD11-'Fert selector'!$G$13)*-1,AD11-'Fert selector'!$G$13) -> 19.69751931 | AG11: =IF(AD11<('Fert selector'!$G$13+'Fert selector'!$G$13*'Fert selector'!$G$17),0,1)&IF(AD11>('Fert selector'!$G$13-'Fert selector'!$G$13*'Fert selector'!$G$18),0,1) -> 10
B12: 21.2456177 | C12: 102201 | D12: =VLOOKUP(C12,'Data sheet'!B43:C107,2,FALSE) -> MKY 180P | E12: =VLOOKUP(C12,'Data sheet'!$B$1:$AG$65,26,FALSE) -> 4.213352971 | F12: =VLOOKUP(C12,'Data sheet'!$B$1:$AG$65,27,FALSE) -> 0.2642163023 | G12: =VLOOKUP(C12,'Data sheet'!$B$1:$AG$65,28,FALSE) -> 2.860564057 | H12: =VLOOKUP(C12,'Data sheet'!$B$1:$AG$65,29,FALSE) -> 0.6030288448 | N12: =IF(E12=0,0,'Fert selector'!$D$13/E12) -> 35.60109989 | O12: =IF('Fert selector'!$D$15="Y",E12*N12,IF('Fert selector'!$E$15="Y",F12*S12,IF('Fert selector'!$F$15="Y",G12*X12,IF('Fert selector'!$G$15="Y",H12*AC12)))) -> 150 | P12: 0 | Q12: =IF((O12-'Fert selector'!$D$13)<0,(O12-'Fert selector'!$D$13)*-1,O12-'Fert selector'!$D$13) -> 0 | R12: =IF(O12<('Fert selector'!$D$13+'Fert selector'!$D$13*'Fert selector'!$D$17),0,1)&IF(O12>('Fert selector'!$D$13-'Fert selector'!$D$13*'Fert selector'!$D$18),0,1) -> 00 | S12: =IF(F12=0,0,'Fert selector'!$E$13/F12) -> 0 | T12: =IF('Fert selector'!$D$15="Y",$F12*$N12,IF('Fert selector'!$E$15="Y",$F12*$S12,IF('Fert selector'!$F$15="Y",$F12*$X12,IF('Fert selector'!$G$15="Y",$F12*$AC12)))) -> 9.406390973 | U12: 9.406390973 | V12: =IF((T12-'Fert selector'!$E$13)<0,(T12-'Fert selector'!$E$13)*-1,T12-'Fert selector'!$E$13) -> 9.406390973 | W12: =IF(T12<('Fert selector'!$E$13+'Fert selector'!$E$13*'Fert selector'!$E$17),0,1)&IF(T12>('Fert selector'!$E$13-'Fert selector'!$E$13*'Fert selector'!$E$18),0,1) -> 10 | X12: =IF(G12=0,0,'Fert selector'!$F$13/G12) -> 31.46232639 | Y12: =IF('Fert selector'!$D$15="Y",$G12*$N12,IF('Fert selector'!$E$15="Y",$G12*$S12,IF('Fert selector'!$F$15="Y",$G12*$X12,IF('Fert selector'!$G$15="Y",$G12*$AC12)))) -> 101.8392267 | Z12: 11.83922673 | AA12: =IF((Y12-'Fert selector'!$F$13)<0,(Y12-'Fert selector'!$F$13)*-1,Y12-'Fert selector'!$F$13) -> 11.83922673 | AB12: =IF(Y12<('Fert selector'!$F$13+'Fert selector'!$F$13*'Fert selector'!$F$17),0,1)&IF(Y12>('Fert selector'!$F$13-'Fert selector'!$F$13*'Fert selector'!$F$18),0,1) -> 10 | AC12: =IF(H12=0,0,'Fert selector'!$G$13/H12) -> 0 | AD12: =IF('Fert selector'!$D$15="Y",$H12*$N12,IF('Fert selector'!$E$15="Y",$H12*$S12,IF('Fert selector'!$F$15="Y",$H12*$X12,IF('Fert selector'!$G$15="Y",$H12*$AC12)))) -> 21.46849014 | AE12: 21.46849014 | AF12: =IF((AD12-'Fert selector'!$G$13)<0,(AD12-'Fert selector'!$G$13)*-1,AD12-'Fert selector'!$G$13) -> 21.46849014 | AG12: =IF(AD12<('Fert selector'!$G$13+'Fert selector'!$G$13*'Fert selector'!$G$17),0,1)&IF(AD12>('Fert selector'!$G$13-'Fert selector'!$G$13*'Fert selector'!$G$18),0,1) -> 10
B13: 21.83707294 | C13: 80790 | D13: =VLOOKUP(C13,'Data sheet'!B31:C95,2,FALSE) -> MID N | E13: =VLOOKUP(C13,'Data sheet'!$B$1:$AG$65,26,FALSE) -> 6.098894644 | F13: =VLOOKUP(C13,'Data sheet'!$B$1:$AG$65,27,FALSE) -> 0.009589815704 | G13: =VLOOKUP(C13,'Data sheet'!$B$1:$AG$65,28,FALSE) -> 2.781046554 | H13: =VLOOKUP(C13,'Data sheet'!$B$1:$AG$65,29,FALSE) -> 0.5122442161 | N13: =IF(E13=0,0,'Fert selector'!$D$13/E13) -> 24.59462063 | O13: =IF('Fert selector'!$D$15="Y",E13*N13,IF('Fert selector'!$E$15="Y",F13*S13,IF('Fert selector'!$F$15="Y",G13*X13,IF('Fert selector'!$G$15="Y",H13*AC13)))) -> 150 | P13: 0 | Q13: =IF((O13-'Fert selector'!$D$13)<0,(O13-'Fert selector'!$D$13)*-1,O13-'Fert selector'!$D$13) -> 0 | R13: =IF(O13<('Fert selector'!$D$13+'Fert selector'!$D$13*'Fert selector'!$D$17),0,1)&IF(O13>('Fert selector'!$D$13-'Fert selector'!$D$13*'Fert selector'!$D$18),0,1) -> 00 | S13: =IF(F13=0,0,'Fert selector'!$E$13/F13) -> 0 | T13: =IF('Fert selector'!$D$15="Y",$F13*$N13,IF('Fert selector'!$E$15="Y",$F13*$S13,IF('Fert selector'!$F$15="Y",$F13*$X13,IF('Fert selector'!$G$15="Y",$F13*$AC13)))) -> 0.2358578791 | U13: 0.2358578791 | V13: =IF((T13-'Fert selector'!$E$13)<0,(T13-'Fert selector'!$E$13)*-1,T13-'Fert selector'!$E$13) -> 0.2358578791 | W13: =IF(T13<('Fert selector'!$E$13+'Fert selector'!$E$13*'Fert selector'!$E$17),0,1)&IF(T13>('Fert selector'!$E$13-'Fert selector'!$E$13*'Fert selector'!$E$18),0,1) -> 10 | X13: =IF(G13=0,0,'Fert selector'!$F$13/G13) -> 32.36191781 | Y13: =IF('Fert selector'!$D$15="Y",$G13*$N13,IF('Fert selector'!$E$15="Y",$G13*$S13,IF('Fert selector'!$F$15="Y",$G13*$X13,IF('Fert selector'!$G$15="Y",$G13*$AC13)))) -> 68.39878494 | Z13: 21.60121506 | AA13: =IF((Y13-'Fert selector'!$F$13)<0,(Y13-'Fert selector'!$F$13)*-1,Y13-'Fert selector'!$F$13) -> 21.60121506 | AB13: =IF(Y13<('Fert selector'!$F$13+'Fert selector'!$F$13*'Fert selector'!$F$17),0,1)&IF(Y13>('Fert selector'!$F$13-'Fert selector'!$F$13*'Fert selector'!$F$18),0,1) -> 01 | AC13: =IF(H13=0,0,'Fert selector'!$G$13/H13) -> 0 | AD13: =IF('Fert selector'!$D$15="Y",$H13*$N13,IF('Fert selector'!$E$15="Y",$H13*$S13,IF('Fert selector'!$F$15="Y",$H13*$X13,IF('Fert selector'!$G$15="Y",$H13*$AC13)))) -> 12.59845216 | AE13: 12.59845216 | AF13: =IF((AD13-'Fert selector'!$G$13)<0,(AD13-'Fert selector'!$G$13)*-1,AD13-'Fert selector'!$G$13) -> 12.59845216 | AG13: =IF(AD13<('Fert selector'!$G$13+'Fert selector'!$G$13*'Fert selector'!$G$17),0,1)&IF(AD13>('Fert selector'!$G$13-'Fert selector'!$G$13*'Fert selector'!$G$18),0,1) -> 10
B14: 23.78584055 | C14: 86942 | D14: =VLOOKUP(C14,'Data sheet'!B62:C126,2,FALSE) -> SPRINGTON BLEND | E14: =VLOOKUP(C14,'Data sheet'!$B$1:$AG$65,26,FALSE) -> 4.432139339 | F14: =VLOOKUP(C14,'Data sheet'!$B$1:$AG$65,27,FALSE) -> 0.7028143973 | G14: =VLOOKUP(C14,'Data sheet'!$B$1:$AG$65,28,FALSE) -> 2.81427937 | H14: =VLOOKUP(C14,'Data sheet'!$B$1:$AG$65,29,FALSE) -> 0.8784491446 | N14: =IF(E14=0,0,'Fert selector'!$D$13/E14) -> 33.84370132 | O14: =IF('Fert selector'!$D$15="Y",E14*N14,IF('Fert selector'!$E$15="Y",F14*S14,IF('Fert selector'!$F$15="Y",G14*X14,IF('Fert selector'!$G$15="Y",H14*AC14)))) -> 150 | P14: 0 | Q14: =IF((O14-'Fert selector'!$D$13)<0,(O14-'Fert selector'!$D$13)*-1,O14-'Fert selector'!$D$13) -> 0 | R14: =IF(O14<('Fert selector'!$D$13+'Fert selector'!$D$13*'Fert selector'!$D$17),0,1)&IF(O14>('Fert selector'!$D$13-'Fert selector'!$D$13*'Fert selector'!$D$18),0,1) -> 00 | S14: =IF(F14=0,0,'Fert selector'!$E$13/F14) -> 0 | T14: =IF('Fert selector'!$D$15="Y",$F14*$N14,IF('Fert selector'!$E$15="Y",$F14*$S14,IF('Fert selector'!$F$15="Y",$F14*$X14,IF('Fert selector'!$G$15="Y",$F14*$AC14)))) -> 23.78584055 | U14: 23.78584055 | V14: =IF((T14-'Fert selector'!$E$13)<0,(T14-'Fert selector'!$E$13)*-1,T14-'Fert selector'!$E$13) -> 23.78584055 | W14: =IF(T14<('Fert selector'!$E$13+'Fert selector'!$E$13*'Fert selector'!$E$17),0,1)&IF(T14>('Fert selector'!$E$13-'Fert selector'!$E$13*'Fert selector'!$E$18),0,1) -> 10 | X14: =IF(G14=0,0,'Fert selector'!$F$13/G14) -> 31.97976752 | Y14: =IF('Fert selector'!$D$15="Y",$G14*$N14,IF('Fert selector'!$E$15="Y",$G14*$S14,IF('Fert selector'!$F$15="Y",$G14*$X14,IF('Fert selector'!$G$15="Y",$G14*$AC14)))) -> 95.24563045 | Z14: 0 | AA14: =IF((Y14-'Fert selector'!$F$13)<0,(Y14-'Fert selector'!$F$13)*-1,Y14-'Fert selector'!$F$13) -> 5.245630446 | AB14: =IF(Y14<('Fert selector'!$F$13+'Fert selector'!$F$13*'Fert selector'!$F$17),0,1)&IF(Y14>('Fert selector'!$F$13-'Fert selector'!$F$13*'Fert selector'!$F$18),0,1) -> 00 | AC14: =IF(H14=0,0,'Fert selector'!$G$13/H14) -> 0 | AD14: =IF('Fert selector'!$D$15="Y",$H14*$N14,IF('Fert selector'!$E$15="Y",$H14*$S14,IF('Fert selector'!$F$15="Y",$H14*$X14,IF('Fert selector'!$G$15="Y",$H14*$AC14)))) -> 29.72997048 | AE14: 29.72997048 | AF14: =IF((AD14-'Fert selector'!$G$13)<0,(AD14-'Fert selector'!$G$13)*-1,AD14-'Fert selector'!$G$13) -> 29.72997048 | AG14: =IF(AD14<('Fert selector'!$G$13+'Fert selector'!$G$13*'Fert selector'!$G$17),0,1)&IF(AD14>('Fert selector'!$G$13-'Fert selector'!$G$13*'Fert selector'!$G$18),0,1) -> 10
B15: 25.75537643 | C15: 102202 | D15: =VLOOKUP(C15,'Data sheet'!B44:C108,2,FALSE) -> MKY 190P | E15: =VLOOKUP(C15,'Data sheet'!$B$1:$AG$65,26,FALSE) -> 4.208813484 | F15: =VLOOKUP(C15,'Data sheet'!$B$1:$AG$65,27,FALSE) -> 0.3977156407 | G15: =VLOOKUP(C15,'Data sheet'!$B$1:$AG$65,28,FALSE) -> 2.850236287 | H15: =VLOOKUP(C15,'Data sheet'!$B$1:$AG$65,29,FALSE) -> 0.6844178999 | N15: =IF(E15=0,0,'Fert selector'!$D$13/E15) -> 35.63949806 | O15: =IF('Fert selector'!$D$15="Y",E15*N15,IF('Fert selector'!$E$15="Y",F15*S15,IF('Fert selector'!$F$15="Y",G15*X15,IF('Fert selector'!$G$15="Y",H15*AC15)))) -> 150 | P15: 0 | Q15: =IF((O15-'Fert selector'!$D$13)<0,(O15-'Fert selector'!$D$13)*-1,O15-'Fert selector'!$D$13) -> 0 | R15: =IF(O15<('Fert selector'!$D$13+'Fert selector'!$D$13*'Fert selector'!$D$17),0,1)&IF(O15>('Fert selector'!$D$13-'Fert selector'!$D$13*'Fert selector'!$D$18),0,1) -> 00 | S15: =IF(F15=0,0,'Fert selector'!$E$13/F15) -> 0 | T15: =IF('Fert selector'!$D$15="Y",$F15*$N15,IF('Fert selector'!$E$15="Y",$F15*$S15,IF('Fert selector'!$F$15="Y",$F15*$X15,IF('Fert selector'!$G$15="Y",$F15*$AC15)))) -> 14.17438581 | U15: 14.17438581 | V15: =IF((T15-'Fert selector'!$E$13)<0,(T15-'Fert selector'!$E$13)*-1,T15-'Fert selector'!$E$13) -> 14.17438581 | W15: =IF(T15<('Fert selector'!$E$13+'Fert selector'!$E$13*'Fert selector'!$E$17),0,1)&IF(T15>('Fert selector'!$E$13-'Fert selector'!$E$13*'Fert selector'!$E$18),0,1) -> 10 | X15: =IF(G15=0,0,'Fert selector'!$F$13/G15) -> 31.57632945 | Y15: =IF('Fert selector'!$D$15="Y",$G15*$N15,IF('Fert selector'!$E$15="Y",$G15*$S15,IF('Fert selector'!$F$15="Y",$G15*$X15,IF('Fert selector'!$G$15="Y",$G15*$AC15)))) -> 101.5809906 | Z15: 11.58099063 | AA15: =IF((Y15-'Fert selector'!$F$13)<0,(Y15-'Fert selector'!$F$13)*-1,Y15-'Fert selector'!$F$13) -> 11.58099063 | AB15: =IF(Y15<('Fert selector'!$F$13+'Fert selector'!$F$13*'Fert selector'!$F$17),0,1)&IF(Y15>('Fert selector'!$F$13-'Fert selector'!$F$13*'Fert selector'!$F$18),0,1) -> 10 | AC15: =IF(H15=0,0,'Fert selector'!$G$13/H15) -> 0 | AD15: =IF('Fert selector'!$D$15="Y",$H15*$N15,IF('Fert selector'!$E$15="Y",$H15*$S15,IF('Fert selector'!$F$15="Y",$H15*$X15,IF('Fert selector'!$G$15="Y",$H15*$AC15)))) -> 24.39231042 | AE15: 24.39231042 | AF15: =IF((AD15-'Fert selector'!$G$13)<0,(AD15-'Fert selector'!$G$13)*-1,AD15-'Fert selector'!$G$13) -> 24.39231042 | AG15: =IF(AD15<('Fert selector'!$G$13+'Fert selector'!$G$13*'Fert selector'!$G$17),0,1)&IF(AD15>('Fert selector'!$G$13-'Fert selector'!$G$13*'Fert selector'!$G$18),0,1) -> 10
B16: 26.79409622 | C16: 102183 | D16: =VLOOKUP(C16,'Data sheet'!B39:C103,2,FALSE) -> MKY 160 | E16: =VLOOKUP(C16,'Data sheet'!$B$1:$AG$65,26,FALSE) -> 3.744403359 | F16: =VLOOKUP(C16,'Data sheet'!$B$1:$AG$65,27,FALSE) -> 0.01001888216 | G16: =VLOOKUP(C16,'Data sheet'!$B$1:$AG$65,28,FALSE) -> 2.905475826 | H16: =VLOOKUP(C16,'Data sheet'!$B$1:$AG$65,29,FALSE) -> 0.4316549645 | N16: =IF(E16=0,0,'Fert selector'!$D$13/E16) -> 40.05978673 | O16: =IF('Fert selector'!$D$15="Y",E16*N16,IF('Fert selector'!$E$15="Y",F16*S16,IF('Fert selector'!$F$15="Y",G16*X16,IF('Fert selector'!$G$15="Y",H16*AC16)))) -> 150 | P16: 0 | Q16: =IF((O16-'Fert selector'!$D$13)<0,(O16-'Fert selector'!$D$13)*-1,O16-'Fert selector'!$D$13) -> 0 | R16: =IF(O16<('Fert selector'!$D$13+'Fert selector'!$D$13*'Fert selector'!$D$17),0,1)&IF(O16>('Fert selector'!$D$13-'Fert selector'!$D$13*'Fert selector'!$D$18),0,1) -> 00 | S16: =IF(F16=0,0,'Fert selector'!$E$13/F16) -> 0 | T16: =IF('Fert selector'!$D$15="Y",$F16*$N16,IF('Fert selector'!$E$15="Y",$F16*$S16,IF('Fert selector'!$F$15="Y",$F16*$X16,IF('Fert selector'!$G$15="Y",$F16*$AC16)))) -> 0.4013542825 | U16: 0.4013542825 | V16: =IF((T16-'Fert selector'!$E$13)<0,(T16-'Fert selector'!$E$13)*-1,T16-'Fert selector'!$E$13) -> 0.4013542825 | W16: =IF(T16<('Fert selector'!$E$13+'Fert selector'!$E$13*'Fert selector'!$E$17),0,1)&IF(T16>('Fert selector'!$E$13-'Fert selector'!$E$13*'Fert selector'!$E$18),0,1) -> 10 | X16: =IF(G16=0,0,'Fert selector'!$F$13/G16) -> 30.97599339 | Y16: =IF('Fert selector'!$D$15="Y",$G16*$N16,IF('Fert selector'!$E$15="Y",$G16*$S16,IF('Fert selector'!$F$15="Y",$G16*$X16,IF('Fert selector'!$G$15="Y",$G16*$AC16)))) -> 116.3927419 | Z16: 26.39274194 | AA16: =IF((Y16-'Fert selector'!$F$13)<0,(Y16-'Fert selector'!$F$13)*-1,Y16-'Fert selector'!$F$13) -> 26.39274194 | AB16: =IF(Y16<('Fert selector'!$F$13+'Fert selector'!$F$13*'Fert selector'!$F$17),0,1)&IF(Y16>('Fert selector'!$F$13-'Fert selector'!$F$13*'Fert selector'!$F$18),0,1) -> 10 | AC16: =IF(H16=0,0,'Fert selector'!$G$13/H16) -> 0 | AD16: =IF('Fert selector'!$D$15="Y",$H16*$N16,IF('Fert selector'!$E$15="Y",$H16*$S16,IF('Fert selector'!$F$15="Y",$H16*$X16,IF('Fert selector'!$G$15="Y",$H16*$AC16)))) -> 17.29200582 | AE16: 17.29200582 | AF16: =IF((AD16-'Fert selector'!$G$13)<0,(AD16-'Fert selector'!$G$13)*-1,AD16-'Fert selector'!$G$13) -> 17.29200582 | AG16: =IF(AD16<('Fert selector'!$G$13+'Fert selector'!$G$13*'Fert selector'!$G$17),0,1)&IF(AD16>('Fert selector'!$G$13-'Fert selector'!$G$13*'Fert selector'!$G$18),0,1) -> 10
B17: 28.39724096 | C17: 81049 | D17: =VLOOKUP(C17,'Data sheet'!B55:C119,2,FALSE) -> LIQUID PREPLANT | E17: =VLOOKUP(C17,'Data sheet'!$B$1:$AG$65,26,FALSE) -> 4.484682922 | F17: =VLOOKUP(C17,'Data sheet'!$B$1:$AG$65,27,FALSE) -> 0.8490174772 | G17: =VLOOKUP(C17,'Data sheet'!$B$1:$AG$65,28,FALSE) -> 2.799928451 | H17: =VLOOKUP(C17,'Data sheet'!$B$1:$AG$65,29,FALSE) -> 0.9695581688 | N17: =IF(E17=0,0,'Fert selector'!$D$13/E17) -> 33.44718068 | O17: =IF('Fert selector'!$D$15="Y",E17*N17,IF('Fert selector'!$E$15="Y",F17*S17,IF('Fert selector'!$F$15="Y",G17*X17,IF('Fert selector'!$G$15="Y",H17*AC17)))) -> 150 | P17: 0 | Q17: =IF((O17-'Fert selector'!$D$13)<0,(O17-'Fert selector'!$D$13)*-1,O17-'Fert selector'!$D$13) -> 0 | R17: =IF(O17<('Fert selector'!$D$13+'Fert selector'!$D$13*'Fert selector'!$D$17),0,1)&IF(O17>('Fert selector'!$D$13-'Fert selector'!$D$13*'Fert selector'!$D$18),0,1) -> 00 | S17: =IF(F17=0,0,'Fert selector'!$E$13/F17) -> 0 | T17: =IF('Fert selector'!$D$15="Y",$F17*$N17,IF('Fert selector'!$E$15="Y",$F17*$S17,IF('Fert selector'!$F$15="Y",$F17*$X17,IF('Fert selector'!$G$15="Y",$F17*$AC17)))) -> 28.39724096 | U17: 28.39724096 | V17: =IF((T17-'Fert selector'!$E$13)<0,(T17-'Fert selector'!$E$13)*-1,T17-'Fert selector'!$E$13) -> 28.39724096 | W17: =IF(T17<('Fert selector'!$E$13+'Fert selector'!$E$13*'Fert selector'!$E$17),0,1)&IF(T17>('Fert selector'!$E$13-'Fert selector'!$E$13*'Fert selector'!$E$18),0,1) -> 10 | X17: =IF(G17=0,0,'Fert selector'!$F$13/G17) -> 32.14367851 | Y17: =IF('Fert selector'!$D$15="Y",$G17*$N17,IF('Fert selector'!$E$15="Y",$G17*$S17,IF('Fert selector'!$F$15="Y",$G17*$X17,IF('Fert selector'!$G$15="Y",$G17*$AC17)))) -> 93.64971281 | Z17: 0 | AA17: =IF((Y17-'Fert selector'!$F$13)<0,(Y17-'Fert selector'!$F$13)*-1,Y17-'Fert selector'!$F$13) -> 3.649712806 | AB17: =IF(Y17<('Fert selector'!$F$13+'Fert selector'!$F$13*'Fert selector'!$F$17),0,1)&IF(Y17>('Fert selector'!$F$13-'Fert selector'!$F$13*'Fert selector'!$F$18),0,1) -> 00 | AC17: =IF(H17=0,0,'Fert selector'!$G$13/H17) -> 0 | AD17: =IF('Fert selector'!$D$15="Y",$H17*$N17,IF('Fert selector'!$E$15="Y",$H17*$S17,IF('Fert selector'!$F$15="Y",$H17*$X17,IF('Fert selector'!$G$15="Y",$H17*$AC17)))) -> 32.42898725 | AE17: 32.42898725 | AF17: =IF((AD17-'Fert selector'!$G$13)<0,(AD17-'Fert selector'!$G$13)*-1,AD17-'Fert selector'!$G$13) -> 32.42898725 | AG17: =IF(AD17<('Fert selector'!$G$13+'Fert selector'!$G$13*'Fert selector'!$G$17),0,1)&IF(AD17>('Fert selector'!$G$13-'Fert selector'!$G$13*'Fert selector'!$G$18),0,1) -> 10
B18: 31.70382703 | C18: 96984 | D18: =VLOOKUP(C18,'Data sheet'!B52:C116,2,FALSE) -> PMR 1 | E18: =VLOOKUP(C18,'Data sheet'!$B$1:$AG$65,26,FALSE) -> 3.893821609 | F18: =VLOOKUP(C18,'Data sheet'!$B$1:$AG$65,27,FALSE) -> 0.2833457474 | G18: =VLOOKUP(C18,'Data sheet'!$B$1:$AG$65,28,FALSE) -> 2.875940863 | H18: =VLOOKUP(C18,'Data sheet'!$B$1:$AG$65,29,FALSE) -> 0.6037411674 | N18: =IF(E18=0,0,'Fert selector'!$D$13/E18) -> 38.52256602 | O18: =IF('Fert selector'!$D$15="Y",E18*N18,IF('Fert selector'!$E$15="Y",F18*S18,IF('Fert selector'!$F$15="Y",G18*X18,IF('Fert selector'!$G$15="Y",H18*AC18)))) -> 150 | P18: 0 | Q18: =IF((O18-'Fert selector'!$D$13)<0,(O18-'Fert selector'!$D$13)*-1,O18-'Fert selector'!$D$13) -> 0 | R18: =IF(O18<('Fert selector'!$D$13+'Fert selector'!$D$13*'Fert selector'!$D$17),0,1)&IF(O18>('Fert selector'!$D$13-'Fert selector'!$D$13*'Fert selector'!$D$18),0,1) -> 00 | S18: =IF(F18=0,0,'Fert selector'!$E$13/F18) -> 0 | T18: =IF('Fert selector'!$D$15="Y",$F18*$N18,IF('Fert selector'!$E$15="Y",$F18*$S18,IF('Fert selector'!$F$15="Y",$F18*$X18,IF('Fert selector'!$G$15="Y",$F18*$AC18)))) -> 10.91520526 | U18: 10.91520526 | V18: =IF((T18-'Fert selector'!$E$13)<0,(T18-'Fert selector'!$E$13)*-1,T18-'Fert selector'!$E$13) -> 10.91520526 | W18: =IF(T18<('Fert selector'!$E$13+'Fert selector'!$E$13*'Fert selector'!$E$17),0,1)&IF(T18>('Fert selector'!$E$13-'Fert selector'!$E$13*'Fert selector'!$E$18),0,1) -> 10 | X18: =IF(G18=0,0,'Fert selector'!$F$13/G18) -> 31.29410662 | Y18: =IF('Fert selector'!$D$15="Y",$G18*$N18,IF('Fert selector'!$E$15="Y",$G18*$S18,IF('Fert selector'!$F$15="Y",$G18*$X18,IF('Fert selector'!$G$15="Y",$G18*$AC18)))) -> 110.7886218 | Z18: 20.78862177 | AA18: =IF((Y18-'Fert selector'!$F$13)<0,(Y18-'Fert selector'!$F$13)*-1,Y18-'Fert selector'!$F$13) -> 20.78862177 | AB18: =IF(Y18<('Fert selector'!$F$13+'Fert selector'!$F$13*'Fert selector'!$F$17),0,1)&IF(Y18>('Fert selector'!$F$13-'Fert selector'!$F$13*'Fert selector'!$F$18),0,1) -> 10 | AC18: =IF(H18=0,0,'Fert selector'!$G$13/H18) -> 0 | AD18: =IF('Fert selector'!$D$15="Y",$H18*$N18,IF('Fert selector'!$E$15="Y",$H18*$S18,IF('Fert selector'!$F$15="Y",$H18*$X18,IF('Fert selector'!$G$15="Y",$H18*$AC18)))) -> 23.25765898 | AE18: 23.25765898 | AF18: =IF((AD18-'Fert selector'!$G$13)<0,(AD18-'Fert selector'!$G$13)*-1,AD18-'Fert selector'!$G$13) -> 23.25765898 | AG18: =IF(AD18<('Fert selector'!$G$13+'Fert selector'!$G$13*'Fert selector'!$G$17),0,1)&IF(AD18>('Fert selector'!$G$13-'Fert selector'!$G$13*'Fert selector'!$G$18),0,1) -> 10
B19: 33.54442077 | C19: 102193 | D19: =VLOOKUP(C19,'Data sheet'!B45:C109,2,FALSE) -> MKY 200P | E19: =VLOOKUP(C19,'Data sheet'!$B$1:$AG$65,26,FALSE) -> 5.481465567 | F19: =VLOOKUP(C19,'Data sheet'!$B$1:$AG$65,27,FALSE) -> 0.6962661033 | G19: =VLOOKUP(C19,'Data sheet'!$B$1:$AG$65,28,FALSE) -> 2.759328194 | H19: =VLOOKUP(C19,'Data sheet'!$B$1:$AG$65,29,FALSE) -> 0.9104822915 | N19: =IF(E19=0,0,'Fert selector'!$D$13/E19) -> 27.36494432 | O19: =IF('Fert selector'!$D$15="Y",E19*N19,IF('Fert selector'!$E$15="Y",F19*S19,IF('Fert selector'!$F$15="Y",G19*X19,IF('Fert selector'!$G$15="Y",H19*AC19)))) -> 150 | P19: 0 | Q19: =IF((O19-'Fert selector'!$D$13)<0,(O19-'Fert selector'!$D$13)*-1,O19-'Fert selector'!$D$13) -> 0 | R19: =IF(O19<('Fert selector'!$D$13+'Fert selector'!$D$13*'Fert selector'!$D$17),0,1)&IF(O19>('Fert selector'!$D$13-'Fert selector'!$D$13*'Fert selector'!$D$18),0,1) -> 00 | S19: =IF(F19=0,0,'Fert selector'!$E$13/F19) -> 0 | T19: =IF('Fert selector'!$D$15="Y",$F19*$N19,IF('Fert selector'!$E$15="Y",$F19*$S19,IF('Fert selector'!$F$15="Y",$F19*$X19,IF('Fert selector'!$G$15="Y",$F19*$AC19)))) -> 19.05328315 | U19: 19.05328315 | V19: =IF((T19-'Fert selector'!$E$13)<0,(T19-'Fert selector'!$E$13)*-1,T19-'Fert selector'!$E$13) -> 19.05328315 | W19: =IF(T19<('Fert selector'!$E$13+'Fert selector'!$E$13*'Fert selector'!$E$17),0,1)&IF(T19>('Fert selector'!$E$13-'Fert selector'!$E$13*'Fert selector'!$E$18),0,1) -> 10 | X19: =IF(G19=0,0,'Fert selector'!$F$13/G19) -> 32.6166348 | Y19: =IF('Fert selector'!$D$15="Y",$G19*$N19,IF('Fert selector'!$E$15="Y",$G19*$S19,IF('Fert selector'!$F$15="Y",$G19*$X19,IF('Fert selector'!$G$15="Y",$G19*$AC19)))) -> 75.50886237 | Z19: 14.49113763 | AA19: =IF((Y19-'Fert selector'!$F$13)<0,(Y19-'Fert selector'!$F$13)*-1,Y19-'Fert selector'!$F$13) -> 14.49113763 | AB19: =IF(Y19<('Fert selector'!$F$13+'Fert selector'!$F$13*'Fert selector'!$F$17),0,1)&IF(Y19>('Fert selector'!$F$13-'Fert selector'!$F$13*'Fert selector'!$F$18),0,1) -> 01 | AC19: =IF(H19=0,0,'Fert selector'!$G$13/H19) -> 0 | AD19: =IF('Fert selector'!$D$15="Y",$H19*$N19,IF('Fert selector'!$E$15="Y",$H19*$S19,IF('Fert selector'!$F$15="Y",$H19*$X19,IF('Fert selector'!$G$15="Y",$H19*$AC19)))) -> 24.91529721 | AE19: 24.91529721 | AF19: =IF((AD19-'Fert selector'!$G$13)<0,(AD19-'Fert selector'!$G$13)*-1,AD19-'Fert selector'!$G$13) -> 24.91529721 | AG19: =IF(AD19<('Fert selector'!$G$13+'Fert selector'!$G$13*'Fert selector'!$G$17),0,1)&IF(AD19>('Fert selector'!$G$13-'Fert selector'!$G$13*'Fert selector'!$G$18),0,1) -> 10
B20: 33.89779114 | C20: 102181 | D20: =VLOOKUP(C20,'Data sheet'!B42:C106,2,FALSE) -> MKY 170P | E20: =VLOOKUP(C20,'Data sheet'!$B$1:$AG$65,26,FALSE) -> 3.948902108 | F20: =VLOOKUP(C20,'Data sheet'!$B$1:$AG$65,27,FALSE) -> 0.3977630052 | G20: =VLOOKUP(C20,'Data sheet'!$B$1:$AG$65,28,FALSE) -> 2.863971986 | H20: =VLOOKUP(C20,'Data sheet'!$B$1:$AG$65,29,FALSE) -> 0.6755216838 | N20: =IF(E20=0,0,'Fert selector'!$D$13/E20) -> 37.98524144 | O20: =IF('Fert selector'!$D$15="Y",E20*N20,IF('Fert selector'!$E$15="Y",F20*S20,IF('Fert selector'!$F$15="Y",G20*X20,IF('Fert selector'!$G$15="Y",H20*AC20)))) -> 150 | P20: 0 | Q20: =IF((O20-'Fert selector'!$D$13)<0,(O20-'Fert selector'!$D$13)*-1,O20-'Fert selector'!$D$13) -> 0 | R20: =IF(O20<('Fert selector'!$D$13+'Fert selector'!$D$13*'Fert selector'!$D$17),0,1)&IF(O20>('Fert selector'!$D$13-'Fert selector'!$D$13*'Fert selector'!$D$18),0,1) -> 00 | S20: =IF(F20=0,0,'Fert selector'!$E$13/F20) -> 0 | T20: =IF('Fert selector'!$D$15="Y",$F20*$N20,IF('Fert selector'!$E$15="Y",$F20*$S20,IF('Fert selector'!$F$15="Y",$F20*$X20,IF('Fert selector'!$G$15="Y",$F20*$AC20)))) -> 15.10912379 | U20: 15.10912379 | V20: =IF((T20-'Fert selector'!$E$13)<0,(T20-'Fert selector'!$E$13)*-1,T20-'Fert selector'!$E$13) -> 15.10912379 | W20: =IF(T20<('Fert selector'!$E$13+'Fert selector'!$E$13*'Fert selector'!$E$17),0,1)&IF(T20>('Fert selector'!$E$13-'Fert selector'!$E$13*'Fert selector'!$E$18),0,1) -> 10 | X20: =IF(G20=0,0,'Fert selector'!$F$13/G20) -> 31.42488839 | Y20: =IF('Fert selector'!$D$15="Y",$G20*$N20,IF('Fert selector'!$E$15="Y",$G20*$S20,IF('Fert selector'!$F$15="Y",$G20*$X20,IF('Fert selector'!$G$15="Y",$G20*$AC20)))) -> 108.7886674 | Z20: 18.78866736 | AA20: =IF((Y20-'Fert selector'!$F$13)<0,(Y20-'Fert selector'!$F$13)*-1,Y20-'Fert selector'!$F$13) -> 18.78866736 | AB20: =IF(Y20<('Fert selector'!$F$13+'Fert selector'!$F$13*'Fert selector'!$F$17),0,1)&IF(Y20>('Fert selector'!$F$13-'Fert selector'!$F$13*'Fert selector'!$F$18),0,1) -> 10 | AC20: =IF(H20=0,0,'Fert selector'!$G$13/H20) -> 0 | AD20: =IF('Fert selector'!$D$15="Y",$H20*$N20,IF('Fert selector'!$E$15="Y",$H20*$S20,IF('Fert selector'!$F$15="Y",$H20*$X20,IF('Fert selector'!$G$15="Y",$H20*$AC20)))) -> 25.65985426 | AE20: 25.65985426 | AF20: =IF((AD20-'Fert selector'!$G$13)<0,(AD20-'Fert selector'!$G$13)*-1,AD20-'Fert selector'!$G$13) -> 25.65985426 | AG20: =IF(AD20<('Fert selector'!$G$13+'Fert selector'!$G$13*'Fert selector'!$G$17),0,1)&IF(AD20>('Fert selector'!$G$13-'Fert selector'!$G$13*'Fert selector'!$G$18),0,1) -> 10
B21: 35.51358628 | C21: 102191 | D21: =VLOOKUP(C21,'Data sheet'!B37:C101,2,FALSE) -> MKY 150 | E21: =VLOOKUP(C21,'Data sheet'!$B$1:$AG$65,26,FALSE) -> 3.499780888 | F21: =VLOOKUP(C21,'Data sheet'!$B$1:$AG$65,27,FALSE) -> 0.01006346049 | G21: =VLOOKUP(C21,'Data sheet'!$B$1:$AG$65,28,FALSE) -> 2.918403543 | H21: =VLOOKUP(C21,'Data sheet'!$B$1:$AG$65,29,FALSE) -> 0.4232820553 | N21: =IF(E21=0,0,'Fert selector'!$D$13/E21) -> 42.85982602 | O21: =IF('Fert selector'!$D$15="Y",E21*N21,IF('Fert selector'!$E$15="Y",F21*S21,IF('Fert selector'!$F$15="Y",G21*X21,IF('Fert selector'!$G$15="Y",H21*AC21)))) -> 150 | P21: 0 | Q21: =IF((O21-'Fert selector'!$D$13)<0,(O21-'Fert selector'!$D$13)*-1,O21-'Fert selector'!$D$13) -> 0 | R21: =IF(O21<('Fert selector'!$D$13+'Fert selector'!$D$13*'Fert selector'!$D$17),0,1)&IF(O21>('Fert selector'!$D$13-'Fert selector'!$D$13*'Fert selector'!$D$18),0,1) -> 00 | S21: =IF(F21=0,0,'Fert selector'!$E$13/F21) -> 0 | T21: =IF('Fert selector'!$D$15="Y",$F21*$N21,IF('Fert selector'!$E$15="Y",$F21*$S21,IF('Fert selector'!$F$15="Y",$F21*$X21,IF('Fert selector'!$G$15="Y",$F21*$AC21)))) -> 0.4313181659 | U21: 0.4313181659 | V21: =IF((T21-'Fert selector'!$E$13)<0,(T21-'Fert selector'!$E$13)*-1,T21-'Fert selector'!$E$13) -> 0.4313181659 | W21: =IF(T21<('Fert selector'!$E$13+'Fert selector'!$E$13*'Fert selector'!$E$17),0,1)&IF(T21>('Fert selector'!$E$13-'Fert selector'!$E$13*'Fert selector'!$E$18),0,1) -> 10 | X21: =IF(G21=0,0,'Fert selector'!$F$13/G21) -> 30.83877835 | Y21: =IF('Fert selector'!$D$15="Y",$G21*$N21,IF('Fert selector'!$E$15="Y",$G21*$S21,IF('Fert selector'!$F$15="Y",$G21*$X21,IF('Fert selector'!$G$15="Y",$G21*$AC21)))) -> 125.0822681 | Z21: 35.08226811 | AA21: =IF((Y21-'Fert selector'!$F$13)<0,(Y21-'Fert selector'!$F$13)*-1,Y21-'Fert selector'!$F$13) -> 35.08226811 | AB21: =IF(Y21<('Fert selector'!$F$13+'Fert selector'!$F$13*'Fert selector'!$F$17),0,1)&IF(Y21>('Fert selector'!$F$13-'Fert selector'!$F$13*'Fert selector'!$F$18),0,1) -> 10 | AC21: =IF(H21=0,0,'Fert selector'!$G$13/H21) -> 0 | AD21: =IF('Fert selector'!$D$15="Y",$H21*$N21,IF('Fert selector'!$E$15="Y",$H21*$S21,IF('Fert selector'!$F$15="Y",$H21*$X21,IF('Fert selector'!$G$15="Y",$H21*$AC21)))) -> 18.14179525 | AE21: 18.14179525 | AF21: =IF((AD21-'Fert selector'!$G$13)<0,(AD21-'Fert selector'!$G$13)*-1,AD21-'Fert selector'!$G$13) -> 18.14179525 | AG21: =IF(AD21<('Fert selector'!$G$13+'Fert selector'!$G$13*'Fert selector'!$G$17),0,1)&IF(AD21>('Fert selector'!$G$13-'Fert selector'!$G$13*'Fert selector'!$G$18),0,1) -> 10
B22: 36.36918068 | C22: 102333 | D22: =VLOOKUP(C22,'Data sheet'!B57:C121,2,FALSE) -> QPREPLANT 1 | E22: =VLOOKUP(C22,'Data sheet'!$B$1:$AG$65,26,FALSE) -> 3.634377173 | F22: =VLOOKUP(C22,'Data sheet'!$B$1:$AG$65,27,FALSE) -> 0.1626086596 | G22: =VLOOKUP(C22,'Data sheet'!$B$1:$AG$65,28,FALSE) -> 2.899213111 | H22: =VLOOKUP(C22,'Data sheet'!$B$1:$AG$65,29,FALSE) -> 0.5210826379 | N22: =IF(E22=0,0,'Fert selector'!$D$13/E22) -> 41.27254627 | O22: =IF('Fert selector'!$D$15="Y",E22*N22,IF('Fert selector'!$E$15="Y",F22*S22,IF('Fert selector'!$F$15="Y",G22*X22,IF('Fert selector'!$G$15="Y",H22*AC22)))) -> 150 | P22: 0 | Q22: =IF((O22-'Fert selector'!$D$13)<0,(O22-'Fert selector'!$D$13)*-1,O22-'Fert selector'!$D$13) -> 0 | R22: =IF(O22<('Fert selector'!$D$13+'Fert selector'!$D$13*'Fert selector'!$D$17),0,1)&IF(O22>('Fert selector'!$D$13-'Fert selector'!$D$13*'Fert selector'!$D$18),0,1) -> 00 | S22: =IF(F22=0,0,'Fert selector'!$E$13/F22) -> 0 | T22: =IF('Fert selector'!$D$15="Y",$F22*$N22,IF('Fert selector'!$E$15="Y",$F22*$S22,IF('Fert selector'!$F$15="Y",$F22*$X22,IF('Fert selector'!$G$15="Y",$F22*$AC22)))) -> 6.711273426 | U22: 6.711273426 | V22: =IF((T22-'Fert selector'!$E$13)<0,(T22-'Fert selector'!$E$13)*-1,T22-'Fert selector'!$E$13) -> 6.711273426 | W22: =IF(T22<('Fert selector'!$E$13+'Fert selector'!$E$13*'Fert selector'!$E$17),0,1)&IF(T22>('Fert selector'!$E$13-'Fert selector'!$E$13*'Fert selector'!$E$18),0,1) -> 10 | X22: =IF(G22=0,0,'Fert selector'!$F$13/G22) -> 31.04290597 | Y22: =IF('Fert selector'!$D$15="Y",$G22*$N22,IF('Fert selector'!$E$15="Y",$G22*$S22,IF('Fert selector'!$F$15="Y",$G22*$X22,IF('Fert selector'!$G$15="Y",$G22*$AC22)))) -> 119.6579073 | Z22: 29.65790726 | AA22: =IF((Y22-'Fert selector'!$F$13)<0,(Y22-'Fert selector'!$F$13)*-1,Y22-'Fert selector'!$F$13) -> 29.65790726 | AB22: =IF(Y22<('Fert selector'!$F$13+'Fert selector'!$F$13*'Fert selector'!$F$17),0,1)&IF(Y22>('Fert selector'!$F$13-'Fert selector'!$F$13*'Fert selector'!$F$18),0,1) -> 10 | AC22: =IF(H22=0,0,'Fert selector'!$G$13/H22) -> 0 | AD22: =IF('Fert selector'!$D$15="Y",$H22*$N22,IF('Fert selector'!$E$15="Y",$H22*$S22,IF('Fert selector'!$F$15="Y",$H22*$X22,IF('Fert selector'!$G$15="Y",$H22*$AC22)))) -> 21.50640728 | AE22: 21.50640728 | AF22: =IF((AD22-'Fert selector'!$G$13)<0,(AD22-'Fert selector'!$G$13)*-1,AD22-'Fert selector'!$G$13) -> 21.50640728 | AG22: =IF(AD22<('Fert selector'!$G$13+'Fert selector'!$G$13*'Fert selector'!$G$17),0,1)&IF(AD22>('Fert selector'!$G$13-'Fert selector'!$G$13*'Fert selector'!$G$18),0,1) -> 10
B23: 38.42867734 | C23: 85157 | D23: =VLOOKUP(C23,'Data sheet'!B8:C72,2,FALSE) -> CORN 1 | E23: =VLOOKUP(C23,'Data sheet'!$B$1:$AG$65,26,FALSE) -> 4.629027338 | F23: =VLOOKUP(C23,'Data sheet'!$B$1:$AG$65,27,FALSE) -> 1.185915987 | G23: =VLOOKUP(C23,'Data sheet'!$B$1:$AG$65,28,FALSE) -> 2.765629404 | H23: =VLOOKUP(C23,'Data sheet'!$B$1:$AG$65,29,FALSE) -> 1.180301387 | N23: =IF(E23=0,0,'Fert selector'!$D$13/E23) -> 32.40421562 | O23: =IF('Fert selector'!$D$15="Y",E23*N23,IF('Fert selector'!$E$15="Y",F23*S23,IF('Fert selector'!$F$15="Y",G23*X23,IF('Fert selector'!$G$15="Y",H23*AC23)))) -> 150 | P23: 0 | Q23: =IF((O23-'Fert selector'!$D$13)<0,(O23-'Fert selector'!$D$13)*-1,O23-'Fert selector'!$D$13) -> 0 | R23: =IF(O23<('Fert selector'!$D$13+'Fert selector'!$D$13*'Fert selector'!$D$17),0,1)&IF(O23>('Fert selector'!$D$13-'Fert selector'!$D$13*'Fert selector'!$D$18),0,1) -> 00 | S23: =IF(F23=0,0,'Fert selector'!$E$13/F23) -> 0 | T23: =IF('Fert selector'!$D$15="Y",$F23*$N23,IF('Fert selector'!$E$15="Y",$F23*$S23,IF('Fert selector'!$F$15="Y",$F23*$X23,IF('Fert selector'!$G$15="Y",$F23*$AC23)))) -> 38.42867734 | U23: 38.42867734 | V23: =IF((T23-'Fert selector'!$E$13)<0,(T23-'Fert selector'!$E$13)*-1,T23-'Fert selector'!$E$13) -> 38.42867734 | W23: =IF(T23<('Fert selector'!$E$13+'Fert selector'!$E$13*'Fert selector'!$E$17),0,1)&IF(T23>('Fert selector'!$E$13-'Fert selector'!$E$13*'Fert selector'!$E$18),0,1) -> 10 | X23: =IF(G23=0,0,'Fert selector'!$F$13/G23) -> 32.54232106 | Y23: =IF('Fert selector'!$D$15="Y",$G23*$N23,IF('Fert selector'!$E$15="Y",$G23*$S23,IF('Fert selector'!$F$15="Y",$G23*$X23,IF('Fert selector'!$G$15="Y",$G23*$AC23)))) -> 89.61805154 | Z23: 0 | AA23: =IF((Y23-'Fert selector'!$F$13)<0,(Y23-'Fert selector'!$F$13)*-1,Y23-'Fert selector'!$F$13) -> 0.3819484649 | AB23: =IF(Y23<('Fert selector'!$F$13+'Fert selector'!$F$13*'Fert selector'!$F$17),0,1)&IF(Y23>('Fert selector'!$F$13-'Fert selector'!$F$13*'Fert selector'!$F$18),0,1) -> 00 | AC23: =IF(H23=0,0,'Fert selector'!$G$13/H23) -> 0 | AD23: =IF('Fert selector'!$D$15="Y",$H23*$N23,IF('Fert selector'!$E$15="Y",$H23*$S23,IF('Fert selector'!$F$15="Y",$H23*$X23,IF('Fert selector'!$G$15="Y",$H23*$AC23)))) -> 38.24674065 | AE23: 38.24674065 | AF23: =IF((AD23-'Fert selector'!$G$13)<0,(AD23-'Fert selector'!$G$13)*-1,AD23-'Fert selector'!$G$13) -> 38.24674065 | AG23: =IF(AD23<('Fert selector'!$G$13+'Fert selector'!$G$13*'Fert selector'!$G$17),0,1)&IF(AD23>('Fert selector'!$G$13-'Fert selector'!$G$13*'Fert selector'!$G$18),0,1) -> 10
B24: 38.67716455 | C24: 94831 | D24: =VLOOKUP(C24,'Data sheet'!B2:C66,2,FALSE) -> BKN 200 | E24: =VLOOKUP(C24,'Data sheet'!$B$1:$AG$65,26,FALSE) -> 5.574267685 | F24: =VLOOKUP(C24,'Data sheet'!$B$1:$AG$65,27,FALSE) -> 0.8361047748 | G24: =VLOOKUP(C24,'Data sheet'!$B$1:$AG$65,28,FALSE) -> 2.743352929 | H24: =VLOOKUP(C24,'Data sheet'!$B$1:$AG$65,29,FALSE) -> 0.9990862119 | N24: =IF(E24=0,0,'Fert selector'!$D$13/E24) -> 26.90936433 | O24: =IF('Fert selector'!$D$15="Y",E24*N24,IF('Fert selector'!$E$15="Y",F24*S24,IF('Fert selector'!$F$15="Y",G24*X24,IF('Fert selector'!$G$15="Y",H24*AC24)))) -> 150 | P24: 0 | Q24: =IF((O24-'Fert selector'!$D$13)<0,(O24-'Fert selector'!$D$13)*-1,O24-'Fert selector'!$D$13) -> 0 | R24: =IF(O24<('Fert selector'!$D$13+'Fert selector'!$D$13*'Fert selector'!$D$17),0,1)&IF(O24>('Fert selector'!$D$13-'Fert selector'!$D$13*'Fert selector'!$D$18),0,1) -> 00 | S24: =IF(F24=0,0,'Fert selector'!$E$13/F24) -> 0 | T24: =IF('Fert selector'!$D$15="Y",$F24*$N24,IF('Fert selector'!$E$15="Y",$F24*$S24,IF('Fert selector'!$F$15="Y",$F24*$X24,IF('Fert selector'!$G$15="Y",$F24*$AC24)))) -> 22.499048 | U24: 22.499048 | V24: =IF((T24-'Fert selector'!$E$13)<0,(T24-'Fert selector'!$E$13)*-1,T24-'Fert selector'!$E$13) -> 22.499048 | W24: =IF(T24<('Fert selector'!$E$13+'Fert selector'!$E$13*'Fert selector'!$E$17),0,1)&IF(T24>('Fert selector'!$E$13-'Fert selector'!$E$13*'Fert selector'!$E$18),0,1) -> 10 | X24: =IF(G24=0,0,'Fert selector'!$F$13/G24) -> 32.80657003 | Y24: =IF('Fert selector'!$D$15="Y",$G24*$N24,IF('Fert selector'!$E$15="Y",$G24*$S24,IF('Fert selector'!$F$15="Y",$G24*$X24,IF('Fert selector'!$G$15="Y",$G24*$AC24)))) -> 73.82188346 | Z24: 16.17811654 | AA24: =IF((Y24-'Fert selector'!$F$13)<0,(Y24-'Fert selector'!$F$13)*-1,Y24-'Fert selector'!$F$13) -> 16.17811654 | AB24: =IF(Y24<('Fert selector'!$F$13+'Fert selector'!$F$13*'Fert selector'!$F$17),0,1)&IF(Y24>('Fert selector'!$F$13-'Fert selector'!$F$13*'Fert selector'!$F$18),0,1) -> 01 | AC24: =IF(H24=0,0,'Fert selector'!$G$13/H24) -> 0 | AD24: =IF('Fert selector'!$D$15="Y",$H24*$N24,IF('Fert selector'!$E$15="Y",$H24*$S24,IF('Fert selector'!$F$15="Y",$H24*$X24,IF('Fert selector'!$G$15="Y",$H24*$AC24)))) -> 26.88477487 | AE24: 26.88477487 | AF24: =IF((AD24-'Fert selector'!$G$13)<0,(AD24-'Fert selector'!$G$13)*-1,AD24-'Fert selector'!$G$13) -> 26.88477487 | AG24: =IF(AD24<('Fert selector'!$G$13+'Fert selector'!$G$13*'Fert selector'!$G$17),0,1)&IF(AD24>('Fert selector'!$G$13-'Fert selector'!$G$13*'Fert selector'!$G$18),0,1) -> 10
B25: 41.59693245 | C25: 80791 | D25: =VLOOKUP(C25,'Data sheet'!B19:C83,2,FALSE) -> HI N | E25: =VLOOKUP(C25,'Data sheet'!$B$1:$AG$65,26,FALSE) -> 8.239341265 | F25: =VLOOKUP(C25,'Data sheet'!$B$1:$AG$65,27,FALSE) -> 0.00919975529 | G25: =VLOOKUP(C25,'Data sheet'!$B$1:$AG$65,28,FALSE) -> 2.667929034 | H25: =VLOOKUP(C25,'Data sheet'!$B$1:$AG$65,29,FALSE) -> 0.585507172 | N25: =IF(E25=0,0,'Fert selector'!$D$13/E25) -> 18.20533889 | O25: =IF('Fert selector'!$D$15="Y",E25*N25,IF('Fert selector'!$E$15="Y",F25*S25,IF('Fert selector'!$F$15="Y",G25*X25,IF('Fert selector'!$G$15="Y",H25*AC25)))) -> 150 | P25: 0 | Q25: =IF((O25-'Fert selector'!$D$13)<0,(O25-'Fert selector'!$D$13)*-1,O25-'Fert selector'!$D$13) -> 0 | R25: =IF(O25<('Fert selector'!$D$13+'Fert selector'!$D$13*'Fert selector'!$D$17),0,1)&IF(O25>('Fert selector'!$D$13-'Fert selector'!$D$13*'Fert selector'!$D$18),0,1) -> 00 | S25: =IF(F25=0,0,'Fert selector'!$E$13/F25) -> 0 | T25: =IF('Fert selector'!$D$15="Y",$F25*$N25,IF('Fert selector'!$E$15="Y",$F25*$S25,IF('Fert selector'!$F$15="Y",$F25*$X25,IF('Fert selector'!$G$15="Y",$F25*$AC25)))) -> 0.1674846628 | U25: 0.1674846628 | V25: =IF((T25-'Fert selector'!$E$13)<0,(T25-'Fert selector'!$E$13)*-1,T25-'Fert selector'!$E$13) -> 0.1674846628 | W25: =IF(T25<('Fert selector'!$E$13+'Fert selector'!$E$13*'Fert selector'!$E$17),0,1)&IF(T25>('Fert selector'!$E$13-'Fert selector'!$E$13*'Fert selector'!$E$18),0,1) -> 10 | X25: =IF(G25=0,0,'Fert selector'!$F$13/G25) -> 33.73403072 | Y25: =IF('Fert selector'!$D$15="Y",$G25*$N25,IF('Fert selector'!$E$15="Y",$G25*$S25,IF('Fert selector'!$F$15="Y",$G25*$X25,IF('Fert selector'!$G$15="Y",$G25*$AC25)))) -> 48.57055221 | Z25: 41.42944779 | AA25: =IF((Y25-'Fert selector'!$F$13)<0,(Y25-'Fert selector'!$F$13)*-1,Y25-'Fert selector'!$F$13) -> 41.42944779 | AB25: =IF(Y25<('Fert selector'!$F$13+'Fert selector'!$F$13*'Fert selector'!$F$17),0,1)&IF(Y25>('Fert selector'!$F$13-'Fert selector'!$F$13*'Fert selector'!$F$18),0,1) -> 01 | AC25: =IF(H25=0,0,'Fert selector'!$G$13/H25) -> 0 | AD25: =IF('Fert selector'!$D$15="Y",$H25*$N25,IF('Fert selector'!$E$15="Y",$H25*$S25,IF('Fert selector'!$F$15="Y",$H25*$X25,IF('Fert selector'!$G$15="Y",$H25*$AC25)))) -> 10.65935649 | AE25: 10.65935649 | AF25: =IF((AD25-'Fert selector'!$G$13)<0,(AD25-'Fert selector'!$G$13)*-1,AD25-'Fert selector'!$G$13) -> 10.65935649 | AG25: =IF(AD25<('Fert selector'!$G$13+'Fert selector'!$G$13*'Fert selector'!$G$17),0,1)&IF(AD25>('Fert selector'!$G$13-'Fert selector'!$G$13*'Fert selector'!$G$18),0,1) -> 10
B26: 41.68378073 | C26: 87347 | D26: =VLOOKUP(C26,'Data sheet'!B49:C113,2,FALSE) -> MULGOWIE 1 | E26: =VLOOKUP(C26,'Data sheet'!$B$1:$AG$65,26,FALSE) -> 4.801545008 | F26: =VLOOKUP(C26,'Data sheet'!$B$1:$AG$65,27,FALSE) -> 1.2081343 | G26: =VLOOKUP(C26,'Data sheet'!$B$1:$AG$65,28,FALSE) -> 2.754750976 | H26: =VLOOKUP(C26,'Data sheet'!$B$1:$AG$65,29,FALSE) -> 1.19979704 | N26: =IF(E26=0,0,'Fert selector'!$D$13/E26) -> 31.23994459 | O26: =IF('Fert selector'!$D$15="Y",E26*N26,IF('Fert selector'!$E$15="Y",F26*S26,IF('Fert selector'!$F$15="Y",G26*X26,IF('Fert selector'!$G$15="Y",H26*AC26)))) -> 150 | P26: 0 | Q26: =IF((O26-'Fert selector'!$D$13)<0,(O26-'Fert selector'!$D$13)*-1,O26-'Fert selector'!$D$13) -> 0 | R26: =IF(O26<('Fert selector'!$D$13+'Fert selector'!$D$13*'Fert selector'!$D$17),0,1)&IF(O26>('Fert selector'!$D$13-'Fert selector'!$D$13*'Fert selector'!$D$18),0,1) -> 00 | S26: =IF(F26=0,0,'Fert selector'!$E$13/F26) -> 0 | T26: =IF('Fert selector'!$D$15="Y",$F26*$N26,IF('Fert selector'!$E$15="Y",$F26*$S26,IF('Fert selector'!$F$15="Y",$F26*$X26,IF('Fert selector'!$G$15="Y",$F26*$AC26)))) -> 37.74204859 | U26: 37.74204859 | V26: =IF((T26-'Fert selector'!$E$13)<0,(T26-'Fert selector'!$E$13)*-1,T26-'Fert selector'!$E$13) -> 37.74204859 | W26: =IF(T26<('Fert selector'!$E$13+'Fert selector'!$E$13*'Fert selector'!$E$17),0,1)&IF(T26>('Fert selector'!$E$13-'Fert selector'!$E$13*'Fert selector'!$E$18),0,1) -> 10 | X26: =IF(G26=0,0,'Fert selector'!$F$13/G26) -> 32.67082969 | Y26: =IF('Fert selector'!$D$15="Y",$G26*$N26,IF('Fert selector'!$E$15="Y",$G26*$S26,IF('Fert selector'!$F$15="Y",$G26*$X26,IF('Fert selector'!$G$15="Y",$G26*$AC26)))) -> 86.05826787 | Z26: 3.941732132 | AA26: =IF((Y26-'Fert selector'!$F$13)<0,(Y26-'Fert selector'!$F$13)*-1,Y26-'Fert selector'!$F$13) -> 3.941732132 | AB26: =IF(Y26<('Fert selector'!$F$13+'Fert selector'!$F$13*'Fert selector'!$F$17),0,1)&IF(Y26>('Fert selector'!$F$13-'Fert selector'!$F$13*'Fert selector'!$F$18),0,1) -> 01 | AC26: =IF(H26=0,0,'Fert selector'!$G$13/H26) -> 0 | AD26: =IF('Fert selector'!$D$15="Y",$H26*$N26,IF('Fert selector'!$E$15="Y",$H26*$S26,IF('Fert selector'!$F$15="Y",$H26*$X26,IF('Fert selector'!$G$15="Y",$H26*$AC26)))) -> 37.48159306 | AE26: 37.48159306 | AF26: =IF((AD26-'Fert selector'!$G$13)<0,(AD26-'Fert selector'!$G$13)*-1,AD26-'Fert selector'!$G$13) -> 37.48159306 | AG26: =IF(AD26<('Fert selector'!$G$13+'Fert selector'!$G$13*'Fert selector'!$G$17),0,1)&IF(AD26>('Fert selector'!$G$13-'Fert selector'!$G$13*'Fert selector'!$G$18),0,1) -> 10
B27: 42.21165892 | C27: 88674 | D27: =VLOOKUP(C27,'Data sheet'!B10:C74,2,FALSE) -> CORN 3 | E27: =VLOOKUP(C27,'Data sheet'!$B$1:$AG$65,26,FALSE) -> 5.28130899 | F27: =VLOOKUP(C27,'Data sheet'!$B$1:$AG$65,27,FALSE) -> 1.05865568 | G27: =VLOOKUP(C27,'Data sheet'!$B$1:$AG$65,28,FALSE) -> 2.741222316 | H27: =VLOOKUP(C27,'Data sheet'!$B$1:$AG$65,29,FALSE) -> 1.124966243 | N27: =IF(E27=0,0,'Fert selector'!$D$13/E27) -> 28.40204962 | O27: =IF('Fert selector'!$D$15="Y",E27*N27,IF('Fert selector'!$E$15="Y",F27*S27,IF('Fert selector'!$F$15="Y",G27*X27,IF('Fert selector'!$G$15="Y",H27*AC27)))) -> 150 | P27: 0 | Q27: =IF((O27-'Fert selector'!$D$13)<0,(O27-'Fert selector'!$D$13)*-1,O27-'Fert selector'!$D$13) -> 0 | R27: =IF(O27<('Fert selector'!$D$13+'Fert selector'!$D$13*'Fert selector'!$D$17),0,1)&IF(O27>('Fert selector'!$D$13-'Fert selector'!$D$13*'Fert selector'!$D$18),0,1) -> 00 | S27: =IF(F27=0,0,'Fert selector'!$E$13/F27) -> 0 | T27: =IF('Fert selector'!$D$15="Y",$F27*$N27,IF('Fert selector'!$E$15="Y",$F27*$S27,IF('Fert selector'!$F$15="Y",$F27*$X27,IF('Fert selector'!$G$15="Y",$F27*$AC27)))) -> 30.06799116 | U27: 30.06799116 | V27: =IF((T27-'Fert selector'!$E$13)<0,(T27-'Fert selector'!$E$13)*-1,T27-'Fert selector'!$E$13) -> 30.06799116 | W27: =IF(T27<('Fert selector'!$E$13+'Fert selector'!$E$13*'Fert selector'!$E$17),0,1)&IF(T27>('Fert selector'!$E$13-'Fert selector'!$E$13*'Fert selector'!$E$18),0,1) -> 10 | X27: =IF(G27=0,0,'Fert selector'!$F$13/G27) -> 32.83206892 | Y27: =IF('Fert selector'!$D$15="Y",$G27*$N27,IF('Fert selector'!$E$15="Y",$G27*$S27,IF('Fert selector'!$F$15="Y",$G27*$X27,IF('Fert selector'!$G$15="Y",$G27*$AC27)))) -> 77.85633224 | Z27: 12.14366776 | AA27: =IF((Y27-'Fert selector'!$F$13)<0,(Y27-'Fert selector'!$F$13)*-1,Y27-'Fert selector'!$F$13) -> 12.14366776 | AB27: =IF(Y27<('Fert selector'!$F$13+'Fert selector'!$F$13*'Fert selector'!$F$17),0,1)&IF(Y27>('Fert selector'!$F$13-'Fert selector'!$F$13*'Fert selector'!$F$18),0,1) -> 01 | AC27: =IF(H27=0,0,'Fert selector'!$G$13/H27) -> 0 | AD27: =IF('Fert selector'!$D$15="Y",$H27*$N27,IF('Fert selector'!$E$15="Y",$H27*$S27,IF('Fert selector'!$F$15="Y",$H27*$X27,IF('Fert selector'!$G$15="Y",$H27*$AC27)))) -> 31.95134705 | AE27: 31.95134705 | AF27: =IF((AD27-'Fert selector'!$G$13)<0,(AD27-'Fert selector'!$G$13)*-1,AD27-'Fert selector'!$G$13) -> 31.95134705 | AG27: =IF(AD27<('Fert selector'!$G$13+'Fert selector'!$G$13*'Fert selector'!$G$17),0,1)&IF(AD27>('Fert selector'!$G$13-'Fert selector'!$G$13*'Fert selector'!$G$18),0,1) -> 10
B28: 44.03101744 | C28: 102158 | D28: =VLOOKUP(C28,'Data sheet'!B40:C104,2,FALSE) -> MKY 160P | E28: =VLOOKUP(C28,'Data sheet'!$B$1:$AG$65,26,FALSE) -> 3.738195881 | F28: =VLOOKUP(C28,'Data sheet'!$B$1:$AG$65,27,FALSE) -> 0.4709077304 | G28: =VLOOKUP(C28,'Data sheet'!$B$1:$AG$65,28,FALSE) -> 2.869320252 | H28: =VLOOKUP(C28,'Data sheet'!$B$1:$AG$65,29,FALSE) -> 0.7129649401 | N28: =IF(E28=0,0,'Fert selector'!$D$13/E28) -> 40.12630819 | O28: =IF('Fert selector'!$D$15="Y",E28*N28,IF('Fert selector'!$E$15="Y",F28*S28,IF('Fert selector'!$F$15="Y",G28*X28,IF('Fert selector'!$G$15="Y",H28*AC28)))) -> 150 | P28: 0 | Q28: =IF((O28-'Fert selector'!$D$13)<0,(O28-'Fert selector'!$D$13)*-1,O28-'Fert selector'!$D$13) -> 0 | R28: =IF(O28<('Fert selector'!$D$13+'Fert selector'!$D$13*'Fert selector'!$D$17),0,1)&IF(O28>('Fert selector'!$D$13-'Fert selector'!$D$13*'Fert selector'!$D$18),0,1) -> 00 | S28: =IF(F28=0,0,'Fert selector'!$E$13/F28) -> 0 | T28: =IF('Fert selector'!$D$15="Y",$F28*$N28,IF('Fert selector'!$E$15="Y",$F28*$S28,IF('Fert selector'!$F$15="Y",$F28*$X28,IF('Fert selector'!$G$15="Y",$F28*$AC28)))) -> 18.89578872 | U28: 18.89578872 | V28: =IF((T28-'Fert selector'!$E$13)<0,(T28-'Fert selector'!$E$13)*-1,T28-'Fert selector'!$E$13) -> 18.89578872 | W28: =IF(T28<('Fert selector'!$E$13+'Fert selector'!$E$13*'Fert selector'!$E$17),0,1)&IF(T28>('Fert selector'!$E$13-'Fert selector'!$E$13*'Fert selector'!$E$18),0,1) -> 10 | X28: =IF(G28=0,0,'Fert selector'!$F$13/G28) -> 31.36631401 | Y28: =IF('Fert selector'!$D$15="Y",$G28*$N28,IF('Fert selector'!$E$15="Y",$G28*$S28,IF('Fert selector'!$F$15="Y",$G28*$X28,IF('Fert selector'!$G$15="Y",$G28*$AC28)))) -> 115.1352287 | Z28: 25.13522872 | AA28: =IF((Y28-'Fert selector'!$F$13)<0,(Y28-'Fert selector'!$F$13)*-1,Y28-'Fert selector'!$F$13) -> 25.13522872 | AB28: =IF(Y28<('Fert selector'!$F$13+'Fert selector'!$F$13*'Fert selector'!$F$17),0,1)&IF(Y28>('Fert selector'!$F$13-'Fert selector'!$F$13*'Fert selector'!$F$18),0,1) -> 10 | AC28: =IF(H28=0,0,'Fert selector'!$G$13/H28) -> 0 | AD28: =IF('Fert selector'!$D$15="Y",$H28*$N28,IF('Fert selector'!$E$15="Y",$H28*$S28,IF('Fert selector'!$F$15="Y",$H28*$X28,IF('Fert selector'!$G$15="Y",$H28*$AC28)))) -> 28.60865091 | AE28: 28.60865091 | AF28: =IF((AD28-'Fert selector'!$G$13)<0,(AD28-'Fert selector'!$G$13)*-1,AD28-'Fert selector'!$G$13) -> 28.60865091 | AG28: =IF(AD28<('Fert selector'!$G$13+'Fert selector'!$G$13*'Fert selector'!$G$17),0,1)&IF(AD28>('Fert selector'!$G$13-'Fert selector'!$G$13*'Fert selector'!$G$18),0,1) -> 10
B29: 46.43998482 | C29: 94832 | D29: =VLOOKUP(C29,'Data sheet'!B3:C67,2,FALSE) -> BKN 230 | E29: =VLOOKUP(C29,'Data sheet'!$B$1:$AG$65,26,FALSE) -> 6.415157429 | F29: =VLOOKUP(C29,'Data sheet'!$B$1:$AG$65,27,FALSE) -> 0.8359515368 | G29: =VLOOKUP(C29,'Data sheet'!$B$1:$AG$65,28,FALSE) -> 2.698913904 | H29: =VLOOKUP(C29,'Data sheet'!$B$1:$AG$65,29,FALSE) -> 1.027868087 | N29: =IF(E29=0,0,'Fert selector'!$D$13/E29) -> 23.38212299 | O29: =IF('Fert selector'!$D$15="Y",E29*N29,IF('Fert selector'!$E$15="Y",F29*S29,IF('Fert selector'!$F$15="Y",G29*X29,IF('Fert selector'!$G$15="Y",H29*AC29)))) -> 150 | P29: 0 | Q29: =IF((O29-'Fert selector'!$D$13)<0,(O29-'Fert selector'!$D$13)*-1,O29-'Fert selector'!$D$13) -> 0 | R29: =IF(O29<('Fert selector'!$D$13+'Fert selector'!$D$13*'Fert selector'!$D$17),0,1)&IF(O29>('Fert selector'!$D$13-'Fert selector'!$D$13*'Fert selector'!$D$18),0,1) -> 00 | S29: =IF(F29=0,0,'Fert selector'!$E$13/F29) -> 0 | T29: =IF('Fert selector'!$D$15="Y",$F29*$N29,IF('Fert selector'!$E$15="Y",$F29*$S29,IF('Fert selector'!$F$15="Y",$F29*$X29,IF('Fert selector'!$G$15="Y",$F29*$AC29)))) -> 19.54632164 | U29: 19.54632164 | V29: =IF((T29-'Fert selector'!$E$13)<0,(T29-'Fert selector'!$E$13)*-1,T29-'Fert selector'!$E$13) -> 19.54632164 | W29: =IF(T29<('Fert selector'!$E$13+'Fert selector'!$E$13*'Fert selector'!$E$17),0,1)&IF(T29>('Fert selector'!$E$13-'Fert selector'!$E$13*'Fert selector'!$E$18),0,1) -> 10 | X29: =IF(G29=0,0,'Fert selector'!$F$13/G29) -> 33.34674733 | Y29: =IF('Fert selector'!$D$15="Y",$G29*$N29,IF('Fert selector'!$E$15="Y",$G29*$S29,IF('Fert selector'!$F$15="Y",$G29*$X29,IF('Fert selector'!$G$15="Y",$G29*$AC29)))) -> 63.10633683 | Z29: 26.89366317 | AA29: =IF((Y29-'Fert selector'!$F$13)<0,(Y29-'Fert selector'!$F$13)*-1,Y29-'Fert selector'!$F$13) -> 26.89366317 | AB29: =IF(Y29<('Fert selector'!$F$13+'Fert selector'!$F$13*'Fert selector'!$F$17),0,1)&IF(Y29>('Fert selector'!$F$13-'Fert selector'!$F$13*'Fert selector'!$F$18),0,1) -> 01 | AC29: =IF(H29=0,0,'Fert selector'!$G$13/H29) -> 0 | AD29: =IF('Fert selector'!$D$15="Y",$H29*$N29,IF('Fert selector'!$E$15="Y",$H29*$S29,IF('Fert selector'!$F$15="Y",$H29*$X29,IF('Fert selector'!$G$15="Y",$H29*$AC29)))) -> 24.03373804 | AE29: 24.03373804 | AF29: =IF((AD29-'Fert selector'!$G$13)<0,(AD29-'Fert selector'!$G$13)*-1,AD29-'Fert selector'!$G$13) -> 24.03373804 | AG29: =IF(AD29<('Fert selector'!$G$13+'Fert selector'!$G$13*'Fert selector'!$G$17),0,1)&IF(AD29>('Fert selector'!$G$13-'Fert selector'!$G$13*'Fert selector'!$G$18),0,1) -> 10
B30: 46.48419473 | C30: 102203 | D30: =VLOOKUP(C30,'Data sheet'!B36:C100,2,FALSE) -> MKY 140P | E30: =VLOOKUP(C30,'Data sheet'!$B$1:$AG$65,26,FALSE) -> 3.50752645 | F30: =VLOOKUP(C30,'Data sheet'!$B$1:$AG$65,27,FALSE) -> 0.2961302871 | G30: =VLOOKUP(C30,'Data sheet'!$B$1:$AG$65,28,FALSE) -> 2.8953492 | H30: =VLOOKUP(C30,'Data sheet'!$B$1:$AG$65,29,FALSE) -> 0.5982852384 | N30: =IF(E30=0,0,'Fert selector'!$D$13/E30) -> 42.76518 | O30: =IF('Fert selector'!$D$15="Y",E30*N30,IF('Fert selector'!$E$15="Y",F30*S30,IF('Fert selector'!$F$15="Y",G30*X30,IF('Fert selector'!$G$15="Y",H30*AC30)))) -> 150 | P30: 0 | Q30: =IF((O30-'Fert selector'!$D$13)<0,(O30-'Fert selector'!$D$13)*-1,O30-'Fert selector'!$D$13) -> 0 | R30: =IF(O30<('Fert selector'!$D$13+'Fert selector'!$D$13*'Fert selector'!$D$17),0,1)&IF(O30>('Fert selector'!$D$13-'Fert selector'!$D$13*'Fert selector'!$D$18),0,1) -> 00 | S30: =IF(F30=0,0,'Fert selector'!$E$13/F30) -> 0 | T30: =IF('Fert selector'!$D$15="Y",$F30*$N30,IF('Fert selector'!$E$15="Y",$F30*$S30,IF('Fert selector'!$F$15="Y",$F30*$X30,IF('Fert selector'!$G$15="Y",$F30*$AC30)))) -> 12.66406503 | U30: 12.66406503 | V30: =IF((T30-'Fert selector'!$E$13)<0,(T30-'Fert selector'!$E$13)*-1,T30-'Fert selector'!$E$13) -> 12.66406503 | W30: =IF(T30<('Fert selector'!$E$13+'Fert selector'!$E$13*'Fert selector'!$E$17),0,1)&IF(T30>('Fert selector'!$E$13-'Fert selector'!$E$13*'Fert selector'!$E$18),0,1) -> 10 | X30: =IF(G30=0,0,'Fert selector'!$F$13/G30) -> 31.08433346 | Y30: =IF('Fert selector'!$D$15="Y",$G30*$N30,IF('Fert selector'!$E$15="Y",$G30*$S30,IF('Fert selector'!$F$15="Y",$G30*$X30,IF('Fert selector'!$G$15="Y",$G30*$AC30)))) -> 123.8201297 | Z30: 33.82012969 | AA30: =IF((Y30-'Fert selector'!$F$13)<0,(Y30-'Fert selector'!$F$13)*-1,Y30-'Fert selector'!$F$13) -> 33.82012969 | AB30: =IF(Y30<('Fert selector'!$F$13+'Fert selector'!$F$13*'Fert selector'!$F$17),0,1)&IF(Y30>('Fert selector'!$F$13-'Fert selector'!$F$13*'Fert selector'!$F$18),0,1) -> 10 | AC30: =IF(H30=0,0,'Fert selector'!$G$13/H30) -> 0 | AD30: =IF('Fert selector'!$D$15="Y",$H30*$N30,IF('Fert selector'!$E$15="Y",$H30*$S30,IF('Fert selector'!$F$15="Y",$H30*$X30,IF('Fert selector'!$G$15="Y",$H30*$AC30)))) -> 25.58577591 | AE30: 25.58577591 | AF30: =IF((AD30-'Fert selector'!$G$13)<0,(AD30-'Fert selector'!$G$13)*-1,AD30-'Fert selector'!$G$13) -> 25.58577591 | AG30: =IF(AD30<('Fert selector'!$G$13+'Fert selector'!$G$13*'Fert selector'!$G$17),0,1)&IF(AD30>('Fert selector'!$G$13-'Fert selector'!$G$13*'Fert selector'!$G$18),0,1) -> 10
B31: 48.41950147 | C31: 107021 | D31: =VLOOKUP(C31,'Data sheet'!B4:C68,2,FALSE) -> BKN Lo P | E31: =VLOOKUP(C31,'Data sheet'!$B$1:$AG$65,26,FALSE) -> 8.179588918 | F31: =VLOOKUP(C31,'Data sheet'!$B$1:$AG$65,27,FALSE) -> 0.3747422818 | G31: =VLOOKUP(C31,'Data sheet'!$B$1:$AG$65,28,FALSE) -> 2.642151515 | H31: =VLOOKUP(C31,'Data sheet'!$B$1:$AG$65,29,FALSE) -> 0.8067383971 | N31: =IF(E31=0,0,'Fert selector'!$D$13/E31) -> 18.3383299 | O31: =IF('Fert selector'!$D$15="Y",E31*N31,IF('Fert selector'!$E$15="Y",F31*S31,IF('Fert selector'!$F$15="Y",G31*X31,IF('Fert selector'!$G$15="Y",H31*AC31)))) -> 150 | P31: 0 | Q31: =IF((O31-'Fert selector'!$D$13)<0,(O31-'Fert selector'!$D$13)*-1,O31-'Fert selector'!$D$13) -> 0 | R31: =IF(O31<('Fert selector'!$D$13+'Fert selector'!$D$13*'Fert selector'!$D$17),0,1)&IF(O31>('Fert selector'!$D$13-'Fert selector'!$D$13*'Fert selector'!$D$18),0,1) -> 00 | S31: =IF(F31=0,0,'Fert selector'!$E$13/F31) -> 0 | T31: =IF('Fert selector'!$D$15="Y",$F31*$N31,IF('Fert selector'!$E$15="Y",$F31*$S31,IF('Fert selector'!$F$15="Y",$F31*$X31,IF('Fert selector'!$G$15="Y",$F31*$AC31)))) -> 6.872147589 | U31: 6.872147589 | V31: =IF((T31-'Fert selector'!$E$13)<0,(T31-'Fert selector'!$E$13)*-1,T31-'Fert selector'!$E$13) -> 6.872147589 | W31: =IF(T31<('Fert selector'!$E$13+'Fert selector'!$E$13*'Fert selector'!$E$17),0,1)&IF(T31>('Fert selector'!$E$13-'Fert selector'!$E$13*'Fert selector'!$E$18),0,1) -> 10 | X31: =IF(G31=0,0,'Fert selector'!$F$13/G31) -> 34.06314872 | Y31: =IF('Fert selector'!$D$15="Y",$G31*$N31,IF('Fert selector'!$E$15="Y",$G31*$S31,IF('Fert selector'!$F$15="Y",$G31*$X31,IF('Fert selector'!$G$15="Y",$G31*$AC31)))) -> 48.45264612 | Z31: 41.54735388 | AA31: =IF((Y31-'Fert selector'!$F$13)<0,(Y31-'Fert selector'!$F$13)*-1,Y31-'Fert selector'!$F$13) -> 41.54735388 | AB31: =IF(Y31<('Fert selector'!$F$13+'Fert selector'!$F$13*'Fert selector'!$F$17),0,1)&IF(Y31>('Fert selector'!$F$13-'Fert selector'!$F$13*'Fert selector'!$F$18),0,1) -> 01 | AC31: =IF(H31=0,0,'Fert selector'!$G$13/H31) -> 0 | AD31: =IF('Fert selector'!$D$15="Y",$H31*$N31,IF('Fert selector'!$E$15="Y",$H31*$S31,IF('Fert selector'!$F$15="Y",$H31*$X31,IF('Fert selector'!$G$15="Y",$H31*$AC31)))) -> 14.79423487 | AE31: 14.79423487 | AF31: =IF((AD31-'Fert selector'!$G$13)<0,(AD31-'Fert selector'!$G$13)*-1,AD31-'Fert selector'!$G$13) -> 14.79423487 | AG31: =IF(AD31<('Fert selector'!$G$13+'Fert selector'!$G$13*'Fert selector'!$G$17),0,1)&IF(AD31>('Fert selector'!$G$13-'Fert selector'!$G$13*'Fert selector'!$G$18),0,1) -> 10
B32: 48.62472482 | C32: 102052 | D32: =VLOOKUP(C32,'Data sheet'!B61:C125,2,FALSE) -> SPRING 2 | E32: =VLOOKUP(C32,'Data sheet'!$B$1:$AG$65,26,FALSE) -> 3.77979028 | F32: =VLOOKUP(C32,'Data sheet'!$B$1:$AG$65,27,FALSE) -> 0.6393625574 | G32: =VLOOKUP(C32,'Data sheet'!$B$1:$AG$65,28,FALSE) -> 2.853786693 | H32: =VLOOKUP(C32,'Data sheet'!$B$1:$AG$65,29,FALSE) -> 0.8172899356 | N32: =IF(E32=0,0,'Fert selector'!$D$13/E32) -> 39.68474145 | O32: =IF('Fert selector'!$D$15="Y",E32*N32,IF('Fert selector'!$E$15="Y",F32*S32,IF('Fert selector'!$F$15="Y",G32*X32,IF('Fert selector'!$G$15="Y",H32*AC32)))) -> 150 | P32: 0 | Q32: =IF((O32-'Fert selector'!$D$13)<0,(O32-'Fert selector'!$D$13)*-1,O32-'Fert selector'!$D$13) -> 0 | R32: =IF(O32<('Fert selector'!$D$13+'Fert selector'!$D$13*'Fert selector'!$D$17),0,1)&IF(O32>('Fert selector'!$D$13-'Fert selector'!$D$13*'Fert selector'!$D$18),0,1) -> 00 | S32: =IF(F32=0,0,'Fert selector'!$E$13/F32) -> 0 | T32: =IF('Fert selector'!$D$15="Y",$F32*$N32,IF('Fert selector'!$E$15="Y",$F32*$S32,IF('Fert selector'!$F$15="Y",$F32*$X32,IF('Fert selector'!$G$15="Y",$F32*$AC32)))) -> 25.37293778 | U32: 25.37293778 | V32: =IF((T32-'Fert selector'!$E$13)<0,(T32-'Fert selector'!$E$13)*-1,T32-'Fert selector'!$E$13) -> 25.37293778 | W32: =IF(T32<('Fert selector'!$E$13+'Fert selector'!$E$13*'Fert selector'!$E$17),0,1)&IF(T32>('Fert selector'!$E$13-'Fert selector'!$E$13*'Fert selector'!$E$18),0,1) -> 10 | X32: =IF(G32=0,0,'Fert selector'!$F$13/G32) -> 31.53704523 | Y32: =IF('Fert selector'!$D$15="Y",$G32*$N32,IF('Fert selector'!$E$15="Y",$G32*$S32,IF('Fert selector'!$F$15="Y",$G32*$X32,IF('Fert selector'!$G$15="Y",$G32*$AC32)))) -> 113.251787 | Z32: 23.25178704 | AA32: =IF((Y32-'Fert selector'!$F$13)<0,(Y32-'Fert selector'!$F$13)*-1,Y32-'Fert selector'!$F$13) -> 23.25178704 | AB32: =IF(Y32<('Fert selector'!$F$13+'Fert selector'!$F$13*'Fert selector'!$F$17),0,1)&IF(Y32>('Fert selector'!$F$13-'Fert selector'!$F$13*'Fert selector'!$F$18),0,1) -> 10 | AC32: =IF(H32=0,0,'Fert selector'!$G$13/H32) -> 0 | AD32: =IF('Fert selector'!$D$15="Y",$H32*$N32,IF('Fert selector'!$E$15="Y",$H32*$S32,IF('Fert selector'!$F$15="Y",$H32*$X32,IF('Fert selector'!$G$15="Y",$H32*$AC32)))) -> 32.43393978 | AE32: 32.43393978 | AF32: =IF((AD32-'Fert selector'!$G$13)<0,(AD32-'Fert selector'!$G$13)*-1,AD32-'Fert selector'!$G$13) -> 32.43393978 | AG32: =IF(AD32<('Fert selector'!$G$13+'Fert selector'!$G$13*'Fert selector'!$G$17),0,1)&IF(AD32>('Fert selector'!$G$13-'Fert selector'!$G$13*'Fert selector'!$G$18),0,1) -> 10
B33: 49.3850612 | C33: 96985 | D33: =VLOOKUP(C33,'Data sheet'!B53:C117,2,FALSE) -> PMR 2 | E33: =VLOOKUP(C33,'Data sheet'!$B$1:$AG$65,26,FALSE) -> 3.831799518 | F33: =VLOOKUP(C33,'Data sheet'!$B$1:$AG$65,27,FALSE) -> 0.7156379431 | G33: =VLOOKUP(C33,'Data sheet'!$B$1:$AG$65,28,FALSE) -> 2.844999459 | H33: =VLOOKUP(C33,'Data sheet'!$B$1:$AG$65,29,FALSE) -> 0.86566692 | N33: =IF(E33=0,0,'Fert selector'!$D$13/E33) -> 39.14609814 | O33: =IF('Fert selector'!$D$15="Y",E33*N33,IF('Fert selector'!$E$15="Y",F33*S33,IF('Fert selector'!$F$15="Y",G33*X33,IF('Fert selector'!$G$15="Y",H33*AC33)))) -> 150 | P33: 0 | Q33: =IF((O33-'Fert selector'!$D$13)<0,(O33-'Fert selector'!$D$13)*-1,O33-'Fert selector'!$D$13) -> 0 | R33: =IF(O33<('Fert selector'!$D$13+'Fert selector'!$D$13*'Fert selector'!$D$17),0,1)&IF(O33>('Fert selector'!$D$13-'Fert selector'!$D$13*'Fert selector'!$D$18),0,1) -> 00 | S33: =IF(F33=0,0,'Fert selector'!$E$13/F33) -> 0 | T33: =IF('Fert selector'!$D$15="Y",$F33*$N33,IF('Fert selector'!$E$15="Y",$F33*$S33,IF('Fert selector'!$F$15="Y",$F33*$X33,IF('Fert selector'!$G$15="Y",$F33*$AC33)))) -> 28.01443316 | U33: 28.01443316 | V33: =IF((T33-'Fert selector'!$E$13)<0,(T33-'Fert selector'!$E$13)*-1,T33-'Fert selector'!$E$13) -> 28.01443316 | W33: =IF(T33<('Fert selector'!$E$13+'Fert selector'!$E$13*'Fert selector'!$E$17),0,1)&IF(T33>('Fert selector'!$E$13-'Fert selector'!$E$13*'Fert selector'!$E$18),0,1) -> 10 | X33: =IF(G33=0,0,'Fert selector'!$F$13/G33) -> 31.63445241 | Y33: =IF('Fert selector'!$D$15="Y",$G33*$N33,IF('Fert selector'!$E$15="Y",$G33*$S33,IF('Fert selector'!$F$15="Y",$G33*$X33,IF('Fert selector'!$G$15="Y",$G33*$AC33)))) -> 111.370628 | Z33: 21.37062804 | AA33: =IF((Y33-'Fert selector'!$F$13)<0,(Y33-'Fert selector'!$F$13)*-1,Y33-'Fert selector'!$F$13) -> 21.37062804 | AB33: =IF(Y33<('Fert selector'!$F$13+'Fert selector'!$F$13*'Fert selector'!$F$17),0,1)&IF(Y33>('Fert selector'!$F$13-'Fert selector'!$F$13*'Fert selector'!$F$18),0,1) -> 10 | AC33: =IF(H33=0,0,'Fert selector'!$G$13/H33) -> 0 | AD33: =IF('Fert selector'!$D$15="Y",$H33*$N33,IF('Fert selector'!$E$15="Y",$H33*$S33,IF('Fert selector'!$F$15="Y",$H33*$X33,IF('Fert selector'!$G$15="Y",$H33*$AC33)))) -> 33.88748221 | AE33: 33.88748221 | AF33: =IF((AD33-'Fert selector'!$G$13)<0,(AD33-'Fert selector'!$G$13)*-1,AD33-'Fert selector'!$G$13) -> 33.88748221 | AG33: =IF(AD33<('Fert selector'!$G$13+'Fert selector'!$G$13*'Fert selector'!$G$17),0,1)&IF(AD33>('Fert selector'!$G$13-'Fert selector'!$G$13*'Fert selector'!$G$18),0,1) -> 10
B34: 53.21161819 | C34: 102200 | D34: =VLOOKUP(C34,'Data sheet'!B54:C118,2,FALSE) -> PMR 3 | E34: =VLOOKUP(C34,'Data sheet'!$B$1:$AG$65,26,FALSE) -> 3.444368262 | F34: =VLOOKUP(C34,'Data sheet'!$B$1:$AG$65,27,FALSE) -> 0.397854948 | G34: =VLOOKUP(C34,'Data sheet'!$B$1:$AG$65,28,FALSE) -> 2.890635401 | H34: =VLOOKUP(C34,'Data sheet'!$B$1:$AG$65,29,FALSE) -> 0.6582525585 | N34: =IF(E34=0,0,'Fert selector'!$D$13/E34) -> 43.5493503 | O34: =IF('Fert selector'!$D$15="Y",E34*N34,IF('Fert selector'!$E$15="Y",F34*S34,IF('Fert selector'!$F$15="Y",G34*X34,IF('Fert selector'!$G$15="Y",H34*AC34)))) -> 150 | P34: 0 | Q34: =IF((O34-'Fert selector'!$D$13)<0,(O34-'Fert selector'!$D$13)*-1,O34-'Fert selector'!$D$13) -> 0 | R34: =IF(O34<('Fert selector'!$D$13+'Fert selector'!$D$13*'Fert selector'!$D$17),0,1)&IF(O34>('Fert selector'!$D$13-'Fert selector'!$D$13*'Fert selector'!$D$18),0,1) -> 00 | S34: =IF(F34=0,0,'Fert selector'!$E$13/F34) -> 0 | T34: =IF('Fert selector'!$D$15="Y",$F34*$N34,IF('Fert selector'!$E$15="Y",$F34*$S34,IF('Fert selector'!$F$15="Y",$F34*$X34,IF('Fert selector'!$G$15="Y",$F34*$AC34)))) -> 17.3263245 | U34: 17.3263245 | V34: =IF((T34-'Fert selector'!$E$13)<0,(T34-'Fert selector'!$E$13)*-1,T34-'Fert selector'!$E$13) -> 17.3263245 | W34: =IF(T34<('Fert selector'!$E$13+'Fert selector'!$E$13*'Fert selector'!$E$17),0,1)&IF(T34>('Fert selector'!$E$13-'Fert selector'!$E$13*'Fert selector'!$E$18),0,1) -> 10 | X34: =IF(G34=0,0,'Fert selector'!$F$13/G34) -> 31.1350231 | Y34: =IF('Fert selector'!$D$15="Y",$G34*$N34,IF('Fert selector'!$E$15="Y",$G34*$S34,IF('Fert selector'!$F$15="Y",$G34*$X34,IF('Fert selector'!$G$15="Y",$G34*$AC34)))) -> 125.8852937 | Z34: 35.88529369 | AA34: =IF((Y34-'Fert selector'!$F$13)<0,(Y34-'Fert selector'!$F$13)*-1,Y34-'Fert selector'!$F$13) -> 35.88529369 | AB34: =IF(Y34<('Fert selector'!$F$13+'Fert selector'!$F$13*'Fert selector'!$F$17),0,1)&IF(Y34>('Fert selector'!$F$13-'Fert selector'!$F$13*'Fert selector'!$F$18),0,1) -> 10 | AC34: =IF(H34=0,0,'Fert selector'!$G$13/H34) -> 0 | AD34: =IF('Fert selector'!$D$15="Y",$H34*$N34,IF('Fert selector'!$E$15="Y",$H34*$S34,IF('Fert selector'!$F$15="Y",$H34*$X34,IF('Fert selector'!$G$15="Y",$H34*$AC34)))) -> 28.66647126 | AE34: 28.66647126 | AF34: =IF((AD34-'Fert selector'!$G$13)<0,(AD34-'Fert selector'!$G$13)*-1,AD34-'Fert selector'!$G$13) -> 28.66647126 | AG34: =IF(AD34<('Fert selector'!$G$13+'Fert selector'!$G$13*'Fert selector'!$G$17),0,1)&IF(AD34>('Fert selector'!$G$13-'Fert selector'!$G$13*'Fert selector'!$G$18),0,1) -> 10
B35: =P35+U35+Z35 -> 53.97666594 | C35: 95514 | D35: =VLOOKUP(C35,'Data sheet'!B38:C102,2,FALSE) -> MKY 150P | E35: =VLOOKUP(C35,'Data sheet'!$B$1:$AG$65,26,FALSE) -> 3.496377499 | F35: =VLOOKUP(C35,'Data sheet'!$B$1:$AG$65,27,FALSE) -> 0.4741303337 | G35: =VLOOKUP(C35,'Data sheet'!$B$1:$AG$65,28,FALSE) -> 2.881848168 | H35: =VLOOKUP(C35,'Data sheet'!$B$1:$AG$65,29,FALSE) -> 0.706629543 | N35: =IF(E35=0,0,'Fert selector'!$D$13/E35) -> 42.90154597 | O35: =IF('Fert selector'!$D$15="Y",E35*N35,IF('Fert selector'!$E$15="Y",F35*S35,IF('Fert selector'!$F$15="Y",G35*X35,IF('Fert selector'!$G$15="Y",H35*AC35)))) -> 150 | P35: 0 | Q35: =IF((O35-'Fert selector'!$D$13)<0,(O35-'Fert selector'!$D$13)*-1,O35-'Fert selector'!$D$13) -> 0 | R35: =IF(O35<('Fert selector'!$D$13+'Fert selector'!$D$13*'Fert selector'!$D$17),0,1)&IF(O35>('Fert selector'!$D$13-'Fert selector'!$D$13*'Fert selector'!$D$18),0,1) -> 00 | S35: =IF(F35=0,0,'Fert selector'!$E$13/F35) -> 0 | T35: =IF('Fert selector'!$D$15="Y",$F35*$N35,IF('Fert selector'!$E$15="Y",$F35*$S35,IF('Fert selector'!$F$15="Y",$F35*$X35,IF('Fert selector'!$G$15="Y",$F35*$AC35)))) -> 20.3409243 | U35: 20.3409243 | V35: =IF((T35-'Fert selector'!$E$13)<0,(T35-'Fert selector'!$E$13)*-1,T35-'Fert selector'!$E$13) -> 20.3409243 | W35: =IF(T35<('Fert selector'!$E$13+'Fert selector'!$E$13*'Fert selector'!$E$17),0,1)&IF(T35>('Fert selector'!$E$13-'Fert selector'!$E$13*'Fert selector'!$E$18),0,1) -> 10 | X35: =IF(G35=0,0,'Fert selector'!$F$13/G35) -> 31.22995896 | Y35: =IF('Fert selector'!$D$15="Y",$G35*$N35,IF('Fert selector'!$E$15="Y",$G35*$S35,IF('Fert selector'!$F$15="Y",$G35*$X35,IF('Fert selector'!$G$15="Y",$G35*$AC35)))) -> 123.6357416 | Z35: 33.63574163 | AA35: =IF((Y35-'Fert selector'!$F$13)<0,(Y35-'Fert selector'!$F$13)*-1,Y35-'Fert selector'!$F$13) -> 33.63574163 | AB35: =IF(Y35<('Fert selector'!$F$13+'Fert selector'!$F$13*'Fert selector'!$F$17),0,1)&IF(Y35>('Fert selector'!$F$13-'Fert selector'!$F$13*'Fert selector'!$F$18),0,1) -> 10 | AC35: =IF(H35=0,0,'Fert selector'!$G$13/H35) -> 0 | AD35: =IF('Fert selector'!$D$15="Y",$H35*$N35,IF('Fert selector'!$E$15="Y",$H35*$S35,IF('Fert selector'!$F$15="Y",$H35*$X35,IF('Fert selector'!$G$15="Y",$H35*$AC35)))) -> 30.31549982 | AE35: 30.31549982 | AF35: =IF((AD35-'Fert selector'!$G$13)<0,(AD35-'Fert selector'!$G$13)*-1,AD35-'Fert selector'!$G$13) -> 30.31549982 | AG35: =IF(AD35<('Fert selector'!$G$13+'Fert selector'!$G$13*'Fert selector'!$G$17),0,1)&IF(AD35>('Fert selector'!$G$13-'Fert selector'!$G$13*'Fert selector'!$G$18),0,1) -> 10
B36: 55.64351882 | C36: 81811 | D36: =VLOOKUP(C36,'Data sheet'!B20:C84,2,FALSE) -> LIQUID 50/50 | E36: =VLOOKUP(C36,'Data sheet'!$B$1:$AG$65,26,FALSE) -> 3.041113755 | F36: =VLOOKUP(C36,'Data sheet'!$B$1:$AG$65,27,FALSE) -> 0.01014704487 | G36: =VLOOKUP(C36,'Data sheet'!$B$1:$AG$65,28,FALSE) -> 2.942643011 | H36: =VLOOKUP(C36,'Data sheet'!$B$1:$AG$65,29,FALSE) -> 0.4075828504 | N36: =IF(E36=0,0,'Fert selector'!$D$13/E36) -> 49.32403457 | O36: =IF('Fert selector'!$D$15="Y",E36*N36,IF('Fert selector'!$E$15="Y",F36*S36,IF('Fert selector'!$F$15="Y",G36*X36,IF('Fert selector'!$G$15="Y",H36*AC36)))) -> 150 | P36: 0 | Q36: =IF((O36-'Fert selector'!$D$13)<0,(O36-'Fert selector'!$D$13)*-1,O36-'Fert selector'!$D$13) -> 0 | R36: =IF(O36<('Fert selector'!$D$13+'Fert selector'!$D$13*'Fert selector'!$D$17),0,1)&IF(O36>('Fert selector'!$D$13-'Fert selector'!$D$13*'Fert selector'!$D$18),0,1) -> 00 | S36: =IF(F36=0,0,'Fert selector'!$E$13/F36) -> 0 | T36: =IF('Fert selector'!$D$15="Y",$F36*$N36,IF('Fert selector'!$E$15="Y",$F36*$S36,IF('Fert selector'!$F$15="Y",$F36*$X36,IF('Fert selector'!$G$15="Y",$F36*$AC36)))) -> 0.5004931918 | U36: 0.5004931918 | V36: =IF((T36-'Fert selector'!$E$13)<0,(T36-'Fert selector'!$E$13)*-1,T36-'Fert selector'!$E$13) -> 0.5004931918 | W36: =IF(T36<('Fert selector'!$E$13+'Fert selector'!$E$13*'Fert selector'!$E$17),0,1)&IF(T36>('Fert selector'!$E$13-'Fert selector'!$E$13*'Fert selector'!$E$18),0,1) -> 10 | X36: =IF(G36=0,0,'Fert selector'!$F$13/G36) -> 30.58474971 | Y36: =IF('Fert selector'!$D$15="Y",$G36*$N36,IF('Fert selector'!$E$15="Y",$G36*$S36,IF('Fert selector'!$F$15="Y",$G36*$X36,IF('Fert selector'!$G$15="Y",$G36*$AC36)))) -> 145.1430256 | Z36: 55.14302563 | AA36: =IF((Y36-'Fert selector'!$F$13)<0,(Y36-'Fert selector'!$F$13)*-1,Y36-'Fert selector'!$F$13) -> 55.14302563 | AB36: =IF(Y36<('Fert selector'!$F$13+'Fert selector'!$F$13*'Fert selector'!$F$17),0,1)&IF(Y36>('Fert selector'!$F$13-'Fert selector'!$F$13*'Fert selector'!$F$18),0,1) -> 10 | AC36: =IF(H36=0,0,'Fert selector'!$G$13/H36) -> 0 | AD36: =IF('Fert selector'!$D$15="Y",$H36*$N36,IF('Fert selector'!$E$15="Y",$H36*$S36,IF('Fert selector'!$F$15="Y",$H36*$X36,IF('Fert selector'!$G$15="Y",$H36*$AC36)))) -> 20.10363061 | AE36: 20.10363061 | AF36: =IF((AD36-'Fert selector'!$G$13)<0,(AD36-'Fert selector'!$G$13)*-1,AD36-'Fert selector'!$G$13) -> 20.10363061 | AG36: =IF(AD36<('Fert selector'!$G$13+'Fert selector'!$G$13*'Fert selector'!$G$17),0,1)&IF(AD36>('Fert selector'!$G$13-'Fert selector'!$G$13*'Fert selector'!$G$18),0,1) -> 10
B37: 57.1123737 | C37: 98866 | D37: =VLOOKUP(C37,'Data sheet'!B11:C75,2,FALSE) -> DELTA 1 | E37: =VLOOKUP(C37,'Data sheet'!$B$1:$AG$65,26,FALSE) -> 11.37356668 | F37: =VLOOKUP(C37,'Data sheet'!$B$1:$AG$65,27,FALSE) -> 0.008628595398 | G37: =VLOOKUP(C37,'Data sheet'!$B$1:$AG$65,28,FALSE) -> 2.502292665 | H37: =VLOOKUP(C37,'Data sheet'!$B$1:$AG$65,29,FALSE) -> 0.6927850718 | N37: =IF(E37=0,0,'Fert selector'!$D$13/E37) -> 13.18847502 | O37: =IF('Fert selector'!$D$15="Y",E37*N37,IF('Fert selector'!$E$15="Y",F37*S37,IF('Fert selector'!$F$15="Y",G37*X37,IF('Fert selector'!$G$15="Y",H37*AC37)))) -> 150 | P37: 0 | Q37: =IF((O37-'Fert selector'!$D$13)<0,(O37-'Fert selector'!$D$13)*-1,O37-'Fert selector'!$D$13) -> 0 | R37: =IF(O37<('Fert selector'!$D$13+'Fert selector'!$D$13*'Fert selector'!$D$17),0,1)&IF(O37>('Fert selector'!$D$13-'Fert selector'!$D$13*'Fert selector'!$D$18),0,1) -> 00 | S37: =IF(F37=0,0,'Fert selector'!$E$13/F37) -> 0 | T37: =IF('Fert selector'!$D$15="Y",$F37*$N37,IF('Fert selector'!$E$15="Y",$F37*$S37,IF('Fert selector'!$F$15="Y",$F37*$X37,IF('Fert selector'!$G$15="Y",$F37*$AC37)))) -> 0.1137980149 | U37: 0.1137980149 | V37: =IF((T37-'Fert selector'!$E$13)<0,(T37-'Fert selector'!$E$13)*-1,T37-'Fert selector'!$E$13) -> 0.1137980149 | W37: =IF(T37<('Fert selector'!$E$13+'Fert selector'!$E$13*'Fert selector'!$E$17),0,1)&IF(T37>('Fert selector'!$E$13-'Fert selector'!$E$13*'Fert selector'!$E$18),0,1) -> 10 | X37: =IF(G37=0,0,'Fert selector'!$F$13/G37) -> 35.96701587 | Y37: =IF('Fert selector'!$D$15="Y",$G37*$N37,IF('Fert selector'!$E$15="Y",$G37*$S37,IF('Fert selector'!$F$15="Y",$G37*$X37,IF('Fert selector'!$G$15="Y",$G37*$AC37)))) -> 33.00142431 | Z37: 56.99857569 | AA37: =IF((Y37-'Fert selector'!$F$13)<0,(Y37-'Fert selector'!$F$13)*-1,Y37-'Fert selector'!$F$13) -> 56.99857569 | AB37: =IF(Y37<('Fert selector'!$F$13+'Fert selector'!$F$13*'Fert selector'!$F$17),0,1)&IF(Y37>('Fert selector'!$F$13-'Fert selector'!$F$13*'Fert selector'!$F$18),0,1) -> 01 | AC37: =IF(H37=0,0,'Fert selector'!$G$13/H37) -> 0 | AD37: =IF('Fert selector'!$D$15="Y",$H37*$N37,IF('Fert selector'!$E$15="Y",$H37*$S37,IF('Fert selector'!$F$15="Y",$H37*$X37,IF('Fert selector'!$G$15="Y",$H37*$AC37)))) -> 9.136778613 | AE37: 9.136778613 | AF37: =IF((AD37-'Fert selector'!$G$13)<0,(AD37-'Fert selector'!$G$13)*-1,AD37-'Fert selector'!$G$13) -> 9.136778613 | AG37: =IF(AD37<('Fert selector'!$G$13+'Fert selector'!$G$13*'Fert selector'!$G$17),0,1)&IF(AD37>('Fert selector'!$G$13-'Fert selector'!$G$13*'Fert selector'!$G$18),0,1) -> 10
B38: 58.35405372 | C38: 81051 | D38: =VLOOKUP(C38,'Data sheet'!B18:C82,2,FALSE) -> HI N + P | E38: =VLOOKUP(C38,'Data sheet'!$B$1:$AG$65,26,FALSE) -> 8.191741607 | F38: =VLOOKUP(C38,'Data sheet'!$B$1:$AG$65,27,FALSE) -> 0.8737702159 | G38: =VLOOKUP(C38,'Data sheet'!$B$1:$AG$65,28,FALSE) -> 2.602006315 | H38: =VLOOKUP(C38,'Data sheet'!$B$1:$AG$65,29,FALSE) -> 1.111975211 | N38: =IF(E38=0,0,'Fert selector'!$D$13/E38) -> 18.31112445 | O38: =IF('Fert selector'!$D$15="Y",E38*N38,IF('Fert selector'!$E$15="Y",F38*S38,IF('Fert selector'!$F$15="Y",G38*X38,IF('Fert selector'!$G$15="Y",H38*AC38)))) -> 150 | P38: 0 | Q38: =IF((O38-'Fert selector'!$D$13)<0,(O38-'Fert selector'!$D$13)*-1,O38-'Fert selector'!$D$13) -> 0 | R38: =IF(O38<('Fert selector'!$D$13+'Fert selector'!$D$13*'Fert selector'!$D$17),0,1)&IF(O38>('Fert selector'!$D$13-'Fert selector'!$D$13*'Fert selector'!$D$18),0,1) -> 00 | S38: =IF(F38=0,0,'Fert selector'!$E$13/F38) -> 0 | T38: =IF('Fert selector'!$D$15="Y",$F38*$N38,IF('Fert selector'!$E$15="Y",$F38*$S38,IF('Fert selector'!$F$15="Y",$F38*$X38,IF('Fert selector'!$G$15="Y",$F38*$AC38)))) -> 15.99971516 | U38: 15.99971516 | V38: =IF((T38-'Fert selector'!$E$13)<0,(T38-'Fert selector'!$E$13)*-1,T38-'Fert selector'!$E$13) -> 15.99971516 | W38: =IF(T38<('Fert selector'!$E$13+'Fert selector'!$E$13*'Fert selector'!$E$17),0,1)&IF(T38>('Fert selector'!$E$13-'Fert selector'!$E$13*'Fert selector'!$E$18),0,1) -> 10 | X38: =IF(G38=0,0,'Fert selector'!$F$13/G38) -> 34.58869392 | Y38: =IF('Fert selector'!$D$15="Y",$G38*$N38,IF('Fert selector'!$E$15="Y",$G38*$S38,IF('Fert selector'!$F$15="Y",$G38*$X38,IF('Fert selector'!$G$15="Y",$G38*$AC38)))) -> 47.64566145 | Z38: 42.35433855 | AA38: =IF((Y38-'Fert selector'!$F$13)<0,(Y38-'Fert selector'!$F$13)*-1,Y38-'Fert selector'!$F$13) -> 42.35433855 | AB38: =IF(Y38<('Fert selector'!$F$13+'Fert selector'!$F$13*'Fert selector'!$F$17),0,1)&IF(Y38>('Fert selector'!$F$13-'Fert selector'!$F$13*'Fert selector'!$F$18),0,1) -> 01 | AC38: =IF(H38=0,0,'Fert selector'!$G$13/H38) -> 0 | AD38: =IF('Fert selector'!$D$15="Y",$H38*$N38,IF('Fert selector'!$E$15="Y",$H38*$S38,IF('Fert selector'!$F$15="Y",$H38*$X38,IF('Fert selector'!$G$15="Y",$H38*$AC38)))) -> 20.36151648 | AE38: 20.36151648 | AF38: =IF((AD38-'Fert selector'!$G$13)<0,(AD38-'Fert selector'!$G$13)*-1,AD38-'Fert selector'!$G$13) -> 20.36151648 | AG38: =IF(AD38<('Fert selector'!$G$13+'Fert selector'!$G$13*'Fert selector'!$G$17),0,1)&IF(AD38>('Fert selector'!$G$13-'Fert selector'!$G$13*'Fert selector'!$G$18),0,1) -> 10
B39: 59.88691373 | C39: 88636 | D39: =VLOOKUP(C39,'Data sheet'!B9:C73,2,FALSE) -> CORN 2 | E39: =VLOOKUP(C39,'Data sheet'!$B$1:$AG$65,26,FALSE) -> 4.188787778 | F39: =VLOOKUP(C39,'Data sheet'!$B$1:$AG$65,27,FALSE) -> 1.414850803 | G39: =VLOOKUP(C39,'Data sheet'!$B$1:$AG$65,28,FALSE) -> 2.770779012 | H39: =VLOOKUP(C39,'Data sheet'!$B$1:$AG$65,29,FALSE) -> 1.305023374 | N39: =IF(E39=0,0,'Fert selector'!$D$13/E39) -> 35.80988294 | O39: =IF('Fert selector'!$D$15="Y",E39*N39,IF('Fert selector'!$E$15="Y",F39*S39,IF('Fert selector'!$F$15="Y",G39*X39,IF('Fert selector'!$G$15="Y",H39*AC39)))) -> 150 | P39: 0 | Q39: =IF((O39-'Fert selector'!$D$13)<0,(O39-'Fert selector'!$D$13)*-1,O39-'Fert selector'!$D$13) -> 0 | R39: =IF(O39<('Fert selector'!$D$13+'Fert selector'!$D$13*'Fert selector'!$D$17),0,1)&IF(O39>('Fert selector'!$D$13-'Fert selector'!$D$13*'Fert selector'!$D$18),0,1) -> 00 | S39: =IF(F39=0,0,'Fert selector'!$E$13/F39) -> 0 | T39: =IF('Fert selector'!$D$15="Y",$F39*$N39,IF('Fert selector'!$E$15="Y",$F39*$S39,IF('Fert selector'!$F$15="Y",$F39*$X39,IF('Fert selector'!$G$15="Y",$F39*$AC39)))) -> 50.66564165 | U39: 50.66564165 | V39: =IF((T39-'Fert selector'!$E$13)<0,(T39-'Fert selector'!$E$13)*-1,T39-'Fert selector'!$E$13) -> 50.66564165 | W39: =IF(T39<('Fert selector'!$E$13+'Fert selector'!$E$13*'Fert selector'!$E$17),0,1)&IF(T39>('Fert selector'!$E$13-'Fert selector'!$E$13*'Fert selector'!$E$18),0,1) -> 10 | X39: =IF(G39=0,0,'Fert selector'!$F$13/G39) -> 32.4818398 | Y39: =IF('Fert selector'!$D$15="Y",$G39*$N39,IF('Fert selector'!$E$15="Y",$G39*$S39,IF('Fert selector'!$F$15="Y",$G39*$X39,IF('Fert selector'!$G$15="Y",$G39*$AC39)))) -> 99.22127208 | Z39: 9.221272082 | AA39: =IF((Y39-'Fert selector'!$F$13)<0,(Y39-'Fert selector'!$F$13)*-1,Y39-'Fert selector'!$F$13) -> 9.221272082 | AB39: =IF(Y39<('Fert selector'!$F$13+'Fert selector'!$F$13*'Fert selector'!$F$17),0,1)&IF(Y39>('Fert selector'!$F$13-'Fert selector'!$F$13*'Fert selector'!$F$18),0,1) -> 10 | AC39: =IF(H39=0,0,'Fert selector'!$G$13/H39) -> 0 | AD39: =IF('Fert selector'!$D$15="Y",$H39*$N39,IF('Fert selector'!$E$15="Y",$H39*$S39,IF('Fert selector'!$F$15="Y",$H39*$X39,IF('Fert selector'!$G$15="Y",$H39*$AC39)))) -> 46.73273427 | AE39: 46.73273427 | AF39: =IF((AD39-'Fert selector'!$G$13)<0,(AD39-'Fert selector'!$G$13)*-1,AD39-'Fert selector'!$G$13) -> 46.73273427 | AG39: =IF(AD39<('Fert selector'!$G$13+'Fert selector'!$G$13*'Fert selector'!$G$17),0,1)&IF(AD39>('Fert selector'!$G$13-'Fert selector'!$G$13*'Fert selector'!$G$18),0,1) -> 10
B40: 61.96701013 | C40: 96561 | D40: =VLOOKUP(C40,'Data sheet'!B51:C115,2,FALSE) -> PB165_76 | E40: =VLOOKUP(C40,'Data sheet'!$B$1:$AG$65,26,FALSE) -> 5.807943424 | F40: =VLOOKUP(C40,'Data sheet'!$B$1:$AG$65,27,FALSE) -> 1.586196682 | G40: =VLOOKUP(C40,'Data sheet'!$B$1:$AG$65,28,FALSE) -> 2.671623477 | H40: =VLOOKUP(C40,'Data sheet'!$B$1:$AG$65,29,FALSE) -> 1.465286485 | N40: =IF(E40=0,0,'Fert selector'!$D$13/E40) -> 25.82669786 | O40: =IF('Fert selector'!$D$15="Y",E40*N40,IF('Fert selector'!$E$15="Y",F40*S40,IF('Fert selector'!$F$15="Y",G40*X40,IF('Fert selector'!$G$15="Y",H40*AC40)))) -> 150 | P40: 0 | Q40: =IF((O40-'Fert selector'!$D$13)<0,(O40-'Fert selector'!$D$13)*-1,O40-'Fert selector'!$D$13) -> 0 | R40: =IF(O40<('Fert selector'!$D$13+'Fert selector'!$D$13*'Fert selector'!$D$17),0,1)&IF(O40>('Fert selector'!$D$13-'Fert selector'!$D$13*'Fert selector'!$D$18),0,1) -> 00 | S40: =IF(F40=0,0,'Fert selector'!$E$13/F40) -> 0 | T40: =IF('Fert selector'!$D$15="Y",$F40*$N40,IF('Fert selector'!$E$15="Y",$F40*$S40,IF('Fert selector'!$F$15="Y",$F40*$X40,IF('Fert selector'!$G$15="Y",$F40*$AC40)))) -> 40.96622246 | U40: 40.96622246 | V40: =IF((T40-'Fert selector'!$E$13)<0,(T40-'Fert selector'!$E$13)*-1,T40-'Fert selector'!$E$13) -> 40.96622246 | W40: =IF(T40<('Fert selector'!$E$13+'Fert selector'!$E$13*'Fert selector'!$E$17),0,1)&IF(T40>('Fert selector'!$E$13-'Fert selector'!$E$13*'Fert selector'!$E$18),0,1) -> 10 | X40: =IF(G40=0,0,'Fert selector'!$F$13/G40) -> 33.68738177 | Y40: =IF('Fert selector'!$D$15="Y",$G40*$N40,IF('Fert selector'!$E$15="Y",$G40*$S40,IF('Fert selector'!$F$15="Y",$G40*$X40,IF('Fert selector'!$G$15="Y",$G40*$AC40)))) -> 68.99921233 | Z40: 21.00078767 | AA40: =IF((Y40-'Fert selector'!$F$13)<0,(Y40-'Fert selector'!$F$13)*-1,Y40-'Fert selector'!$F$13) -> 21.00078767 | AB40: =IF(Y40<('Fert selector'!$F$13+'Fert selector'!$F$13*'Fert selector'!$F$17),0,1)&IF(Y40>('Fert selector'!$F$13-'Fert selector'!$F$13*'Fert selector'!$F$18),0,1) -> 01 | AC40: =IF(H40=0,0,'Fert selector'!$G$13/H40) -> 0 | AD40: =IF('Fert selector'!$D$15="Y",$H40*$N40,IF('Fert selector'!$E$15="Y",$H40*$S40,IF('Fert selector'!$F$15="Y",$H40*$X40,IF('Fert selector'!$G$15="Y",$H40*$AC40)))) -> 37.84351133 | AE40: 37.84351133 | AF40: =IF((AD40-'Fert selector'!$G$13)<0,(AD40-'Fert selector'!$G$13)*-1,AD40-'Fert selector'!$G$13) -> 37.84351133 | AG40: =IF(AD40<('Fert selector'!$G$13+'Fert selector'!$G$13*'Fert selector'!$G$17),0,1)&IF(AD40>('Fert selector'!$G$13-'Fert selector'!$G$13*'Fert selector'!$G$18),0,1) -> 10
B41: 64.88929553 | C41: 102199 | D41: =VLOOKUP(C41,'Data sheet'!B35:C99,2,FALSE) -> MKY 130P | E41: =VLOOKUP(C41,'Data sheet'!$B$1:$AG$65,26,FALSE) -> 3.138055827 | F41: =VLOOKUP(C41,'Data sheet'!$B$1:$AG$65,27,FALSE) -> 0.3279829767 | G41: =VLOOKUP(C41,'Data sheet'!$B$1:$AG$65,28,FALSE) -> 2.912358733 | H41: =VLOOKUP(C41,'Data sheet'!$B$1:$AG$65,29,FALSE) -> 0.6050543822 | N41: =IF(E41=0,0,'Fert selector'!$D$13/E41) -> 47.80029683 | O41: =IF('Fert selector'!$D$15="Y",E41*N41,IF('Fert selector'!$E$15="Y",F41*S41,IF('Fert selector'!$F$15="Y",G41*X41,IF('Fert selector'!$G$15="Y",H41*AC41)))) -> 150 | P41: 0 | Q41: =IF((O41-'Fert selector'!$D$13)<0,(O41-'Fert selector'!$D$13)*-1,O41-'Fert selector'!$D$13) -> 0 | R41: =IF(O41<('Fert selector'!$D$13+'Fert selector'!$D$13*'Fert selector'!$D$17),0,1)&IF(O41>('Fert selector'!$D$13-'Fert selector'!$D$13*'Fert selector'!$D$18),0,1) -> 00 | S41: =IF(F41=0,0,'Fert selector'!$E$13/F41) -> 0 | T41: =IF('Fert selector'!$D$15="Y",$F41*$N41,IF('Fert selector'!$E$15="Y",$F41*$S41,IF('Fert selector'!$F$15="Y",$F41*$X41,IF('Fert selector'!$G$15="Y",$F41*$AC41)))) -> 15.67768364 | U41: 15.67768364 | V41: =IF((T41-'Fert selector'!$E$13)<0,(T41-'Fert selector'!$E$13)*-1,T41-'Fert selector'!$E$13) -> 15.67768364 | W41: =IF(T41<('Fert selector'!$E$13+'Fert selector'!$E$13*'Fert selector'!$E$17),0,1)&IF(T41>('Fert selector'!$E$13-'Fert selector'!$E$13*'Fert selector'!$E$18),0,1) -> 10 | X41: =IF(G41=0,0,'Fert selector'!$F$13/G41) -> 30.90278646 | Y41: =IF('Fert selector'!$D$15="Y",$G41*$N41,IF('Fert selector'!$E$15="Y",$G41*$S41,IF('Fert selector'!$F$15="Y",$G41*$X41,IF('Fert selector'!$G$15="Y",$G41*$AC41)))) -> 139.2116119 | Z41: 49.21161189 | AA41: =IF((Y41-'Fert selector'!$F$13)<0,(Y41-'Fert selector'!$F$13)*-1,Y41-'Fert selector'!$F$13) -> 49.21161189 | AB41: =IF(Y41<('Fert selector'!$F$13+'Fert selector'!$F$13*'Fert selector'!$F$17),0,1)&IF(Y41>('Fert selector'!$F$13-'Fert selector'!$F$13*'Fert selector'!$F$18),0,1) -> 10 | AC41: =IF(H41=0,0,'Fert selector'!$G$13/H41) -> 0 | AD41: =IF('Fert selector'!$D$15="Y",$H41*$N41,IF('Fert selector'!$E$15="Y",$H41*$S41,IF('Fert selector'!$F$15="Y",$H41*$X41,IF('Fert selector'!$G$15="Y",$H41*$AC41)))) -> 28.92177907 | AE41: 28.92177907 | AF41: =IF((AD41-'Fert selector'!$G$13)<0,(AD41-'Fert selector'!$G$13)*-1,AD41-'Fert selector'!$G$13) -> 28.92177907 | AG41: =IF(AD41<('Fert selector'!$G$13+'Fert selector'!$G$13*'Fert selector'!$G$17),0,1)&IF(AD41>('Fert selector'!$G$13-'Fert selector'!$G$13*'Fert selector'!$G$18),0,1) -> 10
B42: 65.36091629 | C42: 96281 | D42: =VLOOKUP(C42,'Data sheet'!B15:C79,2,FALSE) -> EMERALD 4 | E42: =VLOOKUP(C42,'Data sheet'!$B$1:$AG$65,26,FALSE) -> 8.18473261 | F42: =VLOOKUP(C42,'Data sheet'!$B$1:$AG$65,27,FALSE) -> 1.229767523 | G42: =VLOOKUP(C42,'Data sheet'!$B$1:$AG$65,28,FALSE) -> 2.574196269 | H42: =VLOOKUP(C42,'Data sheet'!$B$1:$AG$65,29,FALSE) -> 1.329187127 | N42: =IF(E42=0,0,'Fert selector'!$D$13/E42) -> 18.32680518 | O42: =IF('Fert selector'!$D$15="Y",E42*N42,IF('Fert selector'!$E$15="Y",F42*S42,IF('Fert selector'!$F$15="Y",G42*X42,IF('Fert selector'!$G$15="Y",H42*AC42)))) -> 150 | P42: 0 | Q42: =IF((O42-'Fert selector'!$D$13)<0,(O42-'Fert selector'!$D$13)*-1,O42-'Fert selector'!$D$13) -> 0 | R42: =IF(O42<('Fert selector'!$D$13+'Fert selector'!$D$13*'Fert selector'!$D$17),0,1)&IF(O42>('Fert selector'!$D$13-'Fert selector'!$D$13*'Fert selector'!$D$18),0,1) -> 00 | S42: =IF(F42=0,0,'Fert selector'!$E$13/F42) -> 0 | T42: =IF('Fert selector'!$D$15="Y",$F42*$N42,IF('Fert selector'!$E$15="Y",$F42*$S42,IF('Fert selector'!$F$15="Y",$F42*$X42,IF('Fert selector'!$G$15="Y",$F42*$AC42)))) -> 22.53770981 | U42: 22.53770981 | V42: =IF((T42-'Fert selector'!$E$13)<0,(T42-'Fert selector'!$E$13)*-1,T42-'Fert selector'!$E$13) -> 22.53770981 | W42: =IF(T42<('Fert selector'!$E$13+'Fert selector'!$E$13*'Fert selector'!$E$17),0,1)&IF(T42>('Fert selector'!$E$13-'Fert selector'!$E$13*'Fert selector'!$E$18),0,1) -> 10 | X42: =IF(G42=0,0,'Fert selector'!$F$13/G42) -> 34.96236907 | Y42: =IF('Fert selector'!$D$15="Y",$G42*$N42,IF('Fert selector'!$E$15="Y",$G42*$S42,IF('Fert selector'!$F$15="Y",$G42*$X42,IF('Fert selector'!$G$15="Y",$G42*$AC42)))) -> 47.17679352 | Z42: 42.82320648 | AA42: =IF((Y42-'Fert selector'!$F$13)<0,(Y42-'Fert selector'!$F$13)*-1,Y42-'Fert selector'!$F$13) -> 42.82320648 | AB42: =IF(Y42<('Fert selector'!$F$13+'Fert selector'!$F$13*'Fert selector'!$F$17),0,1)&IF(Y42>('Fert selector'!$F$13-'Fert selector'!$F$13*'Fert selector'!$F$18),0,1) -> 01 | AC42: =IF(H42=0,0,'Fert selector'!$G$13/H42) -> 0 | AD42: =IF('Fert selector'!$D$15="Y",$H42*$N42,IF('Fert selector'!$E$15="Y",$H42*$S42,IF('Fert selector'!$F$15="Y",$H42*$X42,IF('Fert selector'!$G$15="Y",$H42*$AC42)))) -> 24.35975354 | AE42: 24.35975354 | AF42: =IF((AD42-'Fert selector'!$G$13)<0,(AD42-'Fert selector'!$G$13)*-1,AD42-'Fert selector'!$G$13) -> 24.35975354 | AG42: =IF(AD42<('Fert selector'!$G$13+'Fert selector'!$G$13*'Fert selector'!$G$17),0,1)&IF(AD42>('Fert selector'!$G$13-'Fert selector'!$G$13*'Fert selector'!$G$18),0,1) -> 10
B43: 67.26689349 | C43: 81812 | D43: =VLOOKUP(C43,'Data sheet'!B26:C90,2,FALSE) -> U.L.C. | E43: =VLOOKUP(C43,'Data sheet'!$B$1:$AG$65,26,FALSE) -> 14.12 | F43: =VLOOKUP(C43,'Data sheet'!$B$1:$AG$65,27,FALSE) -> 0.007404647379 | G43: =VLOOKUP(C43,'Data sheet'!$B$1:$AG$65,28,FALSE) -> 2.14734774 | H43: =VLOOKUP(C43,'Data sheet'!$B$1:$AG$65,29,FALSE) -> 0.2221394214 | N43: =IF(E43=0,0,'Fert selector'!$D$13/E43) -> 10.62322946 | O43: =IF('Fert selector'!$D$15="Y",E43*N43,IF('Fert selector'!$E$15="Y",F43*S43,IF('Fert selector'!$F$15="Y",G43*X43,IF('Fert selector'!$G$15="Y",H43*AC43)))) -> 150 | P43: 0 | Q43: =IF((O43-'Fert selector'!$D$13)<0,(O43-'Fert selector'!$D$13)*-1,O43-'Fert selector'!$D$13) -> 0 | R43: =IF(O43<('Fert selector'!$D$13+'Fert selector'!$D$13*'Fert selector'!$D$17),0,1)&IF(O43>('Fert selector'!$D$13-'Fert selector'!$D$13*'Fert selector'!$D$18),0,1) -> 00 | S43: =IF(F43=0,0,'Fert selector'!$E$13/F43) -> 0 | T43: =IF('Fert selector'!$D$15="Y",$F43*$N43,IF('Fert selector'!$E$15="Y",$F43*$S43,IF('Fert selector'!$F$15="Y",$F43*$X43,IF('Fert selector'!$G$15="Y",$F43*$AC43)))) -> 0.07866126819 | U43: 0.07866126819 | V43: =IF((T43-'Fert selector'!$E$13)<0,(T43-'Fert selector'!$E$13)*-1,T43-'Fert selector'!$E$13) -> 0.07866126819 | W43: =IF(T43<('Fert selector'!$E$13+'Fert selector'!$E$13*'Fert selector'!$E$17),0,1)&IF(T43>('Fert selector'!$E$13-'Fert selector'!$E$13*'Fert selector'!$E$18),0,1) -> 10 | X43: =IF(G43=0,0,'Fert selector'!$F$13/G43) -> 41.91216836 | Y43: =IF('Fert selector'!$D$15="Y",$G43*$N43,IF('Fert selector'!$E$15="Y",$G43*$S43,IF('Fert selector'!$F$15="Y",$G43*$X43,IF('Fert selector'!$G$15="Y",$G43*$AC43)))) -> 22.81176777 | Z43: 67.18823223 | AA43: =IF((Y43-'Fert selector'!$F$13)<0,(Y43-'Fert selector'!$F$13)*-1,Y43-'Fert selector'!$F$13) -> 67.18823223 | AB43: =IF(Y43<('Fert selector'!$F$13+'Fert selector'!$F$13*'Fert selector'!$F$17),0,1)&IF(Y43>('Fert selector'!$F$13-'Fert selector'!$F$13*'Fert selector'!$F$18),0,1) -> 01 | AC43: =IF(H43=0,0,'Fert selector'!$G$13/H43) -> 0 | AD43: =IF('Fert selector'!$D$15="Y",$H43*$N43,IF('Fert selector'!$E$15="Y",$H43*$S43,IF('Fert selector'!$F$15="Y",$H43*$X43,IF('Fert selector'!$G$15="Y",$H43*$AC43)))) -> 2.359838046 | AE43: 2.359838046 | AF43: =IF((AD43-'Fert selector'!$G$13)<0,(AD43-'Fert selector'!$G$13)*-1,AD43-'Fert selector'!$G$13) -> 2.359838046 | AG43: =IF(AD43<('Fert selector'!$G$13+'Fert selector'!$G$13*'Fert selector'!$G$17),0,1)&IF(AD43>('Fert selector'!$G$13-'Fert selector'!$G$13*'Fert selector'!$G$18),0,1) -> 10
B44: 68.41017491 | C44: 80797 | D44: =VLOOKUP(C44,'Data sheet'!B27:C91,2,FALSE) -> LTD | E44: =VLOOKUP(C44,'Data sheet'!$B$1:$AG$65,26,FALSE) -> 15.73090444 | F44: =VLOOKUP(C44,'Data sheet'!$B$1:$AG$65,27,FALSE) -> 0.00783454384 | G44: =VLOOKUP(C44,'Data sheet'!$B$1:$AG$65,28,FALSE) -> 2.272017714 | H44: =VLOOKUP(C44,'Data sheet'!$B$1:$AG$65,29,FALSE) -> 0.8419275178 | N44: =IF(E44=0,0,'Fert selector'!$D$13/E44) -> 9.535370363 | O44: =IF('Fert selector'!$D$15="Y",E44*N44,IF('Fert selector'!$E$15="Y",F44*S44,IF('Fert selector'!$F$15="Y",G44*X44,IF('Fert selector'!$G$15="Y",H44*AC44)))) -> 150 | P44: 0 | Q44: =IF((O44-'Fert selector'!$D$13)<0,(O44-'Fert selector'!$D$13)*-1,O44-'Fert selector'!$D$13) -> 0 | R44: =IF(O44<('Fert selector'!$D$13+'Fert selector'!$D$13*'Fert selector'!$D$17),0,1)&IF(O44>('Fert selector'!$D$13-'Fert selector'!$D$13*'Fert selector'!$D$18),0,1) -> 00 | S44: =IF(F44=0,0,'Fert selector'!$E$13/F44) -> 0 | T44: =IF('Fert selector'!$D$15="Y",$F44*$N44,IF('Fert selector'!$E$15="Y",$F44*$S44,IF('Fert selector'!$F$15="Y",$F44*$X44,IF('Fert selector'!$G$15="Y",$F44*$AC44)))) -> 0.07470527714 | U44: 0.07470527714 | V44: =IF((T44-'Fert selector'!$E$13)<0,(T44-'Fert selector'!$E$13)*-1,T44-'Fert selector'!$E$13) -> 0.07470527714 | W44: =IF(T44<('Fert selector'!$E$13+'Fert selector'!$E$13*'Fert selector'!$E$17),0,1)&IF(T44>('Fert selector'!$E$13-'Fert selector'!$E$13*'Fert selector'!$E$18),0,1) -> 10 | X44: =IF(G44=0,0,'Fert selector'!$F$13/G44) -> 39.61236722 | Y44: =IF('Fert selector'!$D$15="Y",$G44*$N44,IF('Fert selector'!$E$15="Y",$G44*$S44,IF('Fert selector'!$F$15="Y",$G44*$X44,IF('Fert selector'!$G$15="Y",$G44*$AC44)))) -> 21.66453037 | Z44: 68.33546963 | AA44: =IF((Y44-'Fert selector'!$F$13)<0,(Y44-'Fert selector'!$F$13)*-1,Y44-'Fert selector'!$F$13) -> 68.33546963 | AB44: =IF(Y44<('Fert selector'!$F$13+'Fert selector'!$F$13*'Fert selector'!$F$17),0,1)&IF(Y44>('Fert selector'!$F$13-'Fert selector'!$F$13*'Fert selector'!$F$18),0,1) -> 01 | AC44: =IF(H44=0,0,'Fert selector'!$G$13/H44) -> 0 | AD44: =IF('Fert selector'!$D$15="Y",$H44*$N44,IF('Fert selector'!$E$15="Y",$H44*$S44,IF('Fert selector'!$F$15="Y",$H44*$X44,IF('Fert selector'!$G$15="Y",$H44*$AC44)))) -> 8.028090701 | AE44: 8.028090701 | AF44: =IF((AD44-'Fert selector'!$G$13)<0,(AD44-'Fert selector'!$G$13)*-1,AD44-'Fert selector'!$G$13) -> 8.028090701 | AG44: =IF(AD44<('Fert selector'!$G$13+'Fert selector'!$G$13*'Fert selector'!$G$17),0,1)&IF(AD44>('Fert selector'!$G$13-'Fert selector'!$G$13*'Fert selector'!$G$18),0,1) -> 10
B45: 70.31786803 | C45: 95321 | D45: =VLOOKUP(C45,'Data sheet'!B14:C78,2,FALSE) -> EMERALD 2 | E45: =VLOOKUP(C45,'Data sheet'!$B$1:$AG$65,26,FALSE) -> 10.66300335 | F45: =VLOOKUP(C45,'Data sheet'!$B$1:$AG$65,27,FALSE) -> 1.057674957 | G45: =VLOOKUP(C45,'Data sheet'!$B$1:$AG$65,28,FALSE) -> 2.456812551 | H45: =VLOOKUP(C45,'Data sheet'!$B$1:$AG$65,29,FALSE) -> 1.309170246 | N45: =IF(E45=0,0,'Fert selector'!$D$13/E45) -> 14.06733122 | O45: =IF('Fert selector'!$D$15="Y",E45*N45,IF('Fert selector'!$E$15="Y",F45*S45,IF('Fert selector'!$F$15="Y",G45*X45,IF('Fert selector'!$G$15="Y",H45*AC45)))) -> 150 | P45: 0 | Q45: =IF((O45-'Fert selector'!$D$13)<0,(O45-'Fert selector'!$D$13)*-1,O45-'Fert selector'!$D$13) -> 0 | R45: =IF(O45<('Fert selector'!$D$13+'Fert selector'!$D$13*'Fert selector'!$D$17),0,1)&IF(O45>('Fert selector'!$D$13-'Fert selector'!$D$13*'Fert selector'!$D$18),0,1) -> 00 | S45: =IF(F45=0,0,'Fert selector'!$E$13/F45) -> 0 | T45: =IF('Fert selector'!$D$15="Y",$F45*$N45,IF('Fert selector'!$E$15="Y",$F45*$S45,IF('Fert selector'!$F$15="Y",$F45*$X45,IF('Fert selector'!$G$15="Y",$F45*$AC45)))) -> 14.87866394 | U45: 14.87866394 | V45: =IF((T45-'Fert selector'!$E$13)<0,(T45-'Fert selector'!$E$13)*-1,T45-'Fert selector'!$E$13) -> 14.87866394 | W45: =IF(T45<('Fert selector'!$E$13+'Fert selector'!$E$13*'Fert selector'!$E$17),0,1)&IF(T45>('Fert selector'!$E$13-'Fert selector'!$E$13*'Fert selector'!$E$18),0,1) -> 10 | X45: =IF(G45=0,0,'Fert selector'!$F$13/G45) -> 36.63283141 | Y45: =IF('Fert selector'!$D$15="Y",$G45*$N45,IF('Fert selector'!$E$15="Y",$G45*$S45,IF('Fert selector'!$F$15="Y",$G45*$X45,IF('Fert selector'!$G$15="Y",$G45*$AC45)))) -> 34.56079591 | Z45: 55.43920409 | AA45: =IF((Y45-'Fert selector'!$F$13)<0,(Y45-'Fert selector'!$F$13)*-1,Y45-'Fert selector'!$F$13) -> 55.43920409 | AB45: =IF(Y45<('Fert selector'!$F$13+'Fert selector'!$F$13*'Fert selector'!$F$17),0,1)&IF(Y45>('Fert selector'!$F$13-'Fert selector'!$F$13*'Fert selector'!$F$18),0,1) -> 01 | AC45: =IF(H45=0,0,'Fert selector'!$G$13/H45) -> 0 | AD45: =IF('Fert selector'!$D$15="Y",$H45*$N45,IF('Fert selector'!$E$15="Y",$H45*$S45,IF('Fert selector'!$F$15="Y",$H45*$X45,IF('Fert selector'!$G$15="Y",$H45*$AC45)))) -> 18.41653148 | AE45: 18.41653148 | AF45: =IF((AD45-'Fert selector'!$G$13)<0,(AD45-'Fert selector'!$G$13)*-1,AD45-'Fert selector'!$G$13) -> 18.41653148 | AG45: =IF(AD45<('Fert selector'!$G$13+'Fert selector'!$G$13*'Fert selector'!$G$17),0,1)&IF(AD45>('Fert selector'!$G$13-'Fert selector'!$G$13*'Fert selector'!$G$18),0,1) -> 10
B46: 76.52601171 | C46: 96322 | D46: =VLOOKUP(C46,'Data sheet'!B6:C70,2,FALSE) -> COMET 3 | E46: =VLOOKUP(C46,'Data sheet'!$B$1:$AG$65,26,FALSE) -> 3.504991986 | F46: =VLOOKUP(C46,'Data sheet'!$B$1:$AG$65,27,FALSE) -> 1.055800848 | G46: =VLOOKUP(C46,'Data sheet'!$B$1:$AG$65,28,FALSE) -> 2.835348062 | H46: =VLOOKUP(C46,'Data sheet'!$B$1:$AG$65,29,FALSE) -> 1.062225139 | N46: =IF(E46=0,0,'Fert selector'!$D$13/E46) -> 42.79610356 | O46: =IF('Fert selector'!$D$15="Y",E46*N46,IF('Fert selector'!$E$15="Y",F46*S46,IF('Fert selector'!$F$15="Y",G46*X46,IF('Fert selector'!$G$15="Y",H46*AC46)))) -> 150 | P46: 0 | Q46: =IF((O46-'Fert selector'!$D$13)<0,(O46-'Fert selector'!$D$13)*-1,O46-'Fert selector'!$D$13) -> 0 | R46: =IF(O46<('Fert selector'!$D$13+'Fert selector'!$D$13*'Fert selector'!$D$17),0,1)&IF(O46>('Fert selector'!$D$13-'Fert selector'!$D$13*'Fert selector'!$D$18),0,1) -> 00 | S46: =IF(F46=0,0,'Fert selector'!$E$13/F46) -> 0 | T46: =IF('Fert selector'!$D$15="Y",$F46*$N46,IF('Fert selector'!$E$15="Y",$F46*$S46,IF('Fert selector'!$F$15="Y",$F46*$X46,IF('Fert selector'!$G$15="Y",$F46*$AC46)))) -> 45.18416243 | U46: 45.18416243 | V46: =IF((T46-'Fert selector'!$E$13)<0,(T46-'Fert selector'!$E$13)*-1,T46-'Fert selector'!$E$13) -> 45.18416243 | W46: =IF(T46<('Fert selector'!$E$13+'Fert selector'!$E$13*'Fert selector'!$E$17),0,1)&IF(T46>('Fert selector'!$E$13-'Fert selector'!$E$13*'Fert selector'!$E$18),0,1) -> 10 | X46: =IF(G46=0,0,'Fert selector'!$F$13/G46) -> 31.74213466 | Y46: =IF('Fert selector'!$D$15="Y",$G46*$N46,IF('Fert selector'!$E$15="Y",$G46*$S46,IF('Fert selector'!$F$15="Y",$G46*$X46,IF('Fert selector'!$G$15="Y",$G46*$AC46)))) -> 121.3418493 | Z46: 31.34184928 | AA46: =IF((Y46-'Fert selector'!$F$13)<0,(Y46-'Fert selector'!$F$13)*-1,Y46-'Fert selector'!$F$13) -> 31.34184928 | AB46: =IF(Y46<('Fert selector'!$F$13+'Fert selector'!$F$13*'Fert selector'!$F$17),0,1)&IF(Y46>('Fert selector'!$F$13-'Fert selector'!$F$13*'Fert selector'!$F$18),0,1) -> 10 | AC46: =IF(H46=0,0,'Fert selector'!$G$13/H46) -> 0 | AD46: =IF('Fert selector'!$D$15="Y",$H46*$N46,IF('Fert selector'!$E$15="Y",$H46*$S46,IF('Fert selector'!$F$15="Y",$H46*$X46,IF('Fert selector'!$G$15="Y",$H46*$AC46)))) -> 45.45909704 | AE46: 45.45909704 | AF46: =IF((AD46-'Fert selector'!$G$13)<0,(AD46-'Fert selector'!$G$13)*-1,AD46-'Fert selector'!$G$13) -> 45.45909704 | AG46: =IF(AD46<('Fert selector'!$G$13+'Fert selector'!$G$13*'Fert selector'!$G$17),0,1)&IF(AD46>('Fert selector'!$G$13-'Fert selector'!$G$13*'Fert selector'!$G$18),0,1) -> 10
B47: 81.0279656 | C47: 96412 | D47: =VLOOKUP(C47,'Data sheet'!B17:C81,2,FALSE) -> HI K RATOONER | E47: =VLOOKUP(C47,'Data sheet'!$B$1:$AG$65,26,FALSE) -> 3.01454354 | F47: =VLOOKUP(C47,'Data sheet'!$B$1:$AG$65,27,FALSE) -> 0.5346103234 | G47: =VLOOKUP(C47,'Data sheet'!$B$1:$AG$65,28,FALSE) -> 2.902531335 | H47: =VLOOKUP(C47,'Data sheet'!$B$1:$AG$65,29,FALSE) -> 0.7270265346 | N47: =IF(E47=0,0,'Fert selector'!$D$13/E47) -> 49.75877708 | O47: =IF('Fert selector'!$D$15="Y",E47*N47,IF('Fert selector'!$E$15="Y",F47*S47,IF('Fert selector'!$F$15="Y",G47*X47,IF('Fert selector'!$G$15="Y",H47*AC47)))) -> 150 | P47: 0 | Q47: =IF((O47-'Fert selector'!$D$13)<0,(O47-'Fert selector'!$D$13)*-1,O47-'Fert selector'!$D$13) -> 0 | R47: =IF(O47<('Fert selector'!$D$13+'Fert selector'!$D$13*'Fert selector'!$D$17),0,1)&IF(O47>('Fert selector'!$D$13-'Fert selector'!$D$13*'Fert selector'!$D$18),0,1) -> 00 | S47: =IF(F47=0,0,'Fert selector'!$E$13/F47) -> 0 | T47: =IF('Fert selector'!$D$15="Y",$F47*$N47,IF('Fert selector'!$E$15="Y",$F47*$S47,IF('Fert selector'!$F$15="Y",$F47*$X47,IF('Fert selector'!$G$15="Y",$F47*$AC47)))) -> 26.60155591 | U47: 26.60155591 | V47: =IF((T47-'Fert selector'!$E$13)<0,(T47-'Fert selector'!$E$13)*-1,T47-'Fert selector'!$E$13) -> 26.60155591 | W47: =IF(T47<('Fert selector'!$E$13+'Fert selector'!$E$13*'Fert selector'!$E$17),0,1)&IF(T47>('Fert selector'!$E$13-'Fert selector'!$E$13*'Fert selector'!$E$18),0,1) -> 10 | X47: =IF(G47=0,0,'Fert selector'!$F$13/G47) -> 31.00741718 | Y47: =IF('Fert selector'!$D$15="Y",$G47*$N47,IF('Fert selector'!$E$15="Y",$G47*$S47,IF('Fert selector'!$F$15="Y",$G47*$X47,IF('Fert selector'!$G$15="Y",$G47*$AC47)))) -> 144.4264097 | Z47: 54.42640969 | AA47: =IF((Y47-'Fert selector'!$F$13)<0,(Y47-'Fert selector'!$F$13)*-1,Y47-'Fert selector'!$F$13) -> 54.42640969 | AB47: =IF(Y47<('Fert selector'!$F$13+'Fert selector'!$F$13*'Fert selector'!$F$17),0,1)&IF(Y47>('Fert selector'!$F$13-'Fert selector'!$F$13*'Fert selector'!$F$18),0,1) -> 10 | AC47: =IF(H47=0,0,'Fert selector'!$G$13/H47) -> 0 | AD47: =IF('Fert selector'!$D$15="Y",$H47*$N47,IF('Fert selector'!$E$15="Y",$H47*$S47,IF('Fert selector'!$F$15="Y",$H47*$X47,IF('Fert selector'!$G$15="Y",$H47*$AC47)))) -> 36.17595127 | AE47: 36.17595127 | AF47: =IF((AD47-'Fert selector'!$G$13)<0,(AD47-'Fert selector'!$G$13)*-1,AD47-'Fert selector'!$G$13) -> 36.17595127 | AG47: =IF(AD47<('Fert selector'!$G$13+'Fert selector'!$G$13*'Fert selector'!$G$17),0,1)&IF(AD47>('Fert selector'!$G$13-'Fert selector'!$G$13*'Fert selector'!$G$18),0,1) -> 10
B48: 81.85943164 | C48: 102205 | D48: =VLOOKUP(C48,'Data sheet'!B33:C97,2,FALSE) -> MKY 110 | E48: =VLOOKUP(C48,'Data sheet'!$B$1:$AG$65,26,FALSE) -> 2.597735526 | F48: =VLOOKUP(C48,'Data sheet'!$B$1:$AG$65,27,FALSE) -> 0.0102278431 | G48: =VLOOKUP(C48,'Data sheet'!$B$1:$AG$65,28,FALSE) -> 2.966074498 | H48: =VLOOKUP(C48,'Data sheet'!$B$1:$AG$65,29,FALSE) -> 0.3924069524 | N48: =IF(E48=0,0,'Fert selector'!$D$13/E48) -> 57.74259869 | O48: =IF('Fert selector'!$D$15="Y",E48*N48,IF('Fert selector'!$E$15="Y",F48*S48,IF('Fert selector'!$F$15="Y",G48*X48,IF('Fert selector'!$G$15="Y",H48*AC48)))) -> 150 | P48: 0 | Q48: =IF((O48-'Fert selector'!$D$13)<0,(O48-'Fert selector'!$D$13)*-1,O48-'Fert selector'!$D$13) -> 0 | R48: =IF(O48<('Fert selector'!$D$13+'Fert selector'!$D$13*'Fert selector'!$D$17),0,1)&IF(O48>('Fert selector'!$D$13-'Fert selector'!$D$13*'Fert selector'!$D$18),0,1) -> 00 | S48: =IF(F48=0,0,'Fert selector'!$E$13/F48) -> 0 | T48: =IF('Fert selector'!$D$15="Y",$F48*$N48,IF('Fert selector'!$E$15="Y",$F48*$S48,IF('Fert selector'!$F$15="Y",$F48*$X48,IF('Fert selector'!$G$15="Y",$F48*$AC48)))) -> 0.5905822393 | U48: 0.5905822393 | V48: =IF((T48-'Fert selector'!$E$13)<0,(T48-'Fert selector'!$E$13)*-1,T48-'Fert selector'!$E$13) -> 0.5905822393 | W48: =IF(T48<('Fert selector'!$E$13+'Fert selector'!$E$13*'Fert selector'!$E$17),0,1)&IF(T48>('Fert selector'!$E$13-'Fert selector'!$E$13*'Fert selector'!$E$18),0,1) -> 10 | X48: =IF(G48=0,0,'Fert selector'!$F$13/G48) -> 30.34313537 | Y48: =IF('Fert selector'!$D$15="Y",$G48*$N48,IF('Fert selector'!$E$15="Y",$G48*$S48,IF('Fert selector'!$F$15="Y",$G48*$X48,IF('Fert selector'!$G$15="Y",$G48*$AC48)))) -> 171.2688494 | Z48: 81.2688494 | AA48: =IF((Y48-'Fert selector'!$F$13)<0,(Y48-'Fert selector'!$F$13)*-1,Y48-'Fert selector'!$F$13) -> 81.2688494 | AB48: =IF(Y48<('Fert selector'!$F$13+'Fert selector'!$F$13*'Fert selector'!$F$17),0,1)&IF(Y48>('Fert selector'!$F$13-'Fert selector'!$F$13*'Fert selector'!$F$18),0,1) -> 10 | AC48: =IF(H48=0,0,'Fert selector'!$G$13/H48) -> 0 | AD48: =IF('Fert selector'!$D$15="Y",$H48*$N48,IF('Fert selector'!$E$15="Y",$H48*$S48,IF('Fert selector'!$F$15="Y",$H48*$X48,IF('Fert selector'!$G$15="Y",$H48*$AC48)))) -> 22.65859718 | AE48: 22.65859718 | AF48: =IF((AD48-'Fert selector'!$G$13)<0,(AD48-'Fert selector'!$G$13)*-1,AD48-'Fert selector'!$G$13) -> 22.65859718 | AG48: =IF(AD48<('Fert selector'!$G$13+'Fert selector'!$G$13*'Fert selector'!$G$17),0,1)&IF(AD48>('Fert selector'!$G$13-'Fert selector'!$G$13*'Fert selector'!$G$18),0,1) -> 10
B49: 89.0545021 | C49: 102198 | D49: =VLOOKUP(C49,'Data sheet'!B34:C98,2,FALSE) -> MKY 120P | E49: =VLOOKUP(C49,'Data sheet'!$B$1:$AG$65,26,FALSE) -> 2.770120835 | F49: =VLOOKUP(C49,'Data sheet'!$B$1:$AG$65,27,FALSE) -> 0.3789066024 | G49: =VLOOKUP(C49,'Data sheet'!$B$1:$AG$65,28,FALSE) -> 2.927777444 | H49: =VLOOKUP(C49,'Data sheet'!$B$1:$AG$65,29,FALSE) -> 0.6235252921 | N49: =IF(E49=0,0,'Fert selector'!$D$13/E49) -> 54.14926241 | O49: =IF('Fert selector'!$D$15="Y",E49*N49,IF('Fert selector'!$E$15="Y",F49*S49,IF('Fert selector'!$F$15="Y",G49*X49,IF('Fert selector'!$G$15="Y",H49*AC49)))) -> 150 | P49: 0 | Q49: =IF((O49-'Fert selector'!$D$13)<0,(O49-'Fert selector'!$D$13)*-1,O49-'Fert selector'!$D$13) -> 0 | R49: =IF(O49<('Fert selector'!$D$13+'Fert selector'!$D$13*'Fert selector'!$D$17),0,1)&IF(O49>('Fert selector'!$D$13-'Fert selector'!$D$13*'Fert selector'!$D$18),0,1) -> 00 | S49: =IF(F49=0,0,'Fert selector'!$E$13/F49) -> 0 | T49: =IF('Fert selector'!$D$15="Y",$F49*$N49,IF('Fert selector'!$E$15="Y",$F49*$S49,IF('Fert selector'!$F$15="Y",$F49*$X49,IF('Fert selector'!$G$15="Y",$F49*$AC49)))) -> 20.51751304 | U49: 20.51751304 | V49: =IF((T49-'Fert selector'!$E$13)<0,(T49-'Fert selector'!$E$13)*-1,T49-'Fert selector'!$E$13) -> 20.51751304 | W49: =IF(T49<('Fert selector'!$E$13+'Fert selector'!$E$13*'Fert selector'!$E$17),0,1)&IF(T49>('Fert selector'!$E$13-'Fert selector'!$E$13*'Fert selector'!$E$18),0,1) -> 10 | X49: =IF(G49=0,0,'Fert selector'!$F$13/G49) -> 30.74004146 | Y49: =IF('Fert selector'!$D$15="Y",$G49*$N49,IF('Fert selector'!$E$15="Y",$G49*$S49,IF('Fert selector'!$F$15="Y",$G49*$X49,IF('Fert selector'!$G$15="Y",$G49*$AC49)))) -> 158.5369891 | Z49: 68.53698906 | AA49: =IF((Y49-'Fert selector'!$F$13)<0,(Y49-'Fert selector'!$F$13)*-1,Y49-'Fert selector'!$F$13) -> 68.53698906 | AB49: =IF(Y49<('Fert selector'!$F$13+'Fert selector'!$F$13*'Fert selector'!$F$17),0,1)&IF(Y49>('Fert selector'!$F$13-'Fert selector'!$F$13*'Fert selector'!$F$18),0,1) -> 10 | AC49: =IF(H49=0,0,'Fert selector'!$G$13/H49) -> 0 | AD49: =IF('Fert selector'!$D$15="Y",$H49*$N49,IF('Fert selector'!$E$15="Y",$H49*$S49,IF('Fert selector'!$F$15="Y",$H49*$X49,IF('Fert selector'!$G$15="Y",$H49*$AC49)))) -> 33.76343466 | AE49: 33.76343466 | AF49: =IF((AD49-'Fert selector'!$G$13)<0,(AD49-'Fert selector'!$G$13)*-1,AD49-'Fert selector'!$G$13) -> 33.76343466 | AG49: =IF(AD49<('Fert selector'!$G$13+'Fert selector'!$G$13*'Fert selector'!$G$17),0,1)&IF(AD49>('Fert selector'!$G$13-'Fert selector'!$G$13*'Fert selector'!$G$18),0,1) -> 10
B50: 105.1073925 | C50: 95513 | D50: =VLOOKUP(C50,'Data sheet'!B63:C127,2,FALSE) -> SUNFLOWER 1 | E50: =VLOOKUP(C50,'Data sheet'!$B$1:$AG$65,26,FALSE) -> 2.894904033 | F50: =VLOOKUP(C50,'Data sheet'!$B$1:$AG$65,27,FALSE) -> 0.8842710834 | G50: =VLOOKUP(C50,'Data sheet'!$B$1:$AG$65,28,FALSE) -> 2.881176766 | H50: =VLOOKUP(C50,'Data sheet'!$B$1:$AG$65,29,FALSE) -> 0.9365002785 | N50: =IF(E50=0,0,'Fert selector'!$D$13/E50) -> 51.81518913 | O50: =IF('Fert selector'!$D$15="Y",E50*N50,IF('Fert selector'!$E$15="Y",F50*S50,IF('Fert selector'!$F$15="Y",G50*X50,IF('Fert selector'!$G$15="Y",H50*AC50)))) -> 150 | P50: 0 | Q50: =IF((O50-'Fert selector'!$D$13)<0,(O50-'Fert selector'!$D$13)*-1,O50-'Fert selector'!$D$13) -> 0 | R50: =IF(O50<('Fert selector'!$D$13+'Fert selector'!$D$13*'Fert selector'!$D$17),0,1)&IF(O50>('Fert selector'!$D$13-'Fert selector'!$D$13*'Fert selector'!$D$18),0,1) -> 00 | S50: =IF(F50=0,0,'Fert selector'!$E$13/F50) -> 0 | T50: =IF('Fert selector'!$D$15="Y",$F50*$N50,IF('Fert selector'!$E$15="Y",$F50*$S50,IF('Fert selector'!$F$15="Y",$F50*$X50,IF('Fert selector'!$G$15="Y",$F50*$AC50)))) -> 45.81867343 | U50: 45.81867343 | V50: =IF((T50-'Fert selector'!$E$13)<0,(T50-'Fert selector'!$E$13)*-1,T50-'Fert selector'!$E$13) -> 45.81867343 | W50: =IF(T50<('Fert selector'!$E$13+'Fert selector'!$E$13*'Fert selector'!$E$17),0,1)&IF(T50>('Fert selector'!$E$13-'Fert selector'!$E$13*'Fert selector'!$E$18),0,1) -> 10 | X50: =IF(G50=0,0,'Fert selector'!$F$13/G50) -> 31.23723648 | Y50: =IF('Fert selector'!$D$15="Y",$G50*$N50,IF('Fert selector'!$E$15="Y",$G50*$S50,IF('Fert selector'!$F$15="Y",$G50*$X50,IF('Fert selector'!$G$15="Y",$G50*$AC50)))) -> 149.2887191 | Z50: 59.28871908 | AA50: =IF((Y50-'Fert selector'!$F$13)<0,(Y50-'Fert selector'!$F$13)*-1,Y50-'Fert selector'!$F$13) -> 59.28871908 | AB50: =IF(Y50<('Fert selector'!$F$13+'Fert selector'!$F$13*'Fert selector'!$F$17),0,1)&IF(Y50>('Fert selector'!$F$13-'Fert selector'!$F$13*'Fert selector'!$F$18),0,1) -> 10 | AC50: =IF(H50=0,0,'Fert selector'!$G$13/H50) -> 0 | AD50: =IF('Fert selector'!$D$15="Y",$H50*$N50,IF('Fert selector'!$E$15="Y",$H50*$S50,IF('Fert selector'!$F$15="Y",$H50*$X50,IF('Fert selector'!$G$15="Y",$H50*$AC50)))) -> 48.52493906 | AE50: 48.52493906 | AF50: =IF((AD50-'Fert selector'!$G$13)<0,(AD50-'Fert selector'!$G$13)*-1,AD50-'Fert selector'!$G$13) -> 48.52493906 | AG50: =IF(AD50<('Fert selector'!$G$13+'Fert selector'!$G$13*'Fert selector'!$G$17),0,1)&IF(AD50>('Fert selector'!$G$13-'Fert selector'!$G$13*'Fert selector'!$G$18),0,1) -> 10
B51: 112.881116 | C51: 102194 | D51: =VLOOKUP(C51,'Data sheet'!B32:C96,2,FALSE) -> MKY 100 | E51: =VLOOKUP(C51,'Data sheet'!$B$1:$AG$65,26,FALSE) -> 2.215512915 | F51: =VLOOKUP(C51,'Data sheet'!$B$1:$AG$65,27,FALSE) -> 0.01029749674 | G51: =VLOOKUP(C51,'Data sheet'!$B$1:$AG$65,28,FALSE) -> 2.986274055 | H51: =VLOOKUP(C51,'Data sheet'!$B$1:$AG$65,29,FALSE) -> 0.3793242817 | N51: =IF(E51=0,0,'Fert selector'!$D$13/E51) -> 67.70441236 | O51: =IF('Fert selector'!$D$15="Y",E51*N51,IF('Fert selector'!$E$15="Y",F51*S51,IF('Fert selector'!$F$15="Y",G51*X51,IF('Fert selector'!$G$15="Y",H51*AC51)))) -> 150 | P51: 0 | Q51: =IF((O51-'Fert selector'!$D$13)<0,(O51-'Fert selector'!$D$13)*-1,O51-'Fert selector'!$D$13) -> 2.842170943e-14 | R51: =IF(O51<('Fert selector'!$D$13+'Fert selector'!$D$13*'Fert selector'!$D$17),0,1)&IF(O51>('Fert selector'!$D$13-'Fert selector'!$D$13*'Fert selector'!$D$18),0,1) -> 00 | S51: =IF(F51=0,0,'Fert selector'!$E$13/F51) -> 0 | T51: =IF('Fert selector'!$D$15="Y",$F51*$N51,IF('Fert selector'!$E$15="Y",$F51*$S51,IF('Fert selector'!$F$15="Y",$F51*$X51,IF('Fert selector'!$G$15="Y",$F51*$AC51)))) -> 0.6971859656 | U51: 0.6971859656 | V51: =IF((T51-'Fert selector'!$E$13)<0,(T51-'Fert selector'!$E$13)*-1,T51-'Fert selector'!$E$13) -> 0.6971859656 | W51: =IF(T51<('Fert selector'!$E$13+'Fert selector'!$E$13*'Fert selector'!$E$17),0,1)&IF(T51>('Fert selector'!$E$13-'Fert selector'!$E$13*'Fert selector'!$E$18),0,1) -> 10 | X51: =IF(G51=0,0,'Fert selector'!$F$13/G51) -> 30.13789034 | Y51: =IF('Fert selector'!$D$15="Y",$G51*$N51,IF('Fert selector'!$E$15="Y",$G51*$S51,IF('Fert selector'!$F$15="Y",$G51*$X51,IF('Fert selector'!$G$15="Y",$G51*$AC51)))) -> 202.18393 | Z51: 112.18393 | AA51: =IF((Y51-'Fert selector'!$F$13)<0,(Y51-'Fert selector'!$F$13)*-1,Y51-'Fert selector'!$F$13) -> 112.18393 | AB51: =IF(Y51<('Fert selector'!$F$13+'Fert selector'!$F$13*'Fert selector'!$F$17),0,1)&IF(Y51>('Fert selector'!$F$13-'Fert selector'!$F$13*'Fert selector'!$F$18),0,1) -> 10 | AC51: =IF(H51=0,0,'Fert selector'!$G$13/H51) -> 0 | AD51: =IF('Fert selector'!$D$15="Y",$H51*$N51,IF('Fert selector'!$E$15="Y",$H51*$S51,IF('Fert selector'!$F$15="Y",$H51*$X51,IF('Fert selector'!$G$15="Y",$H51*$AC51)))) -> 25.68192759 | AE51: 25.68192759 | AF51: =IF((AD51-'Fert selector'!$G$13)<0,(AD51-'Fert selector'!$G$13)*-1,AD51-'Fert selector'!$G$13) -> 25.68192759 | AG51: =IF(AD51<('Fert selector'!$G$13+'Fert selector'!$G$13*'Fert selector'!$G$17),0,1)&IF(AD51>('Fert selector'!$G$13-'Fert selector'!$G$13*'Fert selector'!$G$18),0,1) -> 10
B52: 136.3159146 | C52: 93370 | D52: =VLOOKUP(C52,'Data sheet'!B29:C93,2,FALSE) -> LUCERNE | E52: =VLOOKUP(C52,'Data sheet'!$B$1:$AG$65,26,FALSE) -> 2.409931405 | F52: =VLOOKUP(C52,'Data sheet'!$B$1:$AG$65,27,FALSE) -> 0.7158970547 | G52: =VLOOKUP(C52,'Data sheet'!$B$1:$AG$65,28,FALSE) -> 2.920141812 | H52: =VLOOKUP(C52,'Data sheet'!$B$1:$AG$65,29,FALSE) -> 0.816999385 | N52: =IF(E52=0,0,'Fert selector'!$D$13/E52) -> 62.24243549 | O52: =IF('Fert selector'!$D$15="Y",E52*N52,IF('Fert selector'!$E$15="Y",F52*S52,IF('Fert selector'!$F$15="Y",G52*X52,IF('Fert selector'!$G$15="Y",H52*AC52)))) -> 150 | P52: 0 | Q52: =IF((O52-'Fert selector'!$D$13)<0,(O52-'Fert selector'!$D$13)*-1,O52-'Fert selector'!$D$13) -> 0 | R52: =IF(O52<('Fert selector'!$D$13+'Fert selector'!$D$13*'Fert selector'!$D$17),0,1)&IF(O52>('Fert selector'!$D$13-'Fert selector'!$D$13*'Fert selector'!$D$18),0,1) -> 00 | S52: =IF(F52=0,0,'Fert selector'!$E$13/F52) -> 0 | T52: =IF('Fert selector'!$D$15="Y",$F52*$N52,IF('Fert selector'!$E$15="Y",$F52*$S52,IF('Fert selector'!$F$15="Y",$F52*$X52,IF('Fert selector'!$G$15="Y",$F52*$AC52)))) -> 44.55917624 | U52: 44.55917624 | V52: =IF((T52-'Fert selector'!$E$13)<0,(T52-'Fert selector'!$E$13)*-1,T52-'Fert selector'!$E$13) -> 44.55917624 | W52: =IF(T52<('Fert selector'!$E$13+'Fert selector'!$E$13*'Fert selector'!$E$17),0,1)&IF(T52>('Fert selector'!$E$13-'Fert selector'!$E$13*'Fert selector'!$E$18),0,1) -> 10 | X52: =IF(G52=0,0,'Fert selector'!$F$13/G52) -> 30.82042099 | Y52: =IF('Fert selector'!$D$15="Y",$G52*$N52,IF('Fert selector'!$E$15="Y",$G52*$S52,IF('Fert selector'!$F$15="Y",$G52*$X52,IF('Fert selector'!$G$15="Y",$G52*$AC52)))) -> 181.7567383 | Z52: 91.75673833 | AA52: =IF((Y52-'Fert selector'!$F$13)<0,(Y52-'Fert selector'!$F$13)*-1,Y52-'Fert selector'!$F$13) -> 91.75673833 | AB52: =IF(Y52<('Fert selector'!$F$13+'Fert selector'!$F$13*'Fert selector'!$F$17),0,1)&IF(Y52>('Fert selector'!$F$13-'Fert selector'!$F$13*'Fert selector'!$F$18),0,1) -> 10 | AC52: =IF(H52=0,0,'Fert selector'!$G$13/H52) -> 0 | AD52: =IF('Fert selector'!$D$15="Y",$H52*$N52,IF('Fert selector'!$E$15="Y",$H52*$S52,IF('Fert selector'!$F$15="Y",$H52*$X52,IF('Fert selector'!$G$15="Y",$H52*$AC52)))) -> 50.85203152 | AE52: 50.85203152 | AF52: =IF((AD52-'Fert selector'!$G$13)<0,(AD52-'Fert selector'!$G$13)*-1,AD52-'Fert selector'!$G$13) -> 50.85203152 | AG52: =IF(AD52<('Fert selector'!$G$13+'Fert selector'!$G$13*'Fert selector'!$G$17),0,1)&IF(AD52>('Fert selector'!$G$13-'Fert selector'!$G$13*'Fert selector'!$G$18),0,1) -> 10
B53: 148.6752123 | C53: 94740 | D53: =VLOOKUP(C53,'Data sheet'!B5:C69,2,FALSE) -> COMET 1 | E53: =VLOOKUP(C53,'Data sheet'!$B$1:$AG$65,26,FALSE) -> 2.876613725 | F53: =VLOOKUP(C53,'Data sheet'!$B$1:$AG$65,27,FALSE) -> 1.764728883 | G53: =VLOOKUP(C53,'Data sheet'!$B$1:$AG$65,28,FALSE) -> 2.812447062 | H53: =VLOOKUP(C53,'Data sheet'!$B$1:$AG$65,29,FALSE) -> 1.473679186 | N53: =IF(E53=0,0,'Fert selector'!$D$13/E53) -> 52.14464448 | O53: =IF('Fert selector'!$D$15="Y",E53*N53,IF('Fert selector'!$E$15="Y",F53*S53,IF('Fert selector'!$F$15="Y",G53*X53,IF('Fert selector'!$G$15="Y",H53*AC53)))) -> 150 | P53: 0 | Q53: =IF((O53-'Fert selector'!$D$13)<0,(O53-'Fert selector'!$D$13)*-1,O53-'Fert selector'!$D$13) -> 0 | R53: =IF(O53<('Fert selector'!$D$13+'Fert selector'!$D$13*'Fert selector'!$D$17),0,1)&IF(O53>('Fert selector'!$D$13-'Fert selector'!$D$13*'Fert selector'!$D$18),0,1) -> 00 | S53: =IF(F53=0,0,'Fert selector'!$E$13/F53) -> 0 | T53: =IF('Fert selector'!$D$15="Y",$F53*$N53,IF('Fert selector'!$E$15="Y",$F53*$S53,IF('Fert selector'!$F$15="Y",$F53*$X53,IF('Fert selector'!$G$15="Y",$F53*$AC53)))) -> 92.0211602 | U53: 92.0211602 | V53: =IF((T53-'Fert selector'!$E$13)<0,(T53-'Fert selector'!$E$13)*-1,T53-'Fert selector'!$E$13) -> 92.0211602 | W53: =IF(T53<('Fert selector'!$E$13+'Fert selector'!$E$13*'Fert selector'!$E$17),0,1)&IF(T53>('Fert selector'!$E$13-'Fert selector'!$E$13*'Fert selector'!$E$18),0,1) -> 10 | X53: =IF(G53=0,0,'Fert selector'!$F$13/G53) -> 32.00060233 | Y53: =IF('Fert selector'!$D$15="Y",$G53*$N53,IF('Fert selector'!$E$15="Y",$G53*$S53,IF('Fert selector'!$F$15="Y",$G53*$X53,IF('Fert selector'!$G$15="Y",$G53*$AC53)))) -> 146.6540521 | Z53: 56.65405215 | AA53: =IF((Y53-'Fert selector'!$F$13)<0,(Y53-'Fert selector'!$F$13)*-1,Y53-'Fert selector'!$F$13) -> 56.65405215 | AB53: =IF(Y53<('Fert selector'!$F$13+'Fert selector'!$F$13*'Fert selector'!$F$17),0,1)&IF(Y53>('Fert selector'!$F$13-'Fert selector'!$F$13*'Fert selector'!$F$18),0,1) -> 10 | AC53: =IF(H53=0,0,'Fert selector'!$G$13/H53) -> 0 | AD53: =IF('Fert selector'!$D$15="Y",$H53*$N53,IF('Fert selector'!$E$15="Y",$H53*$S53,IF('Fert selector'!$F$15="Y",$H53*$X53,IF('Fert selector'!$G$15="Y",$H53*$AC53)))) -> 76.84447721 | AE53: 76.84447721 | AF53: =IF((AD53-'Fert selector'!$G$13)<0,(AD53-'Fert selector'!$G$13)*-1,AD53-'Fert selector'!$G$13) -> 76.84447721 | AG53: =IF(AD53<('Fert selector'!$G$13+'Fert selector'!$G$13*'Fert selector'!$G$17),0,1)&IF(AD53>('Fert selector'!$G$13-'Fert selector'!$G$13*'Fert selector'!$G$18),0,1) -> 10
B54: 154.7309247 | C54: 102195 | D54: =VLOOKUP(C54,'Data sheet'!B48:C112,2,FALSE) -> MKY 80 | E54: =VLOOKUP(C54,'Data sheet'!$B$1:$AG$65,26,FALSE) -> 1.848579209 | F54: =VLOOKUP(C54,'Data sheet'!$B$1:$AG$65,27,FALSE) -> 0.01036436424 | G54: =VLOOKUP(C54,'Data sheet'!$B$1:$AG$65,28,FALSE) -> 3.00566563 | H54: =VLOOKUP(C54,'Data sheet'!$B$1:$AG$65,29,FALSE) -> 0.3667649178 | N54: =IF(E54=0,0,'Fert selector'!$D$13/E54) -> 81.14339883 | O54: =IF('Fert selector'!$D$15="Y",E54*N54,IF('Fert selector'!$E$15="Y",F54*S54,IF('Fert selector'!$F$15="Y",G54*X54,IF('Fert selector'!$G$15="Y",H54*AC54)))) -> 150 | P54: 0 | Q54: =IF((O54-'Fert selector'!$D$13)<0,(O54-'Fert selector'!$D$13)*-1,O54-'Fert selector'!$D$13) -> 0 | R54: =IF(O54<('Fert selector'!$D$13+'Fert selector'!$D$13*'Fert selector'!$D$17),0,1)&IF(O54>('Fert selector'!$D$13-'Fert selector'!$D$13*'Fert selector'!$D$18),0,1) -> 00 | S54: =IF(F54=0,0,'Fert selector'!$E$13/F54) -> 0 | T54: =IF('Fert selector'!$D$15="Y",$F54*$N54,IF('Fert selector'!$E$15="Y",$F54*$S54,IF('Fert selector'!$F$15="Y",$F54*$X54,IF('Fert selector'!$G$15="Y",$F54*$AC54)))) -> 0.8409997412 | U54: 0.8409997412 | V54: =IF((T54-'Fert selector'!$E$13)<0,(T54-'Fert selector'!$E$13)*-1,T54-'Fert selector'!$E$13) -> 0.8409997412 | W54: =IF(T54<('Fert selector'!$E$13+'Fert selector'!$E$13*'Fert selector'!$E$17),0,1)&IF(T54>('Fert selector'!$E$13-'Fert selector'!$E$13*'Fert selector'!$E$18),0,1) -> 10 | X54: =IF(G54=0,0,'Fert selector'!$F$13/G54) -> 29.9434505 | Y54: =IF('Fert selector'!$D$15="Y",$G54*$N54,IF('Fert selector'!$E$15="Y",$G54*$S54,IF('Fert selector'!$F$15="Y",$G54*$X54,IF('Fert selector'!$G$15="Y",$G54*$AC54)))) -> 243.8899249 | Z54: 153.8899249 | AA54: =IF((Y54-'Fert selector'!$F$13)<0,(Y54-'Fert selector'!$F$13)*-1,Y54-'Fert selector'!$F$13) -> 153.8899249 | AB54: =IF(Y54<('Fert selector'!$F$13+'Fert selector'!$F$13*'Fert selector'!$F$17),0,1)&IF(Y54>('Fert selector'!$F$13-'Fert selector'!$F$13*'Fert selector'!$F$18),0,1) -> 10 | AC54: =IF(H54=0,0,'Fert selector'!$G$13/H54) -> 0 | AD54: =IF('Fert selector'!$D$15="Y",$H54*$N54,IF('Fert selector'!$E$15="Y",$H54*$S54,IF('Fert selector'!$F$15="Y",$H54*$X54,IF('Fert selector'!$G$15="Y",$H54*$AC54)))) -> 29.76055201 | AE54: 29.76055201 | AF54: =IF((AD54-'Fert selector'!$G$13)<0,(AD54-'Fert selector'!$G$13)*-1,AD54-'Fert selector'!$G$13) -> 29.76055201 | AG54: =IF(AD54<('Fert selector'!$G$13+'Fert selector'!$G$13*'Fert selector'!$G$17),0,1)&IF(AD54>('Fert selector'!$G$13-'Fert selector'!$G$13*'Fert selector'!$G$18),0,1) -> 10
B55: 181.1961018 | C55: 81814 | D55: =VLOOKUP(C55,'Data sheet'!B28:C92,2,FALSE) -> LTD + P | E55: =VLOOKUP(C55,'Data sheet'!$B$1:$AG$65,26,FALSE) -> 3.246089253 | F55: =VLOOKUP(C55,'Data sheet'!$B$1:$AG$65,27,FALSE) -> 3.188645671 | G55: =VLOOKUP(C55,'Data sheet'!$B$1:$AG$65,28,FALSE) -> 2.680199337 | H55: =VLOOKUP(C55,'Data sheet'!$B$1:$AG$65,29,FALSE) -> 2.356132827 | N55: =IF(E55=0,0,'Fert selector'!$D$13/E55) -> 46.2094503 | O55: =IF('Fert selector'!$D$15="Y",E55*N55,IF('Fert selector'!$E$15="Y",F55*S55,IF('Fert selector'!$F$15="Y",G55*X55,IF('Fert selector'!$G$15="Y",H55*AC55)))) -> 150 | P55: 0 | Q55: =IF((O55-'Fert selector'!$D$13)<0,(O55-'Fert selector'!$D$13)*-1,O55-'Fert selector'!$D$13) -> 0 | R55: =IF(O55<('Fert selector'!$D$13+'Fert selector'!$D$13*'Fert selector'!$D$17),0,1)&IF(O55>('Fert selector'!$D$13-'Fert selector'!$D$13*'Fert selector'!$D$18),0,1) -> 00 | S55: =IF(F55=0,0,'Fert selector'!$E$13/F55) -> 0 | T55: =IF('Fert selector'!$D$15="Y",$F55*$N55,IF('Fert selector'!$E$15="Y",$F55*$S55,IF('Fert selector'!$F$15="Y",$F55*$X55,IF('Fert selector'!$G$15="Y",$F55*$AC55)))) -> 147.3455637 | U55: 147.3455637 | V55: =IF((T55-'Fert selector'!$E$13)<0,(T55-'Fert selector'!$E$13)*-1,T55-'Fert selector'!$E$13) -> 147.3455637 | W55: =IF(T55<('Fert selector'!$E$13+'Fert selector'!$E$13*'Fert selector'!$E$17),0,1)&IF(T55>('Fert selector'!$E$13-'Fert selector'!$E$13*'Fert selector'!$E$18),0,1) -> 10 | X55: =IF(G55=0,0,'Fert selector'!$F$13/G55) -> 33.57959191 | Y55: =IF('Fert selector'!$D$15="Y",$G55*$N55,IF('Fert selector'!$E$15="Y",$G55*$S55,IF('Fert selector'!$F$15="Y",$G55*$X55,IF('Fert selector'!$G$15="Y",$G55*$AC55)))) -> 123.8505381 | Z55: 33.85053809 | AA55: =IF((Y55-'Fert selector'!$F$13)<0,(Y55-'Fert selector'!$F$13)*-1,Y55-'Fert selector'!$F$13) -> 33.85053809 | AB55: =IF(Y55<('Fert selector'!$F$13+'Fert selector'!$F$13*'Fert selector'!$F$17),0,1)&IF(Y55>('Fert selector'!$F$13-'Fert selector'!$F$13*'Fert selector'!$F$18),0,1) -> 10 | AC55: =IF(H55=0,0,'Fert selector'!$G$13/H55) -> 0 | AD55: =IF('Fert selector'!$D$15="Y",$H55*$N55,IF('Fert selector'!$E$15="Y",$H55*$S55,IF('Fert selector'!$F$15="Y",$H55*$X55,IF('Fert selector'!$G$15="Y",$H55*$AC55)))) -> 108.8756028 | AE55: 108.8756028 | AF55: =IF((AD55-'Fert selector'!$G$13)<0,(AD55-'Fert selector'!$G$13)*-1,AD55-'Fert selector'!$G$13) -> 108.8756028 | AG55: =IF(AD55<('Fert selector'!$G$13+'Fert selector'!$G$13*'Fert selector'!$G$17),0,1)&IF(AD55>('Fert selector'!$G$13-'Fert selector'!$G$13*'Fert selector'!$G$18),0,1) -> 10
B56: 187.8204436 | C56: 102204 | D56: =VLOOKUP(C56,'Data sheet'!B47:C111,2,FALSE) -> MKY 70 | E56: =VLOOKUP(C56,'Data sheet'!$B$1:$AG$65,26,FALSE) -> 1.634534546 | F56: =VLOOKUP(C56,'Data sheet'!$B$1:$AG$65,27,FALSE) -> 0.01040337028 | G56: =VLOOKUP(C56,'Data sheet'!$B$1:$AG$65,28,FALSE) -> 3.016977382 | H56: =VLOOKUP(C56,'Data sheet'!$B$1:$AG$65,29,FALSE) -> 0.3594386222 | N56: =IF(E56=0,0,'Fert selector'!$D$13/E56) -> 91.76924423 | O56: =IF('Fert selector'!$D$15="Y",E56*N56,IF('Fert selector'!$E$15="Y",F56*S56,IF('Fert selector'!$F$15="Y",G56*X56,IF('Fert selector'!$G$15="Y",H56*AC56)))) -> 150 | P56: 0 | Q56: =IF((O56-'Fert selector'!$D$13)<0,(O56-'Fert selector'!$D$13)*-1,O56-'Fert selector'!$D$13) -> 0 | R56: =IF(O56<('Fert selector'!$D$13+'Fert selector'!$D$13*'Fert selector'!$D$17),0,1)&IF(O56>('Fert selector'!$D$13-'Fert selector'!$D$13*'Fert selector'!$D$18),0,1) -> 00 | S56: =IF(F56=0,0,'Fert selector'!$E$13/F56) -> 0 | T56: =IF('Fert selector'!$D$15="Y",$F56*$N56,IF('Fert selector'!$E$15="Y",$F56*$S56,IF('Fert selector'!$F$15="Y",$F56*$X56,IF('Fert selector'!$G$15="Y",$F56*$AC56)))) -> 0.9547094282 | U56: 0.9547094282 | V56: =IF((T56-'Fert selector'!$E$13)<0,(T56-'Fert selector'!$E$13)*-1,T56-'Fert selector'!$E$13) -> 0.9547094282 | W56: =IF(T56<('Fert selector'!$E$13+'Fert selector'!$E$13*'Fert selector'!$E$17),0,1)&IF(T56>('Fert selector'!$E$13-'Fert selector'!$E$13*'Fert selector'!$E$18),0,1) -> 10 | X56: =IF(G56=0,0,'Fert selector'!$F$13/G56) -> 29.83118155 | Y56: =IF('Fert selector'!$D$15="Y",$G56*$N56,IF('Fert selector'!$E$15="Y",$G56*$S56,IF('Fert selector'!$F$15="Y",$G56*$X56,IF('Fert selector'!$G$15="Y",$G56*$AC56)))) -> 276.8657342 | Z56: 186.8657342 | AA56: =IF((Y56-'Fert selector'!$F$13)<0,(Y56-'Fert selector'!$F$13)*-1,Y56-'Fert selector'!$F$13) -> 186.8657342 | AB56: =IF(Y56<('Fert selector'!$F$13+'Fert selector'!$F$13*'Fert selector'!$F$17),0,1)&IF(Y56>('Fert selector'!$F$13-'Fert selector'!$F$13*'Fert selector'!$F$18),0,1) -> 10 | AC56: =IF(H56=0,0,'Fert selector'!$G$13/H56) -> 0 | AD56: =IF('Fert selector'!$D$15="Y",$H56*$N56,IF('Fert selector'!$E$15="Y",$H56*$S56,IF('Fert selector'!$F$15="Y",$H56*$X56,IF('Fert selector'!$G$15="Y",$H56*$AC56)))) -> 32.98541071 | AE56: 32.98541071 | AF56: =IF((AD56-'Fert selector'!$G$13)<0,(AD56-'Fert selector'!$G$13)*-1,AD56-'Fert selector'!$G$13) -> 32.98541071 | AG56: =IF(AD56<('Fert selector'!$G$13+'Fert selector'!$G$13*'Fert selector'!$G$17),0,1)&IF(AD56>('Fert selector'!$G$13-'Fert selector'!$G$13*'Fert selector'!$G$18),0,1) -> 10
B57: 248.6732516 | C57: 88676 | D57: =VLOOKUP(C57,'Data sheet'!B56:C120,2,FALSE) -> PUMPKIN 1 | E57: =VLOOKUP(C57,'Data sheet'!$B$1:$AG$65,26,FALSE) -> 2.09360857 | F57: =VLOOKUP(C57,'Data sheet'!$B$1:$AG$65,27,FALSE) -> 1.882477404 | G57: =VLOOKUP(C57,'Data sheet'!$B$1:$AG$65,28,FALSE) -> 2.84451741 | H57: =VLOOKUP(C57,'Data sheet'!$B$1:$AG$65,29,FALSE) -> 1.518715339 | N57: =IF(E57=0,0,'Fert selector'!$D$13/E57) -> 71.64663069 | O57: =IF('Fert selector'!$D$15="Y",E57*N57,IF('Fert selector'!$E$15="Y",F57*S57,IF('Fert selector'!$F$15="Y",G57*X57,IF('Fert selector'!$G$15="Y",H57*AC57)))) -> 150 | P57: 0 | Q57: =IF((O57-'Fert selector'!$D$13)<0,(O57-'Fert selector'!$D$13)*-1,O57-'Fert selector'!$D$13) -> 0 | R57: =IF(O57<('Fert selector'!$D$13+'Fert selector'!$D$13*'Fert selector'!$D$17),0,1)&IF(O57>('Fert selector'!$D$13-'Fert selector'!$D$13*'Fert selector'!$D$18),0,1) -> 00 | S57: =IF(F57=0,0,'Fert selector'!$E$13/F57) -> 0 | T57: =IF('Fert selector'!$D$15="Y",$F57*$N57,IF('Fert selector'!$E$15="Y",$F57*$S57,IF('Fert selector'!$F$15="Y",$F57*$X57,IF('Fert selector'!$G$15="Y",$F57*$AC57)))) -> 134.8731633 | U57: 134.8731633 | V57: =IF((T57-'Fert selector'!$E$13)<0,(T57-'Fert selector'!$E$13)*-1,T57-'Fert selector'!$E$13) -> 134.8731633 | W57: =IF(T57<('Fert selector'!$E$13+'Fert selector'!$E$13*'Fert selector'!$E$17),0,1)&IF(T57>('Fert selector'!$E$13-'Fert selector'!$E$13*'Fert selector'!$E$18),0,1) -> 10 | X57: =IF(G57=0,0,'Fert selector'!$F$13/G57) -> 31.63981338 | Y57: =IF('Fert selector'!$D$15="Y",$G57*$N57,IF('Fert selector'!$E$15="Y",$G57*$S57,IF('Fert selector'!$F$15="Y",$G57*$X57,IF('Fert selector'!$G$15="Y",$G57*$AC57)))) -> 203.8000883 | Z57: 113.8000883 | AA57: =IF((Y57-'Fert selector'!$F$13)<0,(Y57-'Fert selector'!$F$13)*-1,Y57-'Fert selector'!$F$13) -> 113.8000883 | AB57: =IF(Y57<('Fert selector'!$F$13+'Fert selector'!$F$13*'Fert selector'!$F$17),0,1)&IF(Y57>('Fert selector'!$F$13-'Fert selector'!$F$13*'Fert selector'!$F$18),0,1) -> 10 | AC57: =IF(H57=0,0,'Fert selector'!$G$13/H57) -> 0 | AD57: =IF('Fert selector'!$D$15="Y",$H57*$N57,IF('Fert selector'!$E$15="Y",$H57*$S57,IF('Fert selector'!$F$15="Y",$H57*$X57,IF('Fert selector'!$G$15="Y",$H57*$AC57)))) -> 108.810837 | AE57: 108.810837 | AF57: =IF((AD57-'Fert selector'!$G$13)<0,(AD57-'Fert selector'!$G$13)*-1,AD57-'Fert selector'!$G$13) -> 108.810837 | AG57: =IF(AD57<('Fert selector'!$G$13+'Fert selector'!$G$13*'Fert selector'!$G$17),0,1)&IF(AD57>('Fert selector'!$G$13-'Fert selector'!$G$13*'Fert selector'!$G$18),0,1) -> 10
B58: 295.2661506 | C58: 88753 | D58: =VLOOKUP(C58,'Data sheet'!B16:C80,2,FALSE) -> HALL 2 | E58: =VLOOKUP(C58,'Data sheet'!$B$1:$AG$65,26,FALSE) -> 1.68140745 | F58: =VLOOKUP(C58,'Data sheet'!$B$1:$AG$65,27,FALSE) -> 1.415307731 | G58: =VLOOKUP(C58,'Data sheet'!$B$1:$AG$65,28,FALSE) -> 2.903288107 | H58: =VLOOKUP(C58,'Data sheet'!$B$1:$AG$65,29,FALSE) -> 1.219201054 | N58: =IF(E58=0,0,'Fert selector'!$D$13/E58) -> 89.21097622 | O58: =IF('Fert selector'!$D$15="Y",E58*N58,IF('Fert selector'!$E$15="Y",F58*S58,IF('Fert selector'!$F$15="Y",G58*X58,IF('Fert selector'!$G$15="Y",H58*AC58)))) -> 150 | P58: 0 | Q58: =IF((O58-'Fert selector'!$D$13)<0,(O58-'Fert selector'!$D$13)*-1,O58-'Fert selector'!$D$13) -> 0 | R58: =IF(O58<('Fert selector'!$D$13+'Fert selector'!$D$13*'Fert selector'!$D$17),0,1)&IF(O58>('Fert selector'!$D$13-'Fert selector'!$D$13*'Fert selector'!$D$18),0,1) -> 00 | S58: =IF(F58=0,0,'Fert selector'!$E$13/F58) -> 0 | T58: =IF('Fert selector'!$D$15="Y",$F58*$N58,IF('Fert selector'!$E$15="Y",$F58*$S58,IF('Fert selector'!$F$15="Y",$F58*$X58,IF('Fert selector'!$G$15="Y",$F58*$AC58)))) -> 126.2609844 | U58: 126.2609844 | V58: =IF((T58-'Fert selector'!$E$13)<0,(T58-'Fert selector'!$E$13)*-1,T58-'Fert selector'!$E$13) -> 126.2609844 | W58: =IF(T58<('Fert selector'!$E$13+'Fert selector'!$E$13*'Fert selector'!$E$17),0,1)&IF(T58>('Fert selector'!$E$13-'Fert selector'!$E$13*'Fert selector'!$E$18),0,1) -> 10 | X58: =IF(G58=0,0,'Fert selector'!$F$13/G58) -> 30.99933478 | Y58: =IF('Fert selector'!$D$15="Y",$G58*$N58,IF('Fert selector'!$E$15="Y",$G58*$S58,IF('Fert selector'!$F$15="Y",$G58*$X58,IF('Fert selector'!$G$15="Y",$G58*$AC58)))) -> 259.0051663 | Z58: 169.0051663 | AA58: =IF((Y58-'Fert selector'!$F$13)<0,(Y58-'Fert selector'!$F$13)*-1,Y58-'Fert selector'!$F$13) -> 169.0051663 | AB58: =IF(Y58<('Fert selector'!$F$13+'Fert selector'!$F$13*'Fert selector'!$F$17),0,1)&IF(Y58>('Fert selector'!$F$13-'Fert selector'!$F$13*'Fert selector'!$F$18),0,1) -> 10 | AC58: =IF(H58=0,0,'Fert selector'!$G$13/H58) -> 0 | AD58: =IF('Fert selector'!$D$15="Y",$H58*$N58,IF('Fert selector'!$E$15="Y",$H58*$S58,IF('Fert selector'!$F$15="Y",$H58*$X58,IF('Fert selector'!$G$15="Y",$H58*$AC58)))) -> 108.7661163 | AE58: 108.7661163 | AF58: =IF((AD58-'Fert selector'!$G$13)<0,(AD58-'Fert selector'!$G$13)*-1,AD58-'Fert selector'!$G$13) -> 108.7661163 | AG58: =IF(AD58<('Fert selector'!$G$13+'Fert selector'!$G$13*'Fert selector'!$G$17),0,1)&IF(AD58>('Fert selector'!$G$13-'Fert selector'!$G$13*'Fert selector'!$G$18),0,1) -> 10
B59: 374.2148519 | C59: 96562 | D59: =VLOOKUP(C59,'Data sheet'!B7:C71,2,FALSE) -> COMPANION 2 | E59: =VLOOKUP(C59,'Data sheet'!$B$1:$AG$65,26,FALSE) -> 1.260794062 | F59: =VLOOKUP(C59,'Data sheet'!$B$1:$AG$65,27,FALSE) -> 0.9386039842 | G59: =VLOOKUP(C59,'Data sheet'!$B$1:$AG$65,28,FALSE) -> 2.963258207 | H59: =VLOOKUP(C59,'Data sheet'!$B$1:$AG$65,29,FALSE) -> 0.9135742338 | N59: =IF(E59=0,0,'Fert selector'!$D$13/E59) -> 118.9726416 | O59: =IF('Fert selector'!$D$15="Y",E59*N59,IF('Fert selector'!$E$15="Y",F59*S59,IF('Fert selector'!$F$15="Y",G59*X59,IF('Fert selector'!$G$15="Y",H59*AC59)))) -> 150 | P59: 0 | Q59: =IF((O59-'Fert selector'!$D$13)<0,(O59-'Fert selector'!$D$13)*-1,O59-'Fert selector'!$D$13) -> 0 | R59: =IF(O59<('Fert selector'!$D$13+'Fert selector'!$D$13*'Fert selector'!$D$17),0,1)&IF(O59>('Fert selector'!$D$13-'Fert selector'!$D$13*'Fert selector'!$D$18),0,1) -> 00 | S59: =IF(F59=0,0,'Fert selector'!$E$13/F59) -> 0 | T59: =IF('Fert selector'!$D$15="Y",$F59*$N59,IF('Fert selector'!$E$15="Y",$F59*$S59,IF('Fert selector'!$F$15="Y",$F59*$X59,IF('Fert selector'!$G$15="Y",$F59*$AC59)))) -> 111.6681954 | U59: 111.6681954 | V59: =IF((T59-'Fert selector'!$E$13)<0,(T59-'Fert selector'!$E$13)*-1,T59-'Fert selector'!$E$13) -> 111.6681954 | W59: =IF(T59<('Fert selector'!$E$13+'Fert selector'!$E$13*'Fert selector'!$E$17),0,1)&IF(T59>('Fert selector'!$E$13-'Fert selector'!$E$13*'Fert selector'!$E$18),0,1) -> 10 | X59: =IF(G59=0,0,'Fert selector'!$F$13/G59) -> 30.37197359 | Y59: =IF('Fert selector'!$D$15="Y",$G59*$N59,IF('Fert selector'!$E$15="Y",$G59*$S59,IF('Fert selector'!$F$15="Y",$G59*$X59,IF('Fert selector'!$G$15="Y",$G59*$AC59)))) -> 352.5466565 | Z59: 262.5466565 | AA59: =IF((Y59-'Fert selector'!$F$13)<0,(Y59-'Fert selector'!$F$13)*-1,Y59-'Fert selector'!$F$13) -> 262.5466565 | AB59: =IF(Y59<('Fert selector'!$F$13+'Fert selector'!$F$13*'Fert selector'!$F$17),0,1)&IF(Y59>('Fert selector'!$F$13-'Fert selector'!$F$13*'Fert selector'!$F$18),0,1) -> 10 | AC59: =IF(H59=0,0,'Fert selector'!$G$13/H59) -> 0 | AD59: =IF('Fert selector'!$D$15="Y",$H59*$N59,IF('Fert selector'!$E$15="Y",$H59*$S59,IF('Fert selector'!$F$15="Y",$H59*$X59,IF('Fert selector'!$G$15="Y",$H59*$AC59)))) -> 108.6903399 | AE59: 108.6903399 | AF59: =IF((AD59-'Fert selector'!$G$13)<0,(AD59-'Fert selector'!$G$13)*-1,AD59-'Fert selector'!$G$13) -> 108.6903399 | AG59: =IF(AD59<('Fert selector'!$G$13+'Fert selector'!$G$13*'Fert selector'!$G$17),0,1)&IF(AD59>('Fert selector'!$G$13-'Fert selector'!$G$13*'Fert selector'!$G$18),0,1) -> 10
B60: 380.0962951 | C60: 102192 | D60: =VLOOKUP(C60,'Data sheet'!B46:C110,2,FALSE) -> MKY 60 | E60: =VLOOKUP(C60,'Data sheet'!$B$1:$AG$65,26,FALSE) -> 0.9771116555 | F60: =VLOOKUP(C60,'Data sheet'!$B$1:$AG$65,27,FALSE) -> 0.01052317455 | G60: =VLOOKUP(C60,'Data sheet'!$B$1:$AG$65,28,FALSE) -> 3.05172062 | H60: =VLOOKUP(C60,'Data sheet'!$B$1:$AG$65,29,FALSE) -> 0.3369364286 | N60: =IF(E60=0,0,'Fert selector'!$D$13/E60) -> 153.5136739 | O60: =IF('Fert selector'!$D$15="Y",E60*N60,IF('Fert selector'!$E$15="Y",F60*S60,IF('Fert selector'!$F$15="Y",G60*X60,IF('Fert selector'!$G$15="Y",H60*AC60)))) -> 150 | P60: 0 | Q60: =IF((O60-'Fert selector'!$D$13)<0,(O60-'Fert selector'!$D$13)*-1,O60-'Fert selector'!$D$13) -> 0 | R60: =IF(O60<('Fert selector'!$D$13+'Fert selector'!$D$13*'Fert selector'!$D$17),0,1)&IF(O60>('Fert selector'!$D$13-'Fert selector'!$D$13*'Fert selector'!$D$18),0,1) -> 00 | S60: =IF(F60=0,0,'Fert selector'!$E$13/F60) -> 0 | T60: =IF('Fert selector'!$D$15="Y",$F60*$N60,IF('Fert selector'!$E$15="Y",$F60*$S60,IF('Fert selector'!$F$15="Y",$F60*$X60,IF('Fert selector'!$G$15="Y",$F60*$AC60)))) -> 1.615451186 | U60: 1.615451186 | V60: =IF((T60-'Fert selector'!$E$13)<0,(T60-'Fert selector'!$E$13)*-1,T60-'Fert selector'!$E$13) -> 1.615451186 | W60: =IF(T60<('Fert selector'!$E$13+'Fert selector'!$E$13*'Fert selector'!$E$17),0,1)&IF(T60>('Fert selector'!$E$13-'Fert selector'!$E$13*'Fert selector'!$E$18),0,1) -> 10 | X60: =IF(G60=0,0,'Fert selector'!$F$13/G60) -> 29.49155942 | Y60: =IF('Fert selector'!$D$15="Y",$G60*$N60,IF('Fert selector'!$E$15="Y",$G60*$S60,IF('Fert selector'!$F$15="Y",$G60*$X60,IF('Fert selector'!$G$15="Y",$G60*$AC60)))) -> 468.480844 | Z60: 378.480844 | AA60: =IF((Y60-'Fert selector'!$F$13)<0,(Y60-'Fert selector'!$F$13)*-1,Y60-'Fert selector'!$F$13) -> 378.480844 | AB60: =IF(Y60<('Fert selector'!$F$13+'Fert selector'!$F$13*'Fert selector'!$F$17),0,1)&IF(Y60>('Fert selector'!$F$13-'Fert selector'!$F$13*'Fert selector'!$F$18),0,1) -> 10 | AC60: =IF(H60=0,0,'Fert selector'!$G$13/H60) -> 0 | AD60: =IF('Fert selector'!$D$15="Y",$H60*$N60,IF('Fert selector'!$E$15="Y",$H60*$S60,IF('Fert selector'!$F$15="Y",$H60*$X60,IF('Fert selector'!$G$15="Y",$H60*$AC60)))) -> 51.72434902 | AE60: 51.72434902 | AF60: =IF((AD60-'Fert selector'!$G$13)<0,(AD60-'Fert selector'!$G$13)*-1,AD60-'Fert selector'!$G$13) -> 51.72434902 | AG60: =IF(AD60<('Fert selector'!$G$13+'Fert selector'!$G$13*'Fert selector'!$G$17),0,1)&IF(AD60>('Fert selector'!$G$13-'Fert selector'!$G$13*'Fert selector'!$G$18),0,1) -> 10
B61: 422.8149494 | C61: 88635 | D61: =VLOOKUP(C61,'Data sheet'!B21:C85,2,FALSE) -> LO N PLANTER | E61: =VLOOKUP(C61,'Data sheet'!$B$1:$AG$65,26,FALSE) -> 1.092548707 | F61: =VLOOKUP(C61,'Data sheet'!$B$1:$AG$65,27,FALSE) -> 0.7479224853 | G61: =VLOOKUP(C61,'Data sheet'!$B$1:$AG$65,28,FALSE) -> 2.987246246 | H61: =VLOOKUP(C61,'Data sheet'!$B$1:$AG$65,29,FALSE) -> 0.7913235055 | N61: =IF(E61=0,0,'Fert selector'!$D$13/E61) -> 137.2936502 | O61: =IF('Fert selector'!$D$15="Y",E61*N61,IF('Fert selector'!$E$15="Y",F61*S61,IF('Fert selector'!$F$15="Y",G61*X61,IF('Fert selector'!$G$15="Y",H61*AC61)))) -> 150 | P61: 0 | Q61: =IF((O61-'Fert selector'!$D$13)<0,(O61-'Fert selector'!$D$13)*-1,O61-'Fert selector'!$D$13) -> 0 | R61: =IF(O61<('Fert selector'!$D$13+'Fert selector'!$D$13*'Fert selector'!$D$17),0,1)&IF(O61>('Fert selector'!$D$13-'Fert selector'!$D$13*'Fert selector'!$D$18),0,1) -> 00 | S61: =IF(F61=0,0,'Fert selector'!$E$13/F61) -> 0 | T61: =IF('Fert selector'!$D$15="Y",$F61*$N61,IF('Fert selector'!$E$15="Y",$F61*$S61,IF('Fert selector'!$F$15="Y",$F61*$X61,IF('Fert selector'!$G$15="Y",$F61*$AC61)))) -> 102.6850081 | U61: 102.6850081 | V61: =IF((T61-'Fert selector'!$E$13)<0,(T61-'Fert selector'!$E$13)*-1,T61-'Fert selector'!$E$13) -> 102.6850081 | W61: =IF(T61<('Fert selector'!$E$13+'Fert selector'!$E$13*'Fert selector'!$E$17),0,1)&IF(T61>('Fert selector'!$E$13-'Fert selector'!$E$13*'Fert selector'!$E$18),0,1) -> 10 | X61: =IF(G61=0,0,'Fert selector'!$F$13/G61) -> 30.12808205 | Y61: =IF('Fert selector'!$D$15="Y",$G61*$N61,IF('Fert selector'!$E$15="Y",$G61*$S61,IF('Fert selector'!$F$15="Y",$G61*$X61,IF('Fert selector'!$G$15="Y",$G61*$AC61)))) -> 410.1299413 | Z61: 320.1299413 | AA61: =IF((Y61-'Fert selector'!$F$13)<0,(Y61-'Fert selector'!$F$13)*-1,Y61-'Fert selector'!$F$13) -> 320.1299413 | AB61: =IF(Y61<('Fert selector'!$F$13+'Fert selector'!$F$13*'Fert selector'!$F$17),0,1)&IF(Y61>('Fert selector'!$F$13-'Fert selector'!$F$13*'Fert selector'!$F$18),0,1) -> 10 | AC61: =IF(H61=0,0,'Fert selector'!$G$13/H61) -> 0 | AD61: =IF('Fert selector'!$D$15="Y",$H61*$N61,IF('Fert selector'!$E$15="Y",$H61*$S61,IF('Fert selector'!$F$15="Y",$H61*$X61,IF('Fert selector'!$G$15="Y",$H61*$AC61)))) -> 108.6436926 | AE61: 108.6436926 | AF61: =IF((AD61-'Fert selector'!$G$13)<0,(AD61-'Fert selector'!$G$13)*-1,AD61-'Fert selector'!$G$13) -> 108.6436926 | AG61: =IF(AD61<('Fert selector'!$G$13+'Fert selector'!$G$13*'Fert selector'!$G$17),0,1)&IF(AD61>('Fert selector'!$G$13-'Fert selector'!$G$13*'Fert selector'!$G$18),0,1) -> 10
B62: 468.7722487 | C62: 88122 | D62: =VLOOKUP(C62,'Data sheet'!B50:C114,2,FALSE) -> VILLIS MUNG BEAN MIX | E62: =VLOOKUP(C62,'Data sheet'!$B$1:$AG$65,26,FALSE) -> 0.824222611 | F62: =VLOOKUP(C62,'Data sheet'!$B$1:$AG$65,27,FALSE) -> 0.01055103601 | G62: =VLOOKUP(C62,'Data sheet'!$B$1:$AG$65,28,FALSE) -> 3.059800443 | H62: =VLOOKUP(C62,'Data sheet'!$B$1:$AG$65,29,FALSE) -> 0.3317033604 | N62: =IF(E62=0,0,'Fert selector'!$D$13/E62) -> 181.9896688 | O62: =IF('Fert selector'!$D$15="Y",E62*N62,IF('Fert selector'!$E$15="Y",F62*S62,IF('Fert selector'!$F$15="Y",G62*X62,IF('Fert selector'!$G$15="Y",H62*AC62)))) -> 150 | P62: 0 | Q62: =IF((O62-'Fert selector'!$D$13)<0,(O62-'Fert selector'!$D$13)*-1,O62-'Fert selector'!$D$13) -> 0 | R62: =IF(O62<('Fert selector'!$D$13+'Fert selector'!$D$13*'Fert selector'!$D$17),0,1)&IF(O62>('Fert selector'!$D$13-'Fert selector'!$D$13*'Fert selector'!$D$18),0,1) -> 00 | S62: =IF(F62=0,0,'Fert selector'!$E$13/F62) -> 0 | T62: =IF('Fert selector'!$D$15="Y",$F62*$N62,IF('Fert selector'!$E$15="Y",$F62*$S62,IF('Fert selector'!$F$15="Y",$F62*$X62,IF('Fert selector'!$G$15="Y",$F62*$AC62)))) -> 1.920179549 | U62: 1.920179549 | V62: =IF((T62-'Fert selector'!$E$13)<0,(T62-'Fert selector'!$E$13)*-1,T62-'Fert selector'!$E$13) -> 1.920179549 | W62: =IF(T62<('Fert selector'!$E$13+'Fert selector'!$E$13*'Fert selector'!$E$17),0,1)&IF(T62>('Fert selector'!$E$13-'Fert selector'!$E$13*'Fert selector'!$E$18),0,1) -> 10 | X62: =IF(G62=0,0,'Fert selector'!$F$13/G62) -> 29.41368291 | Y62: =IF('Fert selector'!$D$15="Y",$G62*$N62,IF('Fert selector'!$E$15="Y",$G62*$S62,IF('Fert selector'!$F$15="Y",$G62*$X62,IF('Fert selector'!$G$15="Y",$G62*$AC62)))) -> 556.8520692 | Z62: 466.8520692 | AA62: =IF((Y62-'Fert selector'!$F$13)<0,(Y62-'Fert selector'!$F$13)*-1,Y62-'Fert selector'!$F$13) -> 466.8520692 | AB62: =IF(Y62<('Fert selector'!$F$13+'Fert selector'!$F$13*'Fert selector'!$F$17),0,1)&IF(Y62>('Fert selector'!$F$13-'Fert selector'!$F$13*'Fert selector'!$F$18),0,1) -> 10 | AC62: =IF(H62=0,0,'Fert selector'!$G$13/H62) -> 0 | AD62: =IF('Fert selector'!$D$15="Y",$H62*$N62,IF('Fert selector'!$E$15="Y",$H62*$S62,IF('Fert selector'!$F$15="Y",$H62*$X62,IF('Fert selector'!$G$15="Y",$H62*$AC62)))) -> 60.36658469 | AE62: 60.36658469 | AF62: =IF((AD62-'Fert selector'!$G$13)<0,(AD62-'Fert selector'!$G$13)*-1,AD62-'Fert selector'!$G$13) -> 60.36658469 | AG62: =IF(AD62<('Fert selector'!$G$13+'Fert selector'!$G$13*'Fert selector'!$G$17),0,1)&IF(AD62>('Fert selector'!$G$13-'Fert selector'!$G$13*'Fert selector'!$G$18),0,1) -> 10
B63: 581.0298504 | C63: 89521 | D63: =VLOOKUP(C63,'Data sheet'!B59:C123,2,FALSE) -> SOY STARTER | E63: =VLOOKUP(C63,'Data sheet'!$B$1:$AG$65,26,FALSE) -> 0.7616661748 | F63: =VLOOKUP(C63,'Data sheet'!$B$1:$AG$65,27,FALSE) -> 0.3729155375 | G63: =VLOOKUP(C63,'Data sheet'!$B$1:$AG$65,28,FALSE) -> 3.034422724 | H63: =VLOOKUP(C63,'Data sheet'!$B$1:$AG$65,29,FALSE) -> 0.5508970733 | N63: =IF(E63=0,0,'Fert selector'!$D$13/E63) -> 196.9366698 | O63: =IF('Fert selector'!$D$15="Y",E63*N63,IF('Fert selector'!$E$15="Y",F63*S63,IF('Fert selector'!$F$15="Y",G63*X63,IF('Fert selector'!$G$15="Y",H63*AC63)))) -> 150 | P63: 0 | Q63: =IF((O63-'Fert selector'!$D$13)<0,(O63-'Fert selector'!$D$13)*-1,O63-'Fert selector'!$D$13) -> 0 | R63: =IF(O63<('Fert selector'!$D$13+'Fert selector'!$D$13*'Fert selector'!$D$17),0,1)&IF(O63>('Fert selector'!$D$13-'Fert selector'!$D$13*'Fert selector'!$D$18),0,1) -> 00 | S63: =IF(F63=0,0,'Fert selector'!$E$13/F63) -> 0 | T63: =IF('Fert selector'!$D$15="Y",$F63*$N63,IF('Fert selector'!$E$15="Y",$F63*$S63,IF('Fert selector'!$F$15="Y",$F63*$X63,IF('Fert selector'!$G$15="Y",$F63*$AC63)))) -> 73.44074409 | U63: 73.44074409 | V63: =IF((T63-'Fert selector'!$E$13)<0,(T63-'Fert selector'!$E$13)*-1,T63-'Fert selector'!$E$13) -> 73.44074409 | W63: =IF(T63<('Fert selector'!$E$13+'Fert selector'!$E$13*'Fert selector'!$E$17),0,1)&IF(T63>('Fert selector'!$E$13-'Fert selector'!$E$13*'Fert selector'!$E$18),0,1) -> 10 | X63: =IF(G63=0,0,'Fert selector'!$F$13/G63) -> 29.6596777 | Y63: =IF('Fert selector'!$D$15="Y",$G63*$N63,IF('Fert selector'!$E$15="Y",$G63*$S63,IF('Fert selector'!$F$15="Y",$G63*$X63,IF('Fert selector'!$G$15="Y",$G63*$AC63)))) -> 597.5891063 | Z63: 507.5891063 | AA63: =IF((Y63-'Fert selector'!$F$13)<0,(Y63-'Fert selector'!$F$13)*-1,Y63-'Fert selector'!$F$13) -> 507.5891063 | AB63: =IF(Y63<('Fert selector'!$F$13+'Fert selector'!$F$13*'Fert selector'!$F$17),0,1)&IF(Y63>('Fert selector'!$F$13-'Fert selector'!$F$13*'Fert selector'!$F$18),0,1) -> 10 | AC63: =IF(H63=0,0,'Fert selector'!$G$13/H63) -> 0 | AD63: =IF('Fert selector'!$D$15="Y",$H63*$N63,IF('Fert selector'!$E$15="Y",$H63*$S63,IF('Fert selector'!$F$15="Y",$H63*$X63,IF('Fert selector'!$G$15="Y",$H63*$AC63)))) -> 108.491835 | AE63: 108.491835 | AF63: =IF((AD63-'Fert selector'!$G$13)<0,(AD63-'Fert selector'!$G$13)*-1,AD63-'Fert selector'!$G$13) -> 108.491835 | AG63: =IF(AD63<('Fert selector'!$G$13+'Fert selector'!$G$13*'Fert selector'!$G$17),0,1)&IF(AD63>('Fert selector'!$G$13-'Fert selector'!$G$13*'Fert selector'!$G$18),0,1) -> 10
B64: 871.2147762 | C64: 102182 | D64: =VLOOKUP(C64,'Data sheet'!B22:C86,2,FALSE) -> LO P PLANTER | E64: =VLOOKUP(C64,'Data sheet'!$B$1:$AG$65,26,FALSE) -> 0.4896695173 | F64: =VLOOKUP(C64,'Data sheet'!$B$1:$AG$65,27,FALSE) -> 0.06464711434 | G64: =VLOOKUP(C64,'Data sheet'!$B$1:$AG$65,28,FALSE) -> 3.073203389 | H64: =VLOOKUP(C64,'Data sheet'!$B$1:$AG$65,29,FALSE) -> 0.353258396 | N64: =IF(E64=0,0,'Fert selector'!$D$13/E64) -> 306.329054 | O64: =IF('Fert selector'!$D$15="Y",E64*N64,IF('Fert selector'!$E$15="Y",F64*S64,IF('Fert selector'!$F$15="Y",G64*X64,IF('Fert selector'!$G$15="Y",H64*AC64)))) -> 150 | P64: 0 | Q64: =IF((O64-'Fert selector'!$D$13)<0,(O64-'Fert selector'!$D$13)*-1,O64-'Fert selector'!$D$13) -> 0 | R64: =IF(O64<('Fert selector'!$D$13+'Fert selector'!$D$13*'Fert selector'!$D$17),0,1)&IF(O64>('Fert selector'!$D$13-'Fert selector'!$D$13*'Fert selector'!$D$18),0,1) -> 00 | S64: =IF(F64=0,0,'Fert selector'!$E$13/F64) -> 0 | T64: =IF('Fert selector'!$D$15="Y",$F64*$N64,IF('Fert selector'!$E$15="Y",$F64*$S64,IF('Fert selector'!$F$15="Y",$F64*$X64,IF('Fert selector'!$G$15="Y",$F64*$AC64)))) -> 19.80328938 | U64: 19.80328938 | V64: =IF((T64-'Fert selector'!$E$13)<0,(T64-'Fert selector'!$E$13)*-1,T64-'Fert selector'!$E$13) -> 19.80328938 | W64: =IF(T64<('Fert selector'!$E$13+'Fert selector'!$E$13*'Fert selector'!$E$17),0,1)&IF(T64>('Fert selector'!$E$13-'Fert selector'!$E$13*'Fert selector'!$E$18),0,1) -> 10 | X64: =IF(G64=0,0,'Fert selector'!$F$13/G64) -> 29.28540308 | Y64: =IF('Fert selector'!$D$15="Y",$G64*$N64,IF('Fert selector'!$E$15="Y",$G64*$S64,IF('Fert selector'!$F$15="Y",$G64*$X64,IF('Fert selector'!$G$15="Y",$G64*$AC64)))) -> 941.4114868 | Z64: 851.4114868 | AA64: =IF((Y64-'Fert selector'!$F$13)<0,(Y64-'Fert selector'!$F$13)*-1,Y64-'Fert selector'!$F$13) -> 851.4114868 | AB64: =IF(Y64<('Fert selector'!$F$13+'Fert selector'!$F$13*'Fert selector'!$F$17),0,1)&IF(Y64>('Fert selector'!$F$13-'Fert selector'!$F$13*'Fert selector'!$F$18),0,1) -> 10 | AC64: =IF(H64=0,0,'Fert selector'!$G$13/H64) -> 0 | AD64: =IF('Fert selector'!$D$15="Y",$H64*$N64,IF('Fert selector'!$E$15="Y",$H64*$S64,IF('Fert selector'!$F$15="Y",$H64*$X64,IF('Fert selector'!$G$15="Y",$H64*$AC64)))) -> 108.2133103 | AE64: 108.2133103 | AF64: =IF((AD64-'Fert selector'!$G$13)<0,(AD64-'Fert selector'!$G$13)*-1,AD64-'Fert selector'!$G$13) -> 108.2133103 | AG64: =IF(AD64<('Fert selector'!$G$13+'Fert selector'!$G$13*'Fert selector'!$G$17),0,1)&IF(AD64>('Fert selector'!$G$13-'Fert selector'!$G$13*'Fert selector'!$G$18),0,1) -> 10
B65: 958.8531752 | C65: 80788 | D65: =VLOOKUP(C65,'Data sheet'!B1:C65,2,FALSE) -> BIODUNDER | E65: =VLOOKUP(C65,'Data sheet'!$B$1:$AG$65,26,FALSE) -> 0.442 | F65: =VLOOKUP(C65,'Data sheet'!$B$1:$AG$65,27,FALSE) -> 0.01062068966 | G65: =VLOOKUP(C65,'Data sheet'!$B$1:$AG$65,28,FALSE) -> 3.08 | H65: =VLOOKUP(C65,'Data sheet'!$B$1:$AG$65,29,FALSE) -> 0.3186206897 | N65: =IF(E65=0,0,'Fert selector'!$D$13/E65) -> 339.3665158 | O65: =IF('Fert selector'!$D$15="Y",E65*N65,IF('Fert selector'!$E$15="Y",F65*S65,IF('Fert selector'!$F$15="Y",G65*X65,IF('Fert selector'!$G$15="Y",H65*AC65)))) -> 150 | P65: =IF(R65="00",0,Q65) -> 0 | Q65: =IF((O65-'Fert selector'!$D$13)<0,(O65-'Fert selector'!$D$13)*-1,O65-'Fert selector'!$D$13) -> 0 | R65: =IF(O65<('Fert selector'!$D$13+'Fert selector'!$D$13*'Fert selector'!$D$17),0,1)&IF(O65>('Fert selector'!$D$13-'Fert selector'!$D$13*'Fert selector'!$D$18),0,1) -> 00 | S65: =IF(F65=0,0,'Fert selector'!$E$13/F65) -> 0 | T65: =IF('Fert selector'!$D$15="Y",$F65*$N65,IF('Fert selector'!$E$15="Y",$F65*$S65,IF('Fert selector'!$F$15="Y",$F65*$X65,IF('Fert selector'!$G$15="Y",$F65*$AC65)))) -> 3.604306444 | U65: =IF(W65="00",0,V65) -> 3.604306444 | V65: =IF((T65-'Fert selector'!$E$13)<0,(T65-'Fert selector'!$E$13)*-1,T65-'Fert selector'!$E$13) -> 3.604306444 | W65: =IF(T65<('Fert selector'!$E$13+'Fert selector'!$E$13*'Fert selector'!$E$17),0,1)&IF(T65>('Fert selector'!$E$13-'Fert selector'!$E$13*'Fert selector'!$E$18),0,1) -> 10 | X65: =IF(G65=0,0,'Fert selector'!$F$13/G65) -> 29.22077922 | Y65: =IF('Fert selector'!$D$15="Y",$G65*$N65,IF('Fert selector'!$E$15="Y",$G65*$S65,IF('Fert selector'!$F$15="Y",$G65*$X65,IF('Fert selector'!$G$15="Y",$G65*$AC65)))) -> 1045.248869 | Z65: =IF(AB65="00",0,AA65) -> 955.2488688 | AA65: =IF((Y65-'Fert selector'!$F$13)<0,(Y65-'Fert selector'!$F$13)*-1,Y65-'Fert selector'!$F$13) -> 955.2488688 | AB65: =IF(Y65<('Fert selector'!$F$13+'Fert selector'!$F$13*'Fert selector'!$F$17),0,1)&IF(Y65>('Fert selector'!$F$13-'Fert selector'!$F$13*'Fert selector'!$F$18),0,1) -> 10 | AC65: =IF(H65=0,0,'Fert selector'!$G$13/H65) -> 0 | AD65: =IF('Fert selector'!$D$15="Y",$H65*$N65,IF('Fert selector'!$E$15="Y",$H65*$S65,IF('Fert selector'!$F$15="Y",$H65*$X65,IF('Fert selector'!$G$15="Y",$H65*$AC65)))) -> 108.1291933 | AE65: =IF(AG65="00",0,AF65) -> 108.1291933 | AF65: =IF((AD65-'Fert selector'!$G$13)<0,(AD65-'Fert selector'!$G$13)*-1,AD65-'Fert selector'!$G$13) -> 108.1291933 | AG65: =IF(AD65<('Fert selector'!$G$13+'Fert selector'!$G$13*'Fert selector'!$G$17),0,1)&IF(AD65>('Fert selector'!$G$13-'Fert selector'!$G$13*'Fert selector'!$G$18),0,1) -> 10
B66: 958.8531752 | C66: 80795 | D66: =VLOOKUP(C66,'Data sheet'!B64:C128,2,FALSE) -> SUPLAFLO 10NP | E66: =VLOOKUP(C66,'Data sheet'!$B$1:$AG$65,26,FALSE) -> 0.442 | F66: =VLOOKUP(C66,'Data sheet'!$B$1:$AG$65,27,FALSE) -> 0.01062068966 | G66: =VLOOKUP(C66,'Data sheet'!$B$1:$AG$65,28,FALSE) -> 3.08 | H66: =VLOOKUP(C66,'Data sheet'!$B$1:$AG$65,29,FALSE) -> 0.3186206897 | N66: =IF(E66=0,0,'Fert selector'!$D$13/E66) -> 339.3665158 | O66: =IF('Fert selector'!$D$15="Y",E66*N66,IF('Fert selector'!$E$15="Y",F66*S66,IF('Fert selector'!$F$15="Y",G66*X66,IF('Fert selector'!$G$15="Y",H66*AC66)))) -> 150 | P66: 0 | Q66: =IF((O66-'Fert selector'!$D$13)<0,(O66-'Fert selector'!$D$13)*-1,O66-'Fert selector'!$D$13) -> 0 | R66: =IF(O66<('Fert selector'!$D$13+'Fert selector'!$D$13*'Fert selector'!$D$17),0,1)&IF(O66>('Fert selector'!$D$13-'Fert selector'!$D$13*'Fert selector'!$D$18),0,1) -> 00 | S66: =IF(F66=0,0,'Fert selector'!$E$13/F66) -> 0 | T66: =IF('Fert selector'!$D$15="Y",$F66*$N66,IF('Fert selector'!$E$15="Y",$F66*$S66,IF('Fert selector'!$F$15="Y",$F66*$X66,IF('Fert selector'!$G$15="Y",$F66*$AC66)))) -> 3.604306444 | U66: 3.604306444 | V66: =IF((T66-'Fert selector'!$E$13)<0,(T66-'Fert selector'!$E$13)*-1,T66-'Fert selector'!$E$13) -> 3.604306444 | W66: =IF(T66<('Fert selector'!$E$13+'Fert selector'!$E$13*'Fert selector'!$E$17),0,1)&IF(T66>('Fert selector'!$E$13-'Fert selector'!$E$13*'Fert selector'!$E$18),0,1) -> 10 | X66: =IF(G66=0,0,'Fert selector'!$F$13/G66) -> 29.22077922 | Y66: =IF('Fert selector'!$D$15="Y",$G66*$N66,IF('Fert selector'!$E$15="Y",$G66*$S66,IF('Fert selector'!$F$15="Y",$G66*$X66,IF('Fert selector'!$G$15="Y",$G66*$AC66)))) -> 1045.248869 | Z66: 955.2488688 | AA66: =IF((Y66-'Fert selector'!$F$13)<0,(Y66-'Fert selector'!$F$13)*-1,Y66-'Fert selector'!$F$13) -> 955.2488688 | AB66: =IF(Y66<('Fert selector'!$F$13+'Fert selector'!$F$13*'Fert selector'!$F$17),0,1)&IF(Y66>('Fert selector'!$F$13-'Fert selector'!$F$13*'Fert selector'!$F$18),0,1) -> 10 | AC66: =IF(H66=0,0,'Fert selector'!$G$13/H66) -> 0 | AD66: =IF('Fert selector'!$D$15="Y",$H66*$N66,IF('Fert selector'!$E$15="Y",$H66*$S66,IF('Fert selector'!$F$15="Y",$H66*$X66,IF('Fert selector'!$G$15="Y",$H66*$AC66)))) -> 108.1291933 | AE66: 108.1291933 | AF66: =IF((AD66-'Fert selector'!$G$13)<0,(AD66-'Fert selector'!$G$13)*-1,AD66-'Fert selector'!$G$13) -> 108.1291933 | AG66: =IF(AD66<('Fert selector'!$G$13+'Fert selector'!$G$13*'Fert selector'!$G$17),0,1)&IF(AD66>('Fert selector'!$G$13-'Fert selector'!$G$13*'Fert selector'!$G$18),0,1) -> 10
N67: =IF(E67=0,0,'Fert selector'!$D$13/E67) -> 0 | O67: =IF('Fert selector'!$D$15="Y",E67*N67,IF('Fert selector'!$E$15="Y",F67*S67,IF('Fert selector'!$F$15="Y",G67*X67,IF('Fert selector'!$G$15="Y",H67*AC67)))) -> 0 | P67: 150 | Q67: =IF((O67-'Fert selector'!$D$13)<0,(O67-'Fert selector'!$D$13)*-1,O67-'Fert selector'!$D$13) -> 150 | R67: =IF(O67<('Fert selector'!$D$13+'Fert selector'!$D$13*'Fert selector'!$D$17),0,1)&IF(O67>('Fert selector'!$D$13-'Fert selector'!$D$13*'Fert selector'!$D$18),0,1) -> 01 | S67: =IF(F67=0,0,'Fert selector'!$E$13/F67) -> 0 | T67: =IF('Fert selector'!$D$15="Y",$F67*$N67,IF('Fert selector'!$E$15="Y",$F67*$S67,IF('Fert selector'!$F$15="Y",$F67*$X67,IF('Fert selector'!$G$15="Y",$F67*$AC67)))) -> 0 | U67: 0 | V67: =IF((T67-'Fert selector'!$E$13)<0,(T67-'Fert selector'!$E$13)*-1,T67-'Fert selector'!$E$13) -> 0 | W67: =IF(T67<('Fert selector'!$E$13+'Fert selector'!$E$13*'Fert selector'!$E$17),0,1)&IF(T67>('Fert selector'!$E$13-'Fert selector'!$E$13*'Fert selector'!$E$18),0,1) -> 11 | X67: =IF(G67=0,0,'Fert selector'!$F$13/G67) -> 0 | Y67: =IF('Fert selector'!$D$15="Y",$G67*$N67,IF('Fert selector'!$E$15="Y",$G67*$S67,IF('Fert selector'!$F$15="Y",$G67*$X67,IF('Fert selector'!$G$15="Y",$G67*$AC67)))) -> 0 | Z67: 90 | AA67: =IF((Y67-'Fert selector'!$F$13)<0,(Y67-'Fert selector'!$F$13)*-1,Y67-'Fert selector'!$F$13) -> 90 | AB67: =IF(Y67<('Fert selector'!$F$13+'Fert selector'!$F$13*'Fert selector'!$F$17),0,1)&IF(Y67>('Fert selector'!$F$13-'Fert selector'!$F$13*'Fert selector'!$F$18),0,1) -> 01 | AC67: =IF(H67=0,0,'Fert selector'!$G$13/H67) -> 0 | AD67: =IF('Fert selector'!$D$15="Y",$H67*$N67,IF('Fert selector'!$E$15="Y",$H67*$S67,IF('Fert selector'!$F$15="Y",$H67*$X67,IF('Fert selector'!$G$15="Y",$H67*$AC67)))) -> 0 | AE67: 0 | AF67: =IF((AD67-'Fert selector'!$G$13)<0,(AD67-'Fert selector'!$G$13)*-1,AD67-'Fert selector'!$G$13) -> 0 | AG67: =IF(AD67<('Fert selector'!$G$13+'Fert selector'!$G$13*'Fert selector'!$G$17),0,1)&IF(AD67>('Fert selector'!$G$13-'Fert selector'!$G$13*'Fert selector'!$G$18),0,1) -> 11
N68: =IF(E68=0,0,'Fert selector'!$D$13/E68) -> 0 | O68: =IF('Fert selector'!$D$15="Y",E68*N68,IF('Fert selector'!$E$15="Y",F68*S68,IF('Fert selector'!$F$15="Y",G68*X68,IF('Fert selector'!$G$15="Y",H68*AC68)))) -> 0 | P68: 150 | Q68: =IF((O68-'Fert selector'!$D$13)<0,(O68-'Fert selector'!$D$13)*-1,O68-'Fert selector'!$D$13) -> 150 | R68: =IF(O68<('Fert selector'!$D$13+'Fert selector'!$D$13*'Fert selector'!$D$17),0,1)&IF(O68>('Fert selector'!$D$13-'Fert selector'!$D$13*'Fert selector'!$D$18),0,1) -> 01 | S68: =IF(F68=0,0,'Fert selector'!$E$13/F68) -> 0 | T68: =IF('Fert selector'!$D$15="Y",$F68*$N68,IF('Fert selector'!$E$15="Y",$F68*$S68,IF('Fert selector'!$F$15="Y",$F68*$X68,IF('Fert selector'!$G$15="Y",$F68*$AC68)))) -> 0 | U68: 0 | V68: =IF((T68-'Fert selector'!$E$13)<0,(T68-'Fert selector'!$E$13)*-1,T68-'Fert selector'!$E$13) -> 0 | W68: =IF(T68<('Fert selector'!$E$13+'Fert selector'!$E$13*'Fert selector'!$E$17),0,1)&IF(T68>('Fert selector'!$E$13-'Fert selector'!$E$13*'Fert selector'!$E$18),0,1) -> 11 | X68: =IF(G68=0,0,'Fert selector'!$F$13/G68) -> 0 | Y68: =IF('Fert selector'!$D$15="Y",$G68*$N68,IF('Fert selector'!$E$15="Y",$G68*$S68,IF('Fert selector'!$F$15="Y",$G68*$X68,IF('Fert selector'!$G$15="Y",$G68*$AC68)))) -> 0 | Z68: 90 | AA68: =IF((Y68-'Fert selector'!$F$13)<0,(Y68-'Fert selector'!$F$13)*-1,Y68-'Fert selector'!$F$13) -> 90 | AB68: =IF(Y68<('Fert selector'!$F$13+'Fert selector'!$F$13*'Fert selector'!$F$17),0,1)&IF(Y68>('Fert selector'!$F$13-'Fert selector'!$F$13*'Fert selector'!$F$18),0,1) -> 01 | AC68: =IF(H68=0,0,'Fert selector'!$G$13/H68) -> 0 | AD68: =IF('Fert selector'!$D$15="Y",$H68*$N68,IF('Fert selector'!$E$15="Y",$H68*$S68,IF('Fert selector'!$F$15="Y",$H68*$X68,IF('Fert selector'!$G$15="Y",$H68*$AC68)))) -> 0 | AE68: 0 | AF68: =IF((AD68-'Fert selector'!$G$13)<0,(AD68-'Fert selector'!$G$13)*-1,AD68-'Fert selector'!$G$13) -> 0 | AG68: =IF(AD68<('Fert selector'!$G$13+'Fert selector'!$G$13*'Fert selector'!$G$17),0,1)&IF(AD68>('Fert selector'!$G$13-'Fert selector'!$G$13*'Fert selector'!$G$18),0,1) -> 11
N69: =IF(E69=0,0,'Fert selector'!$D$13/E69) -> 0 | O69: =IF('Fert selector'!$D$15="Y",E69*N69,IF('Fert selector'!$E$15="Y",F69*S69,IF('Fert selector'!$F$15="Y",G69*X69,IF('Fert selector'!$G$15="Y",H69*AC69)))) -> 0 | P69: 150 | Q69: =IF((O69-'Fert selector'!$D$13)<0,(O69-'Fert selector'!$D$13)*-1,O69-'Fert selector'!$D$13) -> 150 | R69: =IF(O69<('Fert selector'!$D$13+'Fert selector'!$D$13*'Fert selector'!$D$17),0,1)&IF(O69>('Fert selector'!$D$13-'Fert selector'!$D$13*'Fert selector'!$D$18),0,1) -> 01 | S69: =IF(F69=0,0,'Fert selector'!$E$13/F69) -> 0 | T69: =IF('Fert selector'!$D$15="Y",$F69*$N69,IF('Fert selector'!$E$15="Y",$F69*$S69,IF('Fert selector'!$F$15="Y",$F69*$X69,IF('Fert selector'!$G$15="Y",$F69*$AC69)))) -> 0 | U69: 0 | V69: =IF((T69-'Fert selector'!$E$13)<0,(T69-'Fert selector'!$E$13)*-1,T69-'Fert selector'!$E$13) -> 0 | W69: =IF(T69<('Fert selector'!$E$13+'Fert selector'!$E$13*'Fert selector'!$E$17),0,1)&IF(T69>('Fert selector'!$E$13-'Fert selector'!$E$13*'Fert selector'!$E$18),0,1) -> 11 | X69: =IF(G69=0,0,'Fert selector'!$F$13/G69) -> 0 | Y69: =IF('Fert selector'!$D$15="Y",$G69*$N69,IF('Fert selector'!$E$15="Y",$G69*$S69,IF('Fert selector'!$F$15="Y",$G69*$X69,IF('Fert selector'!$G$15="Y",$G69*$AC69)))) -> 0 | Z69: 90 | AA69: =IF((Y69-'Fert selector'!$F$13)<0,(Y69-'Fert selector'!$F$13)*-1,Y69-'Fert selector'!$F$13) -> 90 | AB69: =IF(Y69<('Fert selector'!$F$13+'Fert selector'!$F$13*'Fert selector'!$F$17),0,1)&IF(Y69>('Fert selector'!$F$13-'Fert selector'!$F$13*'Fert selector'!$F$18),0,1) -> 01 | AC69: =IF(H69=0,0,'Fert selector'!$G$13/H69) -> 0 | AD69: =IF('Fert selector'!$D$15="Y",$H69*$N69,IF('Fert selector'!$E$15="Y",$H69*$S69,IF('Fert selector'!$F$15="Y",$H69*$X69,IF('Fert selector'!$G$15="Y",$H69*$AC69)))) -> 0 | AE69: 0 | AF69: =IF((AD69-'Fert selector'!$G$13)<0,(AD69-'Fert selector'!$G$13)*-1,AD69-'Fert selector'!$G$13) -> 0 | AG69: =IF(AD69<('Fert selector'!$G$13+'Fert selector'!$G$13*'Fert selector'!$G$17),0,1)&IF(AD69>('Fert selector'!$G$13-'Fert selector'!$G$13*'Fert selector'!$G$18),0,1) -> 11
N70: =IF(E70=0,0,'Fert selector'!$D$13/E70) -> 0 | O70: =IF('Fert selector'!$D$15="Y",E70*N70,IF('Fert selector'!$E$15="Y",F70*S70,IF('Fert selector'!$F$15="Y",G70*X70,IF('Fert selector'!$G$15="Y",H70*AC70)))) -> 0 | P70: 150 | Q70: =IF((O70-'Fert selector'!$D$13)<0,(O70-'Fert selector'!$D$13)*-1,O70-'Fert selector'!$D$13) -> 150 | R70: =IF(O70<('Fert selector'!$D$13+'Fert selector'!$D$13*'Fert selector'!$D$17),0,1)&IF(O70>('Fert selector'!$D$13-'Fert selector'!$D$13*'Fert selector'!$D$18),0,1) -> 01 | S70: =IF(F70=0,0,'Fert selector'!$E$13/F70) -> 0 | T70: =IF('Fert selector'!$D$15="Y",$F70*$N70,IF('Fert selector'!$E$15="Y",$F70*$S70,IF('Fert selector'!$F$15="Y",$F70*$X70,IF('Fert selector'!$G$15="Y",$F70*$AC70)))) -> 0 | U70: 0 | V70: =IF((T70-'Fert selector'!$E$13)<0,(T70-'Fert selector'!$E$13)*-1,T70-'Fert selector'!$E$13) -> 0 | W70: =IF(T70<('Fert selector'!$E$13+'Fert selector'!$E$13*'Fert selector'!$E$17),0,1)&IF(T70>('Fert selector'!$E$13-'Fert selector'!$E$13*'Fert selector'!$E$18),0,1) -> 11 | X70: =IF(G70=0,0,'Fert selector'!$F$13/G70) -> 0 | Y70: =IF('Fert selector'!$D$15="Y",$G70*$N70,IF('Fert selector'!$E$15="Y",$G70*$S70,IF('Fert selector'!$F$15="Y",$G70*$X70,IF('Fert selector'!$G$15="Y",$G70*$AC70)))) -> 0 | Z70: 90 | AA70: =IF((Y70-'Fert selector'!$F$13)<0,(Y70-'Fert selector'!$F$13)*-1,Y70-'Fert selector'!$F$13) -> 90 | AB70: =IF(Y70<('Fert selector'!$F$13+'Fert selector'!$F$13*'Fert selector'!$F$17),0,1)&IF(Y70>('Fert selector'!$F$13-'Fert selector'!$F$13*'Fert selector'!$F$18),0,1) -> 01 | AC70: =IF(H70=0,0,'Fert selector'!$G$13/H70) -> 0 | AD70: =IF('Fert selector'!$D$15="Y",$H70*$N70,IF('Fert selector'!$E$15="Y",$H70*$S70,IF('Fert selector'!$F$15="Y",$H70*$X70,IF('Fert selector'!$G$15="Y",$H70*$AC70)))) -> 0 | AE70: 0 | AF70: =IF((AD70-'Fert selector'!$G$13)<0,(AD70-'Fert selector'!$G$13)*-1,AD70-'Fert selector'!$G$13) -> 0 | AG70: =IF(AD70<('Fert selector'!$G$13+'Fert selector'!$G$13*'Fert selector'!$G$17),0,1)&IF(AD70>('Fert selector'!$G$13-'Fert selector'!$G$13*'Fert selector'!$G$18),0,1) -> 11
N71: =IF(E71=0,0,'Fert selector'!$D$13/E71) -> 0 | O71: =IF('Fert selector'!$D$15="Y",E71*N71,IF('Fert selector'!$E$15="Y",F71*S71,IF('Fert selector'!$F$15="Y",G71*X71,IF('Fert selector'!$G$15="Y",H71*AC71)))) -> 0 | P71: 150 | Q71: =IF((O71-'Fert selector'!$D$13)<0,(O71-'Fert selector'!$D$13)*-1,O71-'Fert selector'!$D$13) -> 150 | R71: =IF(O71<('Fert selector'!$D$13+'Fert selector'!$D$13*'Fert selector'!$D$17),0,1)&IF(O71>('Fert selector'!$D$13-'Fert selector'!$D$13*'Fert selector'!$D$18),0,1) -> 01 | S71: =IF(F71=0,0,'Fert selector'!$E$13/F71) -> 0 | T71: =IF('Fert selector'!$D$15="Y",$F71*$N71,IF('Fert selector'!$E$15="Y",$F71*$S71,IF('Fert selector'!$F$15="Y",$F71*$X71,IF('Fert selector'!$G$15="Y",$F71*$AC71)))) -> 0 | U71: 0 | V71: =IF((T71-'Fert selector'!$E$13)<0,(T71-'Fert selector'!$E$13)*-1,T71-'Fert selector'!$E$13) -> 0 | W71: =IF(T71<('Fert selector'!$E$13+'Fert selector'!$E$13*'Fert selector'!$E$17),0,1)&IF(T71>('Fert selector'!$E$13-'Fert selector'!$E$13*'Fert selector'!$E$18),0,1) -> 11 | X71: =IF(G71=0,0,'Fert selector'!$F$13/G71) -> 0 | Y71: =IF('Fert selector'!$D$15="Y",$G71*$N71,IF('Fert selector'!$E$15="Y",$G71*$S71,IF('Fert selector'!$F$15="Y",$G71*$X71,IF('Fert selector'!$G$15="Y",$G71*$AC71)))) -> 0 | Z71: 90 | AA71: =IF((Y71-'Fert selector'!$F$13)<0,(Y71-'Fert selector'!$F$13)*-1,Y71-'Fert selector'!$F$13) -> 90 | AB71: =IF(Y71<('Fert selector'!$F$13+'Fert selector'!$F$13*'Fert selector'!$F$17),0,1)&IF(Y71>('Fert selector'!$F$13-'Fert selector'!$F$13*'Fert selector'!$F$18),0,1) -> 01 | AC71: =IF(H71=0,0,'Fert selector'!$G$13/H71) -> 0 | AD71: =IF('Fert selector'!$D$15="Y",$H71*$N71,IF('Fert selector'!$E$15="Y",$H71*$S71,IF('Fert selector'!$F$15="Y",$H71*$X71,IF('Fert selector'!$G$15="Y",$H71*$AC71)))) -> 0 | AE71: 0 | AF71: =IF((AD71-'Fert selector'!$G$13)<0,(AD71-'Fert selector'!$G$13)*-1,AD71-'Fert selector'!$G$13) -> 0 | AG71: =IF(AD71<('Fert selector'!$G$13+'Fert selector'!$G$13*'Fert selector'!$G$17),0,1)&IF(AD71>('Fert selector'!$G$13-'Fert selector'!$G$13*'Fert selector'!$G$18),0,1) -> 11
N72: =IF(E72=0,0,'Fert selector'!$D$13/E72) -> 0 | O72: =IF('Fert selector'!$D$15="Y",E72*N72,IF('Fert selector'!$E$15="Y",F72*S72,IF('Fert selector'!$F$15="Y",G72*X72,IF('Fert selector'!$G$15="Y",H72*AC72)))) -> 0 | P72: 150 | Q72: =IF((O72-'Fert selector'!$D$13)<0,(O72-'Fert selector'!$D$13)*-1,O72-'Fert selector'!$D$13) -> 150 | R72: =IF(O72<('Fert selector'!$D$13+'Fert selector'!$D$13*'Fert selector'!$D$17),0,1)&IF(O72>('Fert selector'!$D$13-'Fert selector'!$D$13*'Fert selector'!$D$18),0,1) -> 01 | S72: =IF(F72=0,0,'Fert selector'!$E$13/F72) -> 0 | T72: =IF('Fert selector'!$D$15="Y",$F72*$N72,IF('Fert selector'!$E$15="Y",$F72*$S72,IF('Fert selector'!$F$15="Y",$F72*$X72,IF('Fert selector'!$G$15="Y",$F72*$AC72)))) -> 0 | U72: 0 | V72: =IF((T72-'Fert selector'!$E$13)<0,(T72-'Fert selector'!$E$13)*-1,T72-'Fert selector'!$E$13) -> 0 | W72: =IF(T72<('Fert selector'!$E$13+'Fert selector'!$E$13*'Fert selector'!$E$17),0,1)&IF(T72>('Fert selector'!$E$13-'Fert selector'!$E$13*'Fert selector'!$E$18),0,1) -> 11 | X72: =IF(G72=0,0,'Fert selector'!$F$13/G72) -> 0 | Y72: =IF('Fert selector'!$D$15="Y",$G72*$N72,IF('Fert selector'!$E$15="Y",$G72*$S72,IF('Fert selector'!$F$15="Y",$G72*$X72,IF('Fert selector'!$G$15="Y",$G72*$AC72)))) -> 0 | Z72: 90 | AA72: =IF((Y72-'Fert selector'!$F$13)<0,(Y72-'Fert selector'!$F$13)*-1,Y72-'Fert selector'!$F$13) -> 90 | AB72: =IF(Y72<('Fert selector'!$F$13+'Fert selector'!$F$13*'Fert selector'!$F$17),0,1)&IF(Y72>('Fert selector'!$F$13-'Fert selector'!$F$13*'Fert selector'!$F$18),0,1) -> 01 | AC72: =IF(H72=0,0,'Fert selector'!$G$13/H72) -> 0 | AD72: =IF('Fert selector'!$D$15="Y",$H72*$N72,IF('Fert selector'!$E$15="Y",$H72*$S72,IF('Fert selector'!$F$15="Y",$H72*$X72,IF('Fert selector'!$G$15="Y",$H72*$AC72)))) -> 0 | AE72: 0 | AF72: =IF((AD72-'Fert selector'!$G$13)<0,(AD72-'Fert selector'!$G$13)*-1,AD72-'Fert selector'!$G$13) -> 0 | AG72: =IF(AD72<('Fert selector'!$G$13+'Fert selector'!$G$13*'Fert selector'!$G$17),0,1)&IF(AD72>('Fert selector'!$G$13-'Fert selector'!$G$13*'Fert selector'!$G$18),0,1) -> 11
N73: =IF(E73=0,0,'Fert selector'!$D$13/E73) -> 0 | O73: =IF('Fert selector'!$D$15="Y",E73*N73,IF('Fert selector'!$E$15="Y",F73*S73,IF('Fert selector'!$F$15="Y",G73*X73,IF('Fert selector'!$G$15="Y",H73*AC73)))) -> 0 | P73: 150 | Q73: =IF((O73-'Fert selector'!$D$13)<0,(O73-'Fert selector'!$D$13)*-1,O73-'Fert selector'!$D$13) -> 150 | R73: =IF(O73<('Fert selector'!$D$13+'Fert selector'!$D$13*'Fert selector'!$D$17),0,1)&IF(O73>('Fert selector'!$D$13-'Fert selector'!$D$13*'Fert selector'!$D$18),0,1) -> 01 | S73: =IF(F73=0,0,'Fert selector'!$E$13/F73) -> 0 | T73: =IF('Fert selector'!$D$15="Y",$F73*$N73,IF('Fert selector'!$E$15="Y",$F73*$S73,IF('Fert selector'!$F$15="Y",$F73*$X73,IF('Fert selector'!$G$15="Y",$F73*$AC73)))) -> 0 | U73: 0 | V73: =IF((T73-'Fert selector'!$E$13)<0,(T73-'Fert selector'!$E$13)*-1,T73-'Fert selector'!$E$13) -> 0 | W73: =IF(T73<('Fert selector'!$E$13+'Fert selector'!$E$13*'Fert selector'!$E$17),0,1)&IF(T73>('Fert selector'!$E$13-'Fert selector'!$E$13*'Fert selector'!$E$18),0,1) -> 11 | X73: =IF(G73=0,0,'Fert selector'!$F$13/G73) -> 0 | Y73: =IF('Fert selector'!$D$15="Y",$G73*$N73,IF('Fert selector'!$E$15="Y",$G73*$S73,IF('Fert selector'!$F$15="Y",$G73*$X73,IF('Fert selector'!$G$15="Y",$G73*$AC73)))) -> 0 | Z73: 90 | AA73: =IF((Y73-'Fert selector'!$F$13)<0,(Y73-'Fert selector'!$F$13)*-1,Y73-'Fert selector'!$F$13) -> 90 | AB73: =IF(Y73<('Fert selector'!$F$13+'Fert selector'!$F$13*'Fert selector'!$F$17),0,1)&IF(Y73>('Fert selector'!$F$13-'Fert selector'!$F$13*'Fert selector'!$F$18),0,1) -> 01 | AC73: =IF(H73=0,0,'Fert selector'!$G$13/H73) -> 0 | AD73: =IF('Fert selector'!$D$15="Y",$H73*$N73,IF('Fert selector'!$E$15="Y",$H73*$S73,IF('Fert selector'!$F$15="Y",$H73*$X73,IF('Fert selector'!$G$15="Y",$H73*$AC73)))) -> 0 | AE73: 0 | AF73: =IF((AD73-'Fert selector'!$G$13)<0,(AD73-'Fert selector'!$G$13)*-1,AD73-'Fert selector'!$G$13) -> 0 | AG73: =IF(AD73<('Fert selector'!$G$13+'Fert selector'!$G$13*'Fert selector'!$G$17),0,1)&IF(AD73>('Fert selector'!$G$13-'Fert selector'!$G$13*'Fert selector'!$G$18),0,1) -> 11
N74: =IF(E74=0,0,'Fert selector'!$D$13/E74) -> 0 | O74: =IF('Fert selector'!$D$15="Y",E74*N74,IF('Fert selector'!$E$15="Y",F74*S74,IF('Fert selector'!$F$15="Y",G74*X74,IF('Fert selector'!$G$15="Y",H74*AC74)))) -> 0 | P74: 150 | Q74: =IF((O74-'Fert selector'!$D$13)<0,(O74-'Fert selector'!$D$13)*-1,O74-'Fert selector'!$D$13) -> 150 | R74: =IF(O74<('Fert selector'!$D$13+'Fert selector'!$D$13*'Fert selector'!$D$17),0,1)&IF(O74>('Fert selector'!$D$13-'Fert selector'!$D$13*'Fert selector'!$D$18),0,1) -> 01 | S74: =IF(F74=0,0,'Fert selector'!$E$13/F74) -> 0 | T74: =IF('Fert selector'!$D$15="Y",$F74*$N74,IF('Fert selector'!$E$15="Y",$F74*$S74,IF('Fert selector'!$F$15="Y",$F74*$X74,IF('Fert selector'!$G$15="Y",$F74*$AC74)))) -> 0 | U74: 0 | V74: =IF((T74-'Fert selector'!$E$13)<0,(T74-'Fert selector'!$E$13)*-1,T74-'Fert selector'!$E$13) -> 0 | W74: =IF(T74<('Fert selector'!$E$13+'Fert selector'!$E$13*'Fert selector'!$E$17),0,1)&IF(T74>('Fert selector'!$E$13-'Fert selector'!$E$13*'Fert selector'!$E$18),0,1) -> 11 | X74: =IF(G74=0,0,'Fert selector'!$F$13/G74) -> 0 | Y74: =IF('Fert selector'!$D$15="Y",$G74*$N74,IF('Fert selector'!$E$15="Y",$G74*$S74,IF('Fert selector'!$F$15="Y",$G74*$X74,IF('Fert selector'!$G$15="Y",$G74*$AC74)))) -> 0 | Z74: 90 | AA74: =IF((Y74-'Fert selector'!$F$13)<0,(Y74-'Fert selector'!$F$13)*-1,Y74-'Fert selector'!$F$13) -> 90 | AB74: =IF(Y74<('Fert selector'!$F$13+'Fert selector'!$F$13*'Fert selector'!$F$17),0,1)&IF(Y74>('Fert selector'!$F$13-'Fert selector'!$F$13*'Fert selector'!$F$18),0,1) -> 01 | AC74: =IF(H74=0,0,'Fert selector'!$G$13/H74) -> 0 | AD74: =IF('Fert selector'!$D$15="Y",$H74*$N74,IF('Fert selector'!$E$15="Y",$H74*$S74,IF('Fert selector'!$F$15="Y",$H74*$X74,IF('Fert selector'!$G$15="Y",$H74*$AC74)))) -> 0 | AE74: 0 | AF74: =IF((AD74-'Fert selector'!$G$13)<0,(AD74-'Fert selector'!$G$13)*-1,AD74-'Fert selector'!$G$13) -> 0 | AG74: =IF(AD74<('Fert selector'!$G$13+'Fert selector'!$G$13*'Fert selector'!$G$17),0,1)&IF(AD74>('Fert selector'!$G$13-'Fert selector'!$G$13*'Fert selector'!$G$18),0,1) -> 11
N75: =IF(E75=0,0,'Fert selector'!$D$13/E75) -> 0 | O75: =IF('Fert selector'!$D$15="Y",E75*N75,IF('Fert selector'!$E$15="Y",F75*S75,IF('Fert selector'!$F$15="Y",G75*X75,IF('Fert selector'!$G$15="Y",H75*AC75)))) -> 0 | P75: 150 | Q75: =IF((O75-'Fert selector'!$D$13)<0,(O75-'Fert selector'!$D$13)*-1,O75-'Fert selector'!$D$13) -> 150 | R75: =IF(O75<('Fert selector'!$D$13+'Fert selector'!$D$13*'Fert selector'!$D$17),0,1)&IF(O75>('Fert selector'!$D$13-'Fert selector'!$D$13*'Fert selector'!$D$18),0,1) -> 01 | S75: =IF(F75=0,0,'Fert selector'!$E$13/F75) -> 0 | T75: =IF('Fert selector'!$D$15="Y",$F75*$N75,IF('Fert selector'!$E$15="Y",$F75*$S75,IF('Fert selector'!$F$15="Y",$F75*$X75,IF('Fert selector'!$G$15="Y",$F75*$AC75)))) -> 0 | U75: 0 | V75: =IF((T75-'Fert selector'!$E$13)<0,(T75-'Fert selector'!$E$13)*-1,T75-'Fert selector'!$E$13) -> 0 | W75: =IF(T75<('Fert selector'!$E$13+'Fert selector'!$E$13*'Fert selector'!$E$17),0,1)&IF(T75>('Fert selector'!$E$13-'Fert selector'!$E$13*'Fert selector'!$E$18),0,1) -> 11 | X75: =IF(G75=0,0,'Fert selector'!$F$13/G75) -> 0 | Y75: =IF('Fert selector'!$D$15="Y",$G75*$N75,IF('Fert selector'!$E$15="Y",$G75*$S75,IF('Fert selector'!$F$15="Y",$G75*$X75,IF('Fert selector'!$G$15="Y",$G75*$AC75)))) -> 0 | Z75: 90 | AA75: =IF((Y75-'Fert selector'!$F$13)<0,(Y75-'Fert selector'!$F$13)*-1,Y75-'Fert selector'!$F$13) -> 90 | AB75: =IF(Y75<('Fert selector'!$F$13+'Fert selector'!$F$13*'Fert selector'!$F$17),0,1)&IF(Y75>('Fert selector'!$F$13-'Fert selector'!$F$13*'Fert selector'!$F$18),0,1) -> 01 | AC75: =IF(H75=0,0,'Fert selector'!$G$13/H75) -> 0 | AD75: =IF('Fert selector'!$D$15="Y",$H75*$N75,IF('Fert selector'!$E$15="Y",$H75*$S75,IF('Fert selector'!$F$15="Y",$H75*$X75,IF('Fert selector'!$G$15="Y",$H75*$AC75)))) -> 0 | AE75: 0 | AF75: =IF((AD75-'Fert selector'!$G$13)<0,(AD75-'Fert selector'!$G$13)*-1,AD75-'Fert selector'!$G$13) -> 0 | AG75: =IF(AD75<('Fert selector'!$G$13+'Fert selector'!$G$13*'Fert selector'!$G$17),0,1)&IF(AD75>('Fert selector'!$G$13-'Fert selector'!$G$13*'Fert selector'!$G$18),0,1) -> 11
N76: =IF(E76=0,0,'Fert selector'!$D$13/E76) -> 0 | O76: =IF('Fert selector'!$D$15="Y",E76*N76,IF('Fert selector'!$E$15="Y",F76*S76,IF('Fert selector'!$F$15="Y",G76*X76,IF('Fert selector'!$G$15="Y",H76*AC76)))) -> 0 | P76: 150 | Q76: =IF((O76-'Fert selector'!$D$13)<0,(O76-'Fert selector'!$D$13)*-1,O76-'Fert selector'!$D$13) -> 150 | R76: =IF(O76<('Fert selector'!$D$13+'Fert selector'!$D$13*'Fert selector'!$D$17),0,1)&IF(O76>('Fert selector'!$D$13-'Fert selector'!$D$13*'Fert selector'!$D$18),0,1) -> 01 | S76: =IF(F76=0,0,'Fert selector'!$E$13/F76) -> 0 | T76: =IF('Fert selector'!$D$15="Y",$F76*$N76,IF('Fert selector'!$E$15="Y",$F76*$S76,IF('Fert selector'!$F$15="Y",$F76*$X76,IF('Fert selector'!$G$15="Y",$F76*$AC76)))) -> 0 | U76: 0 | V76: =IF((T76-'Fert selector'!$E$13)<0,(T76-'Fert selector'!$E$13)*-1,T76-'Fert selector'!$E$13) -> 0 | W76: =IF(T76<('Fert selector'!$E$13+'Fert selector'!$E$13*'Fert selector'!$E$17),0,1)&IF(T76>('Fert selector'!$E$13-'Fert selector'!$E$13*'Fert selector'!$E$18),0,1) -> 11 | X76: =IF(G76=0,0,'Fert selector'!$F$13/G76) -> 0 | Y76: =IF('Fert selector'!$D$15="Y",$G76*$N76,IF('Fert selector'!$E$15="Y",$G76*$S76,IF('Fert selector'!$F$15="Y",$G76*$X76,IF('Fert selector'!$G$15="Y",$G76*$AC76)))) -> 0 | Z76: 90 | AA76: =IF((Y76-'Fert selector'!$F$13)<0,(Y76-'Fert selector'!$F$13)*-1,Y76-'Fert selector'!$F$13) -> 90 | AB76: =IF(Y76<('Fert selector'!$F$13+'Fert selector'!$F$13*'Fert selector'!$F$17),0,1)&IF(Y76>('Fert selector'!$F$13-'Fert selector'!$F$13*'Fert selector'!$F$18),0,1) -> 01 | AC76: =IF(H76=0,0,'Fert selector'!$G$13/H76) -> 0 | AD76: =IF('Fert selector'!$D$15="Y",$H76*$N76,IF('Fert selector'!$E$15="Y",$H76*$S76,IF('Fert selector'!$F$15="Y",$H76*$X76,IF('Fert selector'!$G$15="Y",$H76*$AC76)))) -> 0 | AE76: 0 | AF76: =IF((AD76-'Fert selector'!$G$13)<0,(AD76-'Fert selector'!$G$13)*-1,AD76-'Fert selector'!$G$13) -> 0 | AG76: =IF(AD76<('Fert selector'!$G$13+'Fert selector'!$G$13*'Fert selector'!$G$17),0,1)&IF(AD76>('Fert selector'!$G$13-'Fert selector'!$G$13*'Fert selector'!$G$18),0,1) -> 11
N77: =IF(E77=0,0,'Fert selector'!$D$13/E77) -> 0 | O77: =IF('Fert selector'!$D$15="Y",E77*N77,IF('Fert selector'!$E$15="Y",F77*S77,IF('Fert selector'!$F$15="Y",G77*X77,IF('Fert selector'!$G$15="Y",H77*AC77)))) -> 0 | P77: 150 | Q77: =IF((O77-'Fert selector'!$D$13)<0,(O77-'Fert selector'!$D$13)*-1,O77-'Fert selector'!$D$13) -> 150 | R77: =IF(O77<('Fert selector'!$D$13+'Fert selector'!$D$13*'Fert selector'!$D$17),0,1)&IF(O77>('Fert selector'!$D$13-'Fert selector'!$D$13*'Fert selector'!$D$18),0,1) -> 01 | S77: =IF(F77=0,0,'Fert selector'!$E$13/F77) -> 0 | T77: =IF('Fert selector'!$D$15="Y",$F77*$N77,IF('Fert selector'!$E$15="Y",$F77*$S77,IF('Fert selector'!$F$15="Y",$F77*$X77,IF('Fert selector'!$G$15="Y",$F77*$AC77)))) -> 0 | U77: 0 | V77: =IF((T77-'Fert selector'!$E$13)<0,(T77-'Fert selector'!$E$13)*-1,T77-'Fert selector'!$E$13) -> 0 | W77: =IF(T77<('Fert selector'!$E$13+'Fert selector'!$E$13*'Fert selector'!$E$17),0,1)&IF(T77>('Fert selector'!$E$13-'Fert selector'!$E$13*'Fert selector'!$E$18),0,1) -> 11 | X77: =IF(G77=0,0,'Fert selector'!$F$13/G77) -> 0 | Y77: =IF('Fert selector'!$D$15="Y",$G77*$N77,IF('Fert selector'!$E$15="Y",$G77*$S77,IF('Fert selector'!$F$15="Y",$G77*$X77,IF('Fert selector'!$G$15="Y",$G77*$AC77)))) -> 0 | Z77: 90 | AA77: =IF((Y77-'Fert selector'!$F$13)<0,(Y77-'Fert selector'!$F$13)*-1,Y77-'Fert selector'!$F$13) -> 90 | AB77: =IF(Y77<('Fert selector'!$F$13+'Fert selector'!$F$13*'Fert selector'!$F$17),0,1)&IF(Y77>('Fert selector'!$F$13-'Fert selector'!$F$13*'Fert selector'!$F$18),0,1) -> 01 | AC77: =IF(H77=0,0,'Fert selector'!$G$13/H77) -> 0 | AD77: =IF('Fert selector'!$D$15="Y",$H77*$N77,IF('Fert selector'!$E$15="Y",$H77*$S77,IF('Fert selector'!$F$15="Y",$H77*$X77,IF('Fert selector'!$G$15="Y",$H77*$AC77)))) -> 0 | AE77: 0 | AF77: =IF((AD77-'Fert selector'!$G$13)<0,(AD77-'Fert selector'!$G$13)*-1,AD77-'Fert selector'!$G$13) -> 0 | AG77: =IF(AD77<('Fert selector'!$G$13+'Fert selector'!$G$13*'Fert selector'!$G$17),0,1)&IF(AD77>('Fert selector'!$G$13-'Fert selector'!$G$13*'Fert selector'!$G$18),0,1) -> 11
N78: =IF(E78=0,0,'Fert selector'!$D$13/E78) -> 0 | O78: =IF('Fert selector'!$D$15="Y",E78*N78,IF('Fert selector'!$E$15="Y",F78*S78,IF('Fert selector'!$F$15="Y",G78*X78,IF('Fert selector'!$G$15="Y",H78*AC78)))) -> 0 | P78: 150 | Q78: =IF((O78-'Fert selector'!$D$13)<0,(O78-'Fert selector'!$D$13)*-1,O78-'Fert selector'!$D$13) -> 150 | R78: =IF(O78<('Fert selector'!$D$13+'Fert selector'!$D$13*'Fert selector'!$D$17),0,1)&IF(O78>('Fert selector'!$D$13-'Fert selector'!$D$13*'Fert selector'!$D$18),0,1) -> 01 | S78: =IF(F78=0,0,'Fert selector'!$E$13/F78) -> 0 | T78: =IF('Fert selector'!$D$15="Y",$F78*$N78,IF('Fert selector'!$E$15="Y",$F78*$S78,IF('Fert selector'!$F$15="Y",$F78*$X78,IF('Fert selector'!$G$15="Y",$F78*$AC78)))) -> 0 | U78: 0 | V78: =IF((T78-'Fert selector'!$E$13)<0,(T78-'Fert selector'!$E$13)*-1,T78-'Fert selector'!$E$13) -> 0 | W78: =IF(T78<('Fert selector'!$E$13+'Fert selector'!$E$13*'Fert selector'!$E$17),0,1)&IF(T78>('Fert selector'!$E$13-'Fert selector'!$E$13*'Fert selector'!$E$18),0,1) -> 11 | X78: =IF(G78=0,0,'Fert selector'!$F$13/G78) -> 0 | Y78: =IF('Fert selector'!$D$15="Y",$G78*$N78,IF('Fert selector'!$E$15="Y",$G78*$S78,IF('Fert selector'!$F$15="Y",$G78*$X78,IF('Fert selector'!$G$15="Y",$G78*$AC78)))) -> 0 | Z78: 90 | AA78: =IF((Y78-'Fert selector'!$F$13)<0,(Y78-'Fert selector'!$F$13)*-1,Y78-'Fert selector'!$F$13) -> 90 | AB78: =IF(Y78<('Fert selector'!$F$13+'Fert selector'!$F$13*'Fert selector'!$F$17),0,1)&IF(Y78>('Fert selector'!$F$13-'Fert selector'!$F$13*'Fert selector'!$F$18),0,1) -> 01 | AC78: =IF(H78=0,0,'Fert selector'!$G$13/H78) -> 0 | AD78: =IF('Fert selector'!$D$15="Y",$H78*$N78,IF('Fert selector'!$E$15="Y",$H78*$S78,IF('Fert selector'!$F$15="Y",$H78*$X78,IF('Fert selector'!$G$15="Y",$H78*$AC78)))) -> 0 | AE78: 0 | AF78: =IF((AD78-'Fert selector'!$G$13)<0,(AD78-'Fert selector'!$G$13)*-1,AD78-'Fert selector'!$G$13) -> 0 | AG78: =IF(AD78<('Fert selector'!$G$13+'Fert selector'!$G$13*'Fert selector'!$G$17),0,1)&IF(AD78>('Fert selector'!$G$13-'Fert selector'!$G$13*'Fert selector'!$G$18),0,1) -> 11
N79: =IF(E79=0,0,'Fert selector'!$D$13/E79) -> 0 | O79: =IF('Fert selector'!$D$15="Y",E79*N79,IF('Fert selector'!$E$15="Y",F79*S79,IF('Fert selector'!$F$15="Y",G79*X79,IF('Fert selector'!$G$15="Y",H79*AC79)))) -> 0 | P79: 150 | Q79: =IF((O79-'Fert selector'!$D$13)<0,(O79-'Fert selector'!$D$13)*-1,O79-'Fert selector'!$D$13) -> 150 | R79: =IF(O79<('Fert selector'!$D$13+'Fert selector'!$D$13*'Fert selector'!$D$17),0,1)&IF(O79>('Fert selector'!$D$13-'Fert selector'!$D$13*'Fert selector'!$D$18),0,1) -> 01 | S79: =IF(F79=0,0,'Fert selector'!$E$13/F79) -> 0 | T79: =IF('Fert selector'!$D$15="Y",$F79*$N79,IF('Fert selector'!$E$15="Y",$F79*$S79,IF('Fert selector'!$F$15="Y",$F79*$X79,IF('Fert selector'!$G$15="Y",$F79*$AC79)))) -> 0 | U79: 0 | V79: =IF((T79-'Fert selector'!$E$13)<0,(T79-'Fert selector'!$E$13)*-1,T79-'Fert selector'!$E$13) -> 0 | W79: =IF(T79<('Fert selector'!$E$13+'Fert selector'!$E$13*'Fert selector'!$E$17),0,1)&IF(T79>('Fert selector'!$E$13-'Fert selector'!$E$13*'Fert selector'!$E$18),0,1) -> 11 | X79: =IF(G79=0,0,'Fert selector'!$F$13/G79) -> 0 | Y79: =IF('Fert selector'!$D$15="Y",$G79*$N79,IF('Fert selector'!$E$15="Y",$G79*$S79,IF('Fert selector'!$F$15="Y",$G79*$X79,IF('Fert selector'!$G$15="Y",$G79*$AC79)))) -> 0 | Z79: 90 | AA79: =IF((Y79-'Fert selector'!$F$13)<0,(Y79-'Fert selector'!$F$13)*-1,Y79-'Fert selector'!$F$13) -> 90 | AB79: =IF(Y79<('Fert selector'!$F$13+'Fert selector'!$F$13*'Fert selector'!$F$17),0,1)&IF(Y79>('Fert selector'!$F$13-'Fert selector'!$F$13*'Fert selector'!$F$18),0,1) -> 01 | AC79: =IF(H79=0,0,'Fert selector'!$G$13/H79) -> 0 | AD79: =IF('Fert selector'!$D$15="Y",$H79*$N79,IF('Fert selector'!$E$15="Y",$H79*$S79,IF('Fert selector'!$F$15="Y",$H79*$X79,IF('Fert selector'!$G$15="Y",$H79*$AC79)))) -> 0 | AE79: 0 | AF79: =IF((AD79-'Fert selector'!$G$13)<0,(AD79-'Fert selector'!$G$13)*-1,AD79-'Fert selector'!$G$13) -> 0 | AG79: =IF(AD79<('Fert selector'!$G$13+'Fert selector'!$G$13*'Fert selector'!$G$17),0,1)&IF(AD79>('Fert selector'!$G$13-'Fert selector'!$G$13*'Fert selector'!$G$18),0,1) -> 11
N80: =IF(E80=0,0,'Fert selector'!$D$13/E80) -> 0 | O80: =IF('Fert selector'!$D$15="Y",E80*N80,IF('Fert selector'!$E$15="Y",F80*S80,IF('Fert selector'!$F$15="Y",G80*X80,IF('Fert selector'!$G$15="Y",H80*AC80)))) -> 0 | P80: 150 | Q80: =IF((O80-'Fert selector'!$D$13)<0,(O80-'Fert selector'!$D$13)*-1,O80-'Fert selector'!$D$13) -> 150 | R80: =IF(O80<('Fert selector'!$D$13+'Fert selector'!$D$13*'Fert selector'!$D$17),0,1)&IF(O80>('Fert selector'!$D$13-'Fert selector'!$D$13*'Fert selector'!$D$18),0,1) -> 01 | S80: =IF(F80=0,0,'Fert selector'!$E$13/F80) -> 0 | T80: =IF('Fert selector'!$D$15="Y",$F80*$N80,IF('Fert selector'!$E$15="Y",$F80*$S80,IF('Fert selector'!$F$15="Y",$F80*$X80,IF('Fert selector'!$G$15="Y",$F80*$AC80)))) -> 0 | U80: 0 | V80: =IF((T80-'Fert selector'!$E$13)<0,(T80-'Fert selector'!$E$13)*-1,T80-'Fert selector'!$E$13) -> 0 | W80: =IF(T80<('Fert selector'!$E$13+'Fert selector'!$E$13*'Fert selector'!$E$17),0,1)&IF(T80>('Fert selector'!$E$13-'Fert selector'!$E$13*'Fert selector'!$E$18),0,1) -> 11 | X80: =IF(G80=0,0,'Fert selector'!$F$13/G80) -> 0 | Y80: =IF('Fert selector'!$D$15="Y",$G80*$N80,IF('Fert selector'!$E$15="Y",$G80*$S80,IF('Fert selector'!$F$15="Y",$G80*$X80,IF('Fert selector'!$G$15="Y",$G80*$AC80)))) -> 0 | Z80: 90 | AA80: =IF((Y80-'Fert selector'!$F$13)<0,(Y80-'Fert selector'!$F$13)*-1,Y80-'Fert selector'!$F$13) -> 90 | AB80: =IF(Y80<('Fert selector'!$F$13+'Fert selector'!$F$13*'Fert selector'!$F$17),0,1)&IF(Y80>('Fert selector'!$F$13-'Fert selector'!$F$13*'Fert selector'!$F$18),0,1) -> 01 | AC80: =IF(H80=0,0,'Fert selector'!$G$13/H80) -> 0 | AD80: =IF('Fert selector'!$D$15="Y",$H80*$N80,IF('Fert selector'!$E$15="Y",$H80*$S80,IF('Fert selector'!$F$15="Y",$H80*$X80,IF('Fert selector'!$G$15="Y",$H80*$AC80)))) -> 0 | AE80: 0 | AF80: =IF((AD80-'Fert selector'!$G$13)<0,(AD80-'Fert selector'!$G$13)*-1,AD80-'Fert selector'!$G$13) -> 0 | AG80: =IF(AD80<('Fert selector'!$G$13+'Fert selector'!$G$13*'Fert selector'!$G$17),0,1)&IF(AD80>('Fert selector'!$G$13-'Fert selector'!$G$13*'Fert selector'!$G$18),0,1) -> 11
N81: =IF(E81=0,0,'Fert selector'!$D$13/E81) -> 0 | O81: =IF('Fert selector'!$D$15="Y",E81*N81,IF('Fert selector'!$E$15="Y",F81*S81,IF('Fert selector'!$F$15="Y",G81*X81,IF('Fert selector'!$G$15="Y",H81*AC81)))) -> 0 | P81: 150 | Q81: =IF((O81-'Fert selector'!$D$13)<0,(O81-'Fert selector'!$D$13)*-1,O81-'Fert selector'!$D$13) -> 150 | R81: =IF(O81<('Fert selector'!$D$13+'Fert selector'!$D$13*'Fert selector'!$D$17),0,1)&IF(O81>('Fert selector'!$D$13-'Fert selector'!$D$13*'Fert selector'!$D$18),0,1) -> 01 | S81: =IF(F81=0,0,'Fert selector'!$E$13/F81) -> 0 | T81: =IF('Fert selector'!$D$15="Y",$F81*$N81,IF('Fert selector'!$E$15="Y",$F81*$S81,IF('Fert selector'!$F$15="Y",$F81*$X81,IF('Fert selector'!$G$15="Y",$F81*$AC81)))) -> 0 | U81: 0 | V81: =IF((T81-'Fert selector'!$E$13)<0,(T81-'Fert selector'!$E$13)*-1,T81-'Fert selector'!$E$13) -> 0 | W81: =IF(T81<('Fert selector'!$E$13+'Fert selector'!$E$13*'Fert selector'!$E$17),0,1)&IF(T81>('Fert selector'!$E$13-'Fert selector'!$E$13*'Fert selector'!$E$18),0,1) -> 11 | X81: =IF(G81=0,0,'Fert selector'!$F$13/G81) -> 0 | Y81: =IF('Fert selector'!$D$15="Y",$G81*$N81,IF('Fert selector'!$E$15="Y",$G81*$S81,IF('Fert selector'!$F$15="Y",$G81*$X81,IF('Fert selector'!$G$15="Y",$G81*$AC81)))) -> 0 | Z81: 90 | AA81: =IF((Y81-'Fert selector'!$F$13)<0,(Y81-'Fert selector'!$F$13)*-1,Y81-'Fert selector'!$F$13) -> 90 | AB81: =IF(Y81<('Fert selector'!$F$13+'Fert selector'!$F$13*'Fert selector'!$F$17),0,1)&IF(Y81>('Fert selector'!$F$13-'Fert selector'!$F$13*'Fert selector'!$F$18),0,1) -> 01 | AC81: =IF(H81=0,0,'Fert selector'!$G$13/H81) -> 0 | AD81: =IF('Fert selector'!$D$15="Y",$H81*$N81,IF('Fert selector'!$E$15="Y",$H81*$S81,IF('Fert selector'!$F$15="Y",$H81*$X81,IF('Fert selector'!$G$15="Y",$H81*$AC81)))) -> 0 | AE81: 0 | AF81: =IF((AD81-'Fert selector'!$G$13)<0,(AD81-'Fert selector'!$G$13)*-1,AD81-'Fert selector'!$G$13) -> 0 | AG81: =IF(AD81<('Fert selector'!$G$13+'Fert selector'!$G$13*'Fert selector'!$G$17),0,1)&IF(AD81>('Fert selector'!$G$13-'Fert selector'!$G$13*'Fert selector'!$G$18),0,1) -> 11
N82: =IF(E82=0,0,'Fert selector'!$D$13/E82) -> 0 | O82: =IF('Fert selector'!$D$15="Y",E82*N82,IF('Fert selector'!$E$15="Y",F82*S82,IF('Fert selector'!$F$15="Y",G82*X82,IF('Fert selector'!$G$15="Y",H82*AC82)))) -> 0 | P82: 150 | Q82: =IF((O82-'Fert selector'!$D$13)<0,(O82-'Fert selector'!$D$13)*-1,O82-'Fert selector'!$D$13) -> 150 | R82: =IF(O82<('Fert selector'!$D$13+'Fert selector'!$D$13*'Fert selector'!$D$17),0,1)&IF(O82>('Fert selector'!$D$13-'Fert selector'!$D$13*'Fert selector'!$D$18),0,1) -> 01 | S82: =IF(F82=0,0,'Fert selector'!$E$13/F82) -> 0 | T82: =IF('Fert selector'!$D$15="Y",$F82*$N82,IF('Fert selector'!$E$15="Y",$F82*$S82,IF('Fert selector'!$F$15="Y",$F82*$X82,IF('Fert selector'!$G$15="Y",$F82*$AC82)))) -> 0 | U82: 0 | V82: =IF((T82-'Fert selector'!$E$13)<0,(T82-'Fert selector'!$E$13)*-1,T82-'Fert selector'!$E$13) -> 0 | W82: =IF(T82<('Fert selector'!$E$13+'Fert selector'!$E$13*'Fert selector'!$E$17),0,1)&IF(T82>('Fert selector'!$E$13-'Fert selector'!$E$13*'Fert selector'!$E$18),0,1) -> 11 | X82: =IF(G82=0,0,'Fert selector'!$F$13/G82) -> 0 | Y82: =IF('Fert selector'!$D$15="Y",$G82*$N82,IF('Fert selector'!$E$15="Y",$G82*$S82,IF('Fert selector'!$F$15="Y",$G82*$X82,IF('Fert selector'!$G$15="Y",$G82*$AC82)))) -> 0 | Z82: 90 | AA82: =IF((Y82-'Fert selector'!$F$13)<0,(Y82-'Fert selector'!$F$13)*-1,Y82-'Fert selector'!$F$13) -> 90 | AB82: =IF(Y82<('Fert selector'!$F$13+'Fert selector'!$F$13*'Fert selector'!$F$17),0,1)&IF(Y82>('Fert selector'!$F$13-'Fert selector'!$F$13*'Fert selector'!$F$18),0,1) -> 01 | AC82: =IF(H82=0,0,'Fert selector'!$G$13/H82) -> 0 | AD82: =IF('Fert selector'!$D$15="Y",$H82*$N82,IF('Fert selector'!$E$15="Y",$H82*$S82,IF('Fert selector'!$F$15="Y",$H82*$X82,IF('Fert selector'!$G$15="Y",$H82*$AC82)))) -> 0 | AE82: 0 | AF82: =IF((AD82-'Fert selector'!$G$13)<0,(AD82-'Fert selector'!$G$13)*-1,AD82-'Fert selector'!$G$13) -> 0 | AG82: =IF(AD82<('Fert selector'!$G$13+'Fert selector'!$G$13*'Fert selector'!$G$17),0,1)&IF(AD82>('Fert selector'!$G$13-'Fert selector'!$G$13*'Fert selector'!$G$18),0,1) -> 11
N83: =IF(E83=0,0,'Fert selector'!$D$13/E83) -> 0 | O83: =IF('Fert selector'!$D$15="Y",E83*N83,IF('Fert selector'!$E$15="Y",F83*S83,IF('Fert selector'!$F$15="Y",G83*X83,IF('Fert selector'!$G$15="Y",H83*AC83)))) -> 0 | P83: 150 | Q83: =IF((O83-'Fert selector'!$D$13)<0,(O83-'Fert selector'!$D$13)*-1,O83-'Fert selector'!$D$13) -> 150 | R83: =IF(O83<('Fert selector'!$D$13+'Fert selector'!$D$13*'Fert selector'!$D$17),0,1)&IF(O83>('Fert selector'!$D$13-'Fert selector'!$D$13*'Fert selector'!$D$18),0,1) -> 01 | S83: =IF(F83=0,0,'Fert selector'!$E$13/F83) -> 0 | T83: =IF('Fert selector'!$D$15="Y",$F83*$N83,IF('Fert selector'!$E$15="Y",$F83*$S83,IF('Fert selector'!$F$15="Y",$F83*$X83,IF('Fert selector'!$G$15="Y",$F83*$AC83)))) -> 0 | U83: 0 | V83: =IF((T83-'Fert selector'!$E$13)<0,(T83-'Fert selector'!$E$13)*-1,T83-'Fert selector'!$E$13) -> 0 | W83: =IF(T83<('Fert selector'!$E$13+'Fert selector'!$E$13*'Fert selector'!$E$17),0,1)&IF(T83>('Fert selector'!$E$13-'Fert selector'!$E$13*'Fert selector'!$E$18),0,1) -> 11 | X83: =IF(G83=0,0,'Fert selector'!$F$13/G83) -> 0 | Y83: =IF('Fert selector'!$D$15="Y",$G83*$N83,IF('Fert selector'!$E$15="Y",$G83*$S83,IF('Fert selector'!$F$15="Y",$G83*$X83,IF('Fert selector'!$G$15="Y",$G83*$AC83)))) -> 0 | Z83: 90 | AA83: =IF((Y83-'Fert selector'!$F$13)<0,(Y83-'Fert selector'!$F$13)*-1,Y83-'Fert selector'!$F$13) -> 90 | AB83: =IF(Y83<('Fert selector'!$F$13+'Fert selector'!$F$13*'Fert selector'!$F$17),0,1)&IF(Y83>('Fert selector'!$F$13-'Fert selector'!$F$13*'Fert selector'!$F$18),0,1) -> 01 | AC83: =IF(H83=0,0,'Fert selector'!$G$13/H83) -> 0 | AD83: =IF('Fert selector'!$D$15="Y",$H83*$N83,IF('Fert selector'!$E$15="Y",$H83*$S83,IF('Fert selector'!$F$15="Y",$H83*$X83,IF('Fert selector'!$G$15="Y",$H83*$AC83)))) -> 0 | AE83: 0 | AF83: =IF((AD83-'Fert selector'!$G$13)<0,(AD83-'Fert selector'!$G$13)*-1,AD83-'Fert selector'!$G$13) -> 0 | AG83: =IF(AD83<('Fert selector'!$G$13+'Fert selector'!$G$13*'Fert selector'!$G$17),0,1)&IF(AD83>('Fert selector'!$G$13-'Fert selector'!$G$13*'Fert selector'!$G$18),0,1) -> 11
N84: =IF(E84=0,0,'Fert selector'!$D$13/E84) -> 0 | O84: =IF('Fert selector'!$D$15="Y",E84*N84,IF('Fert selector'!$E$15="Y",F84*S84,IF('Fert selector'!$F$15="Y",G84*X84,IF('Fert selector'!$G$15="Y",H84*AC84)))) -> 0 | P84: 150 | Q84: =IF((O84-'Fert selector'!$D$13)<0,(O84-'Fert selector'!$D$13)*-1,O84-'Fert selector'!$D$13) -> 150 | R84: =IF(O84<('Fert selector'!$D$13+'Fert selector'!$D$13*'Fert selector'!$D$17),0,1)&IF(O84>('Fert selector'!$D$13-'Fert selector'!$D$13*'Fert selector'!$D$18),0,1) -> 01 | S84: =IF(F84=0,0,'Fert selector'!$E$13/F84) -> 0 | T84: =IF('Fert selector'!$D$15="Y",$F84*$N84,IF('Fert selector'!$E$15="Y",$F84*$S84,IF('Fert selector'!$F$15="Y",$F84*$X84,IF('Fert selector'!$G$15="Y",$F84*$AC84)))) -> 0 | U84: 0 | V84: =IF((T84-'Fert selector'!$E$13)<0,(T84-'Fert selector'!$E$13)*-1,T84-'Fert selector'!$E$13) -> 0 | W84: =IF(T84<('Fert selector'!$E$13+'Fert selector'!$E$13*'Fert selector'!$E$17),0,1)&IF(T84>('Fert selector'!$E$13-'Fert selector'!$E$13*'Fert selector'!$E$18),0,1) -> 11 | X84: =IF(G84=0,0,'Fert selector'!$F$13/G84) -> 0 | Y84: =IF('Fert selector'!$D$15="Y",$G84*$N84,IF('Fert selector'!$E$15="Y",$G84*$S84,IF('Fert selector'!$F$15="Y",$G84*$X84,IF('Fert selector'!$G$15="Y",$G84*$AC84)))) -> 0 | Z84: 90 | AA84: =IF((Y84-'Fert selector'!$F$13)<0,(Y84-'Fert selector'!$F$13)*-1,Y84-'Fert selector'!$F$13) -> 90 | AB84: =IF(Y84<('Fert selector'!$F$13+'Fert selector'!$F$13*'Fert selector'!$F$17),0,1)&IF(Y84>('Fert selector'!$F$13-'Fert selector'!$F$13*'Fert selector'!$F$18),0,1) -> 01 | AC84: =IF(H84=0,0,'Fert selector'!$G$13/H84) -> 0 | AD84: =IF('Fert selector'!$D$15="Y",$H84*$N84,IF('Fert selector'!$E$15="Y",$H84*$S84,IF('Fert selector'!$F$15="Y",$H84*$X84,IF('Fert selector'!$G$15="Y",$H84*$AC84)))) -> 0 | AE84: 0 | AF84: =IF((AD84-'Fert selector'!$G$13)<0,(AD84-'Fert selector'!$G$13)*-1,AD84-'Fert selector'!$G$13) -> 0 | AG84: =IF(AD84<('Fert selector'!$G$13+'Fert selector'!$G$13*'Fert selector'!$G$17),0,1)&IF(AD84>('Fert selector'!$G$13-'Fert selector'!$G$13*'Fert selector'!$G$18),0,1) -> 11
